Workbook

Sheet Simulador
J1: Cliente | N1: E-mail
J2: Ejecutivo | N2: Teléfono
J3: Punto de Vta
B5: Datos del Crédito
D7: Fecha de cotización | F7: =TODAY() -> 2026-01-09 | K7: Programa | N7: Tradicional
D9: Elige un destino | E9: =VLOOKUP(F9,Sheet1!$B$2:$C$10,2,0) -> 1 | F9: Liquidez | H9: =IF($F$9="Mejora",'Tabla Parámetros'!$M$52,"") ->  | K9: Tipo de seguro | N9: Básico
D11: Elige un producto | E11: =VLOOKUP(F11,Sheet1!$E$2:$F$5,2,0) -> 1 | F11: Liquidez | H11: =IF($F$9="Mejora",'Tabla Parámetros'!$O$52,"") ->  | K11: Ingresa valor de vivienda | M11: Capturable | N11: 2500000
D13: Seguros BANORTE | F13: SI | J13: ¿Conoces la Suma Asegurable? | K13: NO | L13: *Suma Asegurable | M13: Capturable | N13: =IF($J$11="SI",0,IF($F$9='Tabla Parámetros'!$O$6,0,Simulador!$N$11*0.7)) -> 1750000
D15: =IF(F15=0,"","Monto Crédito") -> Monto Crédito | E15: Capturable | F15: 1500000 | H15: =IF(N19>'Tabla Parámetros'!I46,'Tabla Parámetros'!M53,"") ->  | J15: ¿Exenta Comisión Apertura? | K15: NO | L15: Contratación crédito | N15: =IF($K$15="Si",0,VLOOKUP($F$9,'Tabla Parámetros'!$G$30:$I$38,2,0)) -> 0.015
D17: =IF($N$7="Cofinavit"," ",IF($N$7='Tabla Parámetros'!$C$34," ",IF($N$7="Respalda2"," ","Monto Enganche"))) -> Monto Enganche | F17: =IF(OR($N$7="Cofinavit",N7="Cuenta INFONAVIT + BANORTE",N7="FOVISSSTE para todos"),0,'Tabla Parámetros'!$F$20) -> 0 | H17: =IF(F17=0,"",IF($N$7='Tabla Parámetros'!R35,'Tabla Parámetros'!M54,IF(Simulador!$N$7='Tabla Parámetros'!$R$37,'Tabla Parámetros'!M54,IF(Simulador!$N$7='Tabla Parámetros'!$R$39,'Tabla Parámetros'!M54,"")))) ->  | K17: Contratación crédito financiada | N17: NO
D19: Plazo en meses | F19: 180 | H19: =IF('Estados y Datos Notariales'!$I$1=12,"¿El municipio es León?","") ->  | J19: =IF(Sheet1!I1=6,"Monto de Crédito FOVISSSTE para todos","") ->  | L19: =IF($N$7="Cofinavit"," ",IF($N$7="Alia2+"," ",IF($N$7="Respalda2"," ","Aforo"))) -> Aforo | N19: =IF(OR(Sheet1!I1=3,Sheet1!I1=4,Sheet1!I1=5),0,IF(Sheet1!I1=6,Sheet1!$I$29,F15/N11)) -> 0.6 | O19: =IF(H15="","",'Tabla Parámetros'!I44) ->  | P19: =IF(O19="","",'Tabla Parámetros'!I46) -> 
C21: Estado | F21: Ciudad de México | H21: NO | L21: *Es el resultado de restar al valor comercial del inmueble, el valor del terreno.
F22: =N7 -> Tradicional
H23: Titular | I23: =IF(OR(N7="Cofinavit",N7='Tabla Parámetros'!C34),"Cotitular","") ->  | L23: RECURSOS PARA ADQUIRIR LA VIVIENDA
G24: Ingreso mensual bruto: | J24: =IF($H$24<10000,COFINAVIT!$G$14,"") -> Ingreso mínimo $10,000.00
G25: Subcuenta vivienda: | M25: =G25 -> Subcuenta vivienda: | N25: =$H$25+$I$25 -> 0
G26: =IF(N7='Tabla Parámetros'!$C$34,"","Crédito INFONAVIT:") -> Crédito INFONAVIT: | J26: =IF((H26)>COFINAVIT!$G$10,"Máximo $1,117,823.20"," ") ->  | K26: =IF((I26)>COFINAVIT!$G$10,"Máximo $1,117,823.20"," ") ->  | M26: =G26 -> Crédito INFONAVIT: | N26: =$H$26+$I$26 -> 0
G27: =IF(N7='Tabla Parámetros'!$C$34,"","Desc INFONAVIT:") -> Desc INFONAVIT: | J27: =IF(N7='Tabla Parámetros'!$C$34,"","Ingresos Adicionales") -> Ingresos Adicionales | M27: =G31 -> Crédito Banorte: | N27: =$H$31 -> 1500000
G28: Enganche opcional: | M28: =G30 -> Enganche obligado: | N28: =$H$30 -> 1000000
G29: =IF(N7='Tabla Parámetros'!$C$34,"","Desc ecotecnologías:") -> Desc ecotecnologías: | H29: =IF(N7='Tabla Parámetros'!$C$34,"",Ecotecnologias!C3) -> 0 | M29: =G28 -> Enganche opcional: | N29: =$H$28 -> 0
G30: Enganche obligado: | H30: =IF(((N11)-(H25+I25+H26+I26+H28+H31))<0,0,((N11)-(H25+I25+H26+I26+H28+H31))) -> 1000000 | I30: =IF(N7='Tabla Parámetros'!$C$34,"",COFINAVIT!$C$33) -> 0 | J30: =IF(N7='Tabla Parámetros'!$C$34,"","Gastos Infonavit") -> Gastos Infonavit
G31: Crédito Banorte: | H31: =IF(F15>0,F15,IF(N7='Tabla Parámetros'!$C$34,Fovissste!$B$14,IF(Simulador!N7='Tabla Parámetros'!$C$32,COFINAVIT!$C$28))) -> 1500000 | I31: =$H$31/$N$11 -> 0.6 | J31: Aforo | K31: =IF(I31>'Tabla Parámetros'!I46,"Supera Aforo Máximo","") ->  | M31: Total | N31: =IF(SUM(N25:N29)>F32,F32,SUM(N25:N29)) -> 2500000
F32: =+N11*1 -> 2500000 | K32: =+IF(SUM(N25:N29)>N11,"La Suma de los Recursos no puede ser mayor al valor de vivienda, ajusta el crédito Banorte","") -> 
E33: Cuenta Infonavit más Crédito Bancario | L33: RECURSOS PARA ADQUIRIR LA VIVIENDA
H34: Titular | I34: Cotitular
B35: Tasa interés Infonavit: | E35: 0.1045 | G35: Ingreso mensual bruto: | J35: =IF($H$35<10000,COFINAVIT!$G$14,"") -> Ingreso mínimo $10,000.00 | M35: =G36 -> Subcuenta vivienda: | N35: =$H$36+$I$36 -> 0
B36: Plazo Crédito Infonavit: | E36: =H49 -> 180 | G36: Subcuenta vivienda: | M36: =G38 -> Crédito INFONAVIT: | N36: =$H$38+$I$37 -> 450000
B37: Capital e intereses: | E37: =PMT(E35/12,E36,-H38) -> 4960.355405 | G37: Crédito estimado: | H37: =COFINAVIT!C43 -> 1500000 | M37: =G39 -> Crédito Banorte: | N37: =$H$39 -> 1050000
B38: Comisión Admon. Infonavit: | E38: =(H38*0.01)/12 -> 375 | G38: Crédito INFONAVIT: | H38: =COFINAVIT!$C$44 -> 450000 | J38: =IF(H38>COFINAVIT!$F$39,"Máximo $1,072,671.60"," ") ->  | K38: =IF((H38)>COFINAVIT!$G$10,"Máximo $1,072,671.60"," ") ->  | M38: =G40 -> Enganche: | N38: =$H$40 -> 1000000
B39: Mensualidad Infonavit: | E39: =+E37+E38 -> 5335.355405 | G39: Crédito Banorte: | H39: =COFINAVIT!$C$46 -> 1050000 | I39: =$H$39/$N$11 -> 0.42 | J39: Aforo Banorte
B40: Mensualidad BANORTE: | E40: =HLOOKUP(F62,I55:L57,3,0) -> 20889.99408 | G40: Enganche: | H40: =COFINAVIT!C57 -> 1000000
B41: Mensualidad Estimada: | E41: =+E39+E40 -> 26225.34948 | K41: =+IF(I39>95%,"Máximo 95%","") ->  | M41: Total | N41: =IF(SUM(N35:N39)>F42,F42,SUM(N35:N39)) -> 2500000
F42: =+N11*1 -> 2500000 | K42: =+IF(SUM(N35:N39)>N11,"La Suma de los Recursos no puede ser mayor al valor de vivienda, ajusta el crédito Banorte","") -> 
B44: Condiciones Financieras
K45: =IF(N7="Cofinavit",J30,"") ->  | L45: =IF($N$7="Cofinavit",$I$30,0) -> 0
G46: Producto: | H46: =F11 -> Liquidez | K46: Contratación crédito: | L46: =IF($F$9="Liquidez",($H$48*$N$15)*1.16,$H$48*$N$15) -> 26100 | M46: =IF(N17="SI","Financiada","") -> 
G47: Valor Vivienda: | H47: =N11 -> 2500000 | K47: Avalúo hipotecario: | L47: =+'Tabla Parámetros'!R90*1.16 -> 5800 | M47: Con IVA
G48: Monto de Crédito: | H48: =IF(N7='Tabla Parámetros'!C32,Simulador!H31,IF(N7='Tabla Parámetros'!C33,Simulador!H39,IF(N7='Tabla Parámetros'!C34,H31,Simulador!F15))) -> 1500000 | K48: =IF(F9="Mejora","*Honorarios Notariales:",IF(F9="Mejora_más_Remodelación","*Honorarios Notariales:","*Gastos Notariales Estimados:")) -> *Gastos Notariales Estimados: | L48: =IF(Sheet1!$D$14=2,VLOOKUP(Simulador!$F$21,Notariales!$B$2:$E$33,4,0),IF(Sheet1!$D$14=3,$H$48*$H$50,IF(Sheet1!$D$14=1,Simulador!$N$11*Simulador!$H$50,))) -> 33000 | M48: =IF(L48=0,"","Sin IVA") -> Sin IVA
G49: Plazo en meses: | H49: =F19 -> 180 | K49: Gastos de aprobación: | L49: =IF(H46='Tabla Parámetros'!W1,'Tabla Parámetros'!W25,'Tabla Parámetros'!Y9) -> 500
B50: *Se sugiere seleccionar este porcentaje y/o monto, el monto definitivo lo informa el notario previo a la firma del contrato de crédito. | G50: =IF($F$9="Mejora"," ",IF($F$9="Mejora_más_Remodelación"," ","*Gastos Notariales:")) -> *Gastos Notariales: | H50: ='Estados y Datos Notariales'!K2 -> 0.022 | K50: Enganche: | L50: =IF(OR(N7="Cofinavit",N7="FOVISSSTE para todos"),H28+H30,IF(N7="Cuenta INFONAVIT + BANORTE",H40,F17)) -> 0
G51: =IF(N7='Tabla Parámetros'!$C$34,"Seguro Vida:","Seguro Vida y Daños:") -> Seguro Vida y Daños: | H51: =$N$9 -> Básico | K51: =IF(N7="",G32,"") ->  | L51: =IF(N7="",H32,0) -> 0
G52: Desembolso Inicial Estimado: | L52: =IF(N17="SI",(L45+L47+L48+L49+L50)-L51,(L45+L46+L47+L48+L49+L50)-L51) -> 65400 | M52: =IF($L$52<0,"Saldo a Favor del Cliente","") -> 
I54: =IF(Sheet1!AA1<>1,"",IF(OR(Sheet1!$I$10=5,Sheet1!$I$10=6),"","Premium")) ->  | J54: =IF(OR(Sheet1!$I$10=5,Sheet1!$I$10=6),$N$7,Sheet1!AC1) -> Liquidez | K54: =IF(Sheet1!AA1<>1,"",IF(OR(Sheet1!$I$10=5,Sheet1!$I$10=6),"","Baja")) ->  | L54: =IF(Sheet1!AA1<>1,"",IF(OR(Sheet1!$I$10=5,Sheet1!$I$10=6),"","Media")) ->  | M54: =IF(Sheet1!AA1<>1,"",IF(OR(Sheet1!$I$10=5,Sheet1!$I$10=6),"","Alta")) -> 
G55: *Tasa Interés anual fija | I55: =IF(Sheet1!AA1<>1,"",IF(Sheet1!$I$10=5,"",'Pago x mil'!$E$12)) ->  | J55: ='Pago x mil'!$F$12 -> 0.1299 | K55: =IF(Sheet1!AA1<>1,"",IF(Sheet1!$I$10=5,"",'Pago x mil'!$G$12)) ->  | L55: =IF(Sheet1!AA1<>1,"",IF(Sheet1!$I$10=5,"",'Pago x mil'!$H$12)) ->  | M55: =IF(Sheet1!AA1<>1,"",IF(Sheet1!$I$10=5,"",'Pago x mil'!$I$12)) -> 
G56: Pago por Mil | I56: =IF(Sheet1!AA1<>1,"",IF(OR(Sheet1!$I$10=5,Sheet1!$I$10=6),"",'Pago x mil'!$E$13)) ->  | J56: ='Pago x mil'!$F$13 -> 12.75999605 | K56: =IF(Sheet1!AA1<>1,"",IF(OR(Sheet1!$I$10=5,Sheet1!$I$10=6),"",'Pago x mil'!$G$13)) ->  | L56: =IF(Sheet1!AA1<>1,"",IF(OR(Sheet1!$I$10=5,Sheet1!$I$10=6),"",'Pago x mil'!$H$13)) ->  | M56: =IF(Sheet1!AA1<>1,"",IF(OR(Sheet1!$I$10=5,Sheet1!$I$10=6),"",'Pago x mil'!$I$13)) -> 
B57: *La Tasa otorgada será en base a la evaluación de crédito y se mantiene fija toda la vida del crédito | G57: Mensualidad Inicial | I57: =IF(Sheet1!AA1<>1,"",IF(OR(Sheet1!$I$10=5,Sheet1!$I$10=6),"",'Pago x mil'!$E$21)) ->  | J57: ='Pago x mil'!$F$21 -> 20889.99408 | K57: =IF(Sheet1!AA1<>1,"",IF(OR(Sheet1!$I$10=5,Sheet1!$I$10=6),"",'Pago x mil'!$G$21)) ->  | L57: =IF(Sheet1!AA1<>1,"",IF(OR(Sheet1!$I$10=5,Sheet1!$I$10=6),"",'Pago x mil'!$H$21)) ->  | M57: =IF(Sheet1!AA1<>1,"",IF(OR(Sheet1!$I$10=5,Sheet1!$I$10=6),"",'Pago x mil'!$I$21)) -> 
G58: Ingreso Requerido | I58: =IF(Sheet1!AA1<>1,"",IF(OR(Sheet1!$I$10=5,Sheet1!$I$10=6),"",'Pago x mil'!$E$22)) ->  | J58: ='Pago x mil'!$F$22 -> 41779.98816 | K58: =IF(Sheet1!AA1<>1,"",IF(OR(Sheet1!$I$10=5,Sheet1!$I$10=6),"",'Pago x mil'!$G$22)) ->  | L58: =IF(Sheet1!AA1<>1,"",IF(OR(Sheet1!$I$10=5,Sheet1!$I$10=6),"",'Pago x mil'!$H$22)) ->  | M58: =IF(Sheet1!AA1<>1,"",IF(OR(Sheet1!$I$10=5,Sheet1!$I$10=6),"",'Pago x mil'!$I$22)) -> 
B60: Tabla de Pagos
B62: Selecciona la Tasa a cotizar | F62: 0.1299 | J62: 0 | L62: Selecciona tipo de prepago | N62: Reduce Pago
L63: Su crédito se amortizará en | N63: =IF($F$9='Tabla Parámetros'!$J$7,SUM(Simulador!S392:S631),IF($F$9='Tabla Parámetros'!$J$9,SUM(Simulador!S392:S631),IF($F$9='Tabla Parámetros'!J8,SUM(Simulador!S392:S631),SUM(R67:R366)))) -> 180 | O63: meses
B64: CAT Promedio | D64: =IF(F11='Tabla Parámetros'!G45,'Tabla Parámetros'!G50,IF(Simulador!F11='Tabla Parámetros'!G67,'Tabla Parámetros'!G72,IF(Simulador!F11='Tabla Parámetros'!B52,'Tabla Parámetros'!G62,IF(Simulador!F11='Tabla Parámetros'!B53,'Tabla Parámetros'!G62,)))) -> 0.161283309 | E64: Sin IVA Informativo | I64: =IF(Sheet1!$Z$1=3,"Monto de cada bonificación:","") ->  | J64: =IF(I64="","",'Tabla Fijos'!$P$9) -> 
B66: No. | C66: Fecha | D66: Días | E66: Tasa | F66: Saldo Inicial | G66: Capital | H66: Interés | I66: =IF($F$9="Liquidez",'Tabla Fijos'!$I$10,IF($F$9="Terreno_Urbanizado",'Tabla Fijos'!$I$10,IF($J$9="SI",'Tabla Fijos'!$I$10,IF($J$11="SI",'Tabla Fijos'!$I$10,"")))) -> IVA Interés | J66: Seguro de Vida | K66: Seguro de Daños y Contenidos | L66: Administracion - Autorización de Crédito Diferida | M66: =IF(OR($N$7='Tabla Parámetros'!$C$31,$N$7='Tabla Parámetros'!$C$34),'Tabla Fijos'!$N$10,"") ->  | N66: Aportación a Capital | O66: =IF(Sheet1!$AC$14=2,"",'Tabla Fijos'!$Q$10) ->  | P66: Pago Mensual | Q66: Saldo Final
B67: 1 | C67: =IF($B67="","",'Fecha Pago'!K4) -> 2026-02-03 | D67: =IF($B$67="","",'Fecha Pago'!L4) -> 26 | E67: =IF(B67="","",IF(Sheet1!$Z$1=4,'Tabla de Pagos Crecientes'!E7,$F$62)) -> 0.1299 | F67: =IF($B67="","",IF(Sheet1!$Z$1=4,'Tabla de Pagos Crecientes'!F7,'Tabla Fijos'!F12)) -> 1500000 | G67: =IF($B67="","",IF(Sheet1!$Z$1=4,'Tabla de Pagos Crecientes'!G7,'Tabla Fijos'!G12)) -> 2685.994078 | H67: =IF($B67="","",IF(Sheet1!$Z$1=4,'Tabla de Pagos Crecientes'!H7,'Tabla Fijos'!H12)) -> 14072.5 | I67: =IF($B67=0,0,IF(B67="","",VLOOKUP($B67,'Tabla Fijos'!$B$12:$S$311,8,0))) -> 2251.6 | J67: =IF($B67="","",IF(Sheet1!$Z$1=4,'Tabla de Pagos Crecientes'!J7,'Tabla Fijos'!K12)) -> 780 | K67: =IF($B67="","",IF(Sheet1!$Z$1=4,'Tabla de Pagos Crecientes'!K7,'Tabla Fijos'!L12)) -> 424.6666667 | L67: =IF($B67="","",IF(Sheet1!$Z$1=4,'Tabla de Pagos Crecientes'!L7,'Tabla Fijos'!M12)) -> 360 | M67: =IF($B67="","",IF(Sheet1!$Z$1=4,'Tabla de Pagos Crecientes'!M7,'Tabla Fijos'!N12)) -> 0 | O67: =IF($B67="","",IF(Sheet1!$Z$1=4,'Tabla de Pagos Crecientes'!O7,'Tabla Fijos'!Q12)) -> 0 | P67: =IF(B67="","",G67+H67+I67+J67+K67+L67-M67-'Tabla Fijos'!P12) -> 20574.76074 | Q67: =IF(B67="","",F67-G67) -> 1497314.006 | R67: =IF(OR($B67="",$F67<=0),0,1) -> 1
B68: =IF(B67="","",IF(B67=$H$49,"",B67+1)) -> 2 | C68: =IF($B68="","",'Fecha Pago'!K5) -> 2026-03-03 | D68: =IF($B$67="","",'Fecha Pago'!L5) -> 30.4 | E68: =IF(B68="","",IF(Sheet1!$Z$1=4,'Tabla de Pagos Crecientes'!E8,$F$62)) -> 0.1299 | F68: =IF($B68="","",IF(Sheet1!$Z$1=4,'Tabla de Pagos Crecientes'!F8,'Tabla Fijos'!F13)) -> 1497314.006 | G68: =IF($B68="","",IF(Sheet1!$Z$1=4,'Tabla de Pagos Crecientes'!G8,'Tabla Fijos'!G13)) -> 2715.457642 | H68: =IF($B68="","",IF(Sheet1!$Z$1=4,'Tabla de Pagos Crecientes'!H8,'Tabla Fijos'!H13)) -> 16424.53644 | I68: =IF($B68=0,0,IF(B68="","",VLOOKUP($B68,'Tabla Fijos'!$B$12:$S$311,8,0))) -> 2627.92583 | J68: =IF($B68="","",IF(Sheet1!$Z$1=4,'Tabla de Pagos Crecientes'!J8,'Tabla Fijos'!K13)) -> 898.3884036 | K68: =IF($B68="","",IF(Sheet1!$Z$1=4,'Tabla de Pagos Crecientes'!K8,'Tabla Fijos'!L13)) -> 490 | L68: =IF($B68="","",IF(Sheet1!$Z$1=4,'Tabla de Pagos Crecientes'!L8,'Tabla Fijos'!M13)) -> 360 | M68: =IF($B68="","",IF(Sheet1!$Z$1=4,'Tabla de Pagos Crecientes'!M8,'Tabla Fijos'!N13)) -> 0 | O68: =IF($B68="","",IF(Sheet1!$Z$1=4,'Tabla de Pagos Crecientes'!O8,'Tabla Fijos'!Q13)) -> 0 | P68: =IF(B68="","",G68+H68+I68+J68+K68+L68-M68-'Tabla Fijos'!P13) -> 23516.30831 | Q68: 1494598.548 | R68: =IF(OR($B68="",$F68<=0),0,1) -> 1
B69: =IF(B68="","",IF(B68=$H$49,"",B68+1)) -> 3 | C69: =IF($B69="","",'Fecha Pago'!K6) -> 2026-04-03 | D69: =IF($B$67="","",'Fecha Pago'!L6) -> 30.4 | E69: =IF(B69="","",IF(Sheet1!$Z$1=4,'Tabla de Pagos Crecientes'!E9,$F$62)) -> 0.1299 | F69: =IF($B69="","",IF(Sheet1!$Z$1=4,'Tabla de Pagos Crecientes'!F9,'Tabla Fijos'!F14)) -> 1494598.548 | G69: =IF($B69="","",IF(Sheet1!$Z$1=4,'Tabla de Pagos Crecientes'!G9,'Tabla Fijos'!G14)) -> 2745.244402 | H69: =IF($B69="","",IF(Sheet1!$Z$1=4,'Tabla de Pagos Crecientes'!H9,'Tabla Fijos'!H14)) -> 16394.74968 | I69: =IF($B69=0,0,IF(B69="","",VLOOKUP($B69,'Tabla Fijos'!$B$12:$S$311,8,0))) -> 2623.159948 | J69: =IF($B69="","",IF(Sheet1!$Z$1=4,'Tabla de Pagos Crecientes'!J9,'Tabla Fijos'!K14)) -> 896.759129 | K69: =IF($B69="","",IF(Sheet1!$Z$1=4,'Tabla de Pagos Crecientes'!K9,'Tabla Fijos'!L14)) -> 490 | L69: =IF($B69="","",IF(Sheet1!$Z$1=4,'Tabla de Pagos Crecientes'!L9,'Tabla Fijos'!M14)) -> 360 | M69: =IF($B69="","",IF(Sheet1!$Z$1=4,'Tabla de Pagos Crecientes'!M9,'Tabla Fijos'!N14)) -> 0 | O69: =IF($B69="","",IF(Sheet1!$Z$1=4,'Tabla de Pagos Crecientes'!O9,'Tabla Fijos'!Q14)) -> 0 | P69: =IF(B69="","",G69+H69+I69+J69+K69+L69-M69-'Tabla Fijos'!P14) -> 23509.91315 | Q69: 1491853.304 | R69: 1
B70: 4 | C70: =IF($B70="","",'Fecha Pago'!K7) -> 2026-05-03 | D70: =IF($B$67="","",'Fecha Pago'!L7) -> 30.4 | E70: =IF(B70="","",IF(Sheet1!$Z$1=4,'Tabla de Pagos Crecientes'!E10,$F$62)) -> 0.1299 | F70: =IF($B70="","",IF(Sheet1!$Z$1=4,'Tabla de Pagos Crecientes'!F10,'Tabla Fijos'!F15)) -> 1491853.304 | G70: =IF($B70="","",IF(Sheet1!$Z$1=4,'Tabla de Pagos Crecientes'!G10,'Tabla Fijos'!G15)) -> 2775.357903 | H70: =IF($B70="","",IF(Sheet1!$Z$1=4,'Tabla de Pagos Crecientes'!H10,'Tabla Fijos'!H15)) -> 16364.63617 | I70: =IF($B70=0,0,IF(B70="","",VLOOKUP($B70,'Tabla Fijos'!$B$12:$S$311,8,0))) -> 2618.341788 | J70: =IF($B70="","",IF(Sheet1!$Z$1=4,'Tabla de Pagos Crecientes'!J10,'Tabla Fijos'!K15)) -> 895.1119823 | K70: =IF($B70="","",IF(Sheet1!$Z$1=4,'Tabla de Pagos Crecientes'!K10,'Tabla Fijos'!L15)) -> 490 | L70: =IF($B70="","",IF(Sheet1!$Z$1=4,'Tabla de Pagos Crecientes'!L10,'Tabla Fijos'!M15)) -> 360 | M70: =IF($B70="","",IF(Sheet1!$Z$1=4,'Tabla de Pagos Crecientes'!M10,'Tabla Fijos'!N15)) -> 0 | O70: =IF($B70="","",IF(Sheet1!$Z$1=4,'Tabla de Pagos Crecientes'!O10,'Tabla Fijos'!Q15)) -> 0 | P70: =IF(B70="","",G70+H70+I70+J70+K70+L70-M70-'Tabla Fijos'!P15) -> 23503.44785 | Q70: 1489077.946 | R70: 1
B71: 5 | C71: =IF($B71="","",'Fecha Pago'!K8) -> 2026-06-03 | D71: =IF($B$67="","",'Fecha Pago'!L8) -> 30.4 | E71: =IF(B71="","",IF(Sheet1!$Z$1=4,'Tabla de Pagos Crecientes'!E11,$F$62)) -> 0.1299 | F71: =IF($B71="","",IF(Sheet1!$Z$1=4,'Tabla de Pagos Crecientes'!F11,'Tabla Fijos'!F16)) -> 1489077.946 | G71: =IF($B71="","",IF(Sheet1!$Z$1=4,'Tabla de Pagos Crecientes'!G11,'Tabla Fijos'!G16)) -> 2805.801729 | H71: =IF($B71="","",IF(Sheet1!$Z$1=4,'Tabla de Pagos Crecientes'!H11,'Tabla Fijos'!H16)) -> 16334.19235 | I71: =IF($B71=0,0,IF(B71="","",VLOOKUP($B71,'Tabla Fijos'!$B$12:$S$311,8,0))) -> 2613.470776 | J71: =IF($B71="","",IF(Sheet1!$Z$1=4,'Tabla de Pagos Crecientes'!J11,'Tabla Fijos'!K16)) -> 893.4467676 | K71: =IF($B71="","",IF(Sheet1!$Z$1=4,'Tabla de Pagos Crecientes'!K11,'Tabla Fijos'!L16)) -> 490 | L71: =IF($B71="","",IF(Sheet1!$Z$1=4,'Tabla de Pagos Crecientes'!L11,'Tabla Fijos'!M16)) -> 360 | M71: =IF($B71="","",IF(Sheet1!$Z$1=4,'Tabla de Pagos Crecientes'!M11,'Tabla Fijos'!N16)) -> 0 | O71: =IF($B71="","",IF(Sheet1!$Z$1=4,'Tabla de Pagos Crecientes'!O11,'Tabla Fijos'!Q16)) -> 0 | P71: =IF(B71="","",G71+H71+I71+J71+K71+L71-M71-'Tabla Fijos'!P16) -> 23496.91162 | Q71: 1486272.144 | R71: 1
B72: 6 | C72: =IF($B72="","",'Fecha Pago'!K9) -> 2026-07-03 | D72: =IF($B$67="","",'Fecha Pago'!L9) -> 30.4 | E72: =IF(B72="","",IF(Sheet1!$Z$1=4,'Tabla de Pagos Crecientes'!E12,$F$62)) -> 0.1299 | F72: =IF($B72="","",IF(Sheet1!$Z$1=4,'Tabla de Pagos Crecientes'!F12,'Tabla Fijos'!F17)) -> 1486272.144 | G72: =IF($B72="","",IF(Sheet1!$Z$1=4,'Tabla de Pagos Crecientes'!G12,'Tabla Fijos'!G17)) -> 2836.579503 | H72: =IF($B72="","",IF(Sheet1!$Z$1=4,'Tabla de Pagos Crecientes'!H12,'Tabla Fijos'!H17)) -> 16303.41457 | I72: =IF($B72=0,0,IF(B72="","",VLOOKUP($B72,'Tabla Fijos'!$B$12:$S$311,8,0))) -> 2608.546332 | J72: =IF($B72="","",IF(Sheet1!$Z$1=4,'Tabla de Pagos Crecientes'!J12,'Tabla Fijos'!K17)) -> 891.7632865 | K72: =IF($B72="","",IF(Sheet1!$Z$1=4,'Tabla de Pagos Crecientes'!K12,'Tabla Fijos'!L17)) -> 490 | L72: =IF($B72="","",IF(Sheet1!$Z$1=4,'Tabla de Pagos Crecientes'!L12,'Tabla Fijos'!M17)) -> 360 | M72: =IF($B72="","",IF(Sheet1!$Z$1=4,'Tabla de Pagos Crecientes'!M12,'Tabla Fijos'!N17)) -> 0 | O72: =IF($B72="","",IF(Sheet1!$Z$1=4,'Tabla de Pagos Crecientes'!O12,'Tabla Fijos'!Q17)) -> 0 | P72: =IF(B72="","",G72+H72+I72+J72+K72+L72-M72-'Tabla Fijos'!P17) -> 23490.3037 | Q72: 1483435.565 | R72: 1
B73: 7 | C73: =IF($B73="","",'Fecha Pago'!K10) -> 2026-08-03 | D73: =IF($B$67="","",'Fecha Pago'!L10) -> 30.4 | E73: =IF(B73="","",IF(Sheet1!$Z$1=4,'Tabla de Pagos Crecientes'!E13,$F$62)) -> 0.1299 | F73: =IF($B73="","",IF(Sheet1!$Z$1=4,'Tabla de Pagos Crecientes'!F13,'Tabla Fijos'!F18)) -> 1483435.565 | G73: =IF($B73="","",IF(Sheet1!$Z$1=4,'Tabla de Pagos Crecientes'!G13,'Tabla Fijos'!G18)) -> 2867.694889 | H73: =IF($B73="","",IF(Sheet1!$Z$1=4,'Tabla de Pagos Crecientes'!H13,'Tabla Fijos'!H18)) -> 16272.29919 | I73: =IF($B73=0,0,IF(B73="","",VLOOKUP($B73,'Tabla Fijos'!$B$12:$S$311,8,0))) -> 2603.56787 | J73: =IF($B73="","",IF(Sheet1!$Z$1=4,'Tabla de Pagos Crecientes'!J13,'Tabla Fijos'!K18)) -> 890.0613388 | K73: =IF($B73="","",IF(Sheet1!$Z$1=4,'Tabla de Pagos Crecientes'!K13,'Tabla Fijos'!L18)) -> 490 | L73: =IF($B73="","",IF(Sheet1!$Z$1=4,'Tabla de Pagos Crecientes'!L13,'Tabla Fijos'!M18)) -> 360 | M73: =IF($B73="","",IF(Sheet1!$Z$1=4,'Tabla de Pagos Crecientes'!M13,'Tabla Fijos'!N18)) -> 0 | O73: =IF($B73="","",IF(Sheet1!$Z$1=4,'Tabla de Pagos Crecientes'!O13,'Tabla Fijos'!Q18)) -> 0 | P73: =IF(B73="","",G73+H73+I73+J73+K73+L73-M73-'Tabla Fijos'!P18) -> 23483.62329 | Q73: 1480567.87 | R73: 1
B74: 8 | C74: =IF($B74="","",'Fecha Pago'!K11) -> 2026-09-03 | D74: =IF($B$67="","",'Fecha Pago'!L11) -> 30.4 | E74: =IF(B74="","",IF(Sheet1!$Z$1=4,'Tabla de Pagos Crecientes'!E14,$F$62)) -> 0.1299 | F74: =IF($B74="","",IF(Sheet1!$Z$1=4,'Tabla de Pagos Crecientes'!F14,'Tabla Fijos'!F19)) -> 1480567.87 | G74: =IF($B74="","",IF(Sheet1!$Z$1=4,'Tabla de Pagos Crecientes'!G14,'Tabla Fijos'!G19)) -> 2899.15159 | H74: =IF($B74="","",IF(Sheet1!$Z$1=4,'Tabla de Pagos Crecientes'!H14,'Tabla Fijos'!H19)) -> 16240.84249 | I74: =IF($B74=0,0,IF(B74="","",VLOOKUP($B74,'Tabla Fijos'!$B$12:$S$311,8,0))) -> 2598.534798 | J74: =IF($B74="","",IF(Sheet1!$Z$1=4,'Tabla de Pagos Crecientes'!J14,'Tabla Fijos'!K19)) -> 888.3407219 | K74: =IF($B74="","",IF(Sheet1!$Z$1=4,'Tabla de Pagos Crecientes'!K14,'Tabla Fijos'!L19)) -> 490 | L74: =IF($B74="","",IF(Sheet1!$Z$1=4,'Tabla de Pagos Crecientes'!L14,'Tabla Fijos'!M19)) -> 360 | M74: =IF($B74="","",IF(Sheet1!$Z$1=4,'Tabla de Pagos Crecientes'!M14,'Tabla Fijos'!N19)) -> 0 | O74: =IF($B74="","",IF(Sheet1!$Z$1=4,'Tabla de Pagos Crecientes'!O14,'Tabla Fijos'!Q19)) -> 0 | P74: =IF(B74="","",G74+H74+I74+J74+K74+L74-M74-'Tabla Fijos'!P19) -> 23476.8696 | Q74: 1477668.718 | R74: 1
B75: 9 | C75: =IF($B75="","",'Fecha Pago'!K12) -> 2026-10-03 | D75: =IF($B$67="","",'Fecha Pago'!L12) -> 30.4 | E75: =IF(B75="","",IF(Sheet1!$Z$1=4,'Tabla de Pagos Crecientes'!E15,$F$62)) -> 0.1299 | F75: =IF($B75="","",IF(Sheet1!$Z$1=4,'Tabla de Pagos Crecientes'!F15,'Tabla Fijos'!F20)) -> 1477668.718 | G75: =IF($B75="","",IF(Sheet1!$Z$1=4,'Tabla de Pagos Crecientes'!G15,'Tabla Fijos'!G20)) -> 2930.953351 | H75: =IF($B75="","",IF(Sheet1!$Z$1=4,'Tabla de Pagos Crecientes'!H15,'Tabla Fijos'!H20)) -> 16209.04073 | I75: =IF($B75=0,0,IF(B75="","",VLOOKUP($B75,'Tabla Fijos'!$B$12:$S$311,8,0))) -> 2593.446516 | J75: =IF($B75="","",IF(Sheet1!$Z$1=4,'Tabla de Pagos Crecientes'!J15,'Tabla Fijos'!K20)) -> 886.601231 | K75: =IF($B75="","",IF(Sheet1!$Z$1=4,'Tabla de Pagos Crecientes'!K15,'Tabla Fijos'!L20)) -> 490 | L75: =IF($B75="","",IF(Sheet1!$Z$1=4,'Tabla de Pagos Crecientes'!L15,'Tabla Fijos'!M20)) -> 360 | M75: =IF($B75="","",IF(Sheet1!$Z$1=4,'Tabla de Pagos Crecientes'!M15,'Tabla Fijos'!N20)) -> 0 | O75: =IF($B75="","",IF(Sheet1!$Z$1=4,'Tabla de Pagos Crecientes'!O15,'Tabla Fijos'!Q20)) -> 0 | P75: =IF(B75="","",G75+H75+I75+J75+K75+L75-M75-'Tabla Fijos'!P20) -> 23470.04182 | Q75: 1474737.765 | R75: 1
B76: 10 | C76: =IF($B76="","",'Fecha Pago'!K13) -> 2026-11-03 | D76: =IF($B$67="","",'Fecha Pago'!L13) -> 30.4 | E76: =IF(B76="","",IF(Sheet1!$Z$1=4,'Tabla de Pagos Crecientes'!E16,$F$62)) -> 0.1299 | F76: =IF($B76="","",IF(Sheet1!$Z$1=4,'Tabla de Pagos Crecientes'!F16,'Tabla Fijos'!F21)) -> 1474737.765 | G76: =IF($B76="","",IF(Sheet1!$Z$1=4,'Tabla de Pagos Crecientes'!G16,'Tabla Fijos'!G21)) -> 2963.103955 | H76: =IF($B76="","",IF(Sheet1!$Z$1=4,'Tabla de Pagos Crecientes'!H16,'Tabla Fijos'!H21)) -> 16176.89012 | I76: =IF($B76=0,0,IF(B76="","",VLOOKUP($B76,'Tabla Fijos'!$B$12:$S$311,8,0))) -> 2588.30242 | J76: =IF($B76="","",IF(Sheet1!$Z$1=4,'Tabla de Pagos Crecientes'!J16,'Tabla Fijos'!K21)) -> 884.8426589 | K76: =IF($B76="","",IF(Sheet1!$Z$1=4,'Tabla de Pagos Crecientes'!K16,'Tabla Fijos'!L21)) -> 490 | L76: =IF($B76="","",IF(Sheet1!$Z$1=4,'Tabla de Pagos Crecientes'!L16,'Tabla Fijos'!M21)) -> 360 | M76: =IF($B76="","",IF(Sheet1!$Z$1=4,'Tabla de Pagos Crecientes'!M16,'Tabla Fijos'!N21)) -> 0 | O76: =IF($B76="","",IF(Sheet1!$Z$1=4,'Tabla de Pagos Crecientes'!O16,'Tabla Fijos'!Q21)) -> 0 | P76: =IF(B76="","",G76+H76+I76+J76+K76+L76-M76-'Tabla Fijos'!P21) -> 23463.13916 | Q76: 1471774.661 | R76: 1
B77: 11 | C77: =IF($B77="","",'Fecha Pago'!K14) -> 2026-12-03 | D77: =IF($B$67="","",'Fecha Pago'!L14) -> 30.4 | E77: =IF(B77="","",IF(Sheet1!$Z$1=4,'Tabla de Pagos Crecientes'!E17,$F$62)) -> 0.1299 | F77: =IF($B77="","",IF(Sheet1!$Z$1=4,'Tabla de Pagos Crecientes'!F17,'Tabla Fijos'!F22)) -> 1471774.661 | G77: =IF($B77="","",IF(Sheet1!$Z$1=4,'Tabla de Pagos Crecientes'!G17,'Tabla Fijos'!G22)) -> 2995.60723 | H77: =IF($B77="","",IF(Sheet1!$Z$1=4,'Tabla de Pagos Crecientes'!H17,'Tabla Fijos'!H22)) -> 16144.38685 | I77: =IF($B77=0,0,IF(B77="","",VLOOKUP($B77,'Tabla Fijos'!$B$12:$S$311,8,0))) -> 2583.101896 | J77: =IF($B77="","",IF(Sheet1!$Z$1=4,'Tabla de Pagos Crecientes'!J17,'Tabla Fijos'!K22)) -> 883.0647966 | K77: =IF($B77="","",IF(Sheet1!$Z$1=4,'Tabla de Pagos Crecientes'!K17,'Tabla Fijos'!L22)) -> 490 | L77: =IF($B77="","",IF(Sheet1!$Z$1=4,'Tabla de Pagos Crecientes'!L17,'Tabla Fijos'!M22)) -> 360 | M77: =IF($B77="","",IF(Sheet1!$Z$1=4,'Tabla de Pagos Crecientes'!M17,'Tabla Fijos'!N22)) -> 0 | O77: =IF($B77="","",IF(Sheet1!$Z$1=4,'Tabla de Pagos Crecientes'!O17,'Tabla Fijos'!Q22)) -> 0 | P77: =IF(B77="","",G77+H77+I77+J77+K77+L77-M77-'Tabla Fijos'!P22) -> 23456.16077 | Q77: 1468779.054 | R77: 1
B78: 12 | C78: =IF($B78="","",'Fecha Pago'!K15) -> 2027-01-03 | D78: =IF($B$67="","",'Fecha Pago'!L15) -> 30.4 | E78: =IF(B78="","",IF(Sheet1!$Z$1=4,'Tabla de Pagos Crecientes'!E18,$F$62)) -> 0.1299 | F78: =IF($B78="","",IF(Sheet1!$Z$1=4,'Tabla de Pagos Crecientes'!F18,'Tabla Fijos'!F23)) -> 1468779.054 | G78: =IF($B78="","",IF(Sheet1!$Z$1=4,'Tabla de Pagos Crecientes'!G18,'Tabla Fijos'!G23)) -> 3028.467044 | H78: =IF($B78="","",IF(Sheet1!$Z$1=4,'Tabla de Pagos Crecientes'!H18,'Tabla Fijos'!H23)) -> 16111.52703 | I78: =IF($B78=0,0,IF(B78="","",VLOOKUP($B78,'Tabla Fijos'!$B$12:$S$311,8,0))) -> 2577.844325 | J78: =IF($B78="","",IF(Sheet1!$Z$1=4,'Tabla de Pagos Crecientes'!J18,'Tabla Fijos'!K23)) -> 881.2674322 | K78: =IF($B78="","",IF(Sheet1!$Z$1=4,'Tabla de Pagos Crecientes'!K18,'Tabla Fijos'!L23)) -> 490 | L78: =IF($B78="","",IF(Sheet1!$Z$1=4,'Tabla de Pagos Crecientes'!L18,'Tabla Fijos'!M23)) -> 360 | M78: =IF($B78="","",IF(Sheet1!$Z$1=4,'Tabla de Pagos Crecientes'!M18,'Tabla Fijos'!N23)) -> 0 | O78: =IF($B78="","",IF(Sheet1!$Z$1=4,'Tabla de Pagos Crecientes'!O18,'Tabla Fijos'!Q23)) -> 0 | P78: =IF(B78="","",G78+H78+I78+J78+K78+L78-M78-'Tabla Fijos'!P23) -> 23449.10584 | Q78: 1465750.587 | R78: 1
B79: 13 | C79: =IF($B79="","",'Fecha Pago'!K16) -> 2027-02-03 | D79: =IF($B$67="","",'Fecha Pago'!L16) -> 30.4 | E79: =IF(B79="","",IF(Sheet1!$Z$1=4,'Tabla de Pagos Crecientes'!E19,$F$62)) -> 0.1299 | F79: =IF($B79="","",IF(Sheet1!$Z$1=4,'Tabla de Pagos Crecientes'!F19,'Tabla Fijos'!F24)) -> 1465750.587 | G79: =IF($B79="","",IF(Sheet1!$Z$1=4,'Tabla de Pagos Crecientes'!G19,'Tabla Fijos'!G24)) -> 3061.687309 | H79: =IF($B79="","",IF(Sheet1!$Z$1=4,'Tabla de Pagos Crecientes'!H19,'Tabla Fijos'!H24)) -> 16078.30677 | I79: =IF($B79=0,0,IF(B79="","",VLOOKUP($B79,'Tabla Fijos'!$B$12:$S$311,8,0))) -> 2572.529083 | J79: =IF($B79="","",IF(Sheet1!$Z$1=4,'Tabla de Pagos Crecientes'!J19,'Tabla Fijos'!K24)) -> 879.450352 | K79: =IF($B79="","",IF(Sheet1!$Z$1=4,'Tabla de Pagos Crecientes'!K19,'Tabla Fijos'!L24)) -> 490 | L79: =IF($B79="","",IF(Sheet1!$Z$1=4,'Tabla de Pagos Crecientes'!L19,'Tabla Fijos'!M24)) -> 360 | M79: =IF($B79="","",IF(Sheet1!$Z$1=4,'Tabla de Pagos Crecientes'!M19,'Tabla Fijos'!N24)) -> 0 | O79: =IF($B79="","",IF(Sheet1!$Z$1=4,'Tabla de Pagos Crecientes'!O19,'Tabla Fijos'!Q24)) -> 0 | P79: =IF(B79="","",G79+H79+I79+J79+K79+L79-M79-'Tabla Fijos'!P24) -> 23441.97351 | Q79: 1462688.899 | R79: 1
B80: 14 | C80: =IF($B80="","",'Fecha Pago'!K17) -> 2027-03-03 | D80: =IF($B$67="","",'Fecha Pago'!L17) -> 30.4 | E80: =IF(B80="","",IF(Sheet1!$Z$1=4,'Tabla de Pagos Crecientes'!E20,$F$62)) -> 0.1299 | F80: =IF($B80="","",IF(Sheet1!$Z$1=4,'Tabla de Pagos Crecientes'!F20,'Tabla Fijos'!F25)) -> 1462688.899 | G80: =IF($B80="","",IF(Sheet1!$Z$1=4,'Tabla de Pagos Crecientes'!G20,'Tabla Fijos'!G25)) -> 3095.271977 | H80: =IF($B80="","",IF(Sheet1!$Z$1=4,'Tabla de Pagos Crecientes'!H20,'Tabla Fijos'!H25)) -> 16044.7221 | I80: =IF($B80=0,0,IF(B80="","",VLOOKUP($B80,'Tabla Fijos'!$B$12:$S$311,8,0))) -> 2567.155536 | J80: =IF($B80="","",IF(Sheet1!$Z$1=4,'Tabla de Pagos Crecientes'!J20,'Tabla Fijos'!K25)) -> 877.6133396 | K80: =IF($B80="","",IF(Sheet1!$Z$1=4,'Tabla de Pagos Crecientes'!K20,'Tabla Fijos'!L25)) -> 490 | L80: =IF($B80="","",IF(Sheet1!$Z$1=4,'Tabla de Pagos Crecientes'!L20,'Tabla Fijos'!M25)) -> 360 | M80: =IF($B80="","",IF(Sheet1!$Z$1=4,'Tabla de Pagos Crecientes'!M20,'Tabla Fijos'!N25)) -> 0 | O80: =IF($B80="","",IF(Sheet1!$Z$1=4,'Tabla de Pagos Crecientes'!O20,'Tabla Fijos'!Q25)) -> 0 | P80: =IF(B80="","",G80+H80+I80+J80+K80+L80-M80-'Tabla Fijos'!P25) -> 23434.76295 | Q80: 1459593.627 | R80: 1
B81: 15 | C81: =IF($B81="","",'Fecha Pago'!K18) -> 2027-04-03 | D81: =IF($B$67="","",'Fecha Pago'!L18) -> 30.4 | E81: =IF(B81="","",IF(Sheet1!$Z$1=4,'Tabla de Pagos Crecientes'!E21,$F$62)) -> 0.1299 | F81: =IF($B81="","",IF(Sheet1!$Z$1=4,'Tabla de Pagos Crecientes'!F21,'Tabla Fijos'!F26)) -> 1459593.627 | G81: =IF($B81="","",IF(Sheet1!$Z$1=4,'Tabla de Pagos Crecientes'!G21,'Tabla Fijos'!G26)) -> 3129.225047 | H81: =IF($B81="","",IF(Sheet1!$Z$1=4,'Tabla de Pagos Crecientes'!H21,'Tabla Fijos'!H26)) -> 16010.76903 | I81: =IF($B81=0,0,IF(B81="","",VLOOKUP($B81,'Tabla Fijos'!$B$12:$S$311,8,0))) -> 2561.723045 | J81: =IF($B81="","",IF(Sheet1!$Z$1=4,'Tabla de Pagos Crecientes'!J21,'Tabla Fijos'!K26)) -> 875.7561764 | K81: =IF($B81="","",IF(Sheet1!$Z$1=4,'Tabla de Pagos Crecientes'!K21,'Tabla Fijos'!L26)) -> 490 | L81: =IF($B81="","",IF(Sheet1!$Z$1=4,'Tabla de Pagos Crecientes'!L21,'Tabla Fijos'!M26)) -> 360 | M81: =IF($B81="","",IF(Sheet1!$Z$1=4,'Tabla de Pagos Crecientes'!M21,'Tabla Fijos'!N26)) -> 0 | O81: =IF($B81="","",IF(Sheet1!$Z$1=4,'Tabla de Pagos Crecientes'!O21,'Tabla Fijos'!Q26)) -> 0 | P81: =IF(B81="","",G81+H81+I81+J81+K81+L81-M81-'Tabla Fijos'!P26) -> 23427.4733 | Q81: 1456464.402 | R81: 1
B82: 16 | C82: =IF($B82="","",'Fecha Pago'!K19) -> 2027-05-03 | D82: =IF($B$67="","",'Fecha Pago'!L19) -> 30.4 | E82: =IF(B82="","",IF(Sheet1!$Z$1=4,'Tabla de Pagos Crecientes'!E22,$F$62)) -> 0.1299 | F82: =IF($B82="","",IF(Sheet1!$Z$1=4,'Tabla de Pagos Crecientes'!F22,'Tabla Fijos'!F27)) -> 1456464.402 | G82: =IF($B82="","",IF(Sheet1!$Z$1=4,'Tabla de Pagos Crecientes'!G22,'Tabla Fijos'!G27)) -> 3163.55056 | H82: =IF($B82="","",IF(Sheet1!$Z$1=4,'Tabla de Pagos Crecientes'!H22,'Tabla Fijos'!H27)) -> 15976.44352 | I82: =IF($B82=0,0,IF(B82="","",VLOOKUP($B82,'Tabla Fijos'!$B$12:$S$311,8,0))) -> 2556.230963 | J82: =IF($B82="","",IF(Sheet1!$Z$1=4,'Tabla de Pagos Crecientes'!J22,'Tabla Fijos'!K27)) -> 873.8786414 | K82: =IF($B82="","",IF(Sheet1!$Z$1=4,'Tabla de Pagos Crecientes'!K22,'Tabla Fijos'!L27)) -> 490 | L82: =IF($B82="","",IF(Sheet1!$Z$1=4,'Tabla de Pagos Crecientes'!L22,'Tabla Fijos'!M27)) -> 360 | M82: =IF($B82="","",IF(Sheet1!$Z$1=4,'Tabla de Pagos Crecientes'!M22,'Tabla Fijos'!N27)) -> 0 | O82: =IF($B82="","",IF(Sheet1!$Z$1=4,'Tabla de Pagos Crecientes'!O22,'Tabla Fijos'!Q27)) -> 0 | P82: =IF(B82="","",G82+H82+I82+J82+K82+L82-M82-'Tabla Fijos'!P27) -> 23420.10368 | Q82: 1453300.852 | R82: 1
B83: 17 | C83: =IF($B83="","",'Fecha Pago'!K20) -> 2027-06-03 | D83: =IF($B$67="","",'Fecha Pago'!L20) -> 30.4 | E83: =IF(B83="","",IF(Sheet1!$Z$1=4,'Tabla de Pagos Crecientes'!E23,$F$62)) -> 0.1299 | F83: =IF($B83="","",IF(Sheet1!$Z$1=4,'Tabla de Pagos Crecientes'!F23,'Tabla Fijos'!F28)) -> 1453300.852 | G83: =IF($B83="","",IF(Sheet1!$Z$1=4,'Tabla de Pagos Crecientes'!G23,'Tabla Fijos'!G28)) -> 3198.252601 | H83: =IF($B83="","",IF(Sheet1!$Z$1=4,'Tabla de Pagos Crecientes'!H23,'Tabla Fijos'!H28)) -> 15941.74148 | I83: =IF($B83=0,0,IF(B83="","",VLOOKUP($B83,'Tabla Fijos'!$B$12:$S$311,8,0))) -> 2550.678636 | J83: =IF($B83="","",IF(Sheet1!$Z$1=4,'Tabla de Pagos Crecientes'!J23,'Tabla Fijos'!K28)) -> 871.9805111 | K83: =IF($B83="","",IF(Sheet1!$Z$1=4,'Tabla de Pagos Crecientes'!K23,'Tabla Fijos'!L28)) -> 490 | L83: =IF($B83="","",IF(Sheet1!$Z$1=4,'Tabla de Pagos Crecientes'!L23,'Tabla Fijos'!M28)) -> 360 | M83: =IF($B83="","",IF(Sheet1!$Z$1=4,'Tabla de Pagos Crecientes'!M23,'Tabla Fijos'!N28)) -> 0 | O83: =IF($B83="","",IF(Sheet1!$Z$1=4,'Tabla de Pagos Crecientes'!O23,'Tabla Fijos'!Q28)) -> 0 | P83: =IF(B83="","",G83+H83+I83+J83+K83+L83-M83-'Tabla Fijos'!P28) -> 23412.65322 | Q83: 1450102.599 | R83: 1
B84: 18 | C84: =IF($B84="","",'Fecha Pago'!K21) -> 2027-07-03 | D84: =IF($B$67="","",'Fecha Pago'!L21) -> 30.4 | E84: =IF(B84="","",IF(Sheet1!$Z$1=4,'Tabla de Pagos Crecientes'!E24,$F$62)) -> 0.1299 | F84: =IF($B84="","",IF(Sheet1!$Z$1=4,'Tabla de Pagos Crecientes'!F24,'Tabla Fijos'!F29)) -> 1450102.599 | G84: =IF($B84="","",IF(Sheet1!$Z$1=4,'Tabla de Pagos Crecientes'!G24,'Tabla Fijos'!G29)) -> 3233.335299 | H84: =IF($B84="","",IF(Sheet1!$Z$1=4,'Tabla de Pagos Crecientes'!H24,'Tabla Fijos'!H29)) -> 15906.65878 | I84: =IF($B84=0,0,IF(B84="","",VLOOKUP($B84,'Tabla Fijos'!$B$12:$S$311,8,0))) -> 2545.065404 | J84: =IF($B84="","",IF(Sheet1!$Z$1=4,'Tabla de Pagos Crecientes'!J24,'Tabla Fijos'!K29)) -> 870.0615595 | K84: =IF($B84="","",IF(Sheet1!$Z$1=4,'Tabla de Pagos Crecientes'!K24,'Tabla Fijos'!L29)) -> 490 | L84: =IF($B84="","",IF(Sheet1!$Z$1=4,'Tabla de Pagos Crecientes'!L24,'Tabla Fijos'!M29)) -> 360 | M84: =IF($B84="","",IF(Sheet1!$Z$1=4,'Tabla de Pagos Crecientes'!M24,'Tabla Fijos'!N29)) -> 0 | O84: =IF($B84="","",IF(Sheet1!$Z$1=4,'Tabla de Pagos Crecientes'!O24,'Tabla Fijos'!Q29)) -> 0 | P84: =IF(B84="","",G84+H84+I84+J84+K84+L84-M84-'Tabla Fijos'!P29) -> 23405.12104 | Q84: 1446869.264 | R84: 1
B85: 19 | C85: =IF($B85="","",'Fecha Pago'!K22) -> 2027-08-03 | D85: =IF($B$67="","",'Fecha Pago'!L22) -> 30.4 | E85: =IF(B85="","",IF(Sheet1!$Z$1=4,'Tabla de Pagos Crecientes'!E25,$F$62)) -> 0.1299 | F85: =IF($B85="","",IF(Sheet1!$Z$1=4,'Tabla de Pagos Crecientes'!F25,'Tabla Fijos'!F30)) -> 1446869.264 | G85: =IF($B85="","",IF(Sheet1!$Z$1=4,'Tabla de Pagos Crecientes'!G25,'Tabla Fijos'!G30)) -> 3268.802832 | H85: =IF($B85="","",IF(Sheet1!$Z$1=4,'Tabla de Pagos Crecientes'!H25,'Tabla Fijos'!H30)) -> 15871.19125 | I85: =IF($B85=0,0,IF(B85="","",VLOOKUP($B85,'Tabla Fijos'!$B$12:$S$311,8,0))) -> 2539.390599 | J85: =IF($B85="","",IF(Sheet1!$Z$1=4,'Tabla de Pagos Crecientes'!J25,'Tabla Fijos'!K30)) -> 868.1215583 | K85: =IF($B85="","",IF(Sheet1!$Z$1=4,'Tabla de Pagos Crecientes'!K25,'Tabla Fijos'!L30)) -> 490 | L85: =IF($B85="","",IF(Sheet1!$Z$1=4,'Tabla de Pagos Crecientes'!L25,'Tabla Fijos'!M30)) -> 360 | M85: =IF($B85="","",IF(Sheet1!$Z$1=4,'Tabla de Pagos Crecientes'!M25,'Tabla Fijos'!N30)) -> 0 | O85: =IF($B85="","",IF(Sheet1!$Z$1=4,'Tabla de Pagos Crecientes'!O25,'Tabla Fijos'!Q30)) -> 0 | P85: =IF(B85="","",G85+H85+I85+J85+K85+L85-M85-'Tabla Fijos'!P30) -> 23397.50624 | Q85: 1443600.461 | R85: 1
B86: 20 | C86: =IF($B86="","",'Fecha Pago'!K23) -> 2027-09-03 | D86: =IF($B$67="","",'Fecha Pago'!L23) -> 30.4 | E86: =IF(B86="","",IF(Sheet1!$Z$1=4,'Tabla de Pagos Crecientes'!E26,$F$62)) -> 0.1299 | F86: =IF($B86="","",IF(Sheet1!$Z$1=4,'Tabla de Pagos Crecientes'!F26,'Tabla Fijos'!F31)) -> 1443600.461 | G86: =IF($B86="","",IF(Sheet1!$Z$1=4,'Tabla de Pagos Crecientes'!G26,'Tabla Fijos'!G31)) -> 3304.65942 | H86: =IF($B86="","",IF(Sheet1!$Z$1=4,'Tabla de Pagos Crecientes'!H26,'Tabla Fijos'!H31)) -> 15835.33466 | I86: =IF($B86=0,0,IF(B86="","",VLOOKUP($B86,'Tabla Fijos'!$B$12:$S$311,8,0))) -> 2533.653545 | J86: =IF($B86="","",IF(Sheet1!$Z$1=4,'Tabla de Pagos Crecientes'!J26,'Tabla Fijos'!K31)) -> 866.1602766 | K86: =IF($B86="","",IF(Sheet1!$Z$1=4,'Tabla de Pagos Crecientes'!K26,'Tabla Fijos'!L31)) -> 490 | L86: =IF($B86="","",IF(Sheet1!$Z$1=4,'Tabla de Pagos Crecientes'!L26,'Tabla Fijos'!M31)) -> 360 | M86: =IF($B86="","",IF(Sheet1!$Z$1=4,'Tabla de Pagos Crecientes'!M26,'Tabla Fijos'!N31)) -> 0 | O86: =IF($B86="","",IF(Sheet1!$Z$1=4,'Tabla de Pagos Crecientes'!O26,'Tabla Fijos'!Q31)) -> 0 | P86: =IF(B86="","",G86+H86+I86+J86+K86+L86-M86-'Tabla Fijos'!P31) -> 23389.8079 | Q86: 1440295.802 | R86: 1
B87: 21 | C87: =IF($B87="","",'Fecha Pago'!K24) -> 2027-10-03 | D87: =IF($B$67="","",'Fecha Pago'!L24) -> 30.4 | E87: =IF(B87="","",IF(Sheet1!$Z$1=4,'Tabla de Pagos Crecientes'!E27,$F$62)) -> 0.1299 | F87: =IF($B87="","",IF(Sheet1!$Z$1=4,'Tabla de Pagos Crecientes'!F27,'Tabla Fijos'!F32)) -> 1440295.802 | G87: =IF($B87="","",IF(Sheet1!$Z$1=4,'Tabla de Pagos Crecientes'!G27,'Tabla Fijos'!G32)) -> 3340.909331 | H87: =IF($B87="","",IF(Sheet1!$Z$1=4,'Tabla de Pagos Crecientes'!H27,'Tabla Fijos'!H32)) -> 15799.08475 | I87: =IF($B87=0,0,IF(B87="","",VLOOKUP($B87,'Tabla Fijos'!$B$12:$S$311,8,0))) -> 2527.853559 | J87: =IF($B87="","",IF(Sheet1!$Z$1=4,'Tabla de Pagos Crecientes'!J27,'Tabla Fijos'!K32)) -> 864.177481 | K87: =IF($B87="","",IF(Sheet1!$Z$1=4,'Tabla de Pagos Crecientes'!K27,'Tabla Fijos'!L32)) -> 490 | L87: =IF($B87="","",IF(Sheet1!$Z$1=4,'Tabla de Pagos Crecientes'!L27,'Tabla Fijos'!M32)) -> 360 | M87: =IF($B87="","",IF(Sheet1!$Z$1=4,'Tabla de Pagos Crecientes'!M27,'Tabla Fijos'!N32)) -> 0 | O87: =IF($B87="","",IF(Sheet1!$Z$1=4,'Tabla de Pagos Crecientes'!O27,'Tabla Fijos'!Q32)) -> 0 | P87: =IF(B87="","",G87+H87+I87+J87+K87+L87-M87-'Tabla Fijos'!P32) -> 23382.02512 | Q87: 1436954.892 | R87: 1
B88: 22 | C88: =IF($B88="","",'Fecha Pago'!K25) -> 2027-11-03 | D88: =IF($B$67="","",'Fecha Pago'!L25) -> 30.4 | E88: =IF(B88="","",IF(Sheet1!$Z$1=4,'Tabla de Pagos Crecientes'!E28,$F$62)) -> 0.1299 | F88: =IF($B88="","",IF(Sheet1!$Z$1=4,'Tabla de Pagos Crecientes'!F28,'Tabla Fijos'!F33)) -> 1436954.892 | G88: =IF($B88="","",IF(Sheet1!$Z$1=4,'Tabla de Pagos Crecientes'!G28,'Tabla Fijos'!G33)) -> 3377.556879 | H88: =IF($B88="","",IF(Sheet1!$Z$1=4,'Tabla de Pagos Crecientes'!H28,'Tabla Fijos'!H33)) -> 15762.4372 | I88: =IF($B88=0,0,IF(B88="","",VLOOKUP($B88,'Tabla Fijos'!$B$12:$S$311,8,0))) -> 2521.989952 | J88: =IF($B88="","",IF(Sheet1!$Z$1=4,'Tabla de Pagos Crecientes'!J28,'Tabla Fijos'!K33)) -> 862.1729354 | K88: =IF($B88="","",IF(Sheet1!$Z$1=4,'Tabla de Pagos Crecientes'!K28,'Tabla Fijos'!L33)) -> 490 | L88: =IF($B88="","",IF(Sheet1!$Z$1=4,'Tabla de Pagos Crecientes'!L28,'Tabla Fijos'!M33)) -> 360 | M88: =IF($B88="","",IF(Sheet1!$Z$1=4,'Tabla de Pagos Crecientes'!M28,'Tabla Fijos'!N33)) -> 0 | O88: =IF($B88="","",IF(Sheet1!$Z$1=4,'Tabla de Pagos Crecientes'!O28,'Tabla Fijos'!Q33)) -> 0 | P88: =IF(B88="","",G88+H88+I88+J88+K88+L88-M88-'Tabla Fijos'!P33) -> 23374.15696 | Q88: 1433577.335 | R88: 1
B89: 23 | C89: =IF($B89="","",'Fecha Pago'!K26) -> 2027-12-03 | D89: =IF($B$67="","",'Fecha Pago'!L26) -> 30.4 | E89: =IF(B89="","",IF(Sheet1!$Z$1=4,'Tabla de Pagos Crecientes'!E29,$F$62)) -> 0.1299 | F89: =IF($B89="","",IF(Sheet1!$Z$1=4,'Tabla de Pagos Crecientes'!F29,'Tabla Fijos'!F34)) -> 1433577.335 | G89: =IF($B89="","",IF(Sheet1!$Z$1=4,'Tabla de Pagos Crecientes'!G29,'Tabla Fijos'!G34)) -> 3414.606426 | H89: =IF($B89="","",IF(Sheet1!$Z$1=4,'Tabla de Pagos Crecientes'!H29,'Tabla Fijos'!H34)) -> 15725.38765 | I89: =IF($B89=0,0,IF(B89="","",VLOOKUP($B89,'Tabla Fijos'!$B$12:$S$311,8,0))) -> 2516.062024 | J89: =IF($B89="","",IF(Sheet1!$Z$1=4,'Tabla de Pagos Crecientes'!J29,'Tabla Fijos'!K34)) -> 860.1464013 | K89: =IF($B89="","",IF(Sheet1!$Z$1=4,'Tabla de Pagos Crecientes'!K29,'Tabla Fijos'!L34)) -> 490 | L89: =IF($B89="","",IF(Sheet1!$Z$1=4,'Tabla de Pagos Crecientes'!L29,'Tabla Fijos'!M34)) -> 360 | M89: =IF($B89="","",IF(Sheet1!$Z$1=4,'Tabla de Pagos Crecientes'!M29,'Tabla Fijos'!N34)) -> 0 | O89: =IF($B89="","",IF(Sheet1!$Z$1=4,'Tabla de Pagos Crecientes'!O29,'Tabla Fijos'!Q34)) -> 0 | P89: =IF(B89="","",G89+H89+I89+J89+K89+L89-M89-'Tabla Fijos'!P34) -> 23366.2025 | Q89: 1430162.729 | R89: 1
B90: 24 | C90: =IF($B90="","",'Fecha Pago'!K27) -> 2028-01-03 | D90: =IF($B$67="","",'Fecha Pago'!L27) -> 30.4 | E90: =IF(B90="","",IF(Sheet1!$Z$1=4,'Tabla de Pagos Crecientes'!E30,$F$62)) -> 0.1299 | F90: =IF($B90="","",IF(Sheet1!$Z$1=4,'Tabla de Pagos Crecientes'!F30,'Tabla Fijos'!F35)) -> 1430162.729 | G90: =IF($B90="","",IF(Sheet1!$Z$1=4,'Tabla de Pagos Crecientes'!G30,'Tabla Fijos'!G35)) -> 3452.062382 | H90: =IF($B90="","",IF(Sheet1!$Z$1=4,'Tabla de Pagos Crecientes'!H30,'Tabla Fijos'!H35)) -> 15687.9317 | I90: =IF($B90=0,0,IF(B90="","",VLOOKUP($B90,'Tabla Fijos'!$B$12:$S$311,8,0))) -> 2510.069071 | J90: =IF($B90="","",IF(Sheet1!$Z$1=4,'Tabla de Pagos Crecientes'!J30,'Tabla Fijos'!K35)) -> 858.0976374 | K90: =IF($B90="","",IF(Sheet1!$Z$1=4,'Tabla de Pagos Crecientes'!K30,'Tabla Fijos'!L35)) -> 490 | L90: =IF($B90="","",IF(Sheet1!$Z$1=4,'Tabla de Pagos Crecientes'!L30,'Tabla Fijos'!M35)) -> 360 | M90: =IF($B90="","",IF(Sheet1!$Z$1=4,'Tabla de Pagos Crecientes'!M30,'Tabla Fijos'!N35)) -> 0 | O90: =IF($B90="","",IF(Sheet1!$Z$1=4,'Tabla de Pagos Crecientes'!O30,'Tabla Fijos'!Q35)) -> 0 | P90: =IF(B90="","",G90+H90+I90+J90+K90+L90-M90-'Tabla Fijos'!P35) -> 23358.16079 | Q90: 1426710.667 | R90: 1
B91: 25 | C91: =IF($B91="","",'Fecha Pago'!K28) -> 2028-02-03 | D91: =IF($B$67="","",'Fecha Pago'!L28) -> 30.4 | E91: =IF(B91="","",IF(Sheet1!$Z$1=4,'Tabla de Pagos Crecientes'!E31,$F$62)) -> 0.1299 | F91: =IF($B91="","",IF(Sheet1!$Z$1=4,'Tabla de Pagos Crecientes'!F31,'Tabla Fijos'!F36)) -> 1426710.667 | G91: =IF($B91="","",IF(Sheet1!$Z$1=4,'Tabla de Pagos Crecientes'!G31,'Tabla Fijos'!G36)) -> 3489.929205 | H91: =IF($B91="","",IF(Sheet1!$Z$1=4,'Tabla de Pagos Crecientes'!H31,'Tabla Fijos'!H36)) -> 15650.06487 | I91: =IF($B91=0,0,IF(B91="","",VLOOKUP($B91,'Tabla Fijos'!$B$12:$S$311,8,0))) -> 2504.01038 | J91: =IF($B91="","",IF(Sheet1!$Z$1=4,'Tabla de Pagos Crecientes'!J31,'Tabla Fijos'!K36)) -> 856.0264 | K91: =IF($B91="","",IF(Sheet1!$Z$1=4,'Tabla de Pagos Crecientes'!K31,'Tabla Fijos'!L36)) -> 490 | L91: =IF($B91="","",IF(Sheet1!$Z$1=4,'Tabla de Pagos Crecientes'!L31,'Tabla Fijos'!M36)) -> 360 | M91: =IF($B91="","",IF(Sheet1!$Z$1=4,'Tabla de Pagos Crecientes'!M31,'Tabla Fijos'!N36)) -> 0 | O91: =IF($B91="","",IF(Sheet1!$Z$1=4,'Tabla de Pagos Crecientes'!O31,'Tabla Fijos'!Q36)) -> 0 | P91: =IF(B91="","",G91+H91+I91+J91+K91+L91-M91-'Tabla Fijos'!P36) -> 23350.03086 | Q91: 1423220.737 | R91: 1
B92: 26 | C92: =IF($B92="","",'Fecha Pago'!K29) -> 2028-03-03 | D92: =IF($B$67="","",'Fecha Pago'!L29) -> 30.4 | E92: =IF(B92="","",IF(Sheet1!$Z$1=4,'Tabla de Pagos Crecientes'!E32,$F$62)) -> 0.1299 | F92: =IF($B92="","",IF(Sheet1!$Z$1=4,'Tabla de Pagos Crecientes'!F32,'Tabla Fijos'!F37)) -> 1423220.737 | G92: =IF($B92="","",IF(Sheet1!$Z$1=4,'Tabla de Pagos Crecientes'!G32,'Tabla Fijos'!G37)) -> 3528.211402 | H92: =IF($B92="","",IF(Sheet1!$Z$1=4,'Tabla de Pagos Crecientes'!H32,'Tabla Fijos'!H37)) -> 15611.78268 | I92: =IF($B92=0,0,IF(B92="","",VLOOKUP($B92,'Tabla Fijos'!$B$12:$S$311,8,0))) -> 2497.885228 | J92: =IF($B92="","",IF(Sheet1!$Z$1=4,'Tabla de Pagos Crecientes'!J32,'Tabla Fijos'!K37)) -> 853.9324424 | K92: =IF($B92="","",IF(Sheet1!$Z$1=4,'Tabla de Pagos Crecientes'!K32,'Tabla Fijos'!L37)) -> 490 | L92: =IF($B92="","",IF(Sheet1!$Z$1=4,'Tabla de Pagos Crecientes'!L32,'Tabla Fijos'!M37)) -> 360 | M92: =IF($B92="","",IF(Sheet1!$Z$1=4,'Tabla de Pagos Crecientes'!M32,'Tabla Fijos'!N37)) -> 0 | O92: =IF($B92="","",IF(Sheet1!$Z$1=4,'Tabla de Pagos Crecientes'!O32,'Tabla Fijos'!Q37)) -> 0 | P92: =IF(B92="","",G92+H92+I92+J92+K92+L92-M92-'Tabla Fijos'!P37) -> 23341.81175 | Q92: 1419692.526 | R92: 1
B93: 27 | C93: =IF($B93="","",'Fecha Pago'!K30) -> 2028-04-03 | D93: =IF($B$67="","",'Fecha Pago'!L30) -> 30.4 | E93: =IF(B93="","",IF(Sheet1!$Z$1=4,'Tabla de Pagos Crecientes'!E33,$F$62)) -> 0.1299 | F93: =IF($B93="","",IF(Sheet1!$Z$1=4,'Tabla de Pagos Crecientes'!F33,'Tabla Fijos'!F38)) -> 1419692.526 | G93: =IF($B93="","",IF(Sheet1!$Z$1=4,'Tabla de Pagos Crecientes'!G33,'Tabla Fijos'!G38)) -> 3566.913529 | H93: =IF($B93="","",IF(Sheet1!$Z$1=4,'Tabla de Pagos Crecientes'!H33,'Tabla Fijos'!H38)) -> 15573.08055 | I93: =IF($B93=0,0,IF(B93="","",VLOOKUP($B93,'Tabla Fijos'!$B$12:$S$311,8,0))) -> 2491.692888 | J93: =IF($B93="","",IF(Sheet1!$Z$1=4,'Tabla de Pagos Crecientes'!J33,'Tabla Fijos'!K38)) -> 851.8155156 | K93: =IF($B93="","",IF(Sheet1!$Z$1=4,'Tabla de Pagos Crecientes'!K33,'Tabla Fijos'!L38)) -> 490 | L93: =IF($B93="","",IF(Sheet1!$Z$1=4,'Tabla de Pagos Crecientes'!L33,'Tabla Fijos'!M38)) -> 360 | M93: =IF($B93="","",IF(Sheet1!$Z$1=4,'Tabla de Pagos Crecientes'!M33,'Tabla Fijos'!N38)) -> 0 | O93: =IF($B93="","",IF(Sheet1!$Z$1=4,'Tabla de Pagos Crecientes'!O33,'Tabla Fijos'!Q38)) -> 0 | P93: =IF(B93="","",G93+H93+I93+J93+K93+L93-M93-'Tabla Fijos'!P38) -> 23333.50248 | Q93: 1416125.612 | R93: 1
B94: 28 | C94: =IF($B94="","",'Fecha Pago'!K31) -> 2028-05-03 | D94: =IF($B$67="","",'Fecha Pago'!L31) -> 30.4 | E94: =IF(B94="","",IF(Sheet1!$Z$1=4,'Tabla de Pagos Crecientes'!E34,$F$62)) -> 0.1299 | F94: =IF($B94="","",IF(Sheet1!$Z$1=4,'Tabla de Pagos Crecientes'!F34,'Tabla Fijos'!F39)) -> 1416125.612 | G94: =IF($B94="","",IF(Sheet1!$Z$1=4,'Tabla de Pagos Crecientes'!G34,'Tabla Fijos'!G39)) -> 3606.040192 | H94: =IF($B94="","",IF(Sheet1!$Z$1=4,'Tabla de Pagos Crecientes'!H34,'Tabla Fijos'!H39)) -> 15533.95389 | I94: =IF($B94=0,0,IF(B94="","",VLOOKUP($B94,'Tabla Fijos'!$B$12:$S$311,8,0))) -> 2485.432622 | J94: =IF($B94="","",IF(Sheet1!$Z$1=4,'Tabla de Pagos Crecientes'!J34,'Tabla Fijos'!K39)) -> 849.6753675 | K94: =IF($B94="","",IF(Sheet1!$Z$1=4,'Tabla de Pagos Crecientes'!K34,'Tabla Fijos'!L39)) -> 490 | L94: =IF($B94="","",IF(Sheet1!$Z$1=4,'Tabla de Pagos Crecientes'!L34,'Tabla Fijos'!M39)) -> 360 | M94: =IF($B94="","",IF(Sheet1!$Z$1=4,'Tabla de Pagos Crecientes'!M34,'Tabla Fijos'!N39)) -> 0 | O94: =IF($B94="","",IF(Sheet1!$Z$1=4,'Tabla de Pagos Crecientes'!O34,'Tabla Fijos'!Q39)) -> 0 | P94: =IF(B94="","",G94+H94+I94+J94+K94+L94-M94-'Tabla Fijos'!P39) -> 23325.10207 | Q94: 1412519.572 | R94: 1
B95: 29 | C95: =IF($B95="","",'Fecha Pago'!K32) -> 2028-06-03 | D95: =IF($B$67="","",'Fecha Pago'!L32) -> 30.4 | E95: =IF(B95="","",IF(Sheet1!$Z$1=4,'Tabla de Pagos Crecientes'!E35,$F$62)) -> 0.1299 | F95: =IF($B95="","",IF(Sheet1!$Z$1=4,'Tabla de Pagos Crecientes'!F35,'Tabla Fijos'!F40)) -> 1412519.572 | G95: =IF($B95="","",IF(Sheet1!$Z$1=4,'Tabla de Pagos Crecientes'!G35,'Tabla Fijos'!G40)) -> 3645.596049 | H95: =IF($B95="","",IF(Sheet1!$Z$1=4,'Tabla de Pagos Crecientes'!H35,'Tabla Fijos'!H40)) -> 15494.39803 | I95: =IF($B95=0,0,IF(B95="","",VLOOKUP($B95,'Tabla Fijos'!$B$12:$S$311,8,0))) -> 2479.103685 | J95: =IF($B95="","",IF(Sheet1!$Z$1=4,'Tabla de Pagos Crecientes'!J35,'Tabla Fijos'!K40)) -> 847.5117434 | K95: =IF($B95="","",IF(Sheet1!$Z$1=4,'Tabla de Pagos Crecientes'!K35,'Tabla Fijos'!L40)) -> 490 | L95: =IF($B95="","",IF(Sheet1!$Z$1=4,'Tabla de Pagos Crecientes'!L35,'Tabla Fijos'!M40)) -> 360 | M95: =IF($B95="","",IF(Sheet1!$Z$1=4,'Tabla de Pagos Crecientes'!M35,'Tabla Fijos'!N40)) -> 0 | O95: =IF($B95="","",IF(Sheet1!$Z$1=4,'Tabla de Pagos Crecientes'!O35,'Tabla Fijos'!Q40)) -> 0 | P95: =IF(B95="","",G95+H95+I95+J95+K95+L95-M95-'Tabla Fijos'!P40) -> 23316.60951 | Q95: 1408873.976 | R95: 1
B96: 30 | C96: =IF($B96="","",'Fecha Pago'!K33) -> 2028-07-03 | D96: =IF($B$67="","",'Fecha Pago'!L33) -> 30.4 | E96: =IF(B96="","",IF(Sheet1!$Z$1=4,'Tabla de Pagos Crecientes'!E36,$F$62)) -> 0.1299 | F96: =IF($B96="","",IF(Sheet1!$Z$1=4,'Tabla de Pagos Crecientes'!F36,'Tabla Fijos'!F41)) -> 1408873.976 | G96: =IF($B96="","",IF(Sheet1!$Z$1=4,'Tabla de Pagos Crecientes'!G36,'Tabla Fijos'!G41)) -> 3685.585807 | H96: =IF($B96="","",IF(Sheet1!$Z$1=4,'Tabla de Pagos Crecientes'!H36,'Tabla Fijos'!H41)) -> 15454.40827 | I96: =IF($B96=0,0,IF(B96="","",VLOOKUP($B96,'Tabla Fijos'!$B$12:$S$311,8,0))) -> 2472.705323 | J96: =IF($B96="","",IF(Sheet1!$Z$1=4,'Tabla de Pagos Crecientes'!J36,'Tabla Fijos'!K41)) -> 845.3243857 | K96: =IF($B96="","",IF(Sheet1!$Z$1=4,'Tabla de Pagos Crecientes'!K36,'Tabla Fijos'!L41)) -> 490 | L96: =IF($B96="","",IF(Sheet1!$Z$1=4,'Tabla de Pagos Crecientes'!L36,'Tabla Fijos'!M41)) -> 360 | M96: =IF($B96="","",IF(Sheet1!$Z$1=4,'Tabla de Pagos Crecientes'!M36,'Tabla Fijos'!N41)) -> 0 | O96: =IF($B96="","",IF(Sheet1!$Z$1=4,'Tabla de Pagos Crecientes'!O36,'Tabla Fijos'!Q41)) -> 0 | P96: =IF(B96="","",G96+H96+I96+J96+K96+L96-M96-'Tabla Fijos'!P41) -> 23308.02379 | Q96: 1405188.39 | R96: 1
B97: 31 | C97: =IF($B97="","",'Fecha Pago'!K34) -> 2028-08-03 | D97: =IF($B$67="","",'Fecha Pago'!L34) -> 30.4 | E97: =IF(B97="","",IF(Sheet1!$Z$1=4,'Tabla de Pagos Crecientes'!E37,$F$62)) -> 0.1299 | F97: =IF($B97="","",IF(Sheet1!$Z$1=4,'Tabla de Pagos Crecientes'!F37,'Tabla Fijos'!F42)) -> 1405188.39 | G97: =IF($B97="","",IF(Sheet1!$Z$1=4,'Tabla de Pagos Crecientes'!G37,'Tabla Fijos'!G42)) -> 3726.014227 | H97: =IF($B97="","",IF(Sheet1!$Z$1=4,'Tabla de Pagos Crecientes'!H37,'Tabla Fijos'!H42)) -> 15413.97985 | I97: =IF($B97=0,0,IF(B97="","",VLOOKUP($B97,'Tabla Fijos'!$B$12:$S$311,8,0))) -> 2466.236776 | J97: =IF($B97="","",IF(Sheet1!$Z$1=4,'Tabla de Pagos Crecientes'!J37,'Tabla Fijos'!K42)) -> 843.1130343 | K97: =IF($B97="","",IF(Sheet1!$Z$1=4,'Tabla de Pagos Crecientes'!K37,'Tabla Fijos'!L42)) -> 490 | L97: =IF($B97="","",IF(Sheet1!$Z$1=4,'Tabla de Pagos Crecientes'!L37,'Tabla Fijos'!M42)) -> 360 | M97: =IF($B97="","",IF(Sheet1!$Z$1=4,'Tabla de Pagos Crecientes'!M37,'Tabla Fijos'!N42)) -> 0 | O97: =IF($B97="","",IF(Sheet1!$Z$1=4,'Tabla de Pagos Crecientes'!O37,'Tabla Fijos'!Q42)) -> 0 | P97: =IF(B97="","",G97+H97+I97+J97+K97+L97-M97-'Tabla Fijos'!P42) -> 23299.34389 | Q97: 1401462.376 | R97: 1
B98: 32 | C98: =IF($B98="","",'Fecha Pago'!K35) -> 2028-09-03 | D98: =IF($B$67="","",'Fecha Pago'!L35) -> 30.4 | E98: =IF(B98="","",IF(Sheet1!$Z$1=4,'Tabla de Pagos Crecientes'!E38,$F$62)) -> 0.1299 | F98: =IF($B98="","",IF(Sheet1!$Z$1=4,'Tabla de Pagos Crecientes'!F38,'Tabla Fijos'!F43)) -> 1401462.376 | G98: =IF($B98="","",IF(Sheet1!$Z$1=4,'Tabla de Pagos Crecientes'!G38,'Tabla Fijos'!G43)) -> 3766.886119 | H98: =IF($B98="","",IF(Sheet1!$Z$1=4,'Tabla de Pagos Crecientes'!H38,'Tabla Fijos'!H43)) -> 15373.10796 | I98: =IF($B98=0,0,IF(B98="","",VLOOKUP($B98,'Tabla Fijos'!$B$12:$S$311,8,0))) -> 2459.697273 | J98: =IF($B98="","",IF(Sheet1!$Z$1=4,'Tabla de Pagos Crecientes'!J38,'Tabla Fijos'!K43)) -> 840.8774257 | K98: =IF($B98="","",IF(Sheet1!$Z$1=4,'Tabla de Pagos Crecientes'!K38,'Tabla Fijos'!L43)) -> 490 | L98: =IF($B98="","",IF(Sheet1!$Z$1=4,'Tabla de Pagos Crecientes'!L38,'Tabla Fijos'!M43)) -> 360 | M98: =IF($B98="","",IF(Sheet1!$Z$1=4,'Tabla de Pagos Crecientes'!M38,'Tabla Fijos'!N43)) -> 0 | O98: =IF($B98="","",IF(Sheet1!$Z$1=4,'Tabla de Pagos Crecientes'!O38,'Tabla Fijos'!Q43)) -> 0 | P98: =IF(B98="","",G98+H98+I98+J98+K98+L98-M98-'Tabla Fijos'!P43) -> 23290.56878 | Q98: 1397695.49 | R98: 1
B99: 33 | C99: =IF($B99="","",'Fecha Pago'!K36) -> 2028-10-03 | D99: =IF($B$67="","",'Fecha Pago'!L36) -> 30.4 | E99: =IF(B99="","",IF(Sheet1!$Z$1=4,'Tabla de Pagos Crecientes'!E39,$F$62)) -> 0.1299 | F99: =IF($B99="","",IF(Sheet1!$Z$1=4,'Tabla de Pagos Crecientes'!F39,'Tabla Fijos'!F44)) -> 1397695.49 | G99: =IF($B99="","",IF(Sheet1!$Z$1=4,'Tabla de Pagos Crecientes'!G39,'Tabla Fijos'!G44)) -> 3808.206348 | H99: =IF($B99="","",IF(Sheet1!$Z$1=4,'Tabla de Pagos Crecientes'!H39,'Tabla Fijos'!H44)) -> 15331.78773 | I99: =IF($B99=0,0,IF(B99="","",VLOOKUP($B99,'Tabla Fijos'!$B$12:$S$311,8,0))) -> 2453.086037 | J99: =IF($B99="","",IF(Sheet1!$Z$1=4,'Tabla de Pagos Crecientes'!J39,'Tabla Fijos'!K44)) -> 838.6172941 | K99: =IF($B99="","",IF(Sheet1!$Z$1=4,'Tabla de Pagos Crecientes'!K39,'Tabla Fijos'!L44)) -> 490 | L99: =IF($B99="","",IF(Sheet1!$Z$1=4,'Tabla de Pagos Crecientes'!L39,'Tabla Fijos'!M44)) -> 360 | M99: =IF($B99="","",IF(Sheet1!$Z$1=4,'Tabla de Pagos Crecientes'!M39,'Tabla Fijos'!N44)) -> 0 | O99: =IF($B99="","",IF(Sheet1!$Z$1=4,'Tabla de Pagos Crecientes'!O39,'Tabla Fijos'!Q44)) -> 0 | P99: =IF(B99="","",G99+H99+I99+J99+K99+L99-M99-'Tabla Fijos'!P44) -> 23281.69741 | Q99: 1393887.284 | R99: 1
B100: 34 | C100: =IF($B100="","",'Fecha Pago'!K37) -> 2028-11-03 | D100: =IF($B$67="","",'Fecha Pago'!L37) -> 30.4 | E100: =IF(B100="","",IF(Sheet1!$Z$1=4,'Tabla de Pagos Crecientes'!E40,$F$62)) -> 0.1299 | F100: =IF($B100="","",IF(Sheet1!$Z$1=4,'Tabla de Pagos Crecientes'!F40,'Tabla Fijos'!F45)) -> 1393887.284 | G100: =IF($B100="","",IF(Sheet1!$Z$1=4,'Tabla de Pagos Crecientes'!G40,'Tabla Fijos'!G45)) -> 3849.979833 | H100: =IF($B100="","",IF(Sheet1!$Z$1=4,'Tabla de Pagos Crecientes'!H40,'Tabla Fijos'!H45)) -> 15290.01424 | I100: =IF($B100=0,0,IF(B100="","",VLOOKUP($B100,'Tabla Fijos'!$B$12:$S$311,8,0))) -> 2446.402279 | J100: =IF($B100="","",IF(Sheet1!$Z$1=4,'Tabla de Pagos Crecientes'!J40,'Tabla Fijos'!K45)) -> 836.3323702 | K100: =IF($B100="","",IF(Sheet1!$Z$1=4,'Tabla de Pagos Crecientes'!K40,'Tabla Fijos'!L45)) -> 490 | L100: =IF($B100="","",IF(Sheet1!$Z$1=4,'Tabla de Pagos Crecientes'!L40,'Tabla Fijos'!M45)) -> 360 | M100: =IF($B100="","",IF(Sheet1!$Z$1=4,'Tabla de Pagos Crecientes'!M40,'Tabla Fijos'!N45)) -> 0 | O100: =IF($B100="","",IF(Sheet1!$Z$1=4,'Tabla de Pagos Crecientes'!O40,'Tabla Fijos'!Q45)) -> 0 | P100: =IF(B100="","",G100+H100+I100+J100+K100+L100-M100-'Tabla Fijos'!P45) -> 23272.72873 | Q100: 1390037.304 | R100: 1
B101: 35 | C101: =IF($B101="","",'Fecha Pago'!K38) -> 2028-12-03 | D101: =IF($B$67="","",'Fecha Pago'!L38) -> 30.4 | E101: =IF(B101="","",IF(Sheet1!$Z$1=4,'Tabla de Pagos Crecientes'!E41,$F$62)) -> 0.1299 | F101: =IF($B101="","",IF(Sheet1!$Z$1=4,'Tabla de Pagos Crecientes'!F41,'Tabla Fijos'!F46)) -> 1390037.304 | G101: =IF($B101="","",IF(Sheet1!$Z$1=4,'Tabla de Pagos Crecientes'!G41,'Tabla Fijos'!G46)) -> 3892.211545 | H101: =IF($B101="","",IF(Sheet1!$Z$1=4,'Tabla de Pagos Crecientes'!H41,'Tabla Fijos'!H46)) -> 15247.78253 | I101: =IF($B101=0,0,IF(B101="","",VLOOKUP($B101,'Tabla Fijos'!$B$12:$S$311,8,0))) -> 2439.645205 | J101: =IF($B101="","",IF(Sheet1!$Z$1=4,'Tabla de Pagos Crecientes'!J41,'Tabla Fijos'!K46)) -> 834.0223823 | K101: =IF($B101="","",IF(Sheet1!$Z$1=4,'Tabla de Pagos Crecientes'!K41,'Tabla Fijos'!L46)) -> 490 | L101: =IF($B101="","",IF(Sheet1!$Z$1=4,'Tabla de Pagos Crecientes'!L41,'Tabla Fijos'!M46)) -> 360 | M101: =IF($B101="","",IF(Sheet1!$Z$1=4,'Tabla de Pagos Crecientes'!M41,'Tabla Fijos'!N46)) -> 0 | O101: =IF($B101="","",IF(Sheet1!$Z$1=4,'Tabla de Pagos Crecientes'!O41,'Tabla Fijos'!Q46)) -> 0 | P101: =IF(B101="","",G101+H101+I101+J101+K101+L101-M101-'Tabla Fijos'!P46) -> 23263.66167 | Q101: 1386145.092 | R101: 1
B102: 36 | C102: =IF($B102="","",'Fecha Pago'!K39) -> 2029-01-03 | D102: =IF($B$67="","",'Fecha Pago'!L39) -> 30.4 | E102: =IF(B102="","",IF(Sheet1!$Z$1=4,'Tabla de Pagos Crecientes'!E42,$F$62)) -> 0.1299 | F102: =IF($B102="","",IF(Sheet1!$Z$1=4,'Tabla de Pagos Crecientes'!F42,'Tabla Fijos'!F47)) -> 1386145.092 | G102: =IF($B102="","",IF(Sheet1!$Z$1=4,'Tabla de Pagos Crecientes'!G42,'Tabla Fijos'!G47)) -> 3934.906511 | H102: =IF($B102="","",IF(Sheet1!$Z$1=4,'Tabla de Pagos Crecientes'!H42,'Tabla Fijos'!H47)) -> 15205.08757 | I102: =IF($B102=0,0,IF(B102="","",VLOOKUP($B102,'Tabla Fijos'!$B$12:$S$311,8,0))) -> 2432.814011 | J102: =IF($B102="","",IF(Sheet1!$Z$1=4,'Tabla de Pagos Crecientes'!J42,'Tabla Fijos'!K47)) -> 831.6870554 | K102: =IF($B102="","",IF(Sheet1!$Z$1=4,'Tabla de Pagos Crecientes'!K42,'Tabla Fijos'!L47)) -> 490 | L102: =IF($B102="","",IF(Sheet1!$Z$1=4,'Tabla de Pagos Crecientes'!L42,'Tabla Fijos'!M47)) -> 360 | M102: =IF($B102="","",IF(Sheet1!$Z$1=4,'Tabla de Pagos Crecientes'!M42,'Tabla Fijos'!N47)) -> 0 | O102: =IF($B102="","",IF(Sheet1!$Z$1=4,'Tabla de Pagos Crecientes'!O42,'Tabla Fijos'!Q47)) -> 0 | P102: =IF(B102="","",G102+H102+I102+J102+K102+L102-M102-'Tabla Fijos'!P47) -> 23254.49514 | Q102: 1382210.186 | R102: 1
B103: 37 | C103: =IF($B103="","",'Fecha Pago'!K40) -> 2029-02-03 | D103: =IF($B$67="","",'Fecha Pago'!L40) -> 30.4 | E103: =IF(B103="","",IF(Sheet1!$Z$1=4,'Tabla de Pagos Crecientes'!E43,$F$62)) -> 0.1299 | F103: =IF($B103="","",IF(Sheet1!$Z$1=4,'Tabla de Pagos Crecientes'!F43,'Tabla Fijos'!F48)) -> 1382210.186 | G103: =IF($B103="","",IF(Sheet1!$Z$1=4,'Tabla de Pagos Crecientes'!G43,'Tabla Fijos'!G48)) -> 3978.069812 | H103: =IF($B103="","",IF(Sheet1!$Z$1=4,'Tabla de Pagos Crecientes'!H43,'Tabla Fijos'!H48)) -> 15161.92427 | I103: =IF($B103=0,0,IF(B103="","",VLOOKUP($B103,'Tabla Fijos'!$B$12:$S$311,8,0))) -> 2425.907882 | J103: =IF($B103="","",IF(Sheet1!$Z$1=4,'Tabla de Pagos Crecientes'!J43,'Tabla Fijos'!K48)) -> 829.3261115 | K103: =IF($B103="","",IF(Sheet1!$Z$1=4,'Tabla de Pagos Crecientes'!K43,'Tabla Fijos'!L48)) -> 490 | L103: =IF($B103="","",IF(Sheet1!$Z$1=4,'Tabla de Pagos Crecientes'!L43,'Tabla Fijos'!M48)) -> 360 | M103: =IF($B103="","",IF(Sheet1!$Z$1=4,'Tabla de Pagos Crecientes'!M43,'Tabla Fijos'!N48)) -> 0 | O103: =IF($B103="","",IF(Sheet1!$Z$1=4,'Tabla de Pagos Crecientes'!O43,'Tabla Fijos'!Q48)) -> 0 | P103: =IF(B103="","",G103+H103+I103+J103+K103+L103-M103-'Tabla Fijos'!P48) -> 23245.22807 | Q103: 1378232.116 | R103: 1
B104: 38 | C104: =IF($B104="","",'Fecha Pago'!K41) -> 2029-03-03 | D104: =IF($B$67="","",'Fecha Pago'!L41) -> 30.4 | E104: =IF(B104="","",IF(Sheet1!$Z$1=4,'Tabla de Pagos Crecientes'!E44,$F$62)) -> 0.1299 | F104: =IF($B104="","",IF(Sheet1!$Z$1=4,'Tabla de Pagos Crecientes'!F44,'Tabla Fijos'!F49)) -> 1378232.116 | G104: =IF($B104="","",IF(Sheet1!$Z$1=4,'Tabla de Pagos Crecientes'!G44,'Tabla Fijos'!G49)) -> 4021.706586 | H104: =IF($B104="","",IF(Sheet1!$Z$1=4,'Tabla de Pagos Crecientes'!H44,'Tabla Fijos'!H49)) -> 15118.28749 | I104: =IF($B104=0,0,IF(B104="","",VLOOKUP($B104,'Tabla Fijos'!$B$12:$S$311,8,0))) -> 2418.925999 | J104: =IF($B104="","",IF(Sheet1!$Z$1=4,'Tabla de Pagos Crecientes'!J44,'Tabla Fijos'!K49)) -> 826.9392696 | K104: =IF($B104="","",IF(Sheet1!$Z$1=4,'Tabla de Pagos Crecientes'!K44,'Tabla Fijos'!L49)) -> 490 | L104: =IF($B104="","",IF(Sheet1!$Z$1=4,'Tabla de Pagos Crecientes'!L44,'Tabla Fijos'!M49)) -> 360 | M104: =IF($B104="","",IF(Sheet1!$Z$1=4,'Tabla de Pagos Crecientes'!M44,'Tabla Fijos'!N49)) -> 0 | O104: =IF($B104="","",IF(Sheet1!$Z$1=4,'Tabla de Pagos Crecientes'!O44,'Tabla Fijos'!Q49)) -> 0 | P104: =IF(B104="","",G104+H104+I104+J104+K104+L104-M104-'Tabla Fijos'!P49) -> 23235.85935 | Q104: 1374210.409 | R104: 1
B105: 39 | C105: =IF($B105="","",'Fecha Pago'!K42) -> 2029-04-03 | D105: =IF($B$67="","",'Fecha Pago'!L42) -> 30.4 | E105: =IF(B105="","",IF(Sheet1!$Z$1=4,'Tabla de Pagos Crecientes'!E45,$F$62)) -> 0.1299 | F105: =IF($B105="","",IF(Sheet1!$Z$1=4,'Tabla de Pagos Crecientes'!F45,'Tabla Fijos'!F50)) -> 1374210.409 | G105: =IF($B105="","",IF(Sheet1!$Z$1=4,'Tabla de Pagos Crecientes'!G45,'Tabla Fijos'!G50)) -> 4065.822026 | H105: =IF($B105="","",IF(Sheet1!$Z$1=4,'Tabla de Pagos Crecientes'!H45,'Tabla Fijos'!H50)) -> 15074.17205 | I105: =IF($B105=0,0,IF(B105="","",VLOOKUP($B105,'Tabla Fijos'!$B$12:$S$311,8,0))) -> 2411.867528 | J105: =IF($B105="","",IF(Sheet1!$Z$1=4,'Tabla de Pagos Crecientes'!J45,'Tabla Fijos'!K50)) -> 824.5262457 | K105: =IF($B105="","",IF(Sheet1!$Z$1=4,'Tabla de Pagos Crecientes'!K45,'Tabla Fijos'!L50)) -> 490 | L105: =IF($B105="","",IF(Sheet1!$Z$1=4,'Tabla de Pagos Crecientes'!L45,'Tabla Fijos'!M50)) -> 360 | M105: =IF($B105="","",IF(Sheet1!$Z$1=4,'Tabla de Pagos Crecientes'!M45,'Tabla Fijos'!N50)) -> 0 | O105: =IF($B105="","",IF(Sheet1!$Z$1=4,'Tabla de Pagos Crecientes'!O45,'Tabla Fijos'!Q50)) -> 0 | P105: =IF(B105="","",G105+H105+I105+J105+K105+L105-M105-'Tabla Fijos'!P50) -> 23226.38785 | Q105: 1370144.587 | R105: 1
B106: 40 | C106: =IF($B106="","",'Fecha Pago'!K43) -> 2029-05-03 | D106: =IF($B$67="","",'Fecha Pago'!L43) -> 30.4 | E106: =IF(B106="","",IF(Sheet1!$Z$1=4,'Tabla de Pagos Crecientes'!E46,$F$62)) -> 0.1299 | F106: =IF($B106="","",IF(Sheet1!$Z$1=4,'Tabla de Pagos Crecientes'!F46,'Tabla Fijos'!F51)) -> 1370144.587 | G106: =IF($B106="","",IF(Sheet1!$Z$1=4,'Tabla de Pagos Crecientes'!G46,'Tabla Fijos'!G51)) -> 4110.421383 | H106: =IF($B106="","",IF(Sheet1!$Z$1=4,'Tabla de Pagos Crecientes'!H46,'Tabla Fijos'!H51)) -> 15029.57269 | I106: =IF($B106=0,0,IF(B106="","",VLOOKUP($B106,'Tabla Fijos'!$B$12:$S$311,8,0))) -> 2404.731631 | J106: =IF($B106="","",IF(Sheet1!$Z$1=4,'Tabla de Pagos Crecientes'!J46,'Tabla Fijos'!K51)) -> 822.0867525 | K106: =IF($B106="","",IF(Sheet1!$Z$1=4,'Tabla de Pagos Crecientes'!K46,'Tabla Fijos'!L51)) -> 490 | L106: =IF($B106="","",IF(Sheet1!$Z$1=4,'Tabla de Pagos Crecientes'!L46,'Tabla Fijos'!M51)) -> 360 | M106: =IF($B106="","",IF(Sheet1!$Z$1=4,'Tabla de Pagos Crecientes'!M46,'Tabla Fijos'!N51)) -> 0 | O106: =IF($B106="","",IF(Sheet1!$Z$1=4,'Tabla de Pagos Crecientes'!O46,'Tabla Fijos'!Q51)) -> 0 | P106: =IF(B106="","",G106+H106+I106+J106+K106+L106-M106-'Tabla Fijos'!P51) -> 23216.81246 | Q106: 1366034.166 | R106: 1
B107: 41 | C107: =IF($B107="","",'Fecha Pago'!K44) -> 2029-06-03 | D107: =IF($B$67="","",'Fecha Pago'!L44) -> 30.4 | E107: =IF(B107="","",IF(Sheet1!$Z$1=4,'Tabla de Pagos Crecientes'!E47,$F$62)) -> 0.1299 | F107: =IF($B107="","",IF(Sheet1!$Z$1=4,'Tabla de Pagos Crecientes'!F47,'Tabla Fijos'!F52)) -> 1366034.166 | G107: =IF($B107="","",IF(Sheet1!$Z$1=4,'Tabla de Pagos Crecientes'!G47,'Tabla Fijos'!G52)) -> 4155.509965 | H107: =IF($B107="","",IF(Sheet1!$Z$1=4,'Tabla de Pagos Crecientes'!H47,'Tabla Fijos'!H52)) -> 14984.48411 | I107: =IF($B107=0,0,IF(B107="","",VLOOKUP($B107,'Tabla Fijos'!$B$12:$S$311,8,0))) -> 2397.517458 | J107: =IF($B107="","",IF(Sheet1!$Z$1=4,'Tabla de Pagos Crecientes'!J47,'Tabla Fijos'!K52)) -> 819.6204996 | K107: =IF($B107="","",IF(Sheet1!$Z$1=4,'Tabla de Pagos Crecientes'!K47,'Tabla Fijos'!L52)) -> 490 | L107: =IF($B107="","",IF(Sheet1!$Z$1=4,'Tabla de Pagos Crecientes'!L47,'Tabla Fijos'!M52)) -> 360 | M107: =IF($B107="","",IF(Sheet1!$Z$1=4,'Tabla de Pagos Crecientes'!M47,'Tabla Fijos'!N52)) -> 0 | O107: =IF($B107="","",IF(Sheet1!$Z$1=4,'Tabla de Pagos Crecientes'!O47,'Tabla Fijos'!Q52)) -> 0 | P107: =IF(B107="","",G107+H107+I107+J107+K107+L107-M107-'Tabla Fijos'!P52) -> 23207.13204 | Q107: 1361878.656 | R107: 1
B108: 42 | C108: =IF($B108="","",'Fecha Pago'!K45) -> 2029-07-03 | D108: =IF($B$67="","",'Fecha Pago'!L45) -> 30.4 | E108: =IF(B108="","",IF(Sheet1!$Z$1=4,'Tabla de Pagos Crecientes'!E48,$F$62)) -> 0.1299 | F108: =IF($B108="","",IF(Sheet1!$Z$1=4,'Tabla de Pagos Crecientes'!F48,'Tabla Fijos'!F53)) -> 1361878.656 | G108: =IF($B108="","",IF(Sheet1!$Z$1=4,'Tabla de Pagos Crecientes'!G48,'Tabla Fijos'!G53)) -> 4201.093139 | H108: =IF($B108="","",IF(Sheet1!$Z$1=4,'Tabla de Pagos Crecientes'!H48,'Tabla Fijos'!H53)) -> 14938.90094 | I108: =IF($B108=0,0,IF(B108="","",VLOOKUP($B108,'Tabla Fijos'!$B$12:$S$311,8,0))) -> 2390.22415 | J108: =IF($B108="","",IF(Sheet1!$Z$1=4,'Tabla de Pagos Crecientes'!J48,'Tabla Fijos'!K53)) -> 817.1271936 | K108: =IF($B108="","",IF(Sheet1!$Z$1=4,'Tabla de Pagos Crecientes'!K48,'Tabla Fijos'!L53)) -> 490 | L108: =IF($B108="","",IF(Sheet1!$Z$1=4,'Tabla de Pagos Crecientes'!L48,'Tabla Fijos'!M53)) -> 360 | M108: =IF($B108="","",IF(Sheet1!$Z$1=4,'Tabla de Pagos Crecientes'!M48,'Tabla Fijos'!N53)) -> 0 | O108: =IF($B108="","",IF(Sheet1!$Z$1=4,'Tabla de Pagos Crecientes'!O48,'Tabla Fijos'!Q53)) -> 0 | P108: =IF(B108="","",G108+H108+I108+J108+K108+L108-M108-'Tabla Fijos'!P53) -> 23197.34542 | Q108: 1357677.563 | R108: 1
B109: 43 | C109: =IF($B109="","",'Fecha Pago'!K46) -> 2029-08-03 | D109: =IF($B$67="","",'Fecha Pago'!L46) -> 30.4 | E109: =IF(B109="","",IF(Sheet1!$Z$1=4,'Tabla de Pagos Crecientes'!E49,$F$62)) -> 0.1299 | F109: =IF($B109="","",IF(Sheet1!$Z$1=4,'Tabla de Pagos Crecientes'!F49,'Tabla Fijos'!F54)) -> 1357677.563 | G109: =IF($B109="","",IF(Sheet1!$Z$1=4,'Tabla de Pagos Crecientes'!G49,'Tabla Fijos'!G54)) -> 4247.17633 | H109: =IF($B109="","",IF(Sheet1!$Z$1=4,'Tabla de Pagos Crecientes'!H49,'Tabla Fijos'!H54)) -> 14892.81775 | I109: =IF($B109=0,0,IF(B109="","",VLOOKUP($B109,'Tabla Fijos'!$B$12:$S$311,8,0))) -> 2382.85084 | J109: =IF($B109="","",IF(Sheet1!$Z$1=4,'Tabla de Pagos Crecientes'!J49,'Tabla Fijos'!K54)) -> 814.6065378 | K109: =IF($B109="","",IF(Sheet1!$Z$1=4,'Tabla de Pagos Crecientes'!K49,'Tabla Fijos'!L54)) -> 490 | L109: =IF($B109="","",IF(Sheet1!$Z$1=4,'Tabla de Pagos Crecientes'!L49,'Tabla Fijos'!M54)) -> 360 | M109: =IF($B109="","",IF(Sheet1!$Z$1=4,'Tabla de Pagos Crecientes'!M49,'Tabla Fijos'!N54)) -> 0 | O109: =IF($B109="","",IF(Sheet1!$Z$1=4,'Tabla de Pagos Crecientes'!O49,'Tabla Fijos'!Q54)) -> 0 | P109: =IF(B109="","",G109+H109+I109+J109+K109+L109-M109-'Tabla Fijos'!P54) -> 23187.45145 | Q109: 1353430.387 | R109: 1
B110: 44 | C110: =IF($B110="","",'Fecha Pago'!K47) -> 2029-09-03 | D110: =IF($B$67="","",'Fecha Pago'!L47) -> 30.4 | E110: =IF(B110="","",IF(Sheet1!$Z$1=4,'Tabla de Pagos Crecientes'!E50,$F$62)) -> 0.1299 | F110: =IF($B110="","",IF(Sheet1!$Z$1=4,'Tabla de Pagos Crecientes'!F50,'Tabla Fijos'!F55)) -> 1353430.387 | G110: =IF($B110="","",IF(Sheet1!$Z$1=4,'Tabla de Pagos Crecientes'!G50,'Tabla Fijos'!G55)) -> 4293.765023 | H110: =IF($B110="","",IF(Sheet1!$Z$1=4,'Tabla de Pagos Crecientes'!H50,'Tabla Fijos'!H55)) -> 14846.22905 | I110: =IF($B110=0,0,IF(B110="","",VLOOKUP($B110,'Tabla Fijos'!$B$12:$S$311,8,0))) -> 2375.396649 | J110: =IF($B110="","",IF(Sheet1!$Z$1=4,'Tabla de Pagos Crecientes'!J50,'Tabla Fijos'!K55)) -> 812.058232 | K110: =IF($B110="","",IF(Sheet1!$Z$1=4,'Tabla de Pagos Crecientes'!K50,'Tabla Fijos'!L55)) -> 490 | L110: =IF($B110="","",IF(Sheet1!$Z$1=4,'Tabla de Pagos Crecientes'!L50,'Tabla Fijos'!M55)) -> 360 | M110: =IF($B110="","",IF(Sheet1!$Z$1=4,'Tabla de Pagos Crecientes'!M50,'Tabla Fijos'!N55)) -> 0 | O110: =IF($B110="","",IF(Sheet1!$Z$1=4,'Tabla de Pagos Crecientes'!O50,'Tabla Fijos'!Q55)) -> 0 | P110: =IF(B110="","",G110+H110+I110+J110+K110+L110-M110-'Tabla Fijos'!P55) -> 23177.44896 | Q110: 1349136.622 | R110: 1
B111: 45 | C111: =IF($B111="","",'Fecha Pago'!K48) -> 2029-10-03 | D111: =IF($B$67="","",'Fecha Pago'!L48) -> 30.4 | E111: =IF(B111="","",IF(Sheet1!$Z$1=4,'Tabla de Pagos Crecientes'!E51,$F$62)) -> 0.1299 | F111: =IF($B111="","",IF(Sheet1!$Z$1=4,'Tabla de Pagos Crecientes'!F51,'Tabla Fijos'!F56)) -> 1349136.622 | G111: =IF($B111="","",IF(Sheet1!$Z$1=4,'Tabla de Pagos Crecientes'!G51,'Tabla Fijos'!G56)) -> 4340.864763 | H111: =IF($B111="","",IF(Sheet1!$Z$1=4,'Tabla de Pagos Crecientes'!H51,'Tabla Fijos'!H56)) -> 14799.12931 | I111: =IF($B111=0,0,IF(B111="","",VLOOKUP($B111,'Tabla Fijos'!$B$12:$S$311,8,0))) -> 2367.86069 | J111: =IF($B111="","",IF(Sheet1!$Z$1=4,'Tabla de Pagos Crecientes'!J51,'Tabla Fijos'!K56)) -> 809.481973 | K111: =IF($B111="","",IF(Sheet1!$Z$1=4,'Tabla de Pagos Crecientes'!K51,'Tabla Fijos'!L56)) -> 490 | L111: =IF($B111="","",IF(Sheet1!$Z$1=4,'Tabla de Pagos Crecientes'!L51,'Tabla Fijos'!M56)) -> 360 | M111: =IF($B111="","",IF(Sheet1!$Z$1=4,'Tabla de Pagos Crecientes'!M51,'Tabla Fijos'!N56)) -> 0 | O111: =IF($B111="","",IF(Sheet1!$Z$1=4,'Tabla de Pagos Crecientes'!O51,'Tabla Fijos'!Q56)) -> 0 | P111: =IF(B111="","",G111+H111+I111+J111+K111+L111-M111-'Tabla Fijos'!P56) -> 23167.33674 | Q111: 1344795.757 | R111: 1
B112: 46 | C112: =IF($B112="","",'Fecha Pago'!K49) -> 2029-11-03 | D112: =IF($B$67="","",'Fecha Pago'!L49) -> 30.4 | E112: =IF(B112="","",IF(Sheet1!$Z$1=4,'Tabla de Pagos Crecientes'!E52,$F$62)) -> 0.1299 | F112: =IF($B112="","",IF(Sheet1!$Z$1=4,'Tabla de Pagos Crecientes'!F52,'Tabla Fijos'!F57)) -> 1344795.757 | G112: =IF($B112="","",IF(Sheet1!$Z$1=4,'Tabla de Pagos Crecientes'!G52,'Tabla Fijos'!G57)) -> 4388.481156 | H112: =IF($B112="","",IF(Sheet1!$Z$1=4,'Tabla de Pagos Crecientes'!H52,'Tabla Fijos'!H57)) -> 14751.51292 | I112: =IF($B112=0,0,IF(B112="","",VLOOKUP($B112,'Tabla Fijos'!$B$12:$S$311,8,0))) -> 2360.242067 | J112: =IF($B112="","",IF(Sheet1!$Z$1=4,'Tabla de Pagos Crecientes'!J52,'Tabla Fijos'!K57)) -> 806.8774541 | K112: =IF($B112="","",IF(Sheet1!$Z$1=4,'Tabla de Pagos Crecientes'!K52,'Tabla Fijos'!L57)) -> 490 | L112: =IF($B112="","",IF(Sheet1!$Z$1=4,'Tabla de Pagos Crecientes'!L52,'Tabla Fijos'!M57)) -> 360 | M112: =IF($B112="","",IF(Sheet1!$Z$1=4,'Tabla de Pagos Crecientes'!M52,'Tabla Fijos'!N57)) -> 0 | O112: =IF($B112="","",IF(Sheet1!$Z$1=4,'Tabla de Pagos Crecientes'!O52,'Tabla Fijos'!Q57)) -> 0 | P112: =IF(B112="","",G112+H112+I112+J112+K112+L112-M112-'Tabla Fijos'!P57) -> 23157.1136 | Q112: 1340407.276 | R112: 1
B113: 47 | C113: =IF($B113="","",'Fecha Pago'!K50) -> 2029-12-03 | D113: =IF($B$67="","",'Fecha Pago'!L50) -> 30.4 | E113: =IF(B113="","",IF(Sheet1!$Z$1=4,'Tabla de Pagos Crecientes'!E53,$F$62)) -> 0.1299 | F113: =IF($B113="","",IF(Sheet1!$Z$1=4,'Tabla de Pagos Crecientes'!F53,'Tabla Fijos'!F58)) -> 1340407.276 | G113: =IF($B113="","",IF(Sheet1!$Z$1=4,'Tabla de Pagos Crecientes'!G53,'Tabla Fijos'!G58)) -> 4436.619868 | H113: =IF($B113="","",IF(Sheet1!$Z$1=4,'Tabla de Pagos Crecientes'!H53,'Tabla Fijos'!H58)) -> 14703.37421 | I113: =IF($B113=0,0,IF(B113="","",VLOOKUP($B113,'Tabla Fijos'!$B$12:$S$311,8,0))) -> 2352.539873 | J113: =IF($B113="","",IF(Sheet1!$Z$1=4,'Tabla de Pagos Crecientes'!J53,'Tabla Fijos'!K58)) -> 804.2443654 | K113: =IF($B113="","",IF(Sheet1!$Z$1=4,'Tabla de Pagos Crecientes'!K53,'Tabla Fijos'!L58)) -> 490 | L113: =IF($B113="","",IF(Sheet1!$Z$1=4,'Tabla de Pagos Crecientes'!L53,'Tabla Fijos'!M58)) -> 360 | M113: =IF($B113="","",IF(Sheet1!$Z$1=4,'Tabla de Pagos Crecientes'!M53,'Tabla Fijos'!N58)) -> 0 | O113: =IF($B113="","",IF(Sheet1!$Z$1=4,'Tabla de Pagos Crecientes'!O53,'Tabla Fijos'!Q58)) -> 0 | P113: =IF(B113="","",G113+H113+I113+J113+K113+L113-M113-'Tabla Fijos'!P58) -> 23146.77832 | Q113: 1335970.656 | R113: 1
B114: 48 | C114: =IF($B114="","",'Fecha Pago'!K51) -> 2030-01-03 | D114: =IF($B$67="","",'Fecha Pago'!L51) -> 30.4 | E114: =IF(B114="","",IF(Sheet1!$Z$1=4,'Tabla de Pagos Crecientes'!E54,$F$62)) -> 0.1299 | F114: =IF($B114="","",IF(Sheet1!$Z$1=4,'Tabla de Pagos Crecientes'!F54,'Tabla Fijos'!F59)) -> 1335970.656 | G114: =IF($B114="","",IF(Sheet1!$Z$1=4,'Tabla de Pagos Crecientes'!G54,'Tabla Fijos'!G59)) -> 4485.286631 | H114: =IF($B114="","",IF(Sheet1!$Z$1=4,'Tabla de Pagos Crecientes'!H54,'Tabla Fijos'!H59)) -> 14654.70745 | I114: =IF($B114=0,0,IF(B114="","",VLOOKUP($B114,'Tabla Fijos'!$B$12:$S$311,8,0))) -> 2344.753192 | J114: =IF($B114="","",IF(Sheet1!$Z$1=4,'Tabla de Pagos Crecientes'!J54,'Tabla Fijos'!K59)) -> 801.5823935 | K114: =IF($B114="","",IF(Sheet1!$Z$1=4,'Tabla de Pagos Crecientes'!K54,'Tabla Fijos'!L59)) -> 490 | L114: =IF($B114="","",IF(Sheet1!$Z$1=4,'Tabla de Pagos Crecientes'!L54,'Tabla Fijos'!M59)) -> 360 | M114: =IF($B114="","",IF(Sheet1!$Z$1=4,'Tabla de Pagos Crecientes'!M54,'Tabla Fijos'!N59)) -> 0 | O114: =IF($B114="","",IF(Sheet1!$Z$1=4,'Tabla de Pagos Crecientes'!O54,'Tabla Fijos'!Q59)) -> 0 | P114: =IF(B114="","",G114+H114+I114+J114+K114+L114-M114-'Tabla Fijos'!P59) -> 23136.32966 | Q114: 1331485.369 | R114: 1
B115: 49 | C115: =IF($B115="","",'Fecha Pago'!K52) -> 2030-02-03 | D115: =IF($B$67="","",'Fecha Pago'!L52) -> 30.4 | E115: =IF(B115="","",IF(Sheet1!$Z$1=4,'Tabla de Pagos Crecientes'!E55,$F$62)) -> 0.1299 | F115: =IF($B115="","",IF(Sheet1!$Z$1=4,'Tabla de Pagos Crecientes'!F55,'Tabla Fijos'!F60)) -> 1331485.369 | G115: =IF($B115="","",IF(Sheet1!$Z$1=4,'Tabla de Pagos Crecientes'!G55,'Tabla Fijos'!G60)) -> 4534.487235 | H115: =IF($B115="","",IF(Sheet1!$Z$1=4,'Tabla de Pagos Crecientes'!H55,'Tabla Fijos'!H60)) -> 14605.50684 | I115: =IF($B115=0,0,IF(B115="","",VLOOKUP($B115,'Tabla Fijos'!$B$12:$S$311,8,0))) -> 2336.881095 | J115: =IF($B115="","",IF(Sheet1!$Z$1=4,'Tabla de Pagos Crecientes'!J55,'Tabla Fijos'!K60)) -> 798.8912215 | K115: =IF($B115="","",IF(Sheet1!$Z$1=4,'Tabla de Pagos Crecientes'!K55,'Tabla Fijos'!L60)) -> 490 | L115: =IF($B115="","",IF(Sheet1!$Z$1=4,'Tabla de Pagos Crecientes'!L55,'Tabla Fijos'!M60)) -> 360 | M115: =IF($B115="","",IF(Sheet1!$Z$1=4,'Tabla de Pagos Crecientes'!M55,'Tabla Fijos'!N60)) -> 0 | O115: =IF($B115="","",IF(Sheet1!$Z$1=4,'Tabla de Pagos Crecientes'!O55,'Tabla Fijos'!Q60)) -> 0 | P115: =IF(B115="","",G115+H115+I115+J115+K115+L115-M115-'Tabla Fijos'!P60) -> 23125.76639 | Q115: 1326950.882 | R115: 1
B116: 50 | C116: =IF($B116="","",'Fecha Pago'!K53) -> 2030-03-03 | D116: =IF($B$67="","",'Fecha Pago'!L53) -> 30.4 | E116: =IF(B116="","",IF(Sheet1!$Z$1=4,'Tabla de Pagos Crecientes'!E56,$F$62)) -> 0.1299 | F116: =IF($B116="","",IF(Sheet1!$Z$1=4,'Tabla de Pagos Crecientes'!F56,'Tabla Fijos'!F61)) -> 1326950.882 | G116: =IF($B116="","",IF(Sheet1!$Z$1=4,'Tabla de Pagos Crecientes'!G56,'Tabla Fijos'!G61)) -> 4584.227537 | H116: =IF($B116="","",IF(Sheet1!$Z$1=4,'Tabla de Pagos Crecientes'!H56,'Tabla Fijos'!H61)) -> 14555.76654 | I116: =IF($B116=0,0,IF(B116="","",VLOOKUP($B116,'Tabla Fijos'!$B$12:$S$311,8,0))) -> 2328.922647 | J116: =IF($B116="","",IF(Sheet1!$Z$1=4,'Tabla de Pagos Crecientes'!J56,'Tabla Fijos'!K61)) -> 796.1705292 | K116: =IF($B116="","",IF(Sheet1!$Z$1=4,'Tabla de Pagos Crecientes'!K56,'Tabla Fijos'!L61)) -> 490 | L116: =IF($B116="","",IF(Sheet1!$Z$1=4,'Tabla de Pagos Crecientes'!L56,'Tabla Fijos'!M61)) -> 360 | M116: =IF($B116="","",IF(Sheet1!$Z$1=4,'Tabla de Pagos Crecientes'!M56,'Tabla Fijos'!N61)) -> 0 | O116: =IF($B116="","",IF(Sheet1!$Z$1=4,'Tabla de Pagos Crecientes'!O56,'Tabla Fijos'!Q61)) -> 0 | P116: =IF(B116="","",G116+H116+I116+J116+K116+L116-M116-'Tabla Fijos'!P61) -> 23115.08725 | Q116: 1322366.654 | R116: 1
B117: 51 | C117: =IF($B117="","",'Fecha Pago'!K54) -> 2030-04-03 | D117: =IF($B$67="","",'Fecha Pago'!L54) -> 30.4 | E117: =IF(B117="","",IF(Sheet1!$Z$1=4,'Tabla de Pagos Crecientes'!E57,$F$62)) -> 0.1299 | F117: =IF($B117="","",IF(Sheet1!$Z$1=4,'Tabla de Pagos Crecientes'!F57,'Tabla Fijos'!F62)) -> 1322366.654 | G117: =IF($B117="","",IF(Sheet1!$Z$1=4,'Tabla de Pagos Crecientes'!G57,'Tabla Fijos'!G62)) -> 4634.513457 | H117: =IF($B117="","",IF(Sheet1!$Z$1=4,'Tabla de Pagos Crecientes'!H57,'Tabla Fijos'!H62)) -> 14505.48062 | I117: =IF($B117=0,0,IF(B117="","",VLOOKUP($B117,'Tabla Fijos'!$B$12:$S$311,8,0))) -> 2320.876899 | J117: =IF($B117="","",IF(Sheet1!$Z$1=4,'Tabla de Pagos Crecientes'!J57,'Tabla Fijos'!K62)) -> 793.4199926 | K117: =IF($B117="","",IF(Sheet1!$Z$1=4,'Tabla de Pagos Crecientes'!K57,'Tabla Fijos'!L62)) -> 490 | L117: =IF($B117="","",IF(Sheet1!$Z$1=4,'Tabla de Pagos Crecientes'!L57,'Tabla Fijos'!M62)) -> 360 | M117: =IF($B117="","",IF(Sheet1!$Z$1=4,'Tabla de Pagos Crecientes'!M57,'Tabla Fijos'!N62)) -> 0 | O117: =IF($B117="","",IF(Sheet1!$Z$1=4,'Tabla de Pagos Crecientes'!O57,'Tabla Fijos'!Q62)) -> 0 | P117: =IF(B117="","",G117+H117+I117+J117+K117+L117-M117-'Tabla Fijos'!P62) -> 23104.29097 | Q117: 1317732.141 | R117: 1
B118: 52 | C118: =IF($B118="","",'Fecha Pago'!K55) -> 2030-05-03 | D118: =IF($B$67="","",'Fecha Pago'!L55) -> 30.4 | E118: =IF(B118="","",IF(Sheet1!$Z$1=4,'Tabla de Pagos Crecientes'!E58,$F$62)) -> 0.1299 | F118: =IF($B118="","",IF(Sheet1!$Z$1=4,'Tabla de Pagos Crecientes'!F58,'Tabla Fijos'!F63)) -> 1317732.141 | G118: =IF($B118="","",IF(Sheet1!$Z$1=4,'Tabla de Pagos Crecientes'!G58,'Tabla Fijos'!G63)) -> 4685.350979 | H118: =IF($B118="","",IF(Sheet1!$Z$1=4,'Tabla de Pagos Crecientes'!H58,'Tabla Fijos'!H63)) -> 14454.6431 | I118: =IF($B118=0,0,IF(B118="","",VLOOKUP($B118,'Tabla Fijos'!$B$12:$S$311,8,0))) -> 2312.742896 | J118: =IF($B118="","",IF(Sheet1!$Z$1=4,'Tabla de Pagos Crecientes'!J58,'Tabla Fijos'!K63)) -> 790.6392846 | K118: =IF($B118="","",IF(Sheet1!$Z$1=4,'Tabla de Pagos Crecientes'!K58,'Tabla Fijos'!L63)) -> 490 | L118: =IF($B118="","",IF(Sheet1!$Z$1=4,'Tabla de Pagos Crecientes'!L58,'Tabla Fijos'!M63)) -> 360 | M118: =IF($B118="","",IF(Sheet1!$Z$1=4,'Tabla de Pagos Crecientes'!M58,'Tabla Fijos'!N63)) -> 0 | O118: =IF($B118="","",IF(Sheet1!$Z$1=4,'Tabla de Pagos Crecientes'!O58,'Tabla Fijos'!Q63)) -> 0 | P118: =IF(B118="","",G118+H118+I118+J118+K118+L118-M118-'Tabla Fijos'!P63) -> 23093.37626 | Q118: 1313046.79 | R118: 1
B119: 53 | C119: =IF($B119="","",'Fecha Pago'!K56) -> 2030-06-03 | D119: =IF($B$67="","",'Fecha Pago'!L56) -> 30.4 | E119: =IF(B119="","",IF(Sheet1!$Z$1=4,'Tabla de Pagos Crecientes'!E59,$F$62)) -> 0.1299 | F119: =IF($B119="","",IF(Sheet1!$Z$1=4,'Tabla de Pagos Crecientes'!F59,'Tabla Fijos'!F64)) -> 1313046.79 | G119: =IF($B119="","",IF(Sheet1!$Z$1=4,'Tabla de Pagos Crecientes'!G59,'Tabla Fijos'!G64)) -> 4736.746156 | H119: =IF($B119="","",IF(Sheet1!$Z$1=4,'Tabla de Pagos Crecientes'!H59,'Tabla Fijos'!H64)) -> 14403.24792 | I119: =IF($B119=0,0,IF(B119="","",VLOOKUP($B119,'Tabla Fijos'!$B$12:$S$311,8,0))) -> 2304.519667 | J119: =IF($B119="","",IF(Sheet1!$Z$1=4,'Tabla de Pagos Crecientes'!J59,'Tabla Fijos'!K64)) -> 787.828074 | K119: =IF($B119="","",IF(Sheet1!$Z$1=4,'Tabla de Pagos Crecientes'!K59,'Tabla Fijos'!L64)) -> 490 | L119: =IF($B119="","",IF(Sheet1!$Z$1=4,'Tabla de Pagos Crecientes'!L59,'Tabla Fijos'!M64)) -> 360 | M119: =IF($B119="","",IF(Sheet1!$Z$1=4,'Tabla de Pagos Crecientes'!M59,'Tabla Fijos'!N64)) -> 0 | O119: =IF($B119="","",IF(Sheet1!$Z$1=4,'Tabla de Pagos Crecientes'!O59,'Tabla Fijos'!Q64)) -> 0 | P119: =IF(B119="","",G119+H119+I119+J119+K119+L119-M119-'Tabla Fijos'!P64) -> 23082.34182 | Q119: 1308310.044 | R119: 1
B120: 54 | C120: =IF($B120="","",'Fecha Pago'!K57) -> 2030-07-03 | D120: =IF($B$67="","",'Fecha Pago'!L57) -> 30.4 | E120: =IF(B120="","",IF(Sheet1!$Z$1=4,'Tabla de Pagos Crecientes'!E60,$F$62)) -> 0.1299 | F120: =IF($B120="","",IF(Sheet1!$Z$1=4,'Tabla de Pagos Crecientes'!F60,'Tabla Fijos'!F65)) -> 1308310.044 | G120: =IF($B120="","",IF(Sheet1!$Z$1=4,'Tabla de Pagos Crecientes'!G60,'Tabla Fijos'!G65)) -> 4788.705104 | H120: =IF($B120="","",IF(Sheet1!$Z$1=4,'Tabla de Pagos Crecientes'!H60,'Tabla Fijos'!H65)) -> 14351.28897 | I120: =IF($B120=0,0,IF(B120="","",VLOOKUP($B120,'Tabla Fijos'!$B$12:$S$311,8,0))) -> 2296.206236 | J120: =IF($B120="","",IF(Sheet1!$Z$1=4,'Tabla de Pagos Crecientes'!J60,'Tabla Fijos'!K65)) -> 784.9860263 | K120: =IF($B120="","",IF(Sheet1!$Z$1=4,'Tabla de Pagos Crecientes'!K60,'Tabla Fijos'!L65)) -> 490 | L120: =IF($B120="","",IF(Sheet1!$Z$1=4,'Tabla de Pagos Crecientes'!L60,'Tabla Fijos'!M65)) -> 360 | M120: =IF($B120="","",IF(Sheet1!$Z$1=4,'Tabla de Pagos Crecientes'!M60,'Tabla Fijos'!N65)) -> 0 | O120: =IF($B120="","",IF(Sheet1!$Z$1=4,'Tabla de Pagos Crecientes'!O60,'Tabla Fijos'!Q65)) -> 0 | P120: =IF(B120="","",G120+H120+I120+J120+K120+L120-M120-'Tabla Fijos'!P65) -> 23071.18634 | Q120: 1303521.339 | R120: 1
B121: 55 | C121: =IF($B121="","",'Fecha Pago'!K58) -> 2030-08-03 | D121: =IF($B$67="","",'Fecha Pago'!L58) -> 30.4 | E121: =IF(B121="","",IF(Sheet1!$Z$1=4,'Tabla de Pagos Crecientes'!E61,$F$62)) -> 0.1299 | F121: =IF($B121="","",IF(Sheet1!$Z$1=4,'Tabla de Pagos Crecientes'!F61,'Tabla Fijos'!F66)) -> 1303521.339 | G121: =IF($B121="","",IF(Sheet1!$Z$1=4,'Tabla de Pagos Crecientes'!G61,'Tabla Fijos'!G66)) -> 4841.234006 | H121: =IF($B121="","",IF(Sheet1!$Z$1=4,'Tabla de Pagos Crecientes'!H61,'Tabla Fijos'!H66)) -> 14298.76007 | I121: =IF($B121=0,0,IF(B121="","",VLOOKUP($B121,'Tabla Fijos'!$B$12:$S$311,8,0))) -> 2287.801611 | J121: =IF($B121="","",IF(Sheet1!$Z$1=4,'Tabla de Pagos Crecientes'!J61,'Tabla Fijos'!K66)) -> 782.1128032 | K121: =IF($B121="","",IF(Sheet1!$Z$1=4,'Tabla de Pagos Crecientes'!K61,'Tabla Fijos'!L66)) -> 490 | L121: =IF($B121="","",IF(Sheet1!$Z$1=4,'Tabla de Pagos Crecientes'!L61,'Tabla Fijos'!M66)) -> 360 | M121: =IF($B121="","",IF(Sheet1!$Z$1=4,'Tabla de Pagos Crecientes'!M61,'Tabla Fijos'!N66)) -> 0 | O121: =IF($B121="","",IF(Sheet1!$Z$1=4,'Tabla de Pagos Crecientes'!O61,'Tabla Fijos'!Q66)) -> 0 | P121: =IF(B121="","",G121+H121+I121+J121+K121+L121-M121-'Tabla Fijos'!P66) -> 23059.90849 | Q121: 1298680.105 | R121: 1
B122: 56 | C122: =IF($B122="","",'Fecha Pago'!K59) -> 2030-09-03 | D122: =IF($B$67="","",'Fecha Pago'!L59) -> 30.4 | E122: =IF(B122="","",IF(Sheet1!$Z$1=4,'Tabla de Pagos Crecientes'!E62,$F$62)) -> 0.1299 | F122: =IF($B122="","",IF(Sheet1!$Z$1=4,'Tabla de Pagos Crecientes'!F62,'Tabla Fijos'!F67)) -> 1298680.105 | G122: =IF($B122="","",IF(Sheet1!$Z$1=4,'Tabla de Pagos Crecientes'!G62,'Tabla Fijos'!G67)) -> 4894.339116 | H122: =IF($B122="","",IF(Sheet1!$Z$1=4,'Tabla de Pagos Crecientes'!H62,'Tabla Fijos'!H67)) -> 14245.65496 | I122: =IF($B122=0,0,IF(B122="","",VLOOKUP($B122,'Tabla Fijos'!$B$12:$S$311,8,0))) -> 2279.304794 | J122: =IF($B122="","",IF(Sheet1!$Z$1=4,'Tabla de Pagos Crecientes'!J62,'Tabla Fijos'!K67)) -> 779.2080628 | K122: =IF($B122="","",IF(Sheet1!$Z$1=4,'Tabla de Pagos Crecientes'!K62,'Tabla Fijos'!L67)) -> 490 | L122: =IF($B122="","",IF(Sheet1!$Z$1=4,'Tabla de Pagos Crecientes'!L62,'Tabla Fijos'!M67)) -> 360 | M122: =IF($B122="","",IF(Sheet1!$Z$1=4,'Tabla de Pagos Crecientes'!M62,'Tabla Fijos'!N67)) -> 0 | O122: =IF($B122="","",IF(Sheet1!$Z$1=4,'Tabla de Pagos Crecientes'!O62,'Tabla Fijos'!Q67)) -> 0 | P122: =IF(B122="","",G122+H122+I122+J122+K122+L122-M122-'Tabla Fijos'!P67) -> 23048.50693 | Q122: 1293785.766 | R122: 1
B123: 57 | C123: =IF($B123="","",'Fecha Pago'!K60) -> 2030-10-03 | D123: =IF($B$67="","",'Fecha Pago'!L60) -> 30.4 | E123: =IF(B123="","",IF(Sheet1!$Z$1=4,'Tabla de Pagos Crecientes'!E63,$F$62)) -> 0.1299 | F123: =IF($B123="","",IF(Sheet1!$Z$1=4,'Tabla de Pagos Crecientes'!F63,'Tabla Fijos'!F68)) -> 1293785.766 | G123: =IF($B123="","",IF(Sheet1!$Z$1=4,'Tabla de Pagos Crecientes'!G63,'Tabla Fijos'!G68)) -> 4948.026753 | H123: =IF($B123="","",IF(Sheet1!$Z$1=4,'Tabla de Pagos Crecientes'!H63,'Tabla Fijos'!H68)) -> 14191.96732 | I123: =IF($B123=0,0,IF(B123="","",VLOOKUP($B123,'Tabla Fijos'!$B$12:$S$311,8,0))) -> 2270.714772 | J123: =IF($B123="","",IF(Sheet1!$Z$1=4,'Tabla de Pagos Crecientes'!J63,'Tabla Fijos'!K68)) -> 776.2714593 | K123: =IF($B123="","",IF(Sheet1!$Z$1=4,'Tabla de Pagos Crecientes'!K63,'Tabla Fijos'!L68)) -> 490 | L123: =IF($B123="","",IF(Sheet1!$Z$1=4,'Tabla de Pagos Crecientes'!L63,'Tabla Fijos'!M68)) -> 360 | M123: =IF($B123="","",IF(Sheet1!$Z$1=4,'Tabla de Pagos Crecientes'!M63,'Tabla Fijos'!N68)) -> 0 | O123: =IF($B123="","",IF(Sheet1!$Z$1=4,'Tabla de Pagos Crecientes'!O63,'Tabla Fijos'!Q68)) -> 0 | P123: =IF(B123="","",G123+H123+I123+J123+K123+L123-M123-'Tabla Fijos'!P68) -> 23036.98031 | Q123: 1288837.739 | R123: 1
B124: 58 | C124: =IF($B124="","",'Fecha Pago'!K61) -> 2030-11-03 | D124: =IF($B$67="","",'Fecha Pago'!L61) -> 30.4 | E124: =IF(B124="","",IF(Sheet1!$Z$1=4,'Tabla de Pagos Crecientes'!E64,$F$62)) -> 0.1299 | F124: =IF($B124="","",IF(Sheet1!$Z$1=4,'Tabla de Pagos Crecientes'!F64,'Tabla Fijos'!F69)) -> 1288837.739 | G124: =IF($B124="","",IF(Sheet1!$Z$1=4,'Tabla de Pagos Crecientes'!G64,'Tabla Fijos'!G69)) -> 5002.303308 | H124: =IF($B124="","",IF(Sheet1!$Z$1=4,'Tabla de Pagos Crecientes'!H64,'Tabla Fijos'!H69)) -> 14137.69077 | I124: =IF($B124=0,0,IF(B124="","",VLOOKUP($B124,'Tabla Fijos'!$B$12:$S$311,8,0))) -> 2262.030523 | J124: =IF($B124="","",IF(Sheet1!$Z$1=4,'Tabla de Pagos Crecientes'!J64,'Tabla Fijos'!K69)) -> 773.3026433 | K124: =IF($B124="","",IF(Sheet1!$Z$1=4,'Tabla de Pagos Crecientes'!K64,'Tabla Fijos'!L69)) -> 490 | L124: =IF($B124="","",IF(Sheet1!$Z$1=4,'Tabla de Pagos Crecientes'!L64,'Tabla Fijos'!M69)) -> 360 | M124: =IF($B124="","",IF(Sheet1!$Z$1=4,'Tabla de Pagos Crecientes'!M64,'Tabla Fijos'!N69)) -> 0 | O124: =IF($B124="","",IF(Sheet1!$Z$1=4,'Tabla de Pagos Crecientes'!O64,'Tabla Fijos'!Q69)) -> 0 | P124: =IF(B124="","",G124+H124+I124+J124+K124+L124-M124-'Tabla Fijos'!P69) -> 23025.32724 | Q124: 1283835.436 | R124: 1
B125: 59 | C125: =IF($B125="","",'Fecha Pago'!K62) -> 2030-12-03 | D125: =IF($B$67="","",'Fecha Pago'!L62) -> 30.4 | E125: =IF(B125="","",IF(Sheet1!$Z$1=4,'Tabla de Pagos Crecientes'!E65,$F$62)) -> 0.1299 | F125: =IF($B125="","",IF(Sheet1!$Z$1=4,'Tabla de Pagos Crecientes'!F65,'Tabla Fijos'!F70)) -> 1283835.436 | G125: =IF($B125="","",IF(Sheet1!$Z$1=4,'Tabla de Pagos Crecientes'!G65,'Tabla Fijos'!G70)) -> 5057.17524 | H125: =IF($B125="","",IF(Sheet1!$Z$1=4,'Tabla de Pagos Crecientes'!H65,'Tabla Fijos'!H70)) -> 14082.81884 | I125: =IF($B125=0,0,IF(B125="","",VLOOKUP($B125,'Tabla Fijos'!$B$12:$S$311,8,0))) -> 2253.251014 | J125: =IF($B125="","",IF(Sheet1!$Z$1=4,'Tabla de Pagos Crecientes'!J65,'Tabla Fijos'!K70)) -> 770.3012613 | K125: =IF($B125="","",IF(Sheet1!$Z$1=4,'Tabla de Pagos Crecientes'!K65,'Tabla Fijos'!L70)) -> 490 | L125: =IF($B125="","",IF(Sheet1!$Z$1=4,'Tabla de Pagos Crecientes'!L65,'Tabla Fijos'!M70)) -> 360 | M125: =IF($B125="","",IF(Sheet1!$Z$1=4,'Tabla de Pagos Crecientes'!M65,'Tabla Fijos'!N70)) -> 0 | O125: =IF($B125="","",IF(Sheet1!$Z$1=4,'Tabla de Pagos Crecientes'!O65,'Tabla Fijos'!Q70)) -> 0 | P125: =IF(B125="","",G125+H125+I125+J125+K125+L125-M125-'Tabla Fijos'!P70) -> 23013.54635 | Q125: 1278778.26 | R125: 1
B126: 60 | C126: =IF($B126="","",'Fecha Pago'!K63) -> 2031-01-03 | D126: =IF($B$67="","",'Fecha Pago'!L63) -> 30.4 | E126: =IF(B126="","",IF(Sheet1!$Z$1=4,'Tabla de Pagos Crecientes'!E66,$F$62)) -> 0.1299 | F126: =IF($B126="","",IF(Sheet1!$Z$1=4,'Tabla de Pagos Crecientes'!F66,'Tabla Fijos'!F71)) -> 1278778.26 | G126: =IF($B126="","",IF(Sheet1!$Z$1=4,'Tabla de Pagos Crecientes'!G66,'Tabla Fijos'!G71)) -> 5112.649081 | H126: =IF($B126="","",IF(Sheet1!$Z$1=4,'Tabla de Pagos Crecientes'!H66,'Tabla Fijos'!H71)) -> 14027.345 | I126: =IF($B126=0,0,IF(B126="","",VLOOKUP($B126,'Tabla Fijos'!$B$12:$S$311,8,0))) -> 2244.375199 | J126: =IF($B126="","",IF(Sheet1!$Z$1=4,'Tabla de Pagos Crecientes'!J66,'Tabla Fijos'!K71)) -> 767.2669562 | K126: =IF($B126="","",IF(Sheet1!$Z$1=4,'Tabla de Pagos Crecientes'!K66,'Tabla Fijos'!L71)) -> 490 | L126: =IF($B126="","",IF(Sheet1!$Z$1=4,'Tabla de Pagos Crecientes'!L66,'Tabla Fijos'!M71)) -> 360 | M126: =IF($B126="","",IF(Sheet1!$Z$1=4,'Tabla de Pagos Crecientes'!M66,'Tabla Fijos'!N71)) -> 0 | O126: =IF($B126="","",IF(Sheet1!$Z$1=4,'Tabla de Pagos Crecientes'!O66,'Tabla Fijos'!Q71)) -> 0 | P126: =IF(B126="","",G126+H126+I126+J126+K126+L126-M126-'Tabla Fijos'!P71) -> 23001.63623 | Q126: 1273665.611 | R126: 1
B127: 61 | C127: =IF($B127="","",'Fecha Pago'!K64) -> 2031-02-03 | D127: =IF($B$67="","",'Fecha Pago'!L64) -> 30.4 | E127: =IF(B127="","",IF(Sheet1!$Z$1=4,'Tabla de Pagos Crecientes'!E67,$F$62)) -> 0.1299 | F127: =IF($B127="","",IF(Sheet1!$Z$1=4,'Tabla de Pagos Crecientes'!F67,'Tabla Fijos'!F72)) -> 1273665.611 | G127: =IF($B127="","",IF(Sheet1!$Z$1=4,'Tabla de Pagos Crecientes'!G67,'Tabla Fijos'!G72)) -> 5168.731433 | H127: =IF($B127="","",IF(Sheet1!$Z$1=4,'Tabla de Pagos Crecientes'!H67,'Tabla Fijos'!H72)) -> 13971.26264 | I127: =IF($B127=0,0,IF(B127="","",VLOOKUP($B127,'Tabla Fijos'!$B$12:$S$311,8,0))) -> 2235.402023 | J127: =IF($B127="","",IF(Sheet1!$Z$1=4,'Tabla de Pagos Crecientes'!J67,'Tabla Fijos'!K72)) -> 764.1993667 | K127: =IF($B127="","",IF(Sheet1!$Z$1=4,'Tabla de Pagos Crecientes'!K67,'Tabla Fijos'!L72)) -> 490 | L127: =IF($B127="","",IF(Sheet1!$Z$1=4,'Tabla de Pagos Crecientes'!L67,'Tabla Fijos'!M72)) -> 360 | M127: =IF($B127="","",IF(Sheet1!$Z$1=4,'Tabla de Pagos Crecientes'!M67,'Tabla Fijos'!N72)) -> 0 | O127: =IF($B127="","",IF(Sheet1!$Z$1=4,'Tabla de Pagos Crecientes'!O67,'Tabla Fijos'!Q72)) -> 0 | P127: =IF(B127="","",G127+H127+I127+J127+K127+L127-M127-'Tabla Fijos'!P72) -> 22989.59547 | Q127: 1268496.88 | R127: 1
B128: 62 | C128: =IF($B128="","",'Fecha Pago'!K65) -> 2031-03-03 | D128: =IF($B$67="","",'Fecha Pago'!L65) -> 30.4 | E128: =IF(B128="","",IF(Sheet1!$Z$1=4,'Tabla de Pagos Crecientes'!E68,$F$62)) -> 0.1299 | F128: =IF($B128="","",IF(Sheet1!$Z$1=4,'Tabla de Pagos Crecientes'!F68,'Tabla Fijos'!F73)) -> 1268496.88 | G128: =IF($B128="","",IF(Sheet1!$Z$1=4,'Tabla de Pagos Crecientes'!G68,'Tabla Fijos'!G73)) -> 5225.428971 | H128: =IF($B128="","",IF(Sheet1!$Z$1=4,'Tabla de Pagos Crecientes'!H68,'Tabla Fijos'!H73)) -> 13914.56511 | I128: =IF($B128=0,0,IF(B128="","",VLOOKUP($B128,'Tabla Fijos'!$B$12:$S$311,8,0))) -> 2226.330417 | J128: =IF($B128="","",IF(Sheet1!$Z$1=4,'Tabla de Pagos Crecientes'!J68,'Tabla Fijos'!K73)) -> 761.0981279 | K128: =IF($B128="","",IF(Sheet1!$Z$1=4,'Tabla de Pagos Crecientes'!K68,'Tabla Fijos'!L73)) -> 490 | L128: =IF($B128="","",IF(Sheet1!$Z$1=4,'Tabla de Pagos Crecientes'!L68,'Tabla Fijos'!M73)) -> 360 | M128: =IF($B128="","",IF(Sheet1!$Z$1=4,'Tabla de Pagos Crecientes'!M68,'Tabla Fijos'!N73)) -> 0 | O128: =IF($B128="","",IF(Sheet1!$Z$1=4,'Tabla de Pagos Crecientes'!O68,'Tabla Fijos'!Q73)) -> 0 | P128: =IF(B128="","",G128+H128+I128+J128+K128+L128-M128-'Tabla Fijos'!P73) -> 22977.42262 | Q128: 1263271.451 | R128: 1
B129: 63 | C129: =IF($B129="","",'Fecha Pago'!K66) -> 2031-04-03 | D129: =IF($B$67="","",'Fecha Pago'!L66) -> 30.4 | E129: =IF(B129="","",IF(Sheet1!$Z$1=4,'Tabla de Pagos Crecientes'!E69,$F$62)) -> 0.1299 | F129: =IF($B129="","",IF(Sheet1!$Z$1=4,'Tabla de Pagos Crecientes'!F69,'Tabla Fijos'!F74)) -> 1263271.451 | G129: =IF($B129="","",IF(Sheet1!$Z$1=4,'Tabla de Pagos Crecientes'!G69,'Tabla Fijos'!G74)) -> 5282.748443 | H129: =IF($B129="","",IF(Sheet1!$Z$1=4,'Tabla de Pagos Crecientes'!H69,'Tabla Fijos'!H74)) -> 13857.24563 | I129: =IF($B129=0,0,IF(B129="","",VLOOKUP($B129,'Tabla Fijos'!$B$12:$S$311,8,0))) -> 2217.159301 | J129: =IF($B129="","",IF(Sheet1!$Z$1=4,'Tabla de Pagos Crecientes'!J69,'Tabla Fijos'!K74)) -> 757.9628705 | K129: =IF($B129="","",IF(Sheet1!$Z$1=4,'Tabla de Pagos Crecientes'!K69,'Tabla Fijos'!L74)) -> 490 | L129: =IF($B129="","",IF(Sheet1!$Z$1=4,'Tabla de Pagos Crecientes'!L69,'Tabla Fijos'!M74)) -> 360 | M129: =IF($B129="","",IF(Sheet1!$Z$1=4,'Tabla de Pagos Crecientes'!M69,'Tabla Fijos'!N74)) -> 0 | O129: =IF($B129="","",IF(Sheet1!$Z$1=4,'Tabla de Pagos Crecientes'!O69,'Tabla Fijos'!Q74)) -> 0 | P129: =IF(B129="","",G129+H129+I129+J129+K129+L129-M129-'Tabla Fijos'!P74) -> 22965.11625 | Q129: 1257988.702 | R129: 1
B130: 64 | C130: =IF($B130="","",'Fecha Pago'!K67) -> 2031-05-03 | D130: =IF($B$67="","",'Fecha Pago'!L67) -> 30.4 | E130: =IF(B130="","",IF(Sheet1!$Z$1=4,'Tabla de Pagos Crecientes'!E70,$F$62)) -> 0.1299 | F130: =IF($B130="","",IF(Sheet1!$Z$1=4,'Tabla de Pagos Crecientes'!F70,'Tabla Fijos'!F75)) -> 1257988.702 | G130: =IF($B130="","",IF(Sheet1!$Z$1=4,'Tabla de Pagos Crecientes'!G70,'Tabla Fijos'!G75)) -> 5340.696672 | H130: =IF($B130="","",IF(Sheet1!$Z$1=4,'Tabla de Pagos Crecientes'!H70,'Tabla Fijos'!H75)) -> 13799.29741 | I130: =IF($B130=0,0,IF(B130="","",VLOOKUP($B130,'Tabla Fijos'!$B$12:$S$311,8,0))) -> 2207.887585 | J130: =IF($B130="","",IF(Sheet1!$Z$1=4,'Tabla de Pagos Crecientes'!J70,'Tabla Fijos'!K75)) -> 754.7932214 | K130: =IF($B130="","",IF(Sheet1!$Z$1=4,'Tabla de Pagos Crecientes'!K70,'Tabla Fijos'!L75)) -> 490 | L130: =IF($B130="","",IF(Sheet1!$Z$1=4,'Tabla de Pagos Crecientes'!L70,'Tabla Fijos'!M75)) -> 360 | M130: =IF($B130="","",IF(Sheet1!$Z$1=4,'Tabla de Pagos Crecientes'!M70,'Tabla Fijos'!N75)) -> 0 | O130: =IF($B130="","",IF(Sheet1!$Z$1=4,'Tabla de Pagos Crecientes'!O70,'Tabla Fijos'!Q75)) -> 0 | P130: =IF(B130="","",G130+H130+I130+J130+K130+L130-M130-'Tabla Fijos'!P75) -> 22952.67488 | Q130: 1252648.006 | R130: 1
B131: 65 | C131: =IF($B131="","",'Fecha Pago'!K68) -> 2031-06-03 | D131: =IF($B$67="","",'Fecha Pago'!L68) -> 30.4 | E131: =IF(B131="","",IF(Sheet1!$Z$1=4,'Tabla de Pagos Crecientes'!E71,$F$62)) -> 0.1299 | F131: =IF($B131="","",IF(Sheet1!$Z$1=4,'Tabla de Pagos Crecientes'!F71,'Tabla Fijos'!F76)) -> 1252648.006 | G131: =IF($B131="","",IF(Sheet1!$Z$1=4,'Tabla de Pagos Crecientes'!G71,'Tabla Fijos'!G76)) -> 5399.280554 | H131: =IF($B131="","",IF(Sheet1!$Z$1=4,'Tabla de Pagos Crecientes'!H71,'Tabla Fijos'!H76)) -> 13740.71352 | I131: =IF($B131=0,0,IF(B131="","",VLOOKUP($B131,'Tabla Fijos'!$B$12:$S$311,8,0))) -> 2198.514164 | J131: =IF($B131="","",IF(Sheet1!$Z$1=4,'Tabla de Pagos Crecientes'!J71,'Tabla Fijos'!K76)) -> 751.5888034 | K131: =IF($B131="","",IF(Sheet1!$Z$1=4,'Tabla de Pagos Crecientes'!K71,'Tabla Fijos'!L76)) -> 490 | L131: =IF($B131="","",IF(Sheet1!$Z$1=4,'Tabla de Pagos Crecientes'!L71,'Tabla Fijos'!M76)) -> 360 | M131: =IF($B131="","",IF(Sheet1!$Z$1=4,'Tabla de Pagos Crecientes'!M71,'Tabla Fijos'!N76)) -> 0 | O131: =IF($B131="","",IF(Sheet1!$Z$1=4,'Tabla de Pagos Crecientes'!O71,'Tabla Fijos'!Q76)) -> 0 | P131: =IF(B131="","",G131+H131+I131+J131+K131+L131-M131-'Tabla Fijos'!P76) -> 22940.09704 | Q131: =IF(B131="","",F131-G131) -> 1247248.725 | R131: 1
B132: 66 | C132: =IF($B132="","",'Fecha Pago'!K69) -> 2031-07-03 | D132: =IF($B$67="","",'Fecha Pago'!L69) -> 30.4 | E132: =IF(B132="","",IF(Sheet1!$Z$1=4,'Tabla de Pagos Crecientes'!E72,$F$62)) -> 0.1299 | F132: =IF($B132="","",IF(Sheet1!$Z$1=4,'Tabla de Pagos Crecientes'!F72,'Tabla Fijos'!F77)) -> 1247248.725 | G132: =IF($B132="","",IF(Sheet1!$Z$1=4,'Tabla de Pagos Crecientes'!G72,'Tabla Fijos'!G77)) -> 5458.507062 | H132: =IF($B132="","",IF(Sheet1!$Z$1=4,'Tabla de Pagos Crecientes'!H72,'Tabla Fijos'!H77)) -> 13681.48702 | I132: =IF($B132=0,0,IF(B132="","",VLOOKUP($B132,'Tabla Fijos'!$B$12:$S$311,8,0))) -> 2189.037922 | J132: =IF($B132="","",IF(Sheet1!$Z$1=4,'Tabla de Pagos Crecientes'!J72,'Tabla Fijos'!K77)) -> 748.3492351 | K132: =IF($B132="","",IF(Sheet1!$Z$1=4,'Tabla de Pagos Crecientes'!K72,'Tabla Fijos'!L77)) -> 490 | L132: =IF($B132="","",IF(Sheet1!$Z$1=4,'Tabla de Pagos Crecientes'!L72,'Tabla Fijos'!M77)) -> 360 | M132: =IF($B132="","",IF(Sheet1!$Z$1=4,'Tabla de Pagos Crecientes'!M72,'Tabla Fijos'!N77)) -> 0 | O132: =IF($B132="","",IF(Sheet1!$Z$1=4,'Tabla de Pagos Crecientes'!O72,'Tabla Fijos'!Q77)) -> 0 | P132: =IF(B132="","",G132+H132+I132+J132+K132+L132-M132-'Tabla Fijos'!P77) -> 22927.38124 | Q132: 1241790.218 | R132: =IF(OR($B132="",$F132<=0),0,1) -> 1
B133: =IF(B132="","",IF(B132=$H$49,"",B132+1)) -> 67 | C133: =IF($B133="","",'Fecha Pago'!K70) -> 2031-08-03 | D133: =IF($B$67="","",'Fecha Pago'!L70) -> 30.4 | E133: =IF(B133="","",IF(Sheet1!$Z$1=4,'Tabla de Pagos Crecientes'!E73,$F$62)) -> 0.1299 | F133: =IF($B133="","",IF(Sheet1!$Z$1=4,'Tabla de Pagos Crecientes'!F73,'Tabla Fijos'!F78)) -> 1241790.218 | G133: =IF($B133="","",IF(Sheet1!$Z$1=4,'Tabla de Pagos Crecientes'!G73,'Tabla Fijos'!G78)) -> 5518.383246 | H133: =IF($B133="","",IF(Sheet1!$Z$1=4,'Tabla de Pagos Crecientes'!H73,'Tabla Fijos'!H78)) -> 13621.61083 | I133: =IF($B133=0,0,IF(B133="","",VLOOKUP($B133,'Tabla Fijos'!$B$12:$S$311,8,0))) -> 2179.457733 | J133: =IF($B133="","",IF(Sheet1!$Z$1=4,'Tabla de Pagos Crecientes'!J73,'Tabla Fijos'!K78)) -> 745.0741308 | K133: =IF($B133="","",IF(Sheet1!$Z$1=4,'Tabla de Pagos Crecientes'!K73,'Tabla Fijos'!L78)) -> 490 | L133: =IF($B133="","",IF(Sheet1!$Z$1=4,'Tabla de Pagos Crecientes'!L73,'Tabla Fijos'!M78)) -> 360 | M133: =IF($B133="","",IF(Sheet1!$Z$1=4,'Tabla de Pagos Crecientes'!M73,'Tabla Fijos'!N78)) -> 0 | O133: =IF($B133="","",IF(Sheet1!$Z$1=4,'Tabla de Pagos Crecientes'!O73,'Tabla Fijos'!Q78)) -> 0 | P133: =IF(B133="","",G133+H133+I133+J133+K133+L133-M133-'Tabla Fijos'!P78) -> 22914.52594 | Q133: 1236271.835 | R133: 1
B134: 68 | C134: =IF($B134="","",'Fecha Pago'!K71) -> 2031-09-03 | D134: =IF($B$67="","",'Fecha Pago'!L71) -> 30.4 | E134: =IF(B134="","",IF(Sheet1!$Z$1=4,'Tabla de Pagos Crecientes'!E74,$F$62)) -> 0.1299 | F134: =IF($B134="","",IF(Sheet1!$Z$1=4,'Tabla de Pagos Crecientes'!F74,'Tabla Fijos'!F79)) -> 1236271.835 | G134: =IF($B134="","",IF(Sheet1!$Z$1=4,'Tabla de Pagos Crecientes'!G74,'Tabla Fijos'!G79)) -> 5578.916231 | H134: =IF($B134="","",IF(Sheet1!$Z$1=4,'Tabla de Pagos Crecientes'!H74,'Tabla Fijos'!H79)) -> 13561.07785 | I134: =IF($B134=0,0,IF(B134="","",VLOOKUP($B134,'Tabla Fijos'!$B$12:$S$311,8,0))) -> 2169.772455 | J134: =IF($B134="","",IF(Sheet1!$Z$1=4,'Tabla de Pagos Crecientes'!J74,'Tabla Fijos'!K79)) -> 741.7631009 | K134: =IF($B134="","",IF(Sheet1!$Z$1=4,'Tabla de Pagos Crecientes'!K74,'Tabla Fijos'!L79)) -> 490 | L134: =IF($B134="","",IF(Sheet1!$Z$1=4,'Tabla de Pagos Crecientes'!L74,'Tabla Fijos'!M79)) -> 360 | M134: =IF($B134="","",IF(Sheet1!$Z$1=4,'Tabla de Pagos Crecientes'!M74,'Tabla Fijos'!N79)) -> 0 | O134: =IF($B134="","",IF(Sheet1!$Z$1=4,'Tabla de Pagos Crecientes'!O74,'Tabla Fijos'!Q79)) -> 0 | P134: =IF(B134="","",G134+H134+I134+J134+K134+L134-M134-'Tabla Fijos'!P79) -> 22901.52963 | Q134: 1230692.919 | R134: 1
B135: 69 | C135: =IF($B135="","",'Fecha Pago'!K72) -> 2031-10-03 | D135: =IF($B$67="","",'Fecha Pago'!L72) -> 30.4 | E135: =IF(B135="","",IF(Sheet1!$Z$1=4,'Tabla de Pagos Crecientes'!E75,$F$62)) -> 0.1299 | F135: =IF($B135="","",IF(Sheet1!$Z$1=4,'Tabla de Pagos Crecientes'!F75,'Tabla Fijos'!F80)) -> 1230692.919 | G135: =IF($B135="","",IF(Sheet1!$Z$1=4,'Tabla de Pagos Crecientes'!G75,'Tabla Fijos'!G80)) -> 5640.113223 | H135: =IF($B135="","",IF(Sheet1!$Z$1=4,'Tabla de Pagos Crecientes'!H75,'Tabla Fijos'!H80)) -> 13499.88085 | I135: =IF($B135=0,0,IF(B135="","",VLOOKUP($B135,'Tabla Fijos'!$B$12:$S$311,8,0))) -> 2159.980937 | J135: =IF($B135="","",IF(Sheet1!$Z$1=4,'Tabla de Pagos Crecientes'!J75,'Tabla Fijos'!K80)) -> 738.4157512 | K135: =IF($B135="","",IF(Sheet1!$Z$1=4,'Tabla de Pagos Crecientes'!K75,'Tabla Fijos'!L80)) -> 490 | L135: =IF($B135="","",IF(Sheet1!$Z$1=4,'Tabla de Pagos Crecientes'!L75,'Tabla Fijos'!M80)) -> 360 | M135: =IF($B135="","",IF(Sheet1!$Z$1=4,'Tabla de Pagos Crecientes'!M75,'Tabla Fijos'!N80)) -> 0 | O135: =IF($B135="","",IF(Sheet1!$Z$1=4,'Tabla de Pagos Crecientes'!O75,'Tabla Fijos'!Q80)) -> 0 | P135: =IF(B135="","",G135+H135+I135+J135+K135+L135-M135-'Tabla Fijos'!P80) -> 22888.39077 | Q135: 1225052.805 | R135: 1
B136: 70 | C136: =IF($B136="","",'Fecha Pago'!K73) -> 2031-11-03 | D136: =IF($B$67="","",'Fecha Pago'!L73) -> 30.4 | E136: =IF(B136="","",IF(Sheet1!$Z$1=4,'Tabla de Pagos Crecientes'!E76,$F$62)) -> 0.1299 | F136: =IF($B136="","",IF(Sheet1!$Z$1=4,'Tabla de Pagos Crecientes'!F76,'Tabla Fijos'!F81)) -> 1225052.805 | G136: =IF($B136="","",IF(Sheet1!$Z$1=4,'Tabla de Pagos Crecientes'!G76,'Tabla Fijos'!G81)) -> 5701.981505 | H136: =IF($B136="","",IF(Sheet1!$Z$1=4,'Tabla de Pagos Crecientes'!H76,'Tabla Fijos'!H81)) -> 13438.01257 | I136: =IF($B136=0,0,IF(B136="","",VLOOKUP($B136,'Tabla Fijos'!$B$12:$S$311,8,0))) -> 2150.082012 | J136: =IF($B136="","",IF(Sheet1!$Z$1=4,'Tabla de Pagos Crecientes'!J76,'Tabla Fijos'!K81)) -> 735.0316832 | K136: =IF($B136="","",IF(Sheet1!$Z$1=4,'Tabla de Pagos Crecientes'!K76,'Tabla Fijos'!L81)) -> 490 | L136: =IF($B136="","",IF(Sheet1!$Z$1=4,'Tabla de Pagos Crecientes'!L76,'Tabla Fijos'!M81)) -> 360 | M136: =IF($B136="","",IF(Sheet1!$Z$1=4,'Tabla de Pagos Crecientes'!M76,'Tabla Fijos'!N81)) -> 0 | O136: =IF($B136="","",IF(Sheet1!$Z$1=4,'Tabla de Pagos Crecientes'!O76,'Tabla Fijos'!Q81)) -> 0 | P136: =IF(B136="","",G136+H136+I136+J136+K136+L136-M136-'Tabla Fijos'!P81) -> 22875.10777 | Q136: 1219350.824 | R136: 1
B137: 71 | C137: =IF($B137="","",'Fecha Pago'!K74) -> 2031-12-03 | D137: =IF($B$67="","",'Fecha Pago'!L74) -> 30.4 | E137: =IF(B137="","",IF(Sheet1!$Z$1=4,'Tabla de Pagos Crecientes'!E77,$F$62)) -> 0.1299 | F137: =IF($B137="","",IF(Sheet1!$Z$1=4,'Tabla de Pagos Crecientes'!F77,'Tabla Fijos'!F82)) -> 1219350.824 | G137: =IF($B137="","",IF(Sheet1!$Z$1=4,'Tabla de Pagos Crecientes'!G77,'Tabla Fijos'!G82)) -> 5764.52844 | H137: =IF($B137="","",IF(Sheet1!$Z$1=4,'Tabla de Pagos Crecientes'!H77,'Tabla Fijos'!H82)) -> 13375.46564 | I137: =IF($B137=0,0,IF(B137="","",VLOOKUP($B137,'Tabla Fijos'!$B$12:$S$311,8,0))) -> 2140.074502 | J137: =IF($B137="","",IF(Sheet1!$Z$1=4,'Tabla de Pagos Crecientes'!J77,'Tabla Fijos'!K82)) -> 731.6104943 | K137: =IF($B137="","",IF(Sheet1!$Z$1=4,'Tabla de Pagos Crecientes'!K77,'Tabla Fijos'!L82)) -> 490 | L137: =IF($B137="","",IF(Sheet1!$Z$1=4,'Tabla de Pagos Crecientes'!L77,'Tabla Fijos'!M82)) -> 360 | M137: =IF($B137="","",IF(Sheet1!$Z$1=4,'Tabla de Pagos Crecientes'!M77,'Tabla Fijos'!N82)) -> 0 | O137: =IF($B137="","",IF(Sheet1!$Z$1=4,'Tabla de Pagos Crecientes'!O77,'Tabla Fijos'!Q82)) -> 0 | P137: =IF(B137="","",G137+H137+I137+J137+K137+L137-M137-'Tabla Fijos'!P82) -> 22861.67907 | Q137: 1213586.295 | R137: 1
B138: 72 | C138: =IF($B138="","",'Fecha Pago'!K75) -> 2032-01-03 | D138: =IF($B$67="","",'Fecha Pago'!L75) -> 30.4 | E138: =IF(B138="","",IF(Sheet1!$Z$1=4,'Tabla de Pagos Crecientes'!E78,$F$62)) -> 0.1299 | F138: =IF($B138="","",IF(Sheet1!$Z$1=4,'Tabla de Pagos Crecientes'!F78,'Tabla Fijos'!F83)) -> 1213586.295 | G138: =IF($B138="","",IF(Sheet1!$Z$1=4,'Tabla de Pagos Crecientes'!G78,'Tabla Fijos'!G83)) -> 5827.761474 | H138: =IF($B138="","",IF(Sheet1!$Z$1=4,'Tabla de Pagos Crecientes'!H78,'Tabla Fijos'!H83)) -> 13312.2326 | I138: =IF($B138=0,0,IF(B138="","",VLOOKUP($B138,'Tabla Fijos'!$B$12:$S$311,8,0))) -> 2129.957217 | J138: =IF($B138="","",IF(Sheet1!$Z$1=4,'Tabla de Pagos Crecientes'!J78,'Tabla Fijos'!K83)) -> 728.1517773 | K138: =IF($B138="","",IF(Sheet1!$Z$1=4,'Tabla de Pagos Crecientes'!K78,'Tabla Fijos'!L83)) -> 490 | L138: =IF($B138="","",IF(Sheet1!$Z$1=4,'Tabla de Pagos Crecientes'!L78,'Tabla Fijos'!M83)) -> 360 | M138: =IF($B138="","",IF(Sheet1!$Z$1=4,'Tabla de Pagos Crecientes'!M78,'Tabla Fijos'!N83)) -> 0 | O138: =IF($B138="","",IF(Sheet1!$Z$1=4,'Tabla de Pagos Crecientes'!O78,'Tabla Fijos'!Q83)) -> 0 | P138: =IF(B138="","",G138+H138+I138+J138+K138+L138-M138-'Tabla Fijos'!P83) -> 22848.10307 | Q138: 1207758.534 | R138: 1
B139: 73 | C139: =IF($B139="","",'Fecha Pago'!K76) -> 2032-02-03 | D139: =IF($B$67="","",'Fecha Pago'!L76) -> 30.4 | E139: =IF(B139="","",IF(Sheet1!$Z$1=4,'Tabla de Pagos Crecientes'!E79,$F$62)) -> 0.1299 | F139: =IF($B139="","",IF(Sheet1!$Z$1=4,'Tabla de Pagos Crecientes'!F79,'Tabla Fijos'!F84)) -> 1207758.534 | G139: =IF($B139="","",IF(Sheet1!$Z$1=4,'Tabla de Pagos Crecientes'!G79,'Tabla Fijos'!G84)) -> 5891.688133 | H139: =IF($B139="","",IF(Sheet1!$Z$1=4,'Tabla de Pagos Crecientes'!H79,'Tabla Fijos'!H84)) -> 13248.30595 | I139: =IF($B139=0,0,IF(B139="","",VLOOKUP($B139,'Tabla Fijos'!$B$12:$S$311,8,0))) -> 2119.728951 | J139: =IF($B139="","",IF(Sheet1!$Z$1=4,'Tabla de Pagos Crecientes'!J79,'Tabla Fijos'!K84)) -> 724.6551204 | K139: =IF($B139="","",IF(Sheet1!$Z$1=4,'Tabla de Pagos Crecientes'!K79,'Tabla Fijos'!L84)) -> 490 | L139: =IF($B139="","",IF(Sheet1!$Z$1=4,'Tabla de Pagos Crecientes'!L79,'Tabla Fijos'!M84)) -> 360 | M139: =IF($B139="","",IF(Sheet1!$Z$1=4,'Tabla de Pagos Crecientes'!M79,'Tabla Fijos'!N84)) -> 0 | O139: =IF($B139="","",IF(Sheet1!$Z$1=4,'Tabla de Pagos Crecientes'!O79,'Tabla Fijos'!Q84)) -> 0 | P139: =IF(B139="","",G139+H139+I139+J139+K139+L139-M139-'Tabla Fijos'!P84) -> 22834.37815 | Q139: 1201866.846 | R139: 1
B140: 74 | C140: =IF($B140="","",'Fecha Pago'!K77) -> 2032-03-03 | D140: =IF($B$67="","",'Fecha Pago'!L77) -> 30.4 | E140: =IF(B140="","",IF(Sheet1!$Z$1=4,'Tabla de Pagos Crecientes'!E80,$F$62)) -> 0.1299 | F140: =IF($B140="","",IF(Sheet1!$Z$1=4,'Tabla de Pagos Crecientes'!F80,'Tabla Fijos'!F85)) -> 1201866.846 | G140: =IF($B140="","",IF(Sheet1!$Z$1=4,'Tabla de Pagos Crecientes'!G80,'Tabla Fijos'!G85)) -> 5956.316024 | H140: =IF($B140="","",IF(Sheet1!$Z$1=4,'Tabla de Pagos Crecientes'!H80,'Tabla Fijos'!H85)) -> 13183.67805 | I140: =IF($B140=0,0,IF(B140="","",VLOOKUP($B140,'Tabla Fijos'!$B$12:$S$311,8,0))) -> 2109.388489 | J140: =IF($B140="","",IF(Sheet1!$Z$1=4,'Tabla de Pagos Crecientes'!J80,'Tabla Fijos'!K85)) -> 721.1201075 | K140: =IF($B140="","",IF(Sheet1!$Z$1=4,'Tabla de Pagos Crecientes'!K80,'Tabla Fijos'!L85)) -> 490 | L140: =IF($B140="","",IF(Sheet1!$Z$1=4,'Tabla de Pagos Crecientes'!L80,'Tabla Fijos'!M85)) -> 360 | M140: =IF($B140="","",IF(Sheet1!$Z$1=4,'Tabla de Pagos Crecientes'!M80,'Tabla Fijos'!N85)) -> 0 | O140: =IF($B140="","",IF(Sheet1!$Z$1=4,'Tabla de Pagos Crecientes'!O80,'Tabla Fijos'!Q85)) -> 0 | P140: =IF(B140="","",G140+H140+I140+J140+K140+L140-M140-'Tabla Fijos'!P85) -> 22820.50267 | Q140: 1195910.53 | R140: 1
B141: 75 | C141: =IF($B141="","",'Fecha Pago'!K78) -> 2032-04-03 | D141: =IF($B$67="","",'Fecha Pago'!L78) -> 30.4 | E141: =IF(B141="","",IF(Sheet1!$Z$1=4,'Tabla de Pagos Crecientes'!E81,$F$62)) -> 0.1299 | F141: =IF($B141="","",IF(Sheet1!$Z$1=4,'Tabla de Pagos Crecientes'!F81,'Tabla Fijos'!F86)) -> 1195910.53 | G141: =IF($B141="","",IF(Sheet1!$Z$1=4,'Tabla de Pagos Crecientes'!G81,'Tabla Fijos'!G86)) -> 6021.652839 | H141: =IF($B141="","",IF(Sheet1!$Z$1=4,'Tabla de Pagos Crecientes'!H81,'Tabla Fijos'!H86)) -> 13118.34124 | I141: =IF($B141=0,0,IF(B141="","",VLOOKUP($B141,'Tabla Fijos'!$B$12:$S$311,8,0))) -> 2098.934598 | J141: =IF($B141="","",IF(Sheet1!$Z$1=4,'Tabla de Pagos Crecientes'!J81,'Tabla Fijos'!K86)) -> 717.5463179 | K141: =IF($B141="","",IF(Sheet1!$Z$1=4,'Tabla de Pagos Crecientes'!K81,'Tabla Fijos'!L86)) -> 490 | L141: =IF($B141="","",IF(Sheet1!$Z$1=4,'Tabla de Pagos Crecientes'!L81,'Tabla Fijos'!M86)) -> 360 | M141: =IF($B141="","",IF(Sheet1!$Z$1=4,'Tabla de Pagos Crecientes'!M81,'Tabla Fijos'!N86)) -> 0 | O141: =IF($B141="","",IF(Sheet1!$Z$1=4,'Tabla de Pagos Crecientes'!O81,'Tabla Fijos'!Q86)) -> 0 | P141: =IF(B141="","",G141+H141+I141+J141+K141+L141-M141-'Tabla Fijos'!P86) -> 22806.47499 | Q141: 1189888.877 | R141: 1
B142: 76 | C142: =IF($B142="","",'Fecha Pago'!K79) -> 2032-05-03 | D142: =IF($B$67="","",'Fecha Pago'!L79) -> 30.4 | E142: =IF(B142="","",IF(Sheet1!$Z$1=4,'Tabla de Pagos Crecientes'!E82,$F$62)) -> 0.1299 | F142: =IF($B142="","",IF(Sheet1!$Z$1=4,'Tabla de Pagos Crecientes'!F82,'Tabla Fijos'!F87)) -> 1189888.877 | G142: =IF($B142="","",IF(Sheet1!$Z$1=4,'Tabla de Pagos Crecientes'!G82,'Tabla Fijos'!G87)) -> 6087.706357 | H142: =IF($B142="","",IF(Sheet1!$Z$1=4,'Tabla de Pagos Crecientes'!H82,'Tabla Fijos'!H87)) -> 13052.28772 | I142: =IF($B142=0,0,IF(B142="","",VLOOKUP($B142,'Tabla Fijos'!$B$12:$S$311,8,0))) -> 2088.366035 | J142: =IF($B142="","",IF(Sheet1!$Z$1=4,'Tabla de Pagos Crecientes'!J82,'Tabla Fijos'!K87)) -> 713.9333262 | K142: =IF($B142="","",IF(Sheet1!$Z$1=4,'Tabla de Pagos Crecientes'!K82,'Tabla Fijos'!L87)) -> 490 | L142: =IF($B142="","",IF(Sheet1!$Z$1=4,'Tabla de Pagos Crecientes'!L82,'Tabla Fijos'!M87)) -> 360 | M142: =IF($B142="","",IF(Sheet1!$Z$1=4,'Tabla de Pagos Crecientes'!M82,'Tabla Fijos'!N87)) -> 0 | O142: =IF($B142="","",IF(Sheet1!$Z$1=4,'Tabla de Pagos Crecientes'!O82,'Tabla Fijos'!Q87)) -> 0 | P142: =IF(B142="","",G142+H142+I142+J142+K142+L142-M142-'Tabla Fijos'!P87) -> 22792.29344 | Q142: 1183801.171 | R142: 1
B143: 77 | C143: =IF($B143="","",'Fecha Pago'!K80) -> 2032-06-03 | D143: =IF($B$67="","",'Fecha Pago'!L80) -> 30.4 | E143: =IF(B143="","",IF(Sheet1!$Z$1=4,'Tabla de Pagos Crecientes'!E83,$F$62)) -> 0.1299 | F143: =IF($B143="","",IF(Sheet1!$Z$1=4,'Tabla de Pagos Crecientes'!F83,'Tabla Fijos'!F88)) -> 1183801.171 | G143: =IF($B143="","",IF(Sheet1!$Z$1=4,'Tabla de Pagos Crecientes'!G83,'Tabla Fijos'!G88)) -> 6154.484437 | H143: =IF($B143="","",IF(Sheet1!$Z$1=4,'Tabla de Pagos Crecientes'!H83,'Tabla Fijos'!H88)) -> 12985.50964 | I143: =IF($B143=0,0,IF(B143="","",VLOOKUP($B143,'Tabla Fijos'!$B$12:$S$311,8,0))) -> 2077.681542 | J143: =IF($B143="","",IF(Sheet1!$Z$1=4,'Tabla de Pagos Crecientes'!J83,'Tabla Fijos'!K88)) -> 710.2807024 | K143: =IF($B143="","",IF(Sheet1!$Z$1=4,'Tabla de Pagos Crecientes'!K83,'Tabla Fijos'!L88)) -> 490 | L143: =IF($B143="","",IF(Sheet1!$Z$1=4,'Tabla de Pagos Crecientes'!L83,'Tabla Fijos'!M88)) -> 360 | M143: =IF($B143="","",IF(Sheet1!$Z$1=4,'Tabla de Pagos Crecientes'!M83,'Tabla Fijos'!N88)) -> 0 | O143: =IF($B143="","",IF(Sheet1!$Z$1=4,'Tabla de Pagos Crecientes'!O83,'Tabla Fijos'!Q88)) -> 0 | P143: =IF(B143="","",G143+H143+I143+J143+K143+L143-M143-'Tabla Fijos'!P88) -> 22777.95632 | Q143: 1177646.686 | R143: 1
B144: 78 | C144: =IF($B144="","",'Fecha Pago'!K81) -> 2032-07-03 | D144: =IF($B$67="","",'Fecha Pago'!L81) -> 30.4 | E144: =IF(B144="","",IF(Sheet1!$Z$1=4,'Tabla de Pagos Crecientes'!E84,$F$62)) -> 0.1299 | F144: =IF($B144="","",IF(Sheet1!$Z$1=4,'Tabla de Pagos Crecientes'!F84,'Tabla Fijos'!F89)) -> 1177646.686 | G144: =IF($B144="","",IF(Sheet1!$Z$1=4,'Tabla de Pagos Crecientes'!G84,'Tabla Fijos'!G89)) -> 6221.995028 | H144: =IF($B144="","",IF(Sheet1!$Z$1=4,'Tabla de Pagos Crecientes'!H84,'Tabla Fijos'!H89)) -> 12917.99905 | I144: =IF($B144=0,0,IF(B144="","",VLOOKUP($B144,'Tabla Fijos'!$B$12:$S$311,8,0))) -> 2066.879848 | J144: =IF($B144="","",IF(Sheet1!$Z$1=4,'Tabla de Pagos Crecientes'!J84,'Tabla Fijos'!K89)) -> 706.5880117 | K144: =IF($B144="","",IF(Sheet1!$Z$1=4,'Tabla de Pagos Crecientes'!K84,'Tabla Fijos'!L89)) -> 490 | L144: =IF($B144="","",IF(Sheet1!$Z$1=4,'Tabla de Pagos Crecientes'!L84,'Tabla Fijos'!M89)) -> 360 | M144: =IF($B144="","",IF(Sheet1!$Z$1=4,'Tabla de Pagos Crecientes'!M84,'Tabla Fijos'!N89)) -> 0 | O144: =IF($B144="","",IF(Sheet1!$Z$1=4,'Tabla de Pagos Crecientes'!O84,'Tabla Fijos'!Q89)) -> 0 | P144: =IF(B144="","",G144+H144+I144+J144+K144+L144-M144-'Tabla Fijos'!P89) -> 22763.46194 | Q144: 1171424.691 | R144: 1
B145: 79 | C145: =IF($B145="","",'Fecha Pago'!K82) -> 2032-08-03 | D145: =IF($B$67="","",'Fecha Pago'!L82) -> 30.4 | E145: =IF(B145="","",IF(Sheet1!$Z$1=4,'Tabla de Pagos Crecientes'!E85,$F$62)) -> 0.1299 | F145: =IF($B145="","",IF(Sheet1!$Z$1=4,'Tabla de Pagos Crecientes'!F85,'Tabla Fijos'!F90)) -> 1171424.691 | G145: =IF($B145="","",IF(Sheet1!$Z$1=4,'Tabla de Pagos Crecientes'!G85,'Tabla Fijos'!G90)) -> 6290.246166 | H145: =IF($B145="","",IF(Sheet1!$Z$1=4,'Tabla de Pagos Crecientes'!H85,'Tabla Fijos'!H90)) -> 12849.74791 | I145: =IF($B145=0,0,IF(B145="","",VLOOKUP($B145,'Tabla Fijos'!$B$12:$S$311,8,0))) -> 2055.959666 | J145: =IF($B145="","",IF(Sheet1!$Z$1=4,'Tabla de Pagos Crecientes'!J85,'Tabla Fijos'!K90)) -> 702.8548147 | K145: =IF($B145="","",IF(Sheet1!$Z$1=4,'Tabla de Pagos Crecientes'!K85,'Tabla Fijos'!L90)) -> 490 | L145: =IF($B145="","",IF(Sheet1!$Z$1=4,'Tabla de Pagos Crecientes'!L85,'Tabla Fijos'!M90)) -> 360 | M145: =IF($B145="","",IF(Sheet1!$Z$1=4,'Tabla de Pagos Crecientes'!M85,'Tabla Fijos'!N90)) -> 0 | O145: =IF($B145="","",IF(Sheet1!$Z$1=4,'Tabla de Pagos Crecientes'!O85,'Tabla Fijos'!Q90)) -> 0 | P145: =IF(B145="","",G145+H145+I145+J145+K145+L145-M145-'Tabla Fijos'!P90) -> 22748.80856 | Q145: 1165134.445 | R145: 1
B146: 80 | C146: =IF($B146="","",'Fecha Pago'!K83) -> 2032-09-03 | D146: =IF($B$67="","",'Fecha Pago'!L83) -> 30.4 | E146: =IF(B146="","",IF(Sheet1!$Z$1=4,'Tabla de Pagos Crecientes'!E86,$F$62)) -> 0.1299 | F146: =IF($B146="","",IF(Sheet1!$Z$1=4,'Tabla de Pagos Crecientes'!F86,'Tabla Fijos'!F91)) -> 1165134.445 | G146: =IF($B146="","",IF(Sheet1!$Z$1=4,'Tabla de Pagos Crecientes'!G86,'Tabla Fijos'!G91)) -> 6359.245973 | H146: =IF($B146="","",IF(Sheet1!$Z$1=4,'Tabla de Pagos Crecientes'!H86,'Tabla Fijos'!H91)) -> 12780.7481 | I146: =IF($B146=0,0,IF(B146="","",VLOOKUP($B146,'Tabla Fijos'!$B$12:$S$311,8,0))) -> 2044.919697 | J146: =IF($B146="","",IF(Sheet1!$Z$1=4,'Tabla de Pagos Crecientes'!J86,'Tabla Fijos'!K91)) -> 699.080667 | K146: =IF($B146="","",IF(Sheet1!$Z$1=4,'Tabla de Pagos Crecientes'!K86,'Tabla Fijos'!L91)) -> 490 | L146: =IF($B146="","",IF(Sheet1!$Z$1=4,'Tabla de Pagos Crecientes'!L86,'Tabla Fijos'!M91)) -> 360 | M146: =IF($B146="","",IF(Sheet1!$Z$1=4,'Tabla de Pagos Crecientes'!M86,'Tabla Fijos'!N91)) -> 0 | O146: =IF($B146="","",IF(Sheet1!$Z$1=4,'Tabla de Pagos Crecientes'!O86,'Tabla Fijos'!Q91)) -> 0 | P146: =IF(B146="","",G146+H146+I146+J146+K146+L146-M146-'Tabla Fijos'!P91) -> 22733.99444 | Q146: 1158775.199 | R146: 1
B147: 81 | C147: =IF($B147="","",'Fecha Pago'!K84) -> 2032-10-03 | D147: =IF($B$67="","",'Fecha Pago'!L84) -> 30.4 | E147: =IF(B147="","",IF(Sheet1!$Z$1=4,'Tabla de Pagos Crecientes'!E87,$F$62)) -> 0.1299 | F147: =IF($B147="","",IF(Sheet1!$Z$1=4,'Tabla de Pagos Crecientes'!F87,'Tabla Fijos'!F92)) -> 1158775.199 | G147: =IF($B147="","",IF(Sheet1!$Z$1=4,'Tabla de Pagos Crecientes'!G87,'Tabla Fijos'!G92)) -> 6429.002661 | H147: =IF($B147="","",IF(Sheet1!$Z$1=4,'Tabla de Pagos Crecientes'!H87,'Tabla Fijos'!H92)) -> 12710.99142 | I147: =IF($B147=0,0,IF(B147="","",VLOOKUP($B147,'Tabla Fijos'!$B$12:$S$311,8,0))) -> 2033.758627 | J147: =IF($B147="","",IF(Sheet1!$Z$1=4,'Tabla de Pagos Crecientes'!J87,'Tabla Fijos'!K92)) -> 695.2651194 | K147: =IF($B147="","",IF(Sheet1!$Z$1=4,'Tabla de Pagos Crecientes'!K87,'Tabla Fijos'!L92)) -> 490 | L147: =IF($B147="","",IF(Sheet1!$Z$1=4,'Tabla de Pagos Crecientes'!L87,'Tabla Fijos'!M92)) -> 360 | M147: =IF($B147="","",IF(Sheet1!$Z$1=4,'Tabla de Pagos Crecientes'!M87,'Tabla Fijos'!N92)) -> 0 | O147: =IF($B147="","",IF(Sheet1!$Z$1=4,'Tabla de Pagos Crecientes'!O87,'Tabla Fijos'!Q92)) -> 0 | P147: =IF(B147="","",G147+H147+I147+J147+K147+L147-M147-'Tabla Fijos'!P92) -> 22719.01782 | Q147: 1152346.196 | R147: 1
B148: 82 | C148: =IF($B148="","",'Fecha Pago'!K85) -> 2032-11-03 | D148: =IF($B$67="","",'Fecha Pago'!L85) -> 30.4 | E148: =IF(B148="","",IF(Sheet1!$Z$1=4,'Tabla de Pagos Crecientes'!E88,$F$62)) -> 0.1299 | F148: =IF($B148="","",IF(Sheet1!$Z$1=4,'Tabla de Pagos Crecientes'!F88,'Tabla Fijos'!F93)) -> 1152346.196 | G148: =IF($B148="","",IF(Sheet1!$Z$1=4,'Tabla de Pagos Crecientes'!G88,'Tabla Fijos'!G93)) -> 6499.524535 | H148: =IF($B148="","",IF(Sheet1!$Z$1=4,'Tabla de Pagos Crecientes'!H88,'Tabla Fijos'!H93)) -> 12640.46954 | I148: =IF($B148=0,0,IF(B148="","",VLOOKUP($B148,'Tabla Fijos'!$B$12:$S$311,8,0))) -> 2022.475127 | J148: =IF($B148="","",IF(Sheet1!$Z$1=4,'Tabla de Pagos Crecientes'!J88,'Tabla Fijos'!K93)) -> 691.4077178 | K148: =IF($B148="","",IF(Sheet1!$Z$1=4,'Tabla de Pagos Crecientes'!K88,'Tabla Fijos'!L93)) -> 490 | L148: =IF($B148="","",IF(Sheet1!$Z$1=4,'Tabla de Pagos Crecientes'!L88,'Tabla Fijos'!M93)) -> 360 | M148: =IF($B148="","",IF(Sheet1!$Z$1=4,'Tabla de Pagos Crecientes'!M88,'Tabla Fijos'!N93)) -> 0 | O148: =IF($B148="","",IF(Sheet1!$Z$1=4,'Tabla de Pagos Crecientes'!O88,'Tabla Fijos'!Q93)) -> 0 | P148: =IF(B148="","",G148+H148+I148+J148+K148+L148-M148-'Tabla Fijos'!P93) -> 22703.87692 | Q148: 1145846.672 | R148: 1
B149: 83 | C149: =IF($B149="","",'Fecha Pago'!K86) -> 2032-12-03 | D149: =IF($B$67="","",'Fecha Pago'!L86) -> 30.4 | E149: =IF(B149="","",IF(Sheet1!$Z$1=4,'Tabla de Pagos Crecientes'!E89,$F$62)) -> 0.1299 | F149: =IF($B149="","",IF(Sheet1!$Z$1=4,'Tabla de Pagos Crecientes'!F89,'Tabla Fijos'!F94)) -> 1145846.672 | G149: =IF($B149="","",IF(Sheet1!$Z$1=4,'Tabla de Pagos Crecientes'!G89,'Tabla Fijos'!G94)) -> 6570.819986 | H149: =IF($B149="","",IF(Sheet1!$Z$1=4,'Tabla de Pagos Crecientes'!H89,'Tabla Fijos'!H94)) -> 12569.17409 | I149: =IF($B149=0,0,IF(B149="","",VLOOKUP($B149,'Tabla Fijos'!$B$12:$S$311,8,0))) -> 2011.067855 | J149: =IF($B149="","",IF(Sheet1!$Z$1=4,'Tabla de Pagos Crecientes'!J89,'Tabla Fijos'!K94)) -> 687.5080031 | K149: =IF($B149="","",IF(Sheet1!$Z$1=4,'Tabla de Pagos Crecientes'!K89,'Tabla Fijos'!L94)) -> 490 | L149: =IF($B149="","",IF(Sheet1!$Z$1=4,'Tabla de Pagos Crecientes'!L89,'Tabla Fijos'!M94)) -> 360 | M149: =IF($B149="","",IF(Sheet1!$Z$1=4,'Tabla de Pagos Crecientes'!M89,'Tabla Fijos'!N94)) -> 0 | O149: =IF($B149="","",IF(Sheet1!$Z$1=4,'Tabla de Pagos Crecientes'!O89,'Tabla Fijos'!Q94)) -> 0 | P149: =IF(B149="","",G149+H149+I149+J149+K149+L149-M149-'Tabla Fijos'!P94) -> 22688.56994 | Q149: 1139275.852 | R149: 1
B150: 84 | C150: =IF($B150="","",'Fecha Pago'!K87) -> 2033-01-03 | D150: =IF($B$67="","",'Fecha Pago'!L87) -> 30.4 | E150: =IF(B150="","",IF(Sheet1!$Z$1=4,'Tabla de Pagos Crecientes'!E90,$F$62)) -> 0.1299 | F150: =IF($B150="","",IF(Sheet1!$Z$1=4,'Tabla de Pagos Crecientes'!F90,'Tabla Fijos'!F95)) -> 1139275.852 | G150: =IF($B150="","",IF(Sheet1!$Z$1=4,'Tabla de Pagos Crecientes'!G90,'Tabla Fijos'!G95)) -> 6642.8975 | H150: =IF($B150="","",IF(Sheet1!$Z$1=4,'Tabla de Pagos Crecientes'!H90,'Tabla Fijos'!H95)) -> 12497.09658 | I150: =IF($B150=0,0,IF(B150="","",VLOOKUP($B150,'Tabla Fijos'!$B$12:$S$311,8,0))) -> 1999.535452 | J150: =IF($B150="","",IF(Sheet1!$Z$1=4,'Tabla de Pagos Crecientes'!J90,'Tabla Fijos'!K95)) -> 683.5655111 | K150: =IF($B150="","",IF(Sheet1!$Z$1=4,'Tabla de Pagos Crecientes'!K90,'Tabla Fijos'!L95)) -> 490 | L150: =IF($B150="","",IF(Sheet1!$Z$1=4,'Tabla de Pagos Crecientes'!L90,'Tabla Fijos'!M95)) -> 360 | M150: =IF($B150="","",IF(Sheet1!$Z$1=4,'Tabla de Pagos Crecientes'!M90,'Tabla Fijos'!N95)) -> 0 | O150: =IF($B150="","",IF(Sheet1!$Z$1=4,'Tabla de Pagos Crecientes'!O90,'Tabla Fijos'!Q95)) -> 0 | P150: =IF(B150="","",G150+H150+I150+J150+K150+L150-M150-'Tabla Fijos'!P95) -> 22673.09504 | Q150: 1132632.954 | R150: 1
B151: 85 | C151: =IF($B151="","",'Fecha Pago'!K88) -> 2033-02-03 | D151: =IF($B$67="","",'Fecha Pago'!L88) -> 30.4 | E151: =IF(B151="","",IF(Sheet1!$Z$1=4,'Tabla de Pagos Crecientes'!E91,$F$62)) -> 0.1299 | F151: =IF($B151="","",IF(Sheet1!$Z$1=4,'Tabla de Pagos Crecientes'!F91,'Tabla Fijos'!F96)) -> 1132632.954 | G151: =IF($B151="","",IF(Sheet1!$Z$1=4,'Tabla de Pagos Crecientes'!G91,'Tabla Fijos'!G96)) -> 6715.765657 | H151: =IF($B151="","",IF(Sheet1!$Z$1=4,'Tabla de Pagos Crecientes'!H91,'Tabla Fijos'!H96)) -> 12424.22842 | I151: =IF($B151=0,0,IF(B151="","",VLOOKUP($B151,'Tabla Fijos'!$B$12:$S$311,8,0))) -> 1987.876547 | J151: =IF($B151="","",IF(Sheet1!$Z$1=4,'Tabla de Pagos Crecientes'!J91,'Tabla Fijos'!K96)) -> 679.5797726 | K151: =IF($B151="","",IF(Sheet1!$Z$1=4,'Tabla de Pagos Crecientes'!K91,'Tabla Fijos'!L96)) -> 490 | L151: =IF($B151="","",IF(Sheet1!$Z$1=4,'Tabla de Pagos Crecientes'!L91,'Tabla Fijos'!M96)) -> 360 | M151: =IF($B151="","",IF(Sheet1!$Z$1=4,'Tabla de Pagos Crecientes'!M91,'Tabla Fijos'!N96)) -> 0 | O151: =IF($B151="","",IF(Sheet1!$Z$1=4,'Tabla de Pagos Crecientes'!O91,'Tabla Fijos'!Q96)) -> 0 | P151: =IF(B151="","",G151+H151+I151+J151+K151+L151-M151-'Tabla Fijos'!P96) -> 22657.4504 | Q151: 1125917.189 | R151: 1
B152: 86 | C152: =IF($B152="","",'Fecha Pago'!K89) -> 2033-03-03 | D152: =IF($B$67="","",'Fecha Pago'!L89) -> 30.4 | E152: =IF(B152="","",IF(Sheet1!$Z$1=4,'Tabla de Pagos Crecientes'!E92,$F$62)) -> 0.1299 | F152: =IF($B152="","",IF(Sheet1!$Z$1=4,'Tabla de Pagos Crecientes'!F92,'Tabla Fijos'!F97)) -> 1125917.189 | G152: =IF($B152="","",IF(Sheet1!$Z$1=4,'Tabla de Pagos Crecientes'!G92,'Tabla Fijos'!G97)) -> 6789.43313 | H152: =IF($B152="","",IF(Sheet1!$Z$1=4,'Tabla de Pagos Crecientes'!H92,'Tabla Fijos'!H97)) -> 12350.56095 | I152: =IF($B152=0,0,IF(B152="","",VLOOKUP($B152,'Tabla Fijos'!$B$12:$S$311,8,0))) -> 1976.089752 | J152: =IF($B152="","",IF(Sheet1!$Z$1=4,'Tabla de Pagos Crecientes'!J92,'Tabla Fijos'!K97)) -> 675.5503132 | K152: =IF($B152="","",IF(Sheet1!$Z$1=4,'Tabla de Pagos Crecientes'!K92,'Tabla Fijos'!L97)) -> 490 | L152: =IF($B152="","",IF(Sheet1!$Z$1=4,'Tabla de Pagos Crecientes'!L92,'Tabla Fijos'!M97)) -> 360 | M152: =IF($B152="","",IF(Sheet1!$Z$1=4,'Tabla de Pagos Crecientes'!M92,'Tabla Fijos'!N97)) -> 0 | O152: =IF($B152="","",IF(Sheet1!$Z$1=4,'Tabla de Pagos Crecientes'!O92,'Tabla Fijos'!Q97)) -> 0 | P152: =IF(B152="","",G152+H152+I152+J152+K152+L152-M152-'Tabla Fijos'!P97) -> 22641.63414 | Q152: 1119127.756 | R152: 1
B153: 87 | C153: =IF($B153="","",'Fecha Pago'!K90) -> 2033-04-03 | D153: =IF($B$67="","",'Fecha Pago'!L90) -> 30.4 | E153: =IF(B153="","",IF(Sheet1!$Z$1=4,'Tabla de Pagos Crecientes'!E93,$F$62)) -> 0.1299 | F153: =IF($B153="","",IF(Sheet1!$Z$1=4,'Tabla de Pagos Crecientes'!F93,'Tabla Fijos'!F98)) -> 1119127.756 | G153: =IF($B153="","",IF(Sheet1!$Z$1=4,'Tabla de Pagos Crecientes'!G93,'Tabla Fijos'!G98)) -> 6863.908685 | H153: =IF($B153="","",IF(Sheet1!$Z$1=4,'Tabla de Pagos Crecientes'!H93,'Tabla Fijos'!H98)) -> 12276.08539 | I153: =IF($B153=0,0,IF(B153="","",VLOOKUP($B153,'Tabla Fijos'!$B$12:$S$311,8,0))) -> 1964.173663 | J153: =IF($B153="","",IF(Sheet1!$Z$1=4,'Tabla de Pagos Crecientes'!J93,'Tabla Fijos'!K98)) -> 671.4766533 | K153: =IF($B153="","",IF(Sheet1!$Z$1=4,'Tabla de Pagos Crecientes'!K93,'Tabla Fijos'!L98)) -> 490 | L153: =IF($B153="","",IF(Sheet1!$Z$1=4,'Tabla de Pagos Crecientes'!L93,'Tabla Fijos'!M98)) -> 360 | M153: =IF($B153="","",IF(Sheet1!$Z$1=4,'Tabla de Pagos Crecientes'!M93,'Tabla Fijos'!N98)) -> 0 | O153: =IF($B153="","",IF(Sheet1!$Z$1=4,'Tabla de Pagos Crecientes'!O93,'Tabla Fijos'!Q98)) -> 0 | P153: =IF(B153="","",G153+H153+I153+J153+K153+L153-M153-'Tabla Fijos'!P98) -> 22625.64439 | Q153: 1112263.847 | R153: 1
B154: 88 | C154: =IF($B154="","",'Fecha Pago'!K91) -> 2033-05-03 | D154: =IF($B$67="","",'Fecha Pago'!L91) -> 30.4 | E154: =IF(B154="","",IF(Sheet1!$Z$1=4,'Tabla de Pagos Crecientes'!E94,$F$62)) -> 0.1299 | F154: =IF($B154="","",IF(Sheet1!$Z$1=4,'Tabla de Pagos Crecientes'!F94,'Tabla Fijos'!F99)) -> 1112263.847 | G154: =IF($B154="","",IF(Sheet1!$Z$1=4,'Tabla de Pagos Crecientes'!G94,'Tabla Fijos'!G99)) -> 6939.201187 | H154: =IF($B154="","",IF(Sheet1!$Z$1=4,'Tabla de Pagos Crecientes'!H94,'Tabla Fijos'!H99)) -> 12200.79289 | I154: =IF($B154=0,0,IF(B154="","",VLOOKUP($B154,'Tabla Fijos'!$B$12:$S$311,8,0))) -> 1952.126862 | J154: =IF($B154="","",IF(Sheet1!$Z$1=4,'Tabla de Pagos Crecientes'!J94,'Tabla Fijos'!K99)) -> 667.3583081 | K154: =IF($B154="","",IF(Sheet1!$Z$1=4,'Tabla de Pagos Crecientes'!K94,'Tabla Fijos'!L99)) -> 490 | L154: =IF($B154="","",IF(Sheet1!$Z$1=4,'Tabla de Pagos Crecientes'!L94,'Tabla Fijos'!M99)) -> 360 | M154: =IF($B154="","",IF(Sheet1!$Z$1=4,'Tabla de Pagos Crecientes'!M94,'Tabla Fijos'!N99)) -> 0 | O154: =IF($B154="","",IF(Sheet1!$Z$1=4,'Tabla de Pagos Crecientes'!O94,'Tabla Fijos'!Q99)) -> 0 | P154: =IF(B154="","",G154+H154+I154+J154+K154+L154-M154-'Tabla Fijos'!P99) -> 22609.47925 | Q154: 1105324.646 | R154: 1
B155: 89 | C155: =IF($B155="","",'Fecha Pago'!K92) -> 2033-06-03 | D155: =IF($B$67="","",'Fecha Pago'!L92) -> 30.4 | E155: =IF(B155="","",IF(Sheet1!$Z$1=4,'Tabla de Pagos Crecientes'!E95,$F$62)) -> 0.1299 | F155: =IF($B155="","",IF(Sheet1!$Z$1=4,'Tabla de Pagos Crecientes'!F95,'Tabla Fijos'!F100)) -> 1105324.646 | G155: =IF($B155="","",IF(Sheet1!$Z$1=4,'Tabla de Pagos Crecientes'!G95,'Tabla Fijos'!G100)) -> 7015.319598 | H155: =IF($B155="","",IF(Sheet1!$Z$1=4,'Tabla de Pagos Crecientes'!H95,'Tabla Fijos'!H100)) -> 12124.67448 | I155: =IF($B155=0,0,IF(B155="","",VLOOKUP($B155,'Tabla Fijos'!$B$12:$S$311,8,0))) -> 1939.947917 | J155: =IF($B155="","",IF(Sheet1!$Z$1=4,'Tabla de Pagos Crecientes'!J95,'Tabla Fijos'!K100)) -> 663.1947874 | K155: =IF($B155="","",IF(Sheet1!$Z$1=4,'Tabla de Pagos Crecientes'!K95,'Tabla Fijos'!L100)) -> 490 | L155: =IF($B155="","",IF(Sheet1!$Z$1=4,'Tabla de Pagos Crecientes'!L95,'Tabla Fijos'!M100)) -> 360 | M155: =IF($B155="","",IF(Sheet1!$Z$1=4,'Tabla de Pagos Crecientes'!M95,'Tabla Fijos'!N100)) -> 0 | O155: =IF($B155="","",IF(Sheet1!$Z$1=4,'Tabla de Pagos Crecientes'!O95,'Tabla Fijos'!Q100)) -> 0 | P155: =IF(B155="","",G155+H155+I155+J155+K155+L155-M155-'Tabla Fijos'!P100) -> 22593.13678 | Q155: 1098309.326 | R155: 1
B156: 90 | C156: =IF($B156="","",'Fecha Pago'!K93) -> 2033-07-03 | D156: =IF($B$67="","",'Fecha Pago'!L93) -> 30.4 | E156: =IF(B156="","",IF(Sheet1!$Z$1=4,'Tabla de Pagos Crecientes'!E96,$F$62)) -> 0.1299 | F156: =IF($B156="","",IF(Sheet1!$Z$1=4,'Tabla de Pagos Crecientes'!F96,'Tabla Fijos'!F101)) -> 1098309.326 | G156: =IF($B156="","",IF(Sheet1!$Z$1=4,'Tabla de Pagos Crecientes'!G96,'Tabla Fijos'!G101)) -> 7092.272977 | H156: =IF($B156="","",IF(Sheet1!$Z$1=4,'Tabla de Pagos Crecientes'!H96,'Tabla Fijos'!H101)) -> 12047.7211 | I156: =IF($B156=0,0,IF(B156="","",VLOOKUP($B156,'Tabla Fijos'!$B$12:$S$311,8,0))) -> 1927.635376 | J156: =IF($B156="","",IF(Sheet1!$Z$1=4,'Tabla de Pagos Crecientes'!J96,'Tabla Fijos'!K101)) -> 658.9855956 | K156: =IF($B156="","",IF(Sheet1!$Z$1=4,'Tabla de Pagos Crecientes'!K96,'Tabla Fijos'!L101)) -> 490 | L156: =IF($B156="","",IF(Sheet1!$Z$1=4,'Tabla de Pagos Crecientes'!L96,'Tabla Fijos'!M101)) -> 360 | M156: =IF($B156="","",IF(Sheet1!$Z$1=4,'Tabla de Pagos Crecientes'!M96,'Tabla Fijos'!N101)) -> 0 | O156: =IF($B156="","",IF(Sheet1!$Z$1=4,'Tabla de Pagos Crecientes'!O96,'Tabla Fijos'!Q101)) -> 0 | P156: =IF(B156="","",G156+H156+I156+J156+K156+L156-M156-'Tabla Fijos'!P101) -> 22576.61505 | Q156: 1091217.053 | R156: 1
B157: 91 | C157: =IF($B157="","",'Fecha Pago'!K94) -> 2033-08-03 | D157: =IF($B$67="","",'Fecha Pago'!L94) -> 30.4 | E157: =IF(B157="","",IF(Sheet1!$Z$1=4,'Tabla de Pagos Crecientes'!E97,$F$62)) -> 0.1299 | F157: =IF($B157="","",IF(Sheet1!$Z$1=4,'Tabla de Pagos Crecientes'!F97,'Tabla Fijos'!F102)) -> 1091217.053 | G157: =IF($B157="","",IF(Sheet1!$Z$1=4,'Tabla de Pagos Crecientes'!G97,'Tabla Fijos'!G102)) -> 7170.070483 | H157: =IF($B157="","",IF(Sheet1!$Z$1=4,'Tabla de Pagos Crecientes'!H97,'Tabla Fijos'!H102)) -> 11969.92359 | I157: =IF($B157=0,0,IF(B157="","",VLOOKUP($B157,'Tabla Fijos'!$B$12:$S$311,8,0))) -> 1915.187775 | J157: =IF($B157="","",IF(Sheet1!$Z$1=4,'Tabla de Pagos Crecientes'!J97,'Tabla Fijos'!K102)) -> 654.7302318 | K157: =IF($B157="","",IF(Sheet1!$Z$1=4,'Tabla de Pagos Crecientes'!K97,'Tabla Fijos'!L102)) -> 490 | L157: =IF($B157="","",IF(Sheet1!$Z$1=4,'Tabla de Pagos Crecientes'!L97,'Tabla Fijos'!M102)) -> 360 | M157: =IF($B157="","",IF(Sheet1!$Z$1=4,'Tabla de Pagos Crecientes'!M97,'Tabla Fijos'!N102)) -> 0 | O157: =IF($B157="","",IF(Sheet1!$Z$1=4,'Tabla de Pagos Crecientes'!O97,'Tabla Fijos'!Q102)) -> 0 | P157: =IF(B157="","",G157+H157+I157+J157+K157+L157-M157-'Tabla Fijos'!P102) -> 22559.91208 | Q157: 1084046.983 | R157: 1
B158: 92 | C158: =IF($B158="","",'Fecha Pago'!K95) -> 2033-09-03 | D158: =IF($B$67="","",'Fecha Pago'!L95) -> 30.4 | E158: =IF(B158="","",IF(Sheet1!$Z$1=4,'Tabla de Pagos Crecientes'!E98,$F$62)) -> 0.1299 | F158: =IF($B158="","",IF(Sheet1!$Z$1=4,'Tabla de Pagos Crecientes'!F98,'Tabla Fijos'!F103)) -> 1084046.983 | G158: =IF($B158="","",IF(Sheet1!$Z$1=4,'Tabla de Pagos Crecientes'!G98,'Tabla Fijos'!G103)) -> 7248.721377 | H158: =IF($B158="","",IF(Sheet1!$Z$1=4,'Tabla de Pagos Crecientes'!H98,'Tabla Fijos'!H103)) -> 11891.2727 | I158: =IF($B158=0,0,IF(B158="","",VLOOKUP($B158,'Tabla Fijos'!$B$12:$S$311,8,0))) -> 1902.603632 | J158: =IF($B158="","",IF(Sheet1!$Z$1=4,'Tabla de Pagos Crecientes'!J98,'Tabla Fijos'!K103)) -> 650.4281896 | K158: =IF($B158="","",IF(Sheet1!$Z$1=4,'Tabla de Pagos Crecientes'!K98,'Tabla Fijos'!L103)) -> 490 | L158: =IF($B158="","",IF(Sheet1!$Z$1=4,'Tabla de Pagos Crecientes'!L98,'Tabla Fijos'!M103)) -> 360 | M158: =IF($B158="","",IF(Sheet1!$Z$1=4,'Tabla de Pagos Crecientes'!M98,'Tabla Fijos'!N103)) -> 0 | O158: =IF($B158="","",IF(Sheet1!$Z$1=4,'Tabla de Pagos Crecientes'!O98,'Tabla Fijos'!Q103)) -> 0 | P158: =IF(B158="","",G158+H158+I158+J158+K158+L158-M158-'Tabla Fijos'!P103) -> 22543.0259 | Q158: 1076798.261 | R158: 1
B159: 93 | C159: =IF($B159="","",'Fecha Pago'!K96) -> 2033-10-03 | D159: =IF($B$67="","",'Fecha Pago'!L96) -> 30.4 | E159: =IF(B159="","",IF(Sheet1!$Z$1=4,'Tabla de Pagos Crecientes'!E99,$F$62)) -> 0.1299 | F159: =IF($B159="","",IF(Sheet1!$Z$1=4,'Tabla de Pagos Crecientes'!F99,'Tabla Fijos'!F104)) -> 1076798.261 | G159: =IF($B159="","",IF(Sheet1!$Z$1=4,'Tabla de Pagos Crecientes'!G99,'Tabla Fijos'!G104)) -> 7328.235018 | H159: =IF($B159="","",IF(Sheet1!$Z$1=4,'Tabla de Pagos Crecientes'!H99,'Tabla Fijos'!H104)) -> 11811.75906 | I159: =IF($B159=0,0,IF(B159="","",VLOOKUP($B159,'Tabla Fijos'!$B$12:$S$311,8,0))) -> 1889.88145 | J159: =IF($B159="","",IF(Sheet1!$Z$1=4,'Tabla de Pagos Crecientes'!J99,'Tabla Fijos'!K104)) -> 646.0789567 | K159: =IF($B159="","",IF(Sheet1!$Z$1=4,'Tabla de Pagos Crecientes'!K99,'Tabla Fijos'!L104)) -> 490 | L159: =IF($B159="","",IF(Sheet1!$Z$1=4,'Tabla de Pagos Crecientes'!L99,'Tabla Fijos'!M104)) -> 360 | M159: =IF($B159="","",IF(Sheet1!$Z$1=4,'Tabla de Pagos Crecientes'!M99,'Tabla Fijos'!N104)) -> 0 | O159: =IF($B159="","",IF(Sheet1!$Z$1=4,'Tabla de Pagos Crecientes'!O99,'Tabla Fijos'!Q104)) -> 0 | P159: =IF(B159="","",G159+H159+I159+J159+K159+L159-M159-'Tabla Fijos'!P104) -> 22525.95448 | Q159: 1069470.026 | R159: 1
B160: 94 | C160: =IF($B160="","",'Fecha Pago'!K97) -> 2033-11-03 | D160: =IF($B$67="","",'Fecha Pago'!L97) -> 30.4 | E160: =IF(B160="","",IF(Sheet1!$Z$1=4,'Tabla de Pagos Crecientes'!E100,$F$62)) -> 0.1299 | F160: =IF($B160="","",IF(Sheet1!$Z$1=4,'Tabla de Pagos Crecientes'!F100,'Tabla Fijos'!F105)) -> 1069470.026 | G160: =IF($B160="","",IF(Sheet1!$Z$1=4,'Tabla de Pagos Crecientes'!G100,'Tabla Fijos'!G105)) -> 7408.62087 | H160: =IF($B160="","",IF(Sheet1!$Z$1=4,'Tabla de Pagos Crecientes'!H100,'Tabla Fijos'!H105)) -> 11731.37321 | I160: =IF($B160=0,0,IF(B160="","",VLOOKUP($B160,'Tabla Fijos'!$B$12:$S$311,8,0))) -> 1877.019713 | J160: =IF($B160="","",IF(Sheet1!$Z$1=4,'Tabla de Pagos Crecientes'!J100,'Tabla Fijos'!K105)) -> 641.6820157 | K160: =IF($B160="","",IF(Sheet1!$Z$1=4,'Tabla de Pagos Crecientes'!K100,'Tabla Fijos'!L105)) -> 490 | L160: =IF($B160="","",IF(Sheet1!$Z$1=4,'Tabla de Pagos Crecientes'!L100,'Tabla Fijos'!M105)) -> 360 | M160: =IF($B160="","",IF(Sheet1!$Z$1=4,'Tabla de Pagos Crecientes'!M100,'Tabla Fijos'!N105)) -> 0 | O160: =IF($B160="","",IF(Sheet1!$Z$1=4,'Tabla de Pagos Crecientes'!O100,'Tabla Fijos'!Q105)) -> 0 | P160: =IF(B160="","",G160+H160+I160+J160+K160+L160-M160-'Tabla Fijos'!P105) -> 22508.69581 | Q160: 1062061.405 | R160: 1
B161: 95 | C161: =IF($B161="","",'Fecha Pago'!K98) -> 2033-12-03 | D161: =IF($B$67="","",'Fecha Pago'!L98) -> 30.4 | E161: =IF(B161="","",IF(Sheet1!$Z$1=4,'Tabla de Pagos Crecientes'!E101,$F$62)) -> 0.1299 | F161: =IF($B161="","",IF(Sheet1!$Z$1=4,'Tabla de Pagos Crecientes'!F101,'Tabla Fijos'!F106)) -> 1062061.405 | G161: =IF($B161="","",IF(Sheet1!$Z$1=4,'Tabla de Pagos Crecientes'!G101,'Tabla Fijos'!G106)) -> 7489.888502 | H161: =IF($B161="","",IF(Sheet1!$Z$1=4,'Tabla de Pagos Crecientes'!H101,'Tabla Fijos'!H106)) -> 11650.10558 | I161: =IF($B161=0,0,IF(B161="","",VLOOKUP($B161,'Tabla Fijos'!$B$12:$S$311,8,0))) -> 1864.016892 | J161: =IF($B161="","",IF(Sheet1!$Z$1=4,'Tabla de Pagos Crecientes'!J101,'Tabla Fijos'!K106)) -> 637.2368432 | K161: =IF($B161="","",IF(Sheet1!$Z$1=4,'Tabla de Pagos Crecientes'!K101,'Tabla Fijos'!L106)) -> 490 | L161: =IF($B161="","",IF(Sheet1!$Z$1=4,'Tabla de Pagos Crecientes'!L101,'Tabla Fijos'!M106)) -> 360 | M161: =IF($B161="","",IF(Sheet1!$Z$1=4,'Tabla de Pagos Crecientes'!M101,'Tabla Fijos'!N106)) -> 0 | O161: =IF($B161="","",IF(Sheet1!$Z$1=4,'Tabla de Pagos Crecientes'!O101,'Tabla Fijos'!Q106)) -> 0 | P161: =IF(B161="","",G161+H161+I161+J161+K161+L161-M161-'Tabla Fijos'!P106) -> 22491.24781 | Q161: 1054571.517 | R161: 1
B162: 96 | C162: =IF($B162="","",'Fecha Pago'!K99) -> 2034-01-03 | D162: =IF($B$67="","",'Fecha Pago'!L99) -> 30.4 | E162: =IF(B162="","",IF(Sheet1!$Z$1=4,'Tabla de Pagos Crecientes'!E102,$F$62)) -> 0.1299 | F162: =IF($B162="","",IF(Sheet1!$Z$1=4,'Tabla de Pagos Crecientes'!F102,'Tabla Fijos'!F107)) -> 1054571.517 | G162: =IF($B162="","",IF(Sheet1!$Z$1=4,'Tabla de Pagos Crecientes'!G102,'Tabla Fijos'!G107)) -> 7572.047586 | H162: =IF($B162="","",IF(Sheet1!$Z$1=4,'Tabla de Pagos Crecientes'!H102,'Tabla Fijos'!H107)) -> 11567.94649 | I162: =IF($B162=0,0,IF(B162="","",VLOOKUP($B162,'Tabla Fijos'!$B$12:$S$311,8,0))) -> 1850.871439 | J162: =IF($B162="","",IF(Sheet1!$Z$1=4,'Tabla de Pagos Crecientes'!J102,'Tabla Fijos'!K107)) -> 632.7429101 | K162: =IF($B162="","",IF(Sheet1!$Z$1=4,'Tabla de Pagos Crecientes'!K102,'Tabla Fijos'!L107)) -> 490 | L162: =IF($B162="","",IF(Sheet1!$Z$1=4,'Tabla de Pagos Crecientes'!L102,'Tabla Fijos'!M107)) -> 360 | M162: =IF($B162="","",IF(Sheet1!$Z$1=4,'Tabla de Pagos Crecientes'!M102,'Tabla Fijos'!N107)) -> 0 | O162: =IF($B162="","",IF(Sheet1!$Z$1=4,'Tabla de Pagos Crecientes'!O102,'Tabla Fijos'!Q107)) -> 0 | P162: =IF(B162="","",G162+H162+I162+J162+K162+L162-M162-'Tabla Fijos'!P107) -> 22473.60843 | Q162: 1046999.469 | R162: 1
B163: 97 | C163: =IF($B163="","",'Fecha Pago'!K100) -> 2034-02-03 | D163: =IF($B$67="","",'Fecha Pago'!L100) -> 30.4 | E163: =IF(B163="","",IF(Sheet1!$Z$1=4,'Tabla de Pagos Crecientes'!E103,$F$62)) -> 0.1299 | F163: =IF($B163="","",IF(Sheet1!$Z$1=4,'Tabla de Pagos Crecientes'!F103,'Tabla Fijos'!F108)) -> 1046999.469 | G163: =IF($B163="","",IF(Sheet1!$Z$1=4,'Tabla de Pagos Crecientes'!G103,'Tabla Fijos'!G108)) -> 7655.1079 | H163: =IF($B163="","",IF(Sheet1!$Z$1=4,'Tabla de Pagos Crecientes'!H103,'Tabla Fijos'!H108)) -> 11484.88618 | I163: =IF($B163=0,0,IF(B163="","",VLOOKUP($B163,'Tabla Fijos'!$B$12:$S$311,8,0))) -> 1837.581788 | J163: =IF($B163="","",IF(Sheet1!$Z$1=4,'Tabla de Pagos Crecientes'!J103,'Tabla Fijos'!K108)) -> 628.1996815 | K163: =IF($B163="","",IF(Sheet1!$Z$1=4,'Tabla de Pagos Crecientes'!K103,'Tabla Fijos'!L108)) -> 490 | L163: =IF($B163="","",IF(Sheet1!$Z$1=4,'Tabla de Pagos Crecientes'!L103,'Tabla Fijos'!M108)) -> 360 | M163: =IF($B163="","",IF(Sheet1!$Z$1=4,'Tabla de Pagos Crecientes'!M103,'Tabla Fijos'!N108)) -> 0 | O163: =IF($B163="","",IF(Sheet1!$Z$1=4,'Tabla de Pagos Crecientes'!O103,'Tabla Fijos'!Q108)) -> 0 | P163: =IF(B163="","",G163+H163+I163+J163+K163+L163-M163-'Tabla Fijos'!P108) -> 22455.77555 | Q163: 1039344.361 | R163: 1
B164: 98 | C164: =IF($B164="","",'Fecha Pago'!K101) -> 2034-03-03 | D164: =IF($B$67="","",'Fecha Pago'!L101) -> 30.4 | E164: =IF(B164="","",IF(Sheet1!$Z$1=4,'Tabla de Pagos Crecientes'!E104,$F$62)) -> 0.1299 | F164: =IF($B164="","",IF(Sheet1!$Z$1=4,'Tabla de Pagos Crecientes'!F104,'Tabla Fijos'!F109)) -> 1039344.361 | G164: =IF($B164="","",IF(Sheet1!$Z$1=4,'Tabla de Pagos Crecientes'!G104,'Tabla Fijos'!G109)) -> 7739.07933 | H164: =IF($B164="","",IF(Sheet1!$Z$1=4,'Tabla de Pagos Crecientes'!H104,'Tabla Fijos'!H109)) -> 11400.91475 | I164: =IF($B164=0,0,IF(B164="","",VLOOKUP($B164,'Tabla Fijos'!$B$12:$S$311,8,0))) -> 1824.14636 | J164: =IF($B164="","",IF(Sheet1!$Z$1=4,'Tabla de Pagos Crecientes'!J104,'Tabla Fijos'!K109)) -> 623.6066168 | K164: =IF($B164="","",IF(Sheet1!$Z$1=4,'Tabla de Pagos Crecientes'!K104,'Tabla Fijos'!L109)) -> 490 | L164: =IF($B164="","",IF(Sheet1!$Z$1=4,'Tabla de Pagos Crecientes'!L104,'Tabla Fijos'!M109)) -> 360 | M164: =IF($B164="","",IF(Sheet1!$Z$1=4,'Tabla de Pagos Crecientes'!M104,'Tabla Fijos'!N109)) -> 0 | O164: =IF($B164="","",IF(Sheet1!$Z$1=4,'Tabla de Pagos Crecientes'!O104,'Tabla Fijos'!Q109)) -> 0 | P164: =IF(B164="","",G164+H164+I164+J164+K164+L164-M164-'Tabla Fijos'!P109) -> 22437.74705 | Q164: 1031605.282 | R164: 1
B165: 99 | C165: =IF($B165="","",'Fecha Pago'!K102) -> 2034-04-03 | D165: =IF($B$67="","",'Fecha Pago'!L102) -> 30.4 | E165: =IF(B165="","",IF(Sheet1!$Z$1=4,'Tabla de Pagos Crecientes'!E105,$F$62)) -> 0.1299 | F165: =IF($B165="","",IF(Sheet1!$Z$1=4,'Tabla de Pagos Crecientes'!F105,'Tabla Fijos'!F110)) -> 1031605.282 | G165: =IF($B165="","",IF(Sheet1!$Z$1=4,'Tabla de Pagos Crecientes'!G105,'Tabla Fijos'!G110)) -> 7823.971871 | H165: =IF($B165="","",IF(Sheet1!$Z$1=4,'Tabla de Pagos Crecientes'!H105,'Tabla Fijos'!H110)) -> 11316.02221 | I165: =IF($B165=0,0,IF(B165="","",VLOOKUP($B165,'Tabla Fijos'!$B$12:$S$311,8,0))) -> 1810.563553 | J165: =IF($B165="","",IF(Sheet1!$Z$1=4,'Tabla de Pagos Crecientes'!J105,'Tabla Fijos'!K110)) -> 618.9631692 | K165: =IF($B165="","",IF(Sheet1!$Z$1=4,'Tabla de Pagos Crecientes'!K105,'Tabla Fijos'!L110)) -> 490 | L165: =IF($B165="","",IF(Sheet1!$Z$1=4,'Tabla de Pagos Crecientes'!L105,'Tabla Fijos'!M110)) -> 360 | M165: =IF($B165="","",IF(Sheet1!$Z$1=4,'Tabla de Pagos Crecientes'!M105,'Tabla Fijos'!N110)) -> 0 | O165: =IF($B165="","",IF(Sheet1!$Z$1=4,'Tabla de Pagos Crecientes'!O105,'Tabla Fijos'!Q110)) -> 0 | P165: =IF(B165="","",G165+H165+I165+J165+K165+L165-M165-'Tabla Fijos'!P110) -> 22419.5208 | Q165: 1023781.31 | R165: 1
B166: 100 | C166: =IF($B166="","",'Fecha Pago'!K103) -> 2034-05-03 | D166: =IF($B$67="","",'Fecha Pago'!L103) -> 30.4 | E166: =IF(B166="","",IF(Sheet1!$Z$1=4,'Tabla de Pagos Crecientes'!E106,$F$62)) -> 0.1299 | F166: =IF($B166="","",IF(Sheet1!$Z$1=4,'Tabla de Pagos Crecientes'!F106,'Tabla Fijos'!F111)) -> 1023781.31 | G166: =IF($B166="","",IF(Sheet1!$Z$1=4,'Tabla de Pagos Crecientes'!G106,'Tabla Fijos'!G111)) -> 7909.795626 | H166: =IF($B166="","",IF(Sheet1!$Z$1=4,'Tabla de Pagos Crecientes'!H106,'Tabla Fijos'!H111)) -> 11230.19845 | I166: =IF($B166=0,0,IF(B166="","",VLOOKUP($B166,'Tabla Fijos'!$B$12:$S$311,8,0))) -> 1796.831752 | J166: =IF($B166="","",IF(Sheet1!$Z$1=4,'Tabla de Pagos Crecientes'!J106,'Tabla Fijos'!K111)) -> 614.2687861 | K166: =IF($B166="","",IF(Sheet1!$Z$1=4,'Tabla de Pagos Crecientes'!K106,'Tabla Fijos'!L111)) -> 490 | L166: =IF($B166="","",IF(Sheet1!$Z$1=4,'Tabla de Pagos Crecientes'!L106,'Tabla Fijos'!M111)) -> 360 | M166: =IF($B166="","",IF(Sheet1!$Z$1=4,'Tabla de Pagos Crecientes'!M106,'Tabla Fijos'!N111)) -> 0 | O166: =IF($B166="","",IF(Sheet1!$Z$1=4,'Tabla de Pagos Crecientes'!O106,'Tabla Fijos'!Q111)) -> 0 | P166: =IF(B166="","",G166+H166+I166+J166+K166+L166-M166-'Tabla Fijos'!P111) -> 22401.09462 | Q166: 1015871.515 | R166: 1
B167: 101 | C167: =IF($B167="","",'Fecha Pago'!K104) -> 2034-06-03 | D167: =IF($B$67="","",'Fecha Pago'!L104) -> 30.4 | E167: =IF(B167="","",IF(Sheet1!$Z$1=4,'Tabla de Pagos Crecientes'!E107,$F$62)) -> 0.1299 | F167: =IF($B167="","",IF(Sheet1!$Z$1=4,'Tabla de Pagos Crecientes'!F107,'Tabla Fijos'!F112)) -> 1015871.515 | G167: =IF($B167="","",IF(Sheet1!$Z$1=4,'Tabla de Pagos Crecientes'!G107,'Tabla Fijos'!G112)) -> 7996.560811 | H167: =IF($B167="","",IF(Sheet1!$Z$1=4,'Tabla de Pagos Crecientes'!H107,'Tabla Fijos'!H112)) -> 11143.43327 | I167: =IF($B167=0,0,IF(B167="","",VLOOKUP($B167,'Tabla Fijos'!$B$12:$S$311,8,0))) -> 1782.949323 | J167: =IF($B167="","",IF(Sheet1!$Z$1=4,'Tabla de Pagos Crecientes'!J107,'Tabla Fijos'!K112)) -> 609.5229087 | K167: =IF($B167="","",IF(Sheet1!$Z$1=4,'Tabla de Pagos Crecientes'!K107,'Tabla Fijos'!L112)) -> 490 | L167: =IF($B167="","",IF(Sheet1!$Z$1=4,'Tabla de Pagos Crecientes'!L107,'Tabla Fijos'!M112)) -> 360 | M167: =IF($B167="","",IF(Sheet1!$Z$1=4,'Tabla de Pagos Crecientes'!M107,'Tabla Fijos'!N112)) -> 0 | O167: =IF($B167="","",IF(Sheet1!$Z$1=4,'Tabla de Pagos Crecientes'!O107,'Tabla Fijos'!Q112)) -> 0 | P167: =IF(B167="","",G167+H167+I167+J167+K167+L167-M167-'Tabla Fijos'!P112) -> 22382.46631 | Q167: 1007874.954 | R167: 1
B168: 102 | C168: =IF($B168="","",'Fecha Pago'!K105) -> 2034-07-03 | D168: =IF($B$67="","",'Fecha Pago'!L105) -> 30.4 | E168: =IF(B168="","",IF(Sheet1!$Z$1=4,'Tabla de Pagos Crecientes'!E108,$F$62)) -> 0.1299 | F168: =IF($B168="","",IF(Sheet1!$Z$1=4,'Tabla de Pagos Crecientes'!F108,'Tabla Fijos'!F113)) -> 1007874.954 | G168: =IF($B168="","",IF(Sheet1!$Z$1=4,'Tabla de Pagos Crecientes'!G108,'Tabla Fijos'!G113)) -> 8084.277752 | H168: =IF($B168="","",IF(Sheet1!$Z$1=4,'Tabla de Pagos Crecientes'!H108,'Tabla Fijos'!H113)) -> 11055.71633 | I168: =IF($B168=0,0,IF(B168="","",VLOOKUP($B168,'Tabla Fijos'!$B$12:$S$311,8,0))) -> 1768.914612 | J168: =IF($B168="","",IF(Sheet1!$Z$1=4,'Tabla de Pagos Crecientes'!J108,'Tabla Fijos'!K113)) -> 604.7249722 | K168: =IF($B168="","",IF(Sheet1!$Z$1=4,'Tabla de Pagos Crecientes'!K108,'Tabla Fijos'!L113)) -> 490 | L168: =IF($B168="","",IF(Sheet1!$Z$1=4,'Tabla de Pagos Crecientes'!L108,'Tabla Fijos'!M113)) -> 360 | M168: =IF($B168="","",IF(Sheet1!$Z$1=4,'Tabla de Pagos Crecientes'!M108,'Tabla Fijos'!N113)) -> 0 | O168: =IF($B168="","",IF(Sheet1!$Z$1=4,'Tabla de Pagos Crecientes'!O108,'Tabla Fijos'!Q113)) -> 0 | P168: =IF(B168="","",G168+H168+I168+J168+K168+L168-M168-'Tabla Fijos'!P113) -> 22363.63366 | Q168: 999790.6759 | R168: 1
B169: 103 | C169: =IF($B169="","",'Fecha Pago'!K106) -> 2034-08-03 | D169: =IF($B$67="","",'Fecha Pago'!L106) -> 30.4 | E169: =IF(B169="","",IF(Sheet1!$Z$1=4,'Tabla de Pagos Crecientes'!E109,$F$62)) -> 0.1299 | F169: =IF($B169="","",IF(Sheet1!$Z$1=4,'Tabla de Pagos Crecientes'!F109,'Tabla Fijos'!F114)) -> 999790.6759 | G169: =IF($B169="","",IF(Sheet1!$Z$1=4,'Tabla de Pagos Crecientes'!G109,'Tabla Fijos'!G114)) -> 8172.956889 | H169: =IF($B169="","",IF(Sheet1!$Z$1=4,'Tabla de Pagos Crecientes'!H109,'Tabla Fijos'!H114)) -> 10967.03719 | I169: =IF($B169=0,0,IF(B169="","",VLOOKUP($B169,'Tabla Fijos'!$B$12:$S$311,8,0))) -> 1754.72595 | J169: =IF($B169="","",IF(Sheet1!$Z$1=4,'Tabla de Pagos Crecientes'!J109,'Tabla Fijos'!K114)) -> 599.8744056 | K169: =IF($B169="","",IF(Sheet1!$Z$1=4,'Tabla de Pagos Crecientes'!K109,'Tabla Fijos'!L114)) -> 490 | L169: =IF($B169="","",IF(Sheet1!$Z$1=4,'Tabla de Pagos Crecientes'!L109,'Tabla Fijos'!M114)) -> 360 | M169: =IF($B169="","",IF(Sheet1!$Z$1=4,'Tabla de Pagos Crecientes'!M109,'Tabla Fijos'!N114)) -> 0 | O169: =IF($B169="","",IF(Sheet1!$Z$1=4,'Tabla de Pagos Crecientes'!O109,'Tabla Fijos'!Q114)) -> 0 | P169: =IF(B169="","",G169+H169+I169+J169+K169+L169-M169-'Tabla Fijos'!P114) -> 22344.59443 | Q169: 991617.7191 | R169: 1
B170: 104 | C170: =IF($B170="","",'Fecha Pago'!K107) -> 2034-09-03 | D170: =IF($B$67="","",'Fecha Pago'!L107) -> 30.4 | E170: =IF(B170="","",IF(Sheet1!$Z$1=4,'Tabla de Pagos Crecientes'!E110,$F$62)) -> 0.1299 | F170: =IF($B170="","",IF(Sheet1!$Z$1=4,'Tabla de Pagos Crecientes'!F110,'Tabla Fijos'!F115)) -> 991617.7191 | G170: =IF($B170="","",IF(Sheet1!$Z$1=4,'Tabla de Pagos Crecientes'!G110,'Tabla Fijos'!G115)) -> 8262.608778 | H170: =IF($B170="","",IF(Sheet1!$Z$1=4,'Tabla de Pagos Crecientes'!H110,'Tabla Fijos'!H115)) -> 10877.3853 | I170: =IF($B170=0,0,IF(B170="","",VLOOKUP($B170,'Tabla Fijos'!$B$12:$S$311,8,0))) -> 1740.381648 | J170: =IF($B170="","",IF(Sheet1!$Z$1=4,'Tabla de Pagos Crecientes'!J110,'Tabla Fijos'!K115)) -> 594.9706314 | K170: =IF($B170="","",IF(Sheet1!$Z$1=4,'Tabla de Pagos Crecientes'!K110,'Tabla Fijos'!L115)) -> 490 | L170: =IF($B170="","",IF(Sheet1!$Z$1=4,'Tabla de Pagos Crecientes'!L110,'Tabla Fijos'!M115)) -> 360 | M170: =IF($B170="","",IF(Sheet1!$Z$1=4,'Tabla de Pagos Crecientes'!M110,'Tabla Fijos'!N115)) -> 0 | O170: =IF($B170="","",IF(Sheet1!$Z$1=4,'Tabla de Pagos Crecientes'!O110,'Tabla Fijos'!Q115)) -> 0 | P170: =IF(B170="","",G170+H170+I170+J170+K170+L170-M170-'Tabla Fijos'!P115) -> 22325.34636 | Q170: 983355.1103 | R170: 1
B171: 105 | C171: =IF($B171="","",'Fecha Pago'!K108) -> 2034-10-03 | D171: =IF($B$67="","",'Fecha Pago'!L108) -> 30.4 | E171: =IF(B171="","",IF(Sheet1!$Z$1=4,'Tabla de Pagos Crecientes'!E111,$F$62)) -> 0.1299 | F171: =IF($B171="","",IF(Sheet1!$Z$1=4,'Tabla de Pagos Crecientes'!F111,'Tabla Fijos'!F116)) -> 983355.1103 | G171: =IF($B171="","",IF(Sheet1!$Z$1=4,'Tabla de Pagos Crecientes'!G111,'Tabla Fijos'!G116)) -> 8353.244088 | H171: =IF($B171="","",IF(Sheet1!$Z$1=4,'Tabla de Pagos Crecientes'!H111,'Tabla Fijos'!H116)) -> 10786.74999 | I171: =IF($B171=0,0,IF(B171="","",VLOOKUP($B171,'Tabla Fijos'!$B$12:$S$311,8,0))) -> 1725.879998 | J171: =IF($B171="","",IF(Sheet1!$Z$1=4,'Tabla de Pagos Crecientes'!J111,'Tabla Fijos'!K116)) -> 590.0130662 | K171: =IF($B171="","",IF(Sheet1!$Z$1=4,'Tabla de Pagos Crecientes'!K111,'Tabla Fijos'!L116)) -> 490 | L171: =IF($B171="","",IF(Sheet1!$Z$1=4,'Tabla de Pagos Crecientes'!L111,'Tabla Fijos'!M116)) -> 360 | M171: =IF($B171="","",IF(Sheet1!$Z$1=4,'Tabla de Pagos Crecientes'!M111,'Tabla Fijos'!N116)) -> 0 | O171: =IF($B171="","",IF(Sheet1!$Z$1=4,'Tabla de Pagos Crecientes'!O111,'Tabla Fijos'!Q116)) -> 0 | P171: =IF(B171="","",G171+H171+I171+J171+K171+L171-M171-'Tabla Fijos'!P116) -> 22305.88714 | Q171: 975001.8662 | R171: 1
B172: 106 | C172: =IF($B172="","",'Fecha Pago'!K109) -> 2034-11-03 | D172: =IF($B$67="","",'Fecha Pago'!L109) -> 30.4 | E172: =IF(B172="","",IF(Sheet1!$Z$1=4,'Tabla de Pagos Crecientes'!E112,$F$62)) -> 0.1299 | F172: =IF($B172="","",IF(Sheet1!$Z$1=4,'Tabla de Pagos Crecientes'!F112,'Tabla Fijos'!F117)) -> 975001.8662 | G172: =IF($B172="","",IF(Sheet1!$Z$1=4,'Tabla de Pagos Crecientes'!G112,'Tabla Fijos'!G117)) -> 8444.873607 | H172: =IF($B172="","",IF(Sheet1!$Z$1=4,'Tabla de Pagos Crecientes'!H112,'Tabla Fijos'!H117)) -> 10695.12047 | I172: =IF($B172=0,0,IF(B172="","",VLOOKUP($B172,'Tabla Fijos'!$B$12:$S$311,8,0))) -> 1711.219275 | J172: =IF($B172="","",IF(Sheet1!$Z$1=4,'Tabla de Pagos Crecientes'!J112,'Tabla Fijos'!K117)) -> 585.0011197 | K172: =IF($B172="","",IF(Sheet1!$Z$1=4,'Tabla de Pagos Crecientes'!K112,'Tabla Fijos'!L117)) -> 490 | L172: =IF($B172="","",IF(Sheet1!$Z$1=4,'Tabla de Pagos Crecientes'!L112,'Tabla Fijos'!M117)) -> 360 | M172: =IF($B172="","",IF(Sheet1!$Z$1=4,'Tabla de Pagos Crecientes'!M112,'Tabla Fijos'!N117)) -> 0 | O172: =IF($B172="","",IF(Sheet1!$Z$1=4,'Tabla de Pagos Crecientes'!O112,'Tabla Fijos'!Q117)) -> 0 | P172: =IF(B172="","",G172+H172+I172+J172+K172+L172-M172-'Tabla Fijos'!P117) -> 22286.21447 | Q172: 966556.9926 | R172: 1
B173: 107 | C173: =IF($B173="","",'Fecha Pago'!K110) -> 2034-12-03 | D173: =IF($B$67="","",'Fecha Pago'!L110) -> 30.4 | E173: =IF(B173="","",IF(Sheet1!$Z$1=4,'Tabla de Pagos Crecientes'!E113,$F$62)) -> 0.1299 | F173: =IF($B173="","",IF(Sheet1!$Z$1=4,'Tabla de Pagos Crecientes'!F113,'Tabla Fijos'!F118)) -> 966556.9926 | G173: =IF($B173="","",IF(Sheet1!$Z$1=4,'Tabla de Pagos Crecientes'!G113,'Tabla Fijos'!G118)) -> 8537.50824 | H173: =IF($B173="","",IF(Sheet1!$Z$1=4,'Tabla de Pagos Crecientes'!H113,'Tabla Fijos'!H118)) -> 10602.48584 | I173: =IF($B173=0,0,IF(B173="","",VLOOKUP($B173,'Tabla Fijos'!$B$12:$S$311,8,0))) -> 1696.397734 | J173: =IF($B173="","",IF(Sheet1!$Z$1=4,'Tabla de Pagos Crecientes'!J113,'Tabla Fijos'!K118)) -> 579.9341956 | K173: =IF($B173="","",IF(Sheet1!$Z$1=4,'Tabla de Pagos Crecientes'!K113,'Tabla Fijos'!L118)) -> 490 | L173: =IF($B173="","",IF(Sheet1!$Z$1=4,'Tabla de Pagos Crecientes'!L113,'Tabla Fijos'!M118)) -> 360 | M173: =IF($B173="","",IF(Sheet1!$Z$1=4,'Tabla de Pagos Crecientes'!M113,'Tabla Fijos'!N118)) -> 0 | O173: =IF($B173="","",IF(Sheet1!$Z$1=4,'Tabla de Pagos Crecientes'!O113,'Tabla Fijos'!Q118)) -> 0 | P173: =IF(B173="","",G173+H173+I173+J173+K173+L173-M173-'Tabla Fijos'!P118) -> 22266.32601 | Q173: 958019.4843 | R173: 1
B174: 108 | C174: =IF($B174="","",'Fecha Pago'!K111) -> 2035-01-03 | D174: =IF($B$67="","",'Fecha Pago'!L111) -> 30.4 | E174: =IF(B174="","",IF(Sheet1!$Z$1=4,'Tabla de Pagos Crecientes'!E114,$F$62)) -> 0.1299 | F174: =IF($B174="","",IF(Sheet1!$Z$1=4,'Tabla de Pagos Crecientes'!F114,'Tabla Fijos'!F119)) -> 958019.4843 | G174: =IF($B174="","",IF(Sheet1!$Z$1=4,'Tabla de Pagos Crecientes'!G114,'Tabla Fijos'!G119)) -> 8631.159014 | H174: =IF($B174="","",IF(Sheet1!$Z$1=4,'Tabla de Pagos Crecientes'!H114,'Tabla Fijos'!H119)) -> 10508.83506 | I174: =IF($B174=0,0,IF(B174="","",VLOOKUP($B174,'Tabla Fijos'!$B$12:$S$311,8,0))) -> 1681.41361 | J174: =IF($B174="","",IF(Sheet1!$Z$1=4,'Tabla de Pagos Crecientes'!J114,'Tabla Fijos'!K119)) -> 574.8116906 | K174: =IF($B174="","",IF(Sheet1!$Z$1=4,'Tabla de Pagos Crecientes'!K114,'Tabla Fijos'!L119)) -> 490 | L174: =IF($B174="","",IF(Sheet1!$Z$1=4,'Tabla de Pagos Crecientes'!L114,'Tabla Fijos'!M119)) -> 360 | M174: =IF($B174="","",IF(Sheet1!$Z$1=4,'Tabla de Pagos Crecientes'!M114,'Tabla Fijos'!N119)) -> 0 | O174: =IF($B174="","",IF(Sheet1!$Z$1=4,'Tabla de Pagos Crecientes'!O114,'Tabla Fijos'!Q119)) -> 0 | P174: =IF(B174="","",G174+H174+I174+J174+K174+L174-M174-'Tabla Fijos'!P119) -> 22246.21938 | Q174: 949388.3253 | R174: 1
B175: 109 | C175: =IF($B175="","",'Fecha Pago'!K112) -> 2035-02-03 | D175: =IF($B$67="","",'Fecha Pago'!L112) -> 30.4 | E175: =IF(B175="","",IF(Sheet1!$Z$1=4,'Tabla de Pagos Crecientes'!E115,$F$62)) -> 0.1299 | F175: =IF($B175="","",IF(Sheet1!$Z$1=4,'Tabla de Pagos Crecientes'!F115,'Tabla Fijos'!F120)) -> 949388.3253 | G175: =IF($B175="","",IF(Sheet1!$Z$1=4,'Tabla de Pagos Crecientes'!G115,'Tabla Fijos'!G120)) -> 8725.837074 | H175: =IF($B175="","",IF(Sheet1!$Z$1=4,'Tabla de Pagos Crecientes'!H115,'Tabla Fijos'!H120)) -> 10414.157 | I175: =IF($B175=0,0,IF(B175="","",VLOOKUP($B175,'Tabla Fijos'!$B$12:$S$311,8,0))) -> 1666.265121 | J175: =IF($B175="","",IF(Sheet1!$Z$1=4,'Tabla de Pagos Crecientes'!J115,'Tabla Fijos'!K120)) -> 569.6329952 | K175: =IF($B175="","",IF(Sheet1!$Z$1=4,'Tabla de Pagos Crecientes'!K115,'Tabla Fijos'!L120)) -> 490 | L175: =IF($B175="","",IF(Sheet1!$Z$1=4,'Tabla de Pagos Crecientes'!L115,'Tabla Fijos'!M120)) -> 360 | M175: =IF($B175="","",IF(Sheet1!$Z$1=4,'Tabla de Pagos Crecientes'!M115,'Tabla Fijos'!N120)) -> 0 | O175: =IF($B175="","",IF(Sheet1!$Z$1=4,'Tabla de Pagos Crecientes'!O115,'Tabla Fijos'!Q120)) -> 0 | P175: =IF(B175="","",G175+H175+I175+J175+K175+L175-M175-'Tabla Fijos'!P120) -> 22225.89219 | Q175: 940662.4883 | R175: 1
B176: 110 | C176: =IF($B176="","",'Fecha Pago'!K113) -> 2035-03-03 | D176: =IF($B$67="","",'Fecha Pago'!L113) -> 30.4 | E176: =IF(B176="","",IF(Sheet1!$Z$1=4,'Tabla de Pagos Crecientes'!E116,$F$62)) -> 0.1299 | F176: =IF($B176="","",IF(Sheet1!$Z$1=4,'Tabla de Pagos Crecientes'!F116,'Tabla Fijos'!F121)) -> 940662.4883 | G176: =IF($B176="","",IF(Sheet1!$Z$1=4,'Tabla de Pagos Crecientes'!G116,'Tabla Fijos'!G121)) -> 8821.55369 | H176: =IF($B176="","",IF(Sheet1!$Z$1=4,'Tabla de Pagos Crecientes'!H116,'Tabla Fijos'!H121)) -> 10318.44039 | I176: =IF($B176=0,0,IF(B176="","",VLOOKUP($B176,'Tabla Fijos'!$B$12:$S$311,8,0))) -> 1650.950462 | J176: =IF($B176="","",IF(Sheet1!$Z$1=4,'Tabla de Pagos Crecientes'!J116,'Tabla Fijos'!K121)) -> 564.397493 | K176: =IF($B176="","",IF(Sheet1!$Z$1=4,'Tabla de Pagos Crecientes'!K116,'Tabla Fijos'!L121)) -> 490 | L176: =IF($B176="","",IF(Sheet1!$Z$1=4,'Tabla de Pagos Crecientes'!L116,'Tabla Fijos'!M121)) -> 360 | M176: =IF($B176="","",IF(Sheet1!$Z$1=4,'Tabla de Pagos Crecientes'!M116,'Tabla Fijos'!N121)) -> 0 | O176: =IF($B176="","",IF(Sheet1!$Z$1=4,'Tabla de Pagos Crecientes'!O116,'Tabla Fijos'!Q121)) -> 0 | P176: =IF(B176="","",G176+H176+I176+J176+K176+L176-M176-'Tabla Fijos'!P121) -> 22205.34203 | Q176: 931840.9346 | R176: 1
B177: 111 | C177: =IF($B177="","",'Fecha Pago'!K114) -> 2035-04-03 | D177: =IF($B$67="","",'Fecha Pago'!L114) -> 30.4 | E177: =IF(B177="","",IF(Sheet1!$Z$1=4,'Tabla de Pagos Crecientes'!E117,$F$62)) -> 0.1299 | F177: =IF($B177="","",IF(Sheet1!$Z$1=4,'Tabla de Pagos Crecientes'!F117,'Tabla Fijos'!F122)) -> 931840.9346 | G177: =IF($B177="","",IF(Sheet1!$Z$1=4,'Tabla de Pagos Crecientes'!G117,'Tabla Fijos'!G122)) -> 8918.320253 | H177: =IF($B177="","",IF(Sheet1!$Z$1=4,'Tabla de Pagos Crecientes'!H117,'Tabla Fijos'!H122)) -> 10221.67382 | I177: =IF($B177=0,0,IF(B177="","",VLOOKUP($B177,'Tabla Fijos'!$B$12:$S$311,8,0))) -> 1635.467812 | J177: =IF($B177="","",IF(Sheet1!$Z$1=4,'Tabla de Pagos Crecientes'!J117,'Tabla Fijos'!K122)) -> 559.1045607 | K177: =IF($B177="","",IF(Sheet1!$Z$1=4,'Tabla de Pagos Crecientes'!K117,'Tabla Fijos'!L122)) -> 490 | L177: =IF($B177="","",IF(Sheet1!$Z$1=4,'Tabla de Pagos Crecientes'!L117,'Tabla Fijos'!M122)) -> 360 | M177: =IF($B177="","",IF(Sheet1!$Z$1=4,'Tabla de Pagos Crecientes'!M117,'Tabla Fijos'!N122)) -> 0 | O177: =IF($B177="","",IF(Sheet1!$Z$1=4,'Tabla de Pagos Crecientes'!O117,'Tabla Fijos'!Q122)) -> 0 | P177: =IF(B177="","",G177+H177+I177+J177+K177+L177-M177-'Tabla Fijos'!P122) -> 22184.56645 | Q177: 922922.6143 | R177: 1
B178: 112 | C178: =IF($B178="","",'Fecha Pago'!K115) -> 2035-05-03 | D178: =IF($B$67="","",'Fecha Pago'!L115) -> 30.4 | E178: =IF(B178="","",IF(Sheet1!$Z$1=4,'Tabla de Pagos Crecientes'!E118,$F$62)) -> 0.1299 | F178: =IF($B178="","",IF(Sheet1!$Z$1=4,'Tabla de Pagos Crecientes'!F118,'Tabla Fijos'!F123)) -> 922922.6143 | G178: =IF($B178="","",IF(Sheet1!$Z$1=4,'Tabla de Pagos Crecientes'!G118,'Tabla Fijos'!G123)) -> 9016.14828 | H178: =IF($B178="","",IF(Sheet1!$Z$1=4,'Tabla de Pagos Crecientes'!H118,'Tabla Fijos'!H123)) -> 10123.8458 | I178: =IF($B178=0,0,IF(B178="","",VLOOKUP($B178,'Tabla Fijos'!$B$12:$S$311,8,0))) -> 1619.815328 | J178: =IF($B178="","",IF(Sheet1!$Z$1=4,'Tabla de Pagos Crecientes'!J118,'Tabla Fijos'!K123)) -> 553.7535686 | K178: =IF($B178="","",IF(Sheet1!$Z$1=4,'Tabla de Pagos Crecientes'!K118,'Tabla Fijos'!L123)) -> 490 | L178: =IF($B178="","",IF(Sheet1!$Z$1=4,'Tabla de Pagos Crecientes'!L118,'Tabla Fijos'!M123)) -> 360 | M178: =IF($B178="","",IF(Sheet1!$Z$1=4,'Tabla de Pagos Crecientes'!M118,'Tabla Fijos'!N123)) -> 0 | O178: =IF($B178="","",IF(Sheet1!$Z$1=4,'Tabla de Pagos Crecientes'!O118,'Tabla Fijos'!Q123)) -> 0 | P178: =IF(B178="","",G178+H178+I178+J178+K178+L178-M178-'Tabla Fijos'!P123) -> 22163.56297 | Q178: 913906.466 | R178: 1
B179: 113 | C179: =IF($B179="","",'Fecha Pago'!K116) -> 2035-06-03 | D179: =IF($B$67="","",'Fecha Pago'!L116) -> 30.4 | E179: =IF(B179="","",IF(Sheet1!$Z$1=4,'Tabla de Pagos Crecientes'!E119,$F$62)) -> 0.1299 | F179: =IF($B179="","",IF(Sheet1!$Z$1=4,'Tabla de Pagos Crecientes'!F119,'Tabla Fijos'!F124)) -> 913906.466 | G179: =IF($B179="","",IF(Sheet1!$Z$1=4,'Tabla de Pagos Crecientes'!G119,'Tabla Fijos'!G124)) -> 9115.049416 | H179: =IF($B179="","",IF(Sheet1!$Z$1=4,'Tabla de Pagos Crecientes'!H119,'Tabla Fijos'!H124)) -> 10024.94466 | I179: =IF($B179=0,0,IF(B179="","",VLOOKUP($B179,'Tabla Fijos'!$B$12:$S$311,8,0))) -> 1603.991146 | J179: =IF($B179="","",IF(Sheet1!$Z$1=4,'Tabla de Pagos Crecientes'!J119,'Tabla Fijos'!K124)) -> 548.3438796 | K179: =IF($B179="","",IF(Sheet1!$Z$1=4,'Tabla de Pagos Crecientes'!K119,'Tabla Fijos'!L124)) -> 490 | L179: =IF($B179="","",IF(Sheet1!$Z$1=4,'Tabla de Pagos Crecientes'!L119,'Tabla Fijos'!M124)) -> 360 | M179: =IF($B179="","",IF(Sheet1!$Z$1=4,'Tabla de Pagos Crecientes'!M119,'Tabla Fijos'!N124)) -> 0 | O179: =IF($B179="","",IF(Sheet1!$Z$1=4,'Tabla de Pagos Crecientes'!O119,'Tabla Fijos'!Q124)) -> 0 | P179: =IF(B179="","",G179+H179+I179+J179+K179+L179-M179-'Tabla Fijos'!P124) -> 22142.3291 | Q179: 904791.4166 | R179: 1
B180: 114 | C180: =IF($B180="","",'Fecha Pago'!K117) -> 2035-07-03 | D180: =IF($B$67="","",'Fecha Pago'!L117) -> 30.4 | E180: =IF(B180="","",IF(Sheet1!$Z$1=4,'Tabla de Pagos Crecientes'!E120,$F$62)) -> 0.1299 | F180: =IF($B180="","",IF(Sheet1!$Z$1=4,'Tabla de Pagos Crecientes'!F120,'Tabla Fijos'!F125)) -> 904791.4166 | G180: =IF($B180="","",IF(Sheet1!$Z$1=4,'Tabla de Pagos Crecientes'!G120,'Tabla Fijos'!G125)) -> 9215.035431 | H180: =IF($B180="","",IF(Sheet1!$Z$1=4,'Tabla de Pagos Crecientes'!H120,'Tabla Fijos'!H125)) -> 9924.958646 | I180: =IF($B180=0,0,IF(B180="","",VLOOKUP($B180,'Tabla Fijos'!$B$12:$S$311,8,0))) -> 1587.993383 | J180: =IF($B180="","",IF(Sheet1!$Z$1=4,'Tabla de Pagos Crecientes'!J120,'Tabla Fijos'!K125)) -> 542.87485 | K180: =IF($B180="","",IF(Sheet1!$Z$1=4,'Tabla de Pagos Crecientes'!K120,'Tabla Fijos'!L125)) -> 490 | L180: =IF($B180="","",IF(Sheet1!$Z$1=4,'Tabla de Pagos Crecientes'!L120,'Tabla Fijos'!M125)) -> 360 | M180: =IF($B180="","",IF(Sheet1!$Z$1=4,'Tabla de Pagos Crecientes'!M120,'Tabla Fijos'!N125)) -> 0 | O180: =IF($B180="","",IF(Sheet1!$Z$1=4,'Tabla de Pagos Crecientes'!O120,'Tabla Fijos'!Q125)) -> 0 | P180: =IF(B180="","",G180+H180+I180+J180+K180+L180-M180-'Tabla Fijos'!P125) -> 22120.86231 | Q180: 895576.3812 | R180: 1
B181: 115 | C181: =IF($B181="","",'Fecha Pago'!K118) -> 2035-08-03 | D181: =IF($B$67="","",'Fecha Pago'!L118) -> 30.4 | E181: =IF(B181="","",IF(Sheet1!$Z$1=4,'Tabla de Pagos Crecientes'!E121,$F$62)) -> 0.1299 | F181: =IF($B181="","",IF(Sheet1!$Z$1=4,'Tabla de Pagos Crecientes'!F121,'Tabla Fijos'!F126)) -> 895576.3812 | G181: =IF($B181="","",IF(Sheet1!$Z$1=4,'Tabla de Pagos Crecientes'!G121,'Tabla Fijos'!G126)) -> 9316.118227 | H181: =IF($B181="","",IF(Sheet1!$Z$1=4,'Tabla de Pagos Crecientes'!H121,'Tabla Fijos'!H126)) -> 9823.875851 | I181: =IF($B181=0,0,IF(B181="","",VLOOKUP($B181,'Tabla Fijos'!$B$12:$S$311,8,0))) -> 1571.820136 | J181: =IF($B181="","",IF(Sheet1!$Z$1=4,'Tabla de Pagos Crecientes'!J121,'Tabla Fijos'!K126)) -> 537.3458287 | K181: =IF($B181="","",IF(Sheet1!$Z$1=4,'Tabla de Pagos Crecientes'!K121,'Tabla Fijos'!L126)) -> 490 | L181: =IF($B181="","",IF(Sheet1!$Z$1=4,'Tabla de Pagos Crecientes'!L121,'Tabla Fijos'!M126)) -> 360 | M181: =IF($B181="","",IF(Sheet1!$Z$1=4,'Tabla de Pagos Crecientes'!M121,'Tabla Fijos'!N126)) -> 0 | O181: =IF($B181="","",IF(Sheet1!$Z$1=4,'Tabla de Pagos Crecientes'!O121,'Tabla Fijos'!Q126)) -> 0 | P181: =IF(B181="","",G181+H181+I181+J181+K181+L181-M181-'Tabla Fijos'!P126) -> 22099.16004 | Q181: 886260.263 | R181: 1
B182: 116 | C182: =IF($B182="","",'Fecha Pago'!K119) -> 2035-09-03 | D182: =IF($B$67="","",'Fecha Pago'!L119) -> 30.4 | E182: =IF(B182="","",IF(Sheet1!$Z$1=4,'Tabla de Pagos Crecientes'!E122,$F$62)) -> 0.1299 | F182: =IF($B182="","",IF(Sheet1!$Z$1=4,'Tabla de Pagos Crecientes'!F122,'Tabla Fijos'!F127)) -> 886260.263 | G182: =IF($B182="","",IF(Sheet1!$Z$1=4,'Tabla de Pagos Crecientes'!G122,'Tabla Fijos'!G127)) -> 9418.309833 | H182: =IF($B182="","",IF(Sheet1!$Z$1=4,'Tabla de Pagos Crecientes'!H122,'Tabla Fijos'!H127)) -> 9721.684245 | I182: =IF($B182=0,0,IF(B182="","",VLOOKUP($B182,'Tabla Fijos'!$B$12:$S$311,8,0))) -> 1555.469479 | J182: =IF($B182="","",IF(Sheet1!$Z$1=4,'Tabla de Pagos Crecientes'!J122,'Tabla Fijos'!K127)) -> 531.7561578 | K182: =IF($B182="","",IF(Sheet1!$Z$1=4,'Tabla de Pagos Crecientes'!K122,'Tabla Fijos'!L127)) -> 490 | L182: =IF($B182="","",IF(Sheet1!$Z$1=4,'Tabla de Pagos Crecientes'!L122,'Tabla Fijos'!M127)) -> 360 | M182: =IF($B182="","",IF(Sheet1!$Z$1=4,'Tabla de Pagos Crecientes'!M122,'Tabla Fijos'!N127)) -> 0 | O182: =IF($B182="","",IF(Sheet1!$Z$1=4,'Tabla de Pagos Crecientes'!O122,'Tabla Fijos'!Q127)) -> 0 | P182: =IF(B182="","",G182+H182+I182+J182+K182+L182-M182-'Tabla Fijos'!P127) -> 22077.21971 | Q182: 876841.9531 | R182: 1
B183: 117 | C183: =IF($B183="","",'Fecha Pago'!K120) -> 2035-10-03 | D183: =IF($B$67="","",'Fecha Pago'!L120) -> 30.4 | E183: =IF(B183="","",IF(Sheet1!$Z$1=4,'Tabla de Pagos Crecientes'!E123,$F$62)) -> 0.1299 | F183: =IF($B183="","",IF(Sheet1!$Z$1=4,'Tabla de Pagos Crecientes'!F123,'Tabla Fijos'!F128)) -> 876841.9531 | G183: =IF($B183="","",IF(Sheet1!$Z$1=4,'Tabla de Pagos Crecientes'!G123,'Tabla Fijos'!G128)) -> 9521.622413 | H183: =IF($B183="","",IF(Sheet1!$Z$1=4,'Tabla de Pagos Crecientes'!H123,'Tabla Fijos'!H128)) -> 9618.371665 | I183: =IF($B183=0,0,IF(B183="","",VLOOKUP($B183,'Tabla Fijos'!$B$12:$S$311,8,0))) -> 1538.939466 | J183: =IF($B183="","",IF(Sheet1!$Z$1=4,'Tabla de Pagos Crecientes'!J123,'Tabla Fijos'!K128)) -> 526.1051719 | K183: =IF($B183="","",IF(Sheet1!$Z$1=4,'Tabla de Pagos Crecientes'!K123,'Tabla Fijos'!L128)) -> 490 | L183: =IF($B183="","",IF(Sheet1!$Z$1=4,'Tabla de Pagos Crecientes'!L123,'Tabla Fijos'!M128)) -> 360 | M183: =IF($B183="","",IF(Sheet1!$Z$1=4,'Tabla de Pagos Crecientes'!M123,'Tabla Fijos'!N128)) -> 0 | O183: =IF($B183="","",IF(Sheet1!$Z$1=4,'Tabla de Pagos Crecientes'!O123,'Tabla Fijos'!Q128)) -> 0 | P183: =IF(B183="","",G183+H183+I183+J183+K183+L183-M183-'Tabla Fijos'!P128) -> 22055.03872 | Q183: 867320.3307 | R183: 1
B184: 118 | C184: =IF($B184="","",'Fecha Pago'!K121) -> 2035-11-03 | D184: =IF($B$67="","",'Fecha Pago'!L121) -> 30.4 | E184: =IF(B184="","",IF(Sheet1!$Z$1=4,'Tabla de Pagos Crecientes'!E124,$F$62)) -> 0.1299 | F184: =IF($B184="","",IF(Sheet1!$Z$1=4,'Tabla de Pagos Crecientes'!F124,'Tabla Fijos'!F129)) -> 867320.3307 | G184: =IF($B184="","",IF(Sheet1!$Z$1=4,'Tabla de Pagos Crecientes'!G124,'Tabla Fijos'!G129)) -> 9626.068263 | H184: =IF($B184="","",IF(Sheet1!$Z$1=4,'Tabla de Pagos Crecientes'!H124,'Tabla Fijos'!H129)) -> 9513.925814 | I184: =IF($B184=0,0,IF(B184="","",VLOOKUP($B184,'Tabla Fijos'!$B$12:$S$311,8,0))) -> 1522.22813 | J184: =IF($B184="","",IF(Sheet1!$Z$1=4,'Tabla de Pagos Crecientes'!J124,'Tabla Fijos'!K129)) -> 520.3921984 | K184: =IF($B184="","",IF(Sheet1!$Z$1=4,'Tabla de Pagos Crecientes'!K124,'Tabla Fijos'!L129)) -> 490 | L184: =IF($B184="","",IF(Sheet1!$Z$1=4,'Tabla de Pagos Crecientes'!L124,'Tabla Fijos'!M129)) -> 360 | M184: =IF($B184="","",IF(Sheet1!$Z$1=4,'Tabla de Pagos Crecientes'!M124,'Tabla Fijos'!N129)) -> 0 | O184: =IF($B184="","",IF(Sheet1!$Z$1=4,'Tabla de Pagos Crecientes'!O124,'Tabla Fijos'!Q129)) -> 0 | P184: =IF(B184="","",G184+H184+I184+J184+K184+L184-M184-'Tabla Fijos'!P129) -> 22032.61441 | Q184: 857694.2625 | R184: 1
B185: 119 | C185: =IF($B185="","",'Fecha Pago'!K122) -> 2035-12-03 | D185: =IF($B$67="","",'Fecha Pago'!L122) -> 30.4 | E185: =IF(B185="","",IF(Sheet1!$Z$1=4,'Tabla de Pagos Crecientes'!E125,$F$62)) -> 0.1299 | F185: =IF($B185="","",IF(Sheet1!$Z$1=4,'Tabla de Pagos Crecientes'!F125,'Tabla Fijos'!F130)) -> 857694.2625 | G185: =IF($B185="","",IF(Sheet1!$Z$1=4,'Tabla de Pagos Crecientes'!G125,'Tabla Fijos'!G130)) -> 9731.659815 | H185: =IF($B185="","",IF(Sheet1!$Z$1=4,'Tabla de Pagos Crecientes'!H125,'Tabla Fijos'!H130)) -> 9408.334263 | I185: =IF($B185=0,0,IF(B185="","",VLOOKUP($B185,'Tabla Fijos'!$B$12:$S$311,8,0))) -> 1505.333482 | J185: =IF($B185="","",IF(Sheet1!$Z$1=4,'Tabla de Pagos Crecientes'!J125,'Tabla Fijos'!K130)) -> 514.6165575 | K185: =IF($B185="","",IF(Sheet1!$Z$1=4,'Tabla de Pagos Crecientes'!K125,'Tabla Fijos'!L130)) -> 490 | L185: =IF($B185="","",IF(Sheet1!$Z$1=4,'Tabla de Pagos Crecientes'!L125,'Tabla Fijos'!M130)) -> 360 | M185: =IF($B185="","",IF(Sheet1!$Z$1=4,'Tabla de Pagos Crecientes'!M125,'Tabla Fijos'!N130)) -> 0 | O185: =IF($B185="","",IF(Sheet1!$Z$1=4,'Tabla de Pagos Crecientes'!O125,'Tabla Fijos'!Q130)) -> 0 | P185: =IF(B185="","",G185+H185+I185+J185+K185+L185-M185-'Tabla Fijos'!P130) -> 22009.94412 | Q185: 847962.6026 | R185: 1
B186: 120 | C186: =IF($B186="","",'Fecha Pago'!K123) -> 2036-01-03 | D186: =IF($B$67="","",'Fecha Pago'!L123) -> 30.4 | E186: =IF(B186="","",IF(Sheet1!$Z$1=4,'Tabla de Pagos Crecientes'!E126,$F$62)) -> 0.1299 | F186: =IF($B186="","",IF(Sheet1!$Z$1=4,'Tabla de Pagos Crecientes'!F126,'Tabla Fijos'!F131)) -> 847962.6026 | G186: =IF($B186="","",IF(Sheet1!$Z$1=4,'Tabla de Pagos Crecientes'!G126,'Tabla Fijos'!G131)) -> 9838.409635 | H186: =IF($B186="","",IF(Sheet1!$Z$1=4,'Tabla de Pagos Crecientes'!H126,'Tabla Fijos'!H131)) -> 9301.584443 | I186: =IF($B186=0,0,IF(B186="","",VLOOKUP($B186,'Tabla Fijos'!$B$12:$S$311,8,0))) -> 1488.253511 | J186: =IF($B186="","",IF(Sheet1!$Z$1=4,'Tabla de Pagos Crecientes'!J126,'Tabla Fijos'!K131)) -> 508.7775616 | K186: =IF($B186="","",IF(Sheet1!$Z$1=4,'Tabla de Pagos Crecientes'!K126,'Tabla Fijos'!L131)) -> 490 | L186: =IF($B186="","",IF(Sheet1!$Z$1=4,'Tabla de Pagos Crecientes'!L126,'Tabla Fijos'!M131)) -> 360 | M186: =IF($B186="","",IF(Sheet1!$Z$1=4,'Tabla de Pagos Crecientes'!M126,'Tabla Fijos'!N131)) -> 0 | O186: =IF($B186="","",IF(Sheet1!$Z$1=4,'Tabla de Pagos Crecientes'!O126,'Tabla Fijos'!Q131)) -> 0 | P186: =IF(B186="","",G186+H186+I186+J186+K186+L186-M186-'Tabla Fijos'!P131) -> 21987.02515 | Q186: 838124.193 | R186: 1
B187: 121 | C187: =IF($B187="","",'Fecha Pago'!K124) -> 2036-02-03 | D187: =IF($B$67="","",'Fecha Pago'!L124) -> 30.4 | E187: =IF(B187="","",IF(Sheet1!$Z$1=4,'Tabla de Pagos Crecientes'!E127,$F$62)) -> 0.1299 | F187: =IF($B187="","",IF(Sheet1!$Z$1=4,'Tabla de Pagos Crecientes'!F127,'Tabla Fijos'!F132)) -> 838124.193 | G187: =IF($B187="","",IF(Sheet1!$Z$1=4,'Tabla de Pagos Crecientes'!G127,'Tabla Fijos'!G132)) -> 9946.33043 | H187: =IF($B187="","",IF(Sheet1!$Z$1=4,'Tabla de Pagos Crecientes'!H127,'Tabla Fijos'!H132)) -> 9193.663648 | I187: =IF($B187=0,0,IF(B187="","",VLOOKUP($B187,'Tabla Fijos'!$B$12:$S$311,8,0))) -> 1470.986184 | J187: =IF($B187="","",IF(Sheet1!$Z$1=4,'Tabla de Pagos Crecientes'!J127,'Tabla Fijos'!K132)) -> 502.8745158 | K187: =IF($B187="","",IF(Sheet1!$Z$1=4,'Tabla de Pagos Crecientes'!K127,'Tabla Fijos'!L132)) -> 490 | L187: =IF($B187="","",IF(Sheet1!$Z$1=4,'Tabla de Pagos Crecientes'!L127,'Tabla Fijos'!M132)) -> 360 | M187: =IF($B187="","",IF(Sheet1!$Z$1=4,'Tabla de Pagos Crecientes'!M127,'Tabla Fijos'!N132)) -> 0 | O187: =IF($B187="","",IF(Sheet1!$Z$1=4,'Tabla de Pagos Crecientes'!O127,'Tabla Fijos'!Q132)) -> 0 | P187: =IF(B187="","",G187+H187+I187+J187+K187+L187-M187-'Tabla Fijos'!P132) -> 21963.85478 | Q187: 828177.8626 | R187: 1
B188: 122 | C188: =IF($B188="","",'Fecha Pago'!K125) -> 2036-03-03 | D188: =IF($B$67="","",'Fecha Pago'!L125) -> 30.4 | E188: =IF(B188="","",IF(Sheet1!$Z$1=4,'Tabla de Pagos Crecientes'!E128,$F$62)) -> 0.1299 | F188: =IF($B188="","",IF(Sheet1!$Z$1=4,'Tabla de Pagos Crecientes'!F128,'Tabla Fijos'!F133)) -> 828177.8626 | G188: =IF($B188="","",IF(Sheet1!$Z$1=4,'Tabla de Pagos Crecientes'!G128,'Tabla Fijos'!G133)) -> 10055.43504 | H188: =IF($B188="","",IF(Sheet1!$Z$1=4,'Tabla de Pagos Crecientes'!H128,'Tabla Fijos'!H133)) -> 9084.559034 | I188: =IF($B188=0,0,IF(B188="","",VLOOKUP($B188,'Tabla Fijos'!$B$12:$S$311,8,0))) -> 1453.529445 | J188: =IF($B188="","",IF(Sheet1!$Z$1=4,'Tabla de Pagos Crecientes'!J128,'Tabla Fijos'!K133)) -> 496.9067175 | K188: =IF($B188="","",IF(Sheet1!$Z$1=4,'Tabla de Pagos Crecientes'!K128,'Tabla Fijos'!L133)) -> 490 | L188: =IF($B188="","",IF(Sheet1!$Z$1=4,'Tabla de Pagos Crecientes'!L128,'Tabla Fijos'!M133)) -> 360 | M188: =IF($B188="","",IF(Sheet1!$Z$1=4,'Tabla de Pagos Crecientes'!M128,'Tabla Fijos'!N133)) -> 0 | O188: =IF($B188="","",IF(Sheet1!$Z$1=4,'Tabla de Pagos Crecientes'!O128,'Tabla Fijos'!Q133)) -> 0 | P188: =IF(B188="","",G188+H188+I188+J188+K188+L188-M188-'Tabla Fijos'!P133) -> 21940.43024 | Q188: 818122.4275 | R188: 1
B189: 123 | C189: =IF($B189="","",'Fecha Pago'!K126) -> 2036-04-03 | D189: =IF($B$67="","",'Fecha Pago'!L126) -> 30.4 | E189: =IF(B189="","",IF(Sheet1!$Z$1=4,'Tabla de Pagos Crecientes'!E129,$F$62)) -> 0.1299 | F189: =IF($B189="","",IF(Sheet1!$Z$1=4,'Tabla de Pagos Crecientes'!F129,'Tabla Fijos'!F134)) -> 818122.4275 | G189: =IF($B189="","",IF(Sheet1!$Z$1=4,'Tabla de Pagos Crecientes'!G129,'Tabla Fijos'!G134)) -> 10165.73646 | H189: =IF($B189="","",IF(Sheet1!$Z$1=4,'Tabla de Pagos Crecientes'!H129,'Tabla Fijos'!H134)) -> 8974.257615 | I189: =IF($B189=0,0,IF(B189="","",VLOOKUP($B189,'Tabla Fijos'!$B$12:$S$311,8,0))) -> 1435.881218 | J189: =IF($B189="","",IF(Sheet1!$Z$1=4,'Tabla de Pagos Crecientes'!J129,'Tabla Fijos'!K134)) -> 490.8734565 | K189: =IF($B189="","",IF(Sheet1!$Z$1=4,'Tabla de Pagos Crecientes'!K129,'Tabla Fijos'!L134)) -> 490 | L189: =IF($B189="","",IF(Sheet1!$Z$1=4,'Tabla de Pagos Crecientes'!L129,'Tabla Fijos'!M134)) -> 360 | M189: =IF($B189="","",IF(Sheet1!$Z$1=4,'Tabla de Pagos Crecientes'!M129,'Tabla Fijos'!N134)) -> 0 | O189: =IF($B189="","",IF(Sheet1!$Z$1=4,'Tabla de Pagos Crecientes'!O129,'Tabla Fijos'!Q134)) -> 0 | P189: =IF(B189="","",G189+H189+I189+J189+K189+L189-M189-'Tabla Fijos'!P134) -> 21916.74875 | Q189: 807956.6911 | R189: 1
B190: 124 | C190: =IF($B190="","",'Fecha Pago'!K127) -> 2036-05-03 | D190: =IF($B$67="","",'Fecha Pago'!L127) -> 30.4 | E190: =IF(B190="","",IF(Sheet1!$Z$1=4,'Tabla de Pagos Crecientes'!E130,$F$62)) -> 0.1299 | F190: =IF($B190="","",IF(Sheet1!$Z$1=4,'Tabla de Pagos Crecientes'!F130,'Tabla Fijos'!F135)) -> 807956.6911 | G190: =IF($B190="","",IF(Sheet1!$Z$1=4,'Tabla de Pagos Crecientes'!G130,'Tabla Fijos'!G135)) -> 10277.24781 | H190: =IF($B190="","",IF(Sheet1!$Z$1=4,'Tabla de Pagos Crecientes'!H130,'Tabla Fijos'!H135)) -> 8862.746263 | I190: =IF($B190=0,0,IF(B190="","",VLOOKUP($B190,'Tabla Fijos'!$B$12:$S$311,8,0))) -> 1418.039402 | J190: =IF($B190="","",IF(Sheet1!$Z$1=4,'Tabla de Pagos Crecientes'!J130,'Tabla Fijos'!K135)) -> 484.7740146 | K190: =IF($B190="","",IF(Sheet1!$Z$1=4,'Tabla de Pagos Crecientes'!K130,'Tabla Fijos'!L135)) -> 490 | L190: =IF($B190="","",IF(Sheet1!$Z$1=4,'Tabla de Pagos Crecientes'!L130,'Tabla Fijos'!M135)) -> 360 | M190: =IF($B190="","",IF(Sheet1!$Z$1=4,'Tabla de Pagos Crecientes'!M130,'Tabla Fijos'!N135)) -> 0 | O190: =IF($B190="","",IF(Sheet1!$Z$1=4,'Tabla de Pagos Crecientes'!O130,'Tabla Fijos'!Q135)) -> 0 | P190: =IF(B190="","",G190+H190+I190+J190+K190+L190-M190-'Tabla Fijos'!P135) -> 21892.80749 | Q190: 797679.4433 | R190: 1
B191: 125 | C191: =IF($B191="","",'Fecha Pago'!K128) -> 2036-06-03 | D191: =IF($B$67="","",'Fecha Pago'!L128) -> 30.4 | E191: =IF(B191="","",IF(Sheet1!$Z$1=4,'Tabla de Pagos Crecientes'!E131,$F$62)) -> 0.1299 | F191: =IF($B191="","",IF(Sheet1!$Z$1=4,'Tabla de Pagos Crecientes'!F131,'Tabla Fijos'!F136)) -> 797679.4433 | G191: =IF($B191="","",IF(Sheet1!$Z$1=4,'Tabla de Pagos Crecientes'!G131,'Tabla Fijos'!G136)) -> 10389.98237 | H191: =IF($B191="","",IF(Sheet1!$Z$1=4,'Tabla de Pagos Crecientes'!H131,'Tabla Fijos'!H136)) -> 8750.011706 | I191: =IF($B191=0,0,IF(B191="","",VLOOKUP($B191,'Tabla Fijos'!$B$12:$S$311,8,0))) -> 1400.001873 | J191: =IF($B191="","",IF(Sheet1!$Z$1=4,'Tabla de Pagos Crecientes'!J131,'Tabla Fijos'!K136)) -> 478.607666 | K191: =IF($B191="","",IF(Sheet1!$Z$1=4,'Tabla de Pagos Crecientes'!K131,'Tabla Fijos'!L136)) -> 490 | L191: =IF($B191="","",IF(Sheet1!$Z$1=4,'Tabla de Pagos Crecientes'!L131,'Tabla Fijos'!M136)) -> 360 | M191: =IF($B191="","",IF(Sheet1!$Z$1=4,'Tabla de Pagos Crecientes'!M131,'Tabla Fijos'!N136)) -> 0 | O191: =IF($B191="","",IF(Sheet1!$Z$1=4,'Tabla de Pagos Crecientes'!O131,'Tabla Fijos'!Q136)) -> 0 | P191: =IF(B191="","",G191+H191+I191+J191+K191+L191-M191-'Tabla Fijos'!P136) -> 21868.60362 | Q191: 787289.4609 | R191: 1
B192: 126 | C192: =IF($B192="","",'Fecha Pago'!K129) -> 2036-07-03 | D192: =IF($B$67="","",'Fecha Pago'!L129) -> 30.4 | E192: =IF(B192="","",IF(Sheet1!$Z$1=4,'Tabla de Pagos Crecientes'!E132,$F$62)) -> 0.1299 | F192: =IF($B192="","",IF(Sheet1!$Z$1=4,'Tabla de Pagos Crecientes'!F132,'Tabla Fijos'!F137)) -> 787289.4609 | G192: =IF($B192="","",IF(Sheet1!$Z$1=4,'Tabla de Pagos Crecientes'!G132,'Tabla Fijos'!G137)) -> 10503.95355 | H192: =IF($B192="","",IF(Sheet1!$Z$1=4,'Tabla de Pagos Crecientes'!H132,'Tabla Fijos'!H137)) -> 8636.040526 | I192: =IF($B192=0,0,IF(B192="","",VLOOKUP($B192,'Tabla Fijos'!$B$12:$S$311,8,0))) -> 1381.766484 | J192: =IF($B192="","",IF(Sheet1!$Z$1=4,'Tabla de Pagos Crecientes'!J132,'Tabla Fijos'!K137)) -> 472.3736765 | K192: =IF($B192="","",IF(Sheet1!$Z$1=4,'Tabla de Pagos Crecientes'!K132,'Tabla Fijos'!L137)) -> 490 | L192: =IF($B192="","",IF(Sheet1!$Z$1=4,'Tabla de Pagos Crecientes'!L132,'Tabla Fijos'!M137)) -> 360 | M192: =IF($B192="","",IF(Sheet1!$Z$1=4,'Tabla de Pagos Crecientes'!M132,'Tabla Fijos'!N137)) -> 0 | O192: =IF($B192="","",IF(Sheet1!$Z$1=4,'Tabla de Pagos Crecientes'!O132,'Tabla Fijos'!Q137)) -> 0 | P192: =IF(B192="","",G192+H192+I192+J192+K192+L192-M192-'Tabla Fijos'!P137) -> 21844.13424 | Q192: 776785.5073 | R192: 1
B193: 127 | C193: =IF($B193="","",'Fecha Pago'!K130) -> 2036-08-03 | D193: =IF($B$67="","",'Fecha Pago'!L130) -> 30.4 | E193: =IF(B193="","",IF(Sheet1!$Z$1=4,'Tabla de Pagos Crecientes'!E133,$F$62)) -> 0.1299 | F193: =IF($B193="","",IF(Sheet1!$Z$1=4,'Tabla de Pagos Crecientes'!F133,'Tabla Fijos'!F138)) -> 776785.5073 | G193: =IF($B193="","",IF(Sheet1!$Z$1=4,'Tabla de Pagos Crecientes'!G133,'Tabla Fijos'!G138)) -> 10619.17492 | H193: =IF($B193="","",IF(Sheet1!$Z$1=4,'Tabla de Pagos Crecientes'!H133,'Tabla Fijos'!H138)) -> 8520.819158 | I193: =IF($B193=0,0,IF(B193="","",VLOOKUP($B193,'Tabla Fijos'!$B$12:$S$311,8,0))) -> 1363.331065 | J193: =IF($B193="","",IF(Sheet1!$Z$1=4,'Tabla de Pagos Crecientes'!J133,'Tabla Fijos'!K138)) -> 466.0713044 | K193: =IF($B193="","",IF(Sheet1!$Z$1=4,'Tabla de Pagos Crecientes'!K133,'Tabla Fijos'!L138)) -> 490 | L193: =IF($B193="","",IF(Sheet1!$Z$1=4,'Tabla de Pagos Crecientes'!L133,'Tabla Fijos'!M138)) -> 360 | M193: =IF($B193="","",IF(Sheet1!$Z$1=4,'Tabla de Pagos Crecientes'!M133,'Tabla Fijos'!N138)) -> 0 | O193: =IF($B193="","",IF(Sheet1!$Z$1=4,'Tabla de Pagos Crecientes'!O133,'Tabla Fijos'!Q138)) -> 0 | P193: =IF(B193="","",G193+H193+I193+J193+K193+L193-M193-'Tabla Fijos'!P138) -> 21819.39645 | Q193: 766166.3324 | R193: 1
B194: 128 | C194: =IF($B194="","",'Fecha Pago'!K131) -> 2036-09-03 | D194: =IF($B$67="","",'Fecha Pago'!L131) -> 30.4 | E194: =IF(B194="","",IF(Sheet1!$Z$1=4,'Tabla de Pagos Crecientes'!E134,$F$62)) -> 0.1299 | F194: =IF($B194="","",IF(Sheet1!$Z$1=4,'Tabla de Pagos Crecientes'!F134,'Tabla Fijos'!F139)) -> 766166.3324 | G194: =IF($B194="","",IF(Sheet1!$Z$1=4,'Tabla de Pagos Crecientes'!G134,'Tabla Fijos'!G139)) -> 10735.66019 | H194: =IF($B194="","",IF(Sheet1!$Z$1=4,'Tabla de Pagos Crecientes'!H134,'Tabla Fijos'!H139)) -> 8404.333889 | I194: =IF($B194=0,0,IF(B194="","",VLOOKUP($B194,'Tabla Fijos'!$B$12:$S$311,8,0))) -> 1344.693422 | J194: =IF($B194="","",IF(Sheet1!$Z$1=4,'Tabla de Pagos Crecientes'!J134,'Tabla Fijos'!K139)) -> 459.6997994 | K194: =IF($B194="","",IF(Sheet1!$Z$1=4,'Tabla de Pagos Crecientes'!K134,'Tabla Fijos'!L139)) -> 490 | L194: =IF($B194="","",IF(Sheet1!$Z$1=4,'Tabla de Pagos Crecientes'!L134,'Tabla Fijos'!M139)) -> 360 | M194: =IF($B194="","",IF(Sheet1!$Z$1=4,'Tabla de Pagos Crecientes'!M134,'Tabla Fijos'!N139)) -> 0 | O194: =IF($B194="","",IF(Sheet1!$Z$1=4,'Tabla de Pagos Crecientes'!O134,'Tabla Fijos'!Q139)) -> 0 | P194: =IF(B194="","",G194+H194+I194+J194+K194+L194-M194-'Tabla Fijos'!P139) -> 21794.3873 | Q194: 755430.6722 | R194: 1
B195: 129 | C195: =IF($B195="","",'Fecha Pago'!K132) -> 2036-10-03 | D195: =IF($B$67="","",'Fecha Pago'!L132) -> 30.4 | E195: =IF(B195="","",IF(Sheet1!$Z$1=4,'Tabla de Pagos Crecientes'!E135,$F$62)) -> 0.1299 | F195: =IF($B195="","",IF(Sheet1!$Z$1=4,'Tabla de Pagos Crecientes'!F135,'Tabla Fijos'!F140)) -> 755430.6722 | G195: =IF($B195="","",IF(Sheet1!$Z$1=4,'Tabla de Pagos Crecientes'!G135,'Tabla Fijos'!G140)) -> 10853.42322 | H195: =IF($B195="","",IF(Sheet1!$Z$1=4,'Tabla de Pagos Crecientes'!H135,'Tabla Fijos'!H140)) -> 8286.570854 | I195: =IF($B195=0,0,IF(B195="","",VLOOKUP($B195,'Tabla Fijos'!$B$12:$S$311,8,0))) -> 1325.851337 | J195: =IF($B195="","",IF(Sheet1!$Z$1=4,'Tabla de Pagos Crecientes'!J135,'Tabla Fijos'!K140)) -> 453.2584033 | K195: =IF($B195="","",IF(Sheet1!$Z$1=4,'Tabla de Pagos Crecientes'!K135,'Tabla Fijos'!L140)) -> 490 | L195: =IF($B195="","",IF(Sheet1!$Z$1=4,'Tabla de Pagos Crecientes'!L135,'Tabla Fijos'!M140)) -> 360 | M195: =IF($B195="","",IF(Sheet1!$Z$1=4,'Tabla de Pagos Crecientes'!M135,'Tabla Fijos'!N140)) -> 0 | O195: =IF($B195="","",IF(Sheet1!$Z$1=4,'Tabla de Pagos Crecientes'!O135,'Tabla Fijos'!Q140)) -> 0 | P195: =IF(B195="","",G195+H195+I195+J195+K195+L195-M195-'Tabla Fijos'!P140) -> 21769.10382 | Q195: =IF(B195="","",F195-G195) -> 744577.249 | R195: 1
B196: 130 | C196: =IF($B196="","",'Fecha Pago'!K133) -> 2036-11-03 | D196: =IF($B$67="","",'Fecha Pago'!L133) -> 30.4 | E196: =IF(B196="","",IF(Sheet1!$Z$1=4,'Tabla de Pagos Crecientes'!E136,$F$62)) -> 0.1299 | F196: =IF($B196="","",IF(Sheet1!$Z$1=4,'Tabla de Pagos Crecientes'!F136,'Tabla Fijos'!F141)) -> 744577.249 | G196: =IF($B196="","",IF(Sheet1!$Z$1=4,'Tabla de Pagos Crecientes'!G136,'Tabla Fijos'!G141)) -> 10972.47804 | H196: =IF($B196="","",IF(Sheet1!$Z$1=4,'Tabla de Pagos Crecientes'!H136,'Tabla Fijos'!H141)) -> 8167.516037 | I196: =IF($B196=0,0,IF(B196="","",VLOOKUP($B196,'Tabla Fijos'!$B$12:$S$311,8,0))) -> 1306.802566 | J196: =IF($B196="","",IF(Sheet1!$Z$1=4,'Tabla de Pagos Crecientes'!J136,'Tabla Fijos'!K141)) -> 446.7463494 | K196: =IF($B196="","",IF(Sheet1!$Z$1=4,'Tabla de Pagos Crecientes'!K136,'Tabla Fijos'!L141)) -> 490 | L196: =IF($B196="","",IF(Sheet1!$Z$1=4,'Tabla de Pagos Crecientes'!L136,'Tabla Fijos'!M141)) -> 360 | M196: =IF($B196="","",IF(Sheet1!$Z$1=4,'Tabla de Pagos Crecientes'!M136,'Tabla Fijos'!N141)) -> 0 | O196: =IF($B196="","",IF(Sheet1!$Z$1=4,'Tabla de Pagos Crecientes'!O136,'Tabla Fijos'!Q141)) -> 0 | P196: =IF(B196="","",G196+H196+I196+J196+K196+L196-M196-'Tabla Fijos'!P141) -> 21743.54299 | Q196: 733604.771 | R196: =IF(OR($B196="",$F196<=0),0,1) -> 1
B197: =IF(B196="","",IF(B196=$H$49,"",B196+1)) -> 131 | C197: =IF($B197="","",'Fecha Pago'!K134) -> 2036-12-03 | D197: =IF($B$67="","",'Fecha Pago'!L134) -> 30.4 | E197: =IF(B197="","",IF(Sheet1!$Z$1=4,'Tabla de Pagos Crecientes'!E137,$F$62)) -> 0.1299 | F197: =IF($B197="","",IF(Sheet1!$Z$1=4,'Tabla de Pagos Crecientes'!F137,'Tabla Fijos'!F142)) -> 733604.771 | G197: =IF($B197="","",IF(Sheet1!$Z$1=4,'Tabla de Pagos Crecientes'!G137,'Tabla Fijos'!G142)) -> 11092.83881 | H197: =IF($B197="","",IF(Sheet1!$Z$1=4,'Tabla de Pagos Crecientes'!H137,'Tabla Fijos'!H142)) -> 8047.155268 | I197: =IF($B197=0,0,IF(B197="","",VLOOKUP($B197,'Tabla Fijos'!$B$12:$S$311,8,0))) -> 1287.544843 | J197: =IF($B197="","",IF(Sheet1!$Z$1=4,'Tabla de Pagos Crecientes'!J137,'Tabla Fijos'!K142)) -> 440.1628626 | K197: =IF($B197="","",IF(Sheet1!$Z$1=4,'Tabla de Pagos Crecientes'!K137,'Tabla Fijos'!L142)) -> 490 | L197: =IF($B197="","",IF(Sheet1!$Z$1=4,'Tabla de Pagos Crecientes'!L137,'Tabla Fijos'!M142)) -> 360 | M197: =IF($B197="","",IF(Sheet1!$Z$1=4,'Tabla de Pagos Crecientes'!M137,'Tabla Fijos'!N142)) -> 0 | O197: =IF($B197="","",IF(Sheet1!$Z$1=4,'Tabla de Pagos Crecientes'!O137,'Tabla Fijos'!Q142)) -> 0 | P197: =IF(B197="","",G197+H197+I197+J197+K197+L197-M197-'Tabla Fijos'!P142) -> 21717.70178 | Q197: 722511.9321 | R197: 1
B198: 132 | C198: =IF($B198="","",'Fecha Pago'!K135) -> 2037-01-03 | D198: =IF($B$67="","",'Fecha Pago'!L135) -> 30.4 | E198: =IF(B198="","",IF(Sheet1!$Z$1=4,'Tabla de Pagos Crecientes'!E138,$F$62)) -> 0.1299 | F198: =IF($B198="","",IF(Sheet1!$Z$1=4,'Tabla de Pagos Crecientes'!F138,'Tabla Fijos'!F143)) -> 722511.9321 | G198: =IF($B198="","",IF(Sheet1!$Z$1=4,'Tabla de Pagos Crecientes'!G138,'Tabla Fijos'!G143)) -> 11214.51986 | H198: =IF($B198="","",IF(Sheet1!$Z$1=4,'Tabla de Pagos Crecientes'!H138,'Tabla Fijos'!H143)) -> 7925.474221 | I198: =IF($B198=0,0,IF(B198="","",VLOOKUP($B198,'Tabla Fijos'!$B$12:$S$311,8,0))) -> 1268.075875 | J198: =IF($B198="","",IF(Sheet1!$Z$1=4,'Tabla de Pagos Crecientes'!J138,'Tabla Fijos'!K143)) -> 433.5071593 | K198: =IF($B198="","",IF(Sheet1!$Z$1=4,'Tabla de Pagos Crecientes'!K138,'Tabla Fijos'!L143)) -> 490 | L198: =IF($B198="","",IF(Sheet1!$Z$1=4,'Tabla de Pagos Crecientes'!L138,'Tabla Fijos'!M143)) -> 360 | M198: =IF($B198="","",IF(Sheet1!$Z$1=4,'Tabla de Pagos Crecientes'!M138,'Tabla Fijos'!N143)) -> 0 | O198: =IF($B198="","",IF(Sheet1!$Z$1=4,'Tabla de Pagos Crecientes'!O138,'Tabla Fijos'!Q143)) -> 0 | P198: =IF(B198="","",G198+H198+I198+J198+K198+L198-M198-'Tabla Fijos'!P143) -> 21691.57711 | Q198: 711297.4123 | R198: 1
B199: 133 | C199: =IF($B199="","",'Fecha Pago'!K136) -> 2037-02-03 | D199: =IF($B$67="","",'Fecha Pago'!L136) -> 30.4 | E199: =IF(B199="","",IF(Sheet1!$Z$1=4,'Tabla de Pagos Crecientes'!E139,$F$62)) -> 0.1299 | F199: =IF($B199="","",IF(Sheet1!$Z$1=4,'Tabla de Pagos Crecientes'!F139,'Tabla Fijos'!F144)) -> 711297.4123 | G199: =IF($B199="","",IF(Sheet1!$Z$1=4,'Tabla de Pagos Crecientes'!G139,'Tabla Fijos'!G144)) -> 11337.53566 | H199: =IF($B199="","",IF(Sheet1!$Z$1=4,'Tabla de Pagos Crecientes'!H139,'Tabla Fijos'!H144)) -> 7802.458415 | I199: =IF($B199=0,0,IF(B199="","",VLOOKUP($B199,'Tabla Fijos'!$B$12:$S$311,8,0))) -> 1248.393346 | J199: =IF($B199="","",IF(Sheet1!$Z$1=4,'Tabla de Pagos Crecientes'!J139,'Tabla Fijos'!K144)) -> 426.7784474 | K199: =IF($B199="","",IF(Sheet1!$Z$1=4,'Tabla de Pagos Crecientes'!K139,'Tabla Fijos'!L144)) -> 490 | L199: =IF($B199="","",IF(Sheet1!$Z$1=4,'Tabla de Pagos Crecientes'!L139,'Tabla Fijos'!M144)) -> 360 | M199: =IF($B199="","",IF(Sheet1!$Z$1=4,'Tabla de Pagos Crecientes'!M139,'Tabla Fijos'!N144)) -> 0 | O199: =IF($B199="","",IF(Sheet1!$Z$1=4,'Tabla de Pagos Crecientes'!O139,'Tabla Fijos'!Q144)) -> 0 | P199: =IF(B199="","",G199+H199+I199+J199+K199+L199-M199-'Tabla Fijos'!P144) -> 21665.16587 | Q199: 699959.8766 | R199: 1
B200: 134 | C200: =IF($B200="","",'Fecha Pago'!K137) -> 2037-03-03 | D200: =IF($B$67="","",'Fecha Pago'!L137) -> 30.4 | E200: =IF(B200="","",IF(Sheet1!$Z$1=4,'Tabla de Pagos Crecientes'!E140,$F$62)) -> 0.1299 | F200: =IF($B200="","",IF(Sheet1!$Z$1=4,'Tabla de Pagos Crecientes'!F140,'Tabla Fijos'!F145)) -> 699959.8766 | G200: =IF($B200="","",IF(Sheet1!$Z$1=4,'Tabla de Pagos Crecientes'!G140,'Tabla Fijos'!G145)) -> 11461.90087 | H200: =IF($B200="","",IF(Sheet1!$Z$1=4,'Tabla de Pagos Crecientes'!H140,'Tabla Fijos'!H145)) -> 7678.093207 | I200: =IF($B200=0,0,IF(B200="","",VLOOKUP($B200,'Tabla Fijos'!$B$12:$S$311,8,0))) -> 1228.494913 | J200: =IF($B200="","",IF(Sheet1!$Z$1=4,'Tabla de Pagos Crecientes'!J140,'Tabla Fijos'!K145)) -> 419.975926 | K200: =IF($B200="","",IF(Sheet1!$Z$1=4,'Tabla de Pagos Crecientes'!K140,'Tabla Fijos'!L145)) -> 490 | L200: =IF($B200="","",IF(Sheet1!$Z$1=4,'Tabla de Pagos Crecientes'!L140,'Tabla Fijos'!M145)) -> 360 | M200: =IF($B200="","",IF(Sheet1!$Z$1=4,'Tabla de Pagos Crecientes'!M140,'Tabla Fijos'!N145)) -> 0 | O200: =IF($B200="","",IF(Sheet1!$Z$1=4,'Tabla de Pagos Crecientes'!O140,'Tabla Fijos'!Q145)) -> 0 | P200: =IF(B200="","",G200+H200+I200+J200+K200+L200-M200-'Tabla Fijos'!P145) -> 21638.46492 | Q200: 688497.9758 | R200: 1
B201: 135 | C201: =IF($B201="","",'Fecha Pago'!K138) -> 2037-04-03 | D201: =IF($B$67="","",'Fecha Pago'!L138) -> 30.4 | E201: =IF(B201="","",IF(Sheet1!$Z$1=4,'Tabla de Pagos Crecientes'!E141,$F$62)) -> 0.1299 | F201: =IF($B201="","",IF(Sheet1!$Z$1=4,'Tabla de Pagos Crecientes'!F141,'Tabla Fijos'!F146)) -> 688497.9758 | G201: =IF($B201="","",IF(Sheet1!$Z$1=4,'Tabla de Pagos Crecientes'!G141,'Tabla Fijos'!G146)) -> 11587.63028 | H201: =IF($B201="","",IF(Sheet1!$Z$1=4,'Tabla de Pagos Crecientes'!H141,'Tabla Fijos'!H146)) -> 7552.363795 | I201: =IF($B201=0,0,IF(B201="","",VLOOKUP($B201,'Tabla Fijos'!$B$12:$S$311,8,0))) -> 1208.378207 | J201: =IF($B201="","",IF(Sheet1!$Z$1=4,'Tabla de Pagos Crecientes'!J141,'Tabla Fijos'!K146)) -> 413.0987855 | K201: =IF($B201="","",IF(Sheet1!$Z$1=4,'Tabla de Pagos Crecientes'!K141,'Tabla Fijos'!L146)) -> 490 | L201: =IF($B201="","",IF(Sheet1!$Z$1=4,'Tabla de Pagos Crecientes'!L141,'Tabla Fijos'!M146)) -> 360 | M201: =IF($B201="","",IF(Sheet1!$Z$1=4,'Tabla de Pagos Crecientes'!M141,'Tabla Fijos'!N146)) -> 0 | O201: =IF($B201="","",IF(Sheet1!$Z$1=4,'Tabla de Pagos Crecientes'!O141,'Tabla Fijos'!Q146)) -> 0 | P201: =IF(B201="","",G201+H201+I201+J201+K201+L201-M201-'Tabla Fijos'!P146) -> 21611.47107 | Q201: 676910.3455 | R201: 1
B202: 136 | C202: =IF($B202="","",'Fecha Pago'!K139) -> 2037-05-03 | D202: =IF($B$67="","",'Fecha Pago'!L139) -> 30.4 | E202: =IF(B202="","",IF(Sheet1!$Z$1=4,'Tabla de Pagos Crecientes'!E142,$F$62)) -> 0.1299 | F202: =IF($B202="","",IF(Sheet1!$Z$1=4,'Tabla de Pagos Crecientes'!F142,'Tabla Fijos'!F147)) -> 676910.3455 | G202: =IF($B202="","",IF(Sheet1!$Z$1=4,'Tabla de Pagos Crecientes'!G142,'Tabla Fijos'!G147)) -> 11714.73886 | H202: =IF($B202="","",IF(Sheet1!$Z$1=4,'Tabla de Pagos Crecientes'!H142,'Tabla Fijos'!H147)) -> 7425.255216 | I202: =IF($B202=0,0,IF(B202="","",VLOOKUP($B202,'Tabla Fijos'!$B$12:$S$311,8,0))) -> 1188.040835 | J202: =IF($B202="","",IF(Sheet1!$Z$1=4,'Tabla de Pagos Crecientes'!J142,'Tabla Fijos'!K147)) -> 406.1462073 | K202: =IF($B202="","",IF(Sheet1!$Z$1=4,'Tabla de Pagos Crecientes'!K142,'Tabla Fijos'!L147)) -> 490 | L202: =IF($B202="","",IF(Sheet1!$Z$1=4,'Tabla de Pagos Crecientes'!L142,'Tabla Fijos'!M147)) -> 360 | M202: =IF($B202="","",IF(Sheet1!$Z$1=4,'Tabla de Pagos Crecientes'!M142,'Tabla Fijos'!N147)) -> 0 | O202: =IF($B202="","",IF(Sheet1!$Z$1=4,'Tabla de Pagos Crecientes'!O142,'Tabla Fijos'!Q147)) -> 0 | P202: =IF(B202="","",G202+H202+I202+J202+K202+L202-M202-'Tabla Fijos'!P147) -> 21584.18112 | Q202: 665195.6066 | R202: 1
B203: 137 | C203: =IF($B203="","",'Fecha Pago'!K140) -> 2037-06-03 | D203: =IF($B$67="","",'Fecha Pago'!L140) -> 30.4 | E203: =IF(B203="","",IF(Sheet1!$Z$1=4,'Tabla de Pagos Crecientes'!E143,$F$62)) -> 0.1299 | F203: =IF($B203="","",IF(Sheet1!$Z$1=4,'Tabla de Pagos Crecientes'!F143,'Tabla Fijos'!F148)) -> 665195.6066 | G203: =IF($B203="","",IF(Sheet1!$Z$1=4,'Tabla de Pagos Crecientes'!G143,'Tabla Fijos'!G148)) -> 11843.24174 | H203: =IF($B203="","",IF(Sheet1!$Z$1=4,'Tabla de Pagos Crecientes'!H143,'Tabla Fijos'!H148)) -> 7296.752341 | I203: =IF($B203=0,0,IF(B203="","",VLOOKUP($B203,'Tabla Fijos'!$B$12:$S$311,8,0))) -> 1167.480375 | J203: =IF($B203="","",IF(Sheet1!$Z$1=4,'Tabla de Pagos Crecientes'!J143,'Tabla Fijos'!K148)) -> 399.117364 | K203: =IF($B203="","",IF(Sheet1!$Z$1=4,'Tabla de Pagos Crecientes'!K143,'Tabla Fijos'!L148)) -> 490 | L203: =IF($B203="","",IF(Sheet1!$Z$1=4,'Tabla de Pagos Crecientes'!L143,'Tabla Fijos'!M148)) -> 360 | M203: =IF($B203="","",IF(Sheet1!$Z$1=4,'Tabla de Pagos Crecientes'!M143,'Tabla Fijos'!N148)) -> 0 | O203: =IF($B203="","",IF(Sheet1!$Z$1=4,'Tabla de Pagos Crecientes'!O143,'Tabla Fijos'!Q148)) -> 0 | P203: =IF(B203="","",G203+H203+I203+J203+K203+L203-M203-'Tabla Fijos'!P148) -> 21556.59182 | Q203: 653352.3649 | R203: 1
B204: 138 | C204: =IF($B204="","",'Fecha Pago'!K141) -> 2037-07-03 | D204: =IF($B$67="","",'Fecha Pago'!L141) -> 30.4 | E204: =IF(B204="","",IF(Sheet1!$Z$1=4,'Tabla de Pagos Crecientes'!E144,$F$62)) -> 0.1299 | F204: =IF($B204="","",IF(Sheet1!$Z$1=4,'Tabla de Pagos Crecientes'!F144,'Tabla Fijos'!F149)) -> 653352.3649 | G204: =IF($B204="","",IF(Sheet1!$Z$1=4,'Tabla de Pagos Crecientes'!G144,'Tabla Fijos'!G149)) -> 11973.1542 | H204: =IF($B204="","",IF(Sheet1!$Z$1=4,'Tabla de Pagos Crecientes'!H144,'Tabla Fijos'!H149)) -> 7166.839874 | I204: =IF($B204=0,0,IF(B204="","",VLOOKUP($B204,'Tabla Fijos'!$B$12:$S$311,8,0))) -> 1146.69438 | J204: =IF($B204="","",IF(Sheet1!$Z$1=4,'Tabla de Pagos Crecientes'!J144,'Tabla Fijos'!K149)) -> 392.0114189 | K204: =IF($B204="","",IF(Sheet1!$Z$1=4,'Tabla de Pagos Crecientes'!K144,'Tabla Fijos'!L149)) -> 490 | L204: =IF($B204="","",IF(Sheet1!$Z$1=4,'Tabla de Pagos Crecientes'!L144,'Tabla Fijos'!M149)) -> 360 | M204: =IF($B204="","",IF(Sheet1!$Z$1=4,'Tabla de Pagos Crecientes'!M144,'Tabla Fijos'!N149)) -> 0 | O204: =IF($B204="","",IF(Sheet1!$Z$1=4,'Tabla de Pagos Crecientes'!O144,'Tabla Fijos'!Q149)) -> 0 | P204: =IF(B204="","",G204+H204+I204+J204+K204+L204-M204-'Tabla Fijos'!P149) -> 21528.69988 | Q204: 641379.2107 | R204: 1
B205: 139 | C205: =IF($B205="","",'Fecha Pago'!K142) -> 2037-08-03 | D205: =IF($B$67="","",'Fecha Pago'!L142) -> 30.4 | E205: =IF(B205="","",IF(Sheet1!$Z$1=4,'Tabla de Pagos Crecientes'!E145,$F$62)) -> 0.1299 | F205: =IF($B205="","",IF(Sheet1!$Z$1=4,'Tabla de Pagos Crecientes'!F145,'Tabla Fijos'!F150)) -> 641379.2107 | G205: =IF($B205="","",IF(Sheet1!$Z$1=4,'Tabla de Pagos Crecientes'!G145,'Tabla Fijos'!G150)) -> 12104.49172 | H205: =IF($B205="","",IF(Sheet1!$Z$1=4,'Tabla de Pagos Crecientes'!H145,'Tabla Fijos'!H150)) -> 7035.502355 | I205: =IF($B205=0,0,IF(B205="","",VLOOKUP($B205,'Tabla Fijos'!$B$12:$S$311,8,0))) -> 1125.680377 | J205: =IF($B205="","",IF(Sheet1!$Z$1=4,'Tabla de Pagos Crecientes'!J145,'Tabla Fijos'!K150)) -> 384.8275264 | K205: =IF($B205="","",IF(Sheet1!$Z$1=4,'Tabla de Pagos Crecientes'!K145,'Tabla Fijos'!L150)) -> 490 | L205: =IF($B205="","",IF(Sheet1!$Z$1=4,'Tabla de Pagos Crecientes'!L145,'Tabla Fijos'!M150)) -> 360 | M205: =IF($B205="","",IF(Sheet1!$Z$1=4,'Tabla de Pagos Crecientes'!M145,'Tabla Fijos'!N150)) -> 0 | O205: =IF($B205="","",IF(Sheet1!$Z$1=4,'Tabla de Pagos Crecientes'!O145,'Tabla Fijos'!Q150)) -> 0 | P205: =IF(B205="","",G205+H205+I205+J205+K205+L205-M205-'Tabla Fijos'!P150) -> 21500.50198 | Q205: 629274.719 | R205: 1
B206: 140 | C206: =IF($B206="","",'Fecha Pago'!K143) -> 2037-09-03 | D206: =IF($B$67="","",'Fecha Pago'!L143) -> 30.4 | E206: =IF(B206="","",IF(Sheet1!$Z$1=4,'Tabla de Pagos Crecientes'!E146,$F$62)) -> 0.1299 | F206: =IF($B206="","",IF(Sheet1!$Z$1=4,'Tabla de Pagos Crecientes'!F146,'Tabla Fijos'!F151)) -> 629274.719 | G206: =IF($B206="","",IF(Sheet1!$Z$1=4,'Tabla de Pagos Crecientes'!G146,'Tabla Fijos'!G151)) -> 12237.26993 | H206: =IF($B206="","",IF(Sheet1!$Z$1=4,'Tabla de Pagos Crecientes'!H146,'Tabla Fijos'!H151)) -> 6902.72415 | I206: =IF($B206=0,0,IF(B206="","",VLOOKUP($B206,'Tabla Fijos'!$B$12:$S$311,8,0))) -> 1104.435864 | J206: =IF($B206="","",IF(Sheet1!$Z$1=4,'Tabla de Pagos Crecientes'!J146,'Tabla Fijos'!K151)) -> 377.5648314 | K206: =IF($B206="","",IF(Sheet1!$Z$1=4,'Tabla de Pagos Crecientes'!K146,'Tabla Fijos'!L151)) -> 490 | L206: =IF($B206="","",IF(Sheet1!$Z$1=4,'Tabla de Pagos Crecientes'!L146,'Tabla Fijos'!M151)) -> 360 | M206: =IF($B206="","",IF(Sheet1!$Z$1=4,'Tabla de Pagos Crecientes'!M146,'Tabla Fijos'!N151)) -> 0 | O206: =IF($B206="","",IF(Sheet1!$Z$1=4,'Tabla de Pagos Crecientes'!O146,'Tabla Fijos'!Q151)) -> 0 | P206: =IF(B206="","",G206+H206+I206+J206+K206+L206-M206-'Tabla Fijos'!P151) -> 21471.99477 | Q206: 617037.449 | R206: 1
B207: 141 | C207: =IF($B207="","",'Fecha Pago'!K144) -> 2037-10-03 | D207: =IF($B$67="","",'Fecha Pago'!L144) -> 30.4 | E207: =IF(B207="","",IF(Sheet1!$Z$1=4,'Tabla de Pagos Crecientes'!E147,$F$62)) -> 0.1299 | F207: =IF($B207="","",IF(Sheet1!$Z$1=4,'Tabla de Pagos Crecientes'!F147,'Tabla Fijos'!F152)) -> 617037.449 | G207: =IF($B207="","",IF(Sheet1!$Z$1=4,'Tabla de Pagos Crecientes'!G147,'Tabla Fijos'!G152)) -> 12371.50462 | H207: =IF($B207="","",IF(Sheet1!$Z$1=4,'Tabla de Pagos Crecientes'!H147,'Tabla Fijos'!H152)) -> 6768.489458 | I207: =IF($B207=0,0,IF(B207="","",VLOOKUP($B207,'Tabla Fijos'!$B$12:$S$311,8,0))) -> 1082.958313 | J207: =IF($B207="","",IF(Sheet1!$Z$1=4,'Tabla de Pagos Crecientes'!J147,'Tabla Fijos'!K152)) -> 370.2224694 | K207: =IF($B207="","",IF(Sheet1!$Z$1=4,'Tabla de Pagos Crecientes'!K147,'Tabla Fijos'!L152)) -> 490 | L207: =IF($B207="","",IF(Sheet1!$Z$1=4,'Tabla de Pagos Crecientes'!L147,'Tabla Fijos'!M152)) -> 360 | M207: =IF($B207="","",IF(Sheet1!$Z$1=4,'Tabla de Pagos Crecientes'!M147,'Tabla Fijos'!N152)) -> 0 | O207: =IF($B207="","",IF(Sheet1!$Z$1=4,'Tabla de Pagos Crecientes'!O147,'Tabla Fijos'!Q152)) -> 0 | P207: =IF(B207="","",G207+H207+I207+J207+K207+L207-M207-'Tabla Fijos'!P152) -> 21443.17486 | Q207: 604665.9444 | R207: 1
B208: 142 | C208: =IF($B208="","",'Fecha Pago'!K145) -> 2037-11-03 | D208: =IF($B$67="","",'Fecha Pago'!L145) -> 30.4 | E208: =IF(B208="","",IF(Sheet1!$Z$1=4,'Tabla de Pagos Crecientes'!E148,$F$62)) -> 0.1299 | F208: =IF($B208="","",IF(Sheet1!$Z$1=4,'Tabla de Pagos Crecientes'!F148,'Tabla Fijos'!F153)) -> 604665.9444 | G208: =IF($B208="","",IF(Sheet1!$Z$1=4,'Tabla de Pagos Crecientes'!G148,'Tabla Fijos'!G153)) -> 12507.21178 | H208: =IF($B208="","",IF(Sheet1!$Z$1=4,'Tabla de Pagos Crecientes'!H148,'Tabla Fijos'!H153)) -> 6632.782299 | I208: =IF($B208=0,0,IF(B208="","",VLOOKUP($B208,'Tabla Fijos'!$B$12:$S$311,8,0))) -> 1061.245168 | J208: =IF($B208="","",IF(Sheet1!$Z$1=4,'Tabla de Pagos Crecientes'!J148,'Tabla Fijos'!K153)) -> 362.7995666 | K208: =IF($B208="","",IF(Sheet1!$Z$1=4,'Tabla de Pagos Crecientes'!K148,'Tabla Fijos'!L153)) -> 490 | L208: =IF($B208="","",IF(Sheet1!$Z$1=4,'Tabla de Pagos Crecientes'!L148,'Tabla Fijos'!M153)) -> 360 | M208: =IF($B208="","",IF(Sheet1!$Z$1=4,'Tabla de Pagos Crecientes'!M148,'Tabla Fijos'!N153)) -> 0 | O208: =IF($B208="","",IF(Sheet1!$Z$1=4,'Tabla de Pagos Crecientes'!O148,'Tabla Fijos'!Q153)) -> 0 | P208: =IF(B208="","",G208+H208+I208+J208+K208+L208-M208-'Tabla Fijos'!P153) -> 21414.03881 | Q208: 592158.7326 | R208: 1
B209: 143 | C209: =IF($B209="","",'Fecha Pago'!K146) -> 2037-12-03 | D209: =IF($B$67="","",'Fecha Pago'!L146) -> 30.4 | E209: =IF(B209="","",IF(Sheet1!$Z$1=4,'Tabla de Pagos Crecientes'!E149,$F$62)) -> 0.1299 | F209: =IF($B209="","",IF(Sheet1!$Z$1=4,'Tabla de Pagos Crecientes'!F149,'Tabla Fijos'!F154)) -> 592158.7326 | G209: =IF($B209="","",IF(Sheet1!$Z$1=4,'Tabla de Pagos Crecientes'!G149,'Tabla Fijos'!G154)) -> 12644.40755 | H209: =IF($B209="","",IF(Sheet1!$Z$1=4,'Tabla de Pagos Crecientes'!H149,'Tabla Fijos'!H154)) -> 6495.586524 | I209: =IF($B209=0,0,IF(B209="","",VLOOKUP($B209,'Tabla Fijos'!$B$12:$S$311,8,0))) -> 1039.293844 | J209: =IF($B209="","",IF(Sheet1!$Z$1=4,'Tabla de Pagos Crecientes'!J149,'Tabla Fijos'!K154)) -> 355.2952396 | K209: =IF($B209="","",IF(Sheet1!$Z$1=4,'Tabla de Pagos Crecientes'!K149,'Tabla Fijos'!L154)) -> 490 | L209: =IF($B209="","",IF(Sheet1!$Z$1=4,'Tabla de Pagos Crecientes'!L149,'Tabla Fijos'!M154)) -> 360 | M209: =IF($B209="","",IF(Sheet1!$Z$1=4,'Tabla de Pagos Crecientes'!M149,'Tabla Fijos'!N154)) -> 0 | O209: =IF($B209="","",IF(Sheet1!$Z$1=4,'Tabla de Pagos Crecientes'!O149,'Tabla Fijos'!Q154)) -> 0 | P209: =IF(B209="","",G209+H209+I209+J209+K209+L209-M209-'Tabla Fijos'!P154) -> 21384.58316 | Q209: 579514.3251 | R209: 1
B210: 144 | C210: =IF($B210="","",'Fecha Pago'!K147) -> 2038-01-03 | D210: =IF($B$67="","",'Fecha Pago'!L147) -> 30.4 | E210: =IF(B210="","",IF(Sheet1!$Z$1=4,'Tabla de Pagos Crecientes'!E150,$F$62)) -> 0.1299 | F210: =IF($B210="","",IF(Sheet1!$Z$1=4,'Tabla de Pagos Crecientes'!F150,'Tabla Fijos'!F155)) -> 579514.3251 | G210: =IF($B210="","",IF(Sheet1!$Z$1=4,'Tabla de Pagos Crecientes'!G150,'Tabla Fijos'!G155)) -> 12783.10827 | H210: =IF($B210="","",IF(Sheet1!$Z$1=4,'Tabla de Pagos Crecientes'!H150,'Tabla Fijos'!H155)) -> 6356.885803 | I210: =IF($B210=0,0,IF(B210="","",VLOOKUP($B210,'Tabla Fijos'!$B$12:$S$311,8,0))) -> 1017.101729 | J210: =IF($B210="","",IF(Sheet1!$Z$1=4,'Tabla de Pagos Crecientes'!J150,'Tabla Fijos'!K155)) -> 347.708595 | K210: =IF($B210="","",IF(Sheet1!$Z$1=4,'Tabla de Pagos Crecientes'!K150,'Tabla Fijos'!L155)) -> 490 | L210: =IF($B210="","",IF(Sheet1!$Z$1=4,'Tabla de Pagos Crecientes'!L150,'Tabla Fijos'!M155)) -> 360 | M210: =IF($B210="","",IF(Sheet1!$Z$1=4,'Tabla de Pagos Crecientes'!M150,'Tabla Fijos'!N155)) -> 0 | O210: =IF($B210="","",IF(Sheet1!$Z$1=4,'Tabla de Pagos Crecientes'!O150,'Tabla Fijos'!Q155)) -> 0 | P210: =IF(B210="","",G210+H210+I210+J210+K210+L210-M210-'Tabla Fijos'!P155) -> 21354.8044 | Q210: 566731.2168 | R210: 1
B211: 145 | C211: =IF($B211="","",'Fecha Pago'!K148) -> 2038-02-03 | D211: =IF($B$67="","",'Fecha Pago'!L148) -> 30.4 | E211: =IF(B211="","",IF(Sheet1!$Z$1=4,'Tabla de Pagos Crecientes'!E151,$F$62)) -> 0.1299 | F211: =IF($B211="","",IF(Sheet1!$Z$1=4,'Tabla de Pagos Crecientes'!F151,'Tabla Fijos'!F156)) -> 566731.2168 | G211: =IF($B211="","",IF(Sheet1!$Z$1=4,'Tabla de Pagos Crecientes'!G151,'Tabla Fijos'!G156)) -> 12923.33045 | H211: =IF($B211="","",IF(Sheet1!$Z$1=4,'Tabla de Pagos Crecientes'!H151,'Tabla Fijos'!H156)) -> 6216.663627 | I211: =IF($B211=0,0,IF(B211="","",VLOOKUP($B211,'Tabla Fijos'!$B$12:$S$311,8,0))) -> 994.6661804 | J211: =IF($B211="","",IF(Sheet1!$Z$1=4,'Tabla de Pagos Crecientes'!J151,'Tabla Fijos'!K156)) -> 340.0387301 | K211: =IF($B211="","",IF(Sheet1!$Z$1=4,'Tabla de Pagos Crecientes'!K151,'Tabla Fijos'!L156)) -> 490 | L211: =IF($B211="","",IF(Sheet1!$Z$1=4,'Tabla de Pagos Crecientes'!L151,'Tabla Fijos'!M156)) -> 360 | M211: =IF($B211="","",IF(Sheet1!$Z$1=4,'Tabla de Pagos Crecientes'!M151,'Tabla Fijos'!N156)) -> 0 | O211: =IF($B211="","",IF(Sheet1!$Z$1=4,'Tabla de Pagos Crecientes'!O151,'Tabla Fijos'!Q156)) -> 0 | P211: =IF(B211="","",G211+H211+I211+J211+K211+L211-M211-'Tabla Fijos'!P156) -> 21324.69899 | Q211: 553807.8863 | R211: 1
B212: 146 | C212: =IF($B212="","",'Fecha Pago'!K149) -> 2038-03-03 | D212: =IF($B$67="","",'Fecha Pago'!L149) -> 30.4 | E212: =IF(B212="","",IF(Sheet1!$Z$1=4,'Tabla de Pagos Crecientes'!E152,$F$62)) -> 0.1299 | F212: =IF($B212="","",IF(Sheet1!$Z$1=4,'Tabla de Pagos Crecientes'!F152,'Tabla Fijos'!F157)) -> 553807.8863 | G212: =IF($B212="","",IF(Sheet1!$Z$1=4,'Tabla de Pagos Crecientes'!G152,'Tabla Fijos'!G157)) -> 13065.09077 | H212: =IF($B212="","",IF(Sheet1!$Z$1=4,'Tabla de Pagos Crecientes'!H152,'Tabla Fijos'!H157)) -> 6074.903308 | I212: =IF($B212=0,0,IF(B212="","",VLOOKUP($B212,'Tabla Fijos'!$B$12:$S$311,8,0))) -> 971.9845293 | J212: =IF($B212="","",IF(Sheet1!$Z$1=4,'Tabla de Pagos Crecientes'!J152,'Tabla Fijos'!K157)) -> 332.2847318 | K212: =IF($B212="","",IF(Sheet1!$Z$1=4,'Tabla de Pagos Crecientes'!K152,'Tabla Fijos'!L157)) -> 490 | L212: =IF($B212="","",IF(Sheet1!$Z$1=4,'Tabla de Pagos Crecientes'!L152,'Tabla Fijos'!M157)) -> 360 | M212: =IF($B212="","",IF(Sheet1!$Z$1=4,'Tabla de Pagos Crecientes'!M152,'Tabla Fijos'!N157)) -> 0 | O212: =IF($B212="","",IF(Sheet1!$Z$1=4,'Tabla de Pagos Crecientes'!O152,'Tabla Fijos'!Q157)) -> 0 | P212: =IF(B212="","",G212+H212+I212+J212+K212+L212-M212-'Tabla Fijos'!P157) -> 21294.26334 | Q212: 540742.7956 | R212: 1
B213: 147 | C213: =IF($B213="","",'Fecha Pago'!K150) -> 2038-04-03 | D213: =IF($B$67="","",'Fecha Pago'!L150) -> 30.4 | E213: =IF(B213="","",IF(Sheet1!$Z$1=4,'Tabla de Pagos Crecientes'!E153,$F$62)) -> 0.1299 | F213: =IF($B213="","",IF(Sheet1!$Z$1=4,'Tabla de Pagos Crecientes'!F153,'Tabla Fijos'!F158)) -> 540742.7956 | G213: =IF($B213="","",IF(Sheet1!$Z$1=4,'Tabla de Pagos Crecientes'!G153,'Tabla Fijos'!G158)) -> 13208.40611 | H213: =IF($B213="","",IF(Sheet1!$Z$1=4,'Tabla de Pagos Crecientes'!H153,'Tabla Fijos'!H158)) -> 5931.587972 | I213: =IF($B213=0,0,IF(B213="","",VLOOKUP($B213,'Tabla Fijos'!$B$12:$S$311,8,0))) -> 949.0540756 | J213: =IF($B213="","",IF(Sheet1!$Z$1=4,'Tabla de Pagos Crecientes'!J153,'Tabla Fijos'!K158)) -> 324.4456773 | K213: =IF($B213="","",IF(Sheet1!$Z$1=4,'Tabla de Pagos Crecientes'!K153,'Tabla Fijos'!L158)) -> 490 | L213: =IF($B213="","",IF(Sheet1!$Z$1=4,'Tabla de Pagos Crecientes'!L153,'Tabla Fijos'!M158)) -> 360 | M213: =IF($B213="","",IF(Sheet1!$Z$1=4,'Tabla de Pagos Crecientes'!M153,'Tabla Fijos'!N158)) -> 0 | O213: =IF($B213="","",IF(Sheet1!$Z$1=4,'Tabla de Pagos Crecientes'!O153,'Tabla Fijos'!Q158)) -> 0 | P213: =IF(B213="","",G213+H213+I213+J213+K213+L213-M213-'Tabla Fijos'!P158) -> 21263.49383 | Q213: 527534.3895 | R213: 1
B214: 148 | C214: =IF($B214="","",'Fecha Pago'!K151) -> 2038-05-03 | D214: =IF($B$67="","",'Fecha Pago'!L151) -> 30.4 | E214: =IF(B214="","",IF(Sheet1!$Z$1=4,'Tabla de Pagos Crecientes'!E154,$F$62)) -> 0.1299 | F214: =IF($B214="","",IF(Sheet1!$Z$1=4,'Tabla de Pagos Crecientes'!F154,'Tabla Fijos'!F159)) -> 527534.3895 | G214: =IF($B214="","",IF(Sheet1!$Z$1=4,'Tabla de Pagos Crecientes'!G154,'Tabla Fijos'!G159)) -> 13353.29351 | H214: =IF($B214="","",IF(Sheet1!$Z$1=4,'Tabla de Pagos Crecientes'!H154,'Tabla Fijos'!H159)) -> 5786.700563 | I214: =IF($B214=0,0,IF(B214="","",VLOOKUP($B214,'Tabla Fijos'!$B$12:$S$311,8,0))) -> 925.8720901 | J214: =IF($B214="","",IF(Sheet1!$Z$1=4,'Tabla de Pagos Crecientes'!J154,'Tabla Fijos'!K159)) -> 316.5206337 | K214: =IF($B214="","",IF(Sheet1!$Z$1=4,'Tabla de Pagos Crecientes'!K154,'Tabla Fijos'!L159)) -> 490 | L214: =IF($B214="","",IF(Sheet1!$Z$1=4,'Tabla de Pagos Crecientes'!L154,'Tabla Fijos'!M159)) -> 360 | M214: =IF($B214="","",IF(Sheet1!$Z$1=4,'Tabla de Pagos Crecientes'!M154,'Tabla Fijos'!N159)) -> 0 | O214: =IF($B214="","",IF(Sheet1!$Z$1=4,'Tabla de Pagos Crecientes'!O154,'Tabla Fijos'!Q159)) -> 0 | P214: =IF(B214="","",G214+H214+I214+J214+K214+L214-M214-'Tabla Fijos'!P159) -> 21232.3868 | Q214: 514181.096 | R214: 1
... 416 more rows

Sheet COFINAVIT (hidden)
B1: Cálculos | F1: Avalúo | G1: =Simulador!N11 -> 2500000 | I1: Tasa | J1: =Simulador!$F$62 -> 0.1299 | L1: =J1/360*30.4 -> 0.01096933333 | M1: VDC_i
B2: Ingreso Mínimo | C2: =G2*G4 -> 11178.232 | D2: UMA´25 * Ingreso Mínimo | F2: UMA ´25 | G2: 113.14 | I2: Crédito Banorte Mínimo | J2: 75000 | L2: 1 | M2: Crédito
B3: Ingreso | C3: =Simulador!$H$24+Simulador!$I$24+Simulador!$J$28 -> 0 | D3: Ingreso Titular + Conyuge | F3: Factor Mes | G3: 30.4 | I3: Periodos | J3: =Simulador!F19 -> 180 | L3: =L1*L2 -> 0.01096933333 | M3: Interés | N3: =PPMT(L1,1,J3,-L2) -> 0.001790662718 | O3: Capital
B4: Ingreso Tit en VSM | C4: =C3/G2/30.4 -> 0 | D4: Ingreso Titular / UMA ´24 /Factor Mes | F4: Ingreso Mínimo | G4: 98.8 | I4: Periodos por Año | J4: 12 | L4: 0.01 | M4: Crédito total
F5: Descuento Ecotec | G5: =Ecotecnologias!G4 -> 0 | I5: Aforo Max | J5: =IF(Sheet1!$I$1=3,85%,95%) -> 0.95 | K5: =IF(J5=85%,"Máximo 85%","Máximo 95%") -> Máximo 95%
B6: Saldo Subcuenta | C6: =Simulador!H25+Simulador!I25 -> 0 | D6: Subcuenta Titular + Subcuenta Conyuge | F6: Relación Ingreso Pago | G6: 2 | I6: Aportación Opcional | J6: =Simulador!$H$28 -> 0
B7: Crédito Institución | C7: =Simulador!H26+Simulador!I26 -> 0 | D7: Crédito Titular + Crédito Conyuge | F7: Factor Incremento Avalúo | G7: 0
B8: Descuento Total | C8: =(Simulador!H27+Simulador!I27)+G5 -> 0 | D8: Desc Titular + Desc Conyuge + Ecotec | F8: Umbral Incremento Avalúo | G8: 7000000
B9: Ingreso Neto | C9: =C3-C8 -> 0 | D9: Ingreso - Desc Total | F9: Comisión de Crédito | G9: 0.03
B10: Capacidad de Pago | C10: =C9/G6 -> 0 | D10: Ingreso Neto / Relación Ingreso Pago | F10: Max Crédito Cofinavit | G10: =G11*325 -> 1117823.2
G11: =G2*30.4 -> 3439.456
B12: Incremento Programa | C12: =G1*G7 -> 0 | D12: Avalúo * Factor Incremento Avalúo
B13: Selección de Incremento | C13: =MIN(C12,C6) -> 0 | D13: MIN(Incremento Programa,Saldo Subcuenta)
B14: Incremento Avalúo | C14: =C13*(G1<=G8) -> 0 | D14: Selección de Incremento * (Avalúo <= Umbral Incremento Avalúo) | G14: Ingreso mínimo $10,000.00
B15: Avalúo Ajustado | C15: =G1+C14 -> 2500000 | D15: Avalúo + Incremento Avalúo
B17: Crédito por Ingreso | C17: =MAX(-PV(J1/J4,J3,C10),J2) -> 75000 | D17: MAX( -VA(Tasa/Periodos por Año,Periodos, Capacidad de Pago), Crédito Banorte Mínimo)
B18: Crédito por Diferencia | C18: =MAX(C15-C6-C7,J2) -> 2500000 | D18: MAX( Avalúo Ajustado - Saldo Subcuenta - Crédito Institución, Crédito Banorte Mínimo)
B20: Crédito Banorte Máximo | C20: =G1*J5 -> 2375000 | D20: Avalúo * Aforo Máximo
B21: Crédito Banorte Tentativo | C21: =MIN(C17,C18,C20) -> 75000 | D21: MIN( Crédito por Ingreso, Crédito por Diferencia, Crédito Banorte Máximo)
B23: Aportación Obligada Tentativa | C23: =MAX(G1-C6-C7-C21,0) -> 2425000 | D23: MAX( Avalúo - Saldo Subcuenta - Crédito Institución - Crédito Banorte Tentativo, 0)
B24: Aportación Opcional Máxima | C24: =C23+C21-J2 -> 2425000 | D24: Aportación Obligada Tentativa + Crédito Banorte Tentativo - Crédito Banorte Mínimo
B25: Aportación Obligada | C25: =MAX(C23-J6,0) -> 2425000 | D25: MAX(Aportación Obligada Tentativa - Aportación Opcional, 0)
B26: Aportación Sobrante | C26: =MAX(J6-C23,0) -> 0 | D26: MAX(Aportación Opcional - Aportación Obligada Tentativa, 0)
B28: Crédito Banorte | C28: =C21-C26 -> 75000 | D28: Crédito Banorte Tentativo - Aportación Sobrante
B30: Recurso Inicial | C30: =C6+C7+C28 -> 75000 | D30: Saldo Subcuenta + Crédito Institución + Crédito Banorte
B31: Recurso Extra | C31: =MAX(C30-G1,0) -> 0 | D31: MAX(Recurso Inicial - Avalúo, 0)
B33: Gastos Infonavit | C33: =C7*G9 -> 0 | D33: Crédito Institución * Comisión de Crédito
A36: Cuenta Infonavit + Banorte
B38: Valor vivienda | C38: =Simulador!$N$11 -> 2500000
B39: Cuenta Infonavit | C39: =Simulador!H36+Simulador!I36 -> 0 | E39: Max Crédito Cofinavit | F39: =G10 -> 1117823.2
B40: Ingreso | C40: =F45 -> 0 | E40: Aforo Max Banorte | F40: =IF(C38<=C50,95%,IF(C38>C50,95%)) -> 0.95
B41: Máx Crédito por ingreso vs Aforo | C41: =IF(F47>F41,F41,F47) -> 75000 | E41: Monto Máximo Banorte | F41: =+C38*F40 -> 2375000
B42: Vivienda - Cuenta Infonavit | C42: =+C38-C39 -> 2500000 | E42: Monto mínimo Banorte | F42: 75000
B43: Crédito Máx por Banco | C43: =IF(Simulador!F15>0,Simulador!F15,IF(C41>C42,C42,C41)) -> 1500000
B44: Infonavit 30% | C44: =IF((C43*0.3)>F39,F39,C43*0.3) -> 450000 | E44: Relación Ingreso Pago | F44: 2
B45: Crédito Banco Posible | C45: =+C43*0.7 -> 1050000 | E45: Ingreso | F45: =Simulador!H35+Simulador!I35 -> 0
B46: Crédito Banco | C46: =MAX(C45,C43-C44) -> 1050000 | E46: Capacidad de pago | F46: =+F45/F44 -> 0
E47: Crédito por ingreso | F47: =MAX(-PV(J49/J52,J51,F46),F42) -> 75000 | G47: MAX( -VA(Tasa/Periodos por Año,Periodos, Capacidad de Pago), Crédito Banorte Mínimo)
B48: Recursos
I49: Tasa | J49: 0.08
B50: Cuenta Infonavit | C50: =C39 -> 0 | I50: Crédito Banorte Mínimo | J50: 75000
B51: Crédito Banco | C51: =C46 -> 1050000 | I51: Periodos | J51: =Simulador!H49 -> 180
B52: Crédito Infonavit | C52: =C44 -> 450000 | I52: Periodos por Año | J52: 12
C53: =+C50+C51+C52 -> 1500000 | I53: Aforo Max | J53: 0.95
B55: Vivienda | C55: =C38 -> 2500000
B56: Recursos | C56: =C53 -> 1500000
B57: Enganche obligado | C57: =+C55-C56 -> 1000000
B62: Gastos Infonavit | C62: =C52*F43 -> 0

Sheet Sheet1 (hidden)
D1: =VLOOKUP(Simulador!F9,Sheet1!B2:D10,3,0) -> 1 | I1: =VLOOKUP(Simulador!N7,Sheet1!H2:I7,2,0) -> 1 | P1: HF | Q1: L y T | R1: FPT | S1: HFATMC | T1: HFATMPF | X1: =VLOOKUP(Simulador!$F$11,Sheet1!$W$2:$X$9,2,0) -> 4 | Y1: =VLOOKUP(Simulador!$F$11,Sheet1!$W$2:$Y$9,3,0) -> 3 | Z1: =VLOOKUP(Simulador!$F$11,Sheet1!$W$2:$Z$9,4,0) -> 6 | AA1: =VLOOKUP(Simulador!$F$11,Sheet1!$W$2:$AA$9,5,0) -> 5 | AB1: =VLOOKUP(Simulador!$F$11,Sheet1!$W$2:$AB$9,6,0) -> 0.1299 | AC1: =IF(AA1=4,AC7,VLOOKUP(AB1,AB2:AC9,2,0)) -> Liquidez
B2: Adquisición | C2: 1 | D2: 1 | E2: =B29 -> Liquidez | F2: 1 | H2: Tradicional | I2: 1 | J2: 1 | M2: 0 | P2: 60 | Q2: 60 | R2: 60 | S2: 180 | T2: 60 | W2: Hipoteca Fuerte | X2: 1 | Y2: 1 | Z2: 1 | AA2: 1 | AB2: ='Tabla Parámetros'!D4 -> 0.0985 | AC2: Mínima
B3: Mejora | C3: 1 | D3: 2 | E3: Más por Menos | F3: 2 | H3: Apoyo INFONAVIT | I3: 2 | J3: 1 | M3: 3 | P3: 72 | Q3: 72 | R3: 120 | S3: 240 | T3: 72 | W3: Hipoteca Fuerte Cero | X3: 1 | Y3: 2 | Z3: 2 | AA3: 2 | AB3: =IF($Z$1=2,AB25,'Tabla Parámetros'!D6) -> 0.1055 | AC3: =IF(W3=Simulador!$F$11,Sheet1!W3,"Media") -> Media
B4: Mejora_más_Remodelación | C4: 1 | D4: 2 | E4: Liquidez | F4: 2 | H4: Cofinavit | I4: 3 | P4: 84 | Q4: 84 | R4: 180 | T4: 84 | W4: Hipoteca Verde Banorte | X4: 1 | Y4: 2 | Z4: 2 | AA4: 2 | AB4: 0.1108 | AC4: Hipoteca Verde Banorte
B5: Remodelación | C5: 1 | D5: 1 | E5: Terreno Urbanizado | F5: 2 | H5: FOVISSSTE para todos | I5: 4 | P5: 96 | Q5: 96 | R5: 240 | T5: 96 | W5: Hipoteca Fuerte con Bonficación | X5: 1 | Y5: 2 | Z5: 3 | AA5: 2 | AB5: =IF($Z$1=3,10.68%,10.98%) -> 0.1098 | AC5: =IF(W5=Simulador!$F$11,Sheet1!W5,"Media") -> Media
B6: Construcción | C6: 2 | D6: 1 | H6: Cuenta INFONAVIT + BANORTE | I6: 5 | P6: 108 | Q6: 108 | R6: 300 | T6: 108 | W6: Hipoteca Fuerte a tu Medida Pagos Crecientes | X6: 2 | Y6: 2 | Z6: 4 | AA6: 3 | AB6: 0.1055 | AC6: Crecientes
B7: Terreno_más_Construcción | C7: 2 | D7: 1 | H7: Ingresos Adicionales FPT | I7: 6 | P7: 120 | Q7: 120 | T7: 120 | W7: Hipoteca Fuerte a tu Medida Pagos Fijos | X7: 3 | Y7: 2 | Z7: 5 | AA7: 4 | AB7: =IF($Z$1=5,AB28,11.08%) -> 0.1108 | AC7: =IF(W7=Simulador!$F$11,"Pagos Fijos","Alta") -> Alta
B8: Compra_Venta_Termino_Obra | C8: 2 | D8: 1 | P8: 132 | Q8: 132 | T8: 132 | W8: Liquidez | X8: 4 | Y8: 3 | Z8: 6 | AA8: 5 | AB8: ='Tabla Parámetros'!C14 -> 0.1299 | AC8: =W8 -> Liquidez
B9: Liquidez | C9: 1 | D9: 1 | P9: 144 | Q9: 144 | T9: 144 | W9: Terreno Urbanizado | X9: 4 | Y9: 3 | Z9: 7 | AA9: 6 | AB9: ='Tabla Parámetros'!C15 -> 0.1068 | AC9: =W9 -> Terreno Urbanizado
B10: Terreno_Urbanizado | C10: 1 | D10: 1 | I10: =VLOOKUP(Simulador!N7,Sheet1!H11:I16,2,0) -> 1 | J10: =+VLOOKUP(Simulador!N7,Sheet1!H11:J16,3,0) -> 1 | P10: 156 | Q10: 156 | T10: 156
H11: Tradicional | I11: 1 | J11: 1 | P11: 168 | Q11: 168 | T11: 168
H12: Apoyo INFONAVIT | I12: 2 | J12: 1 | P12: 180 | Q12: 180 | T12: 180
H13: Cofinavit | I13: 3 | J13: 1 | P13: 192 | T13: 192 | AB13: Tasas para Prepago
B14: =+VLOOKUP(Simulador!$F$9,Sheet1!B15:C23,2,0) -> 2 | D14: =VLOOKUP(Simulador!$F$9,Sheet1!$B$15:$D$23,3,0) -> 3 | E14: =VLOOKUP(Simulador!$F$9,Sheet1!$B$15:$E$23,4,0) -> 4 | H14: Cuenta INFONAVIT + BANORTE | I14: 4 | J14: 1 | P14: 204 | T14: 204 | Y14: =VLOOKUP(Simulador!H49,Sheet1!X15:Y35,2,0) -> 3 | AB14: =Simulador!$F$62 -> 0.1299 | AC14: =VLOOKUP($AB$14,AB15:AD28,2,0) -> 2 | AD14: =VLOOKUP($AB$14,AB15:AD28,3,0) -> 0
B15: Adquisición | C15: 1 | D15: 1 | E15: 1 | H15: FOVISSSTE para todos | I15: 5 | J15: 2 | L15: =VLOOKUP(Simulador!F62,Sheet1!L16:M22,2,0) ->  | P15: 216 | T15: 216 | X15: 60 | Y15: 1 | AA15: Premium | AB15: ='Tabla Parámetros'!D3 -> 0.0915 | AC15: 1 | AD15: =2%*1.16 -> 0.0232
B16: Mejora | C16: 1 | D16: 2 | E16: 2 | H16: Ingresos Adicionales FPT | I16: 6 | J16: 2 | L16: 0.0948 | M16: 1 | P16: 228 | T16: 228 | X16: 72 | Y16: 2 | AA16: Mínima | AB16: ='Tabla Parámetros'!D4 -> 0.0985 | AC16: 1 | AD16: =2%*1.16 -> 0.0232
B17: Mejora_más_Remodelación | C17: 2 | D17: 2 | E17: 3 | L17: 0.09 | M17: 1 | P17: 240 | T17: 240 | X17: 84 | Y17: 2 | AA17: Baja | AB17: ='Tabla Parámetros'!D5 -> 0.1015 | AC17: 2 | AD17: 0
B18: Remodelación | C18: 2 | D18: 3 | E18: 3 | L18: 0.1 | M18: 2 | T18: 252 | X18: 96 | Y18: 2 | AA18: Media | AB18: ='Tabla Parámetros'!D6 -> 0.1055 | AC18: 2 | AD18: 0
B19: Construcción | C19: 2 | D19: 3 | E19: 3 | L19: 0.11 | M19: 2 | T19: 264 | X19: 108 | Y19: 2 | AA19: Alta | AB19: ='Tabla Parámetros'!D7 -> 0.1115 | AC19: 2 | AD19: 0
B20: Terreno_más_Construcción | C20: 2 | D20: 1 | E20: 3 | L20: 0.125 | M20: 2 | T20: 276 | X20: 120 | Y20: 2 | AA20: Liquidez | AB20: ='Tabla Parámetros'!C14 -> 0.1299 | AC20: 2 | AD20: 0
B21: Compra_Venta_Termino_Obra | C21: 2 | D21: 1 | E21: 3 | L21: 0.13 | M21: 2 | T21: 288 | X21: 132 | Y21: 3 | AA21: Terreno | AB21: ='Tabla Parámetros'!C15 -> 0.1068 | AC21: 2 | AD21: 0
B22: Liquidez | C22: 2 | D22: 3 | E22: 4 | L22: 0.157 | M22: 2 | T22: 300 | X22: 144 | Y22: 3 | AA22: FPT | AB22: ='Tabla Parámetros'!D19 -> 0.0978 | AC22: 2 | AD22: 0
B23: Terreno_Urbanizado | C23: 2 | D23: 1 | E23: 5 | X23: 156 | Y23: 3 | AA23: FPT + IA | AB23: ='Tabla Parámetros'!D19 -> 0.0978 | AC23: 2 | AD23: 0
J24: Hipoteca Fuerte | K24: Hipoteca Fuerte Cero | L24: Hipoteca Fuerte con Bonficación | M24: Hipoteca Fuerte a tu Medida Pagos Crecientes | N24: Hipoteca Fuerte a tu Medida Pagos Fijos | O24: Liquidez | P24: Terreno Urbanizado | X24: 168 | Y24: 3 | AA24: Crecientes | AB24: =AB6 -> 0.1055 | AC24: 1 | AD24: =3%*1.16 -> 0.0348
J25: 0.0988 | X25: 180 | Y25: 3 | AA25: HF Cero | AB25: 0.1115 | AC25: 2 | AD25: 0
X26: 192 | Y26: 4 | AA26: H Verde | AB26: 0.1108 | AC26: 2 | AD26: 0
X27: 204 | Y27: 4 | AA27: Boni | AB27: 0.1068 | AC27: 2 | AD27: 0
X28: 216 | Y28: 4 | AA28: ATM | AB28: 0.1108 | AC28: 2 | AD28: 0
B29: =VLOOKUP('Tabla Parámetros'!$W$1,Sheet1!B30:B37,1,0) -> Liquidez | C29: =VLOOKUP('Tabla Parámetros'!$W$1,Sheet1!B30:C37,2,0) -> 360 | I29: =J29/J30 -> 0.6 | J29: =Simulador!F15+Simulador!J21 -> 1500000 | X29: 228 | Y29: 4
B30: Hipoteca Fuerte | C30: ='Tabla Parámetros'!W28 -> 299 | J30: =Simulador!N11 -> 2500000 | X30: 240 | Y30: 4
B31: Hipoteca Fuerte Cero | C31: 0 | X31: 252 | Y31: 5
B32: Hipoteca Verde Banorte | C32: 0 | X32: 264 | Y32: 5
B33: Hipoteca Fuerte con Bonficación | C33: 299 | X33: 276 | Y33: 5
B34: Hipoteca Fuerte a tu Medida Pagos Crecientes | C34: 299 | X34: 288 | Y34: 5
B35: Hipoteca Fuerte a tu Medida Pagos Fijos | C35: 299 | X35: 300 | Y35: 5
B36: Liquidez | C36: 360
B37: Terreno Urbanizado | C37: 250

Sheet Tabla Parámetros (hidden)
R1: Básico | W1: =G45 -> Liquidez | Y1: Más por Menos | AF1: 0
B2: Nombre Tasa | C2: Mejora/Mejora + Remodelación | D2: En General | F2: Mes | G2: Tasa | J2: Destinos | L2: Tipo evaluación | N2: Seguros | P2: Tipo de Pago | R2: Factor Vida | S2: Factor Daños | U2: Comisión Apertura | W2: Plazo en meses | Y2: Plazo en meses | AA2: Hipoteca Fuerte | AC2: Reduce Pago | AF2: 1 | AG2: =IF(Simulador!$F$11='Tabla Parámetros'!$AA$2,'Tabla Parámetros'!AG9,IF(Simulador!$F$11='Tabla Parámetros'!$AA$4,'Tabla Parámetros'!AH9,IF(Simulador!$F$11='Tabla Parámetros'!$AA$5,'Tabla Parámetros'!AI9,IF(Simulador!$F$11='Tabla Parámetros'!$AA$3,'Tabla Parámetros'!AJ9,)))) -> Reduce Pago
B3: Premium | C3: =IF(Simulador!$F$11=Sheet1!$E$2,8.88%,9.15%) -> 0.0888 | D3: =IF(Sheet1!$D$1=2,'Tabla Parámetros'!$C$3,9.15%) -> 0.0915 | F3: 1 | G3: 0.113 | I3: 1 | J3: Adquisición | L3: Por monto del crédito | M3: 1 | N3: Amplio | O3: Hipoteca Fuerte | P3: Pago Fijo | R3: 7.2 | S3: =IF(Sheet1!$I$10=5,0,3.36) -> 3.36 | T3: =T4*1000 -> 3.36 | U3: 0.01 | W3: =IF(Sheet1!$J$10=2,60,X3) -> 60 | X3: =IF(Sheet1!$X$1=1,Sheet1!P2,IF(Sheet1!$X$1=2,Sheet1!S2,IF(Sheet1!$X$1=3,Sheet1!T2,IF(Sheet1!$X$1=4,Sheet1!Q2,"")))) -> 60 | Y3: 180 | AA3: Más por Menos | AC3: Reduce Plazo | AF3: 2 | AG3: =IF(Simulador!$F$11='Tabla Parámetros'!$AA$2,'Tabla Parámetros'!AG10,IF(Simulador!$F$11='Tabla Parámetros'!$AA$4,'Tabla Parámetros'!AH10,IF(Simulador!$F$11='Tabla Parámetros'!$AA$5,'Tabla Parámetros'!AI10,IF(Simulador!$F$11='Tabla Parámetros'!$AA$3," ",)))) -> Reduce Plazo
B4: Mínima | C4: =IF(Simulador!$F$11=Sheet1!$E$2,8.88%,9.85%) -> 0.0888 | D4: =IF(Sheet1!$D$1=2,'Tabla Parámetros'!$C$3,9.85%) -> 0.0985 | F4: 38 | G4: 0.1155 | I4: 2 | J4: Mejora | L4: Por valor de la vivienda | M4: 2 | N4: Básico | O4: Más por Menos | P4: Pago Creciente | R4: =R3/1000 -> 0.0072 | S4: =S3/1000 -> 0.00336 | T4: =T6*12 -> 0.00336 | U4: Promoción | W4: =IF(Sheet1!$J$10=2,120,X4) -> 72 | X4: =IF(Sheet1!$X$1=1,Sheet1!P3,IF(Sheet1!$X$1=2,Sheet1!S3,IF(Sheet1!$X$1=3,Sheet1!T3,IF(Sheet1!$X$1=4,Sheet1!Q3,"")))) -> 72 | Y4: 240 | AA4: Liquidez | AC4: Reduce Plazo y Pago | AF4: 3 | AG4: =IF(Simulador!$F$11='Tabla Parámetros'!$AA$2,'Tabla Parámetros'!AG11,IF(Simulador!$F$11='Tabla Parámetros'!$AA$4,'Tabla Parámetros'!AH11,IF(Simulador!$F$11='Tabla Parámetros'!$AA$5,'Tabla Parámetros'!AI11,IF(Simulador!$F$11='Tabla Parámetros'!$AA$3,"",)))) -> Reduce Plazo y Pago
B5: Baja | C5: 0.1015 | D5: 0.1015 | F5: 74 | G5: 0.118 | I5: 2 | J5: Mejora_más_Remodelación | L5: Por pago mensual | O5: Liquidez | R5: =IF(Sheet1!$Z$1=2,0,0.0006) -> 0.0006 | S5: =IF(Sheet1!$Z$1=2,0,IF(Simulador!F9=J11,0,$S$6)) -> 0.00028 | U5: 0 | W5: =IF(Sheet1!$J$10=2,180,IF(X5=0,"",X5)) -> 84 | X5: =IF(Sheet1!$X$1=1,Sheet1!P4,IF(Sheet1!$X$1=2,Sheet1!S4,IF(Sheet1!$X$1=3,Sheet1!T4,IF(Sheet1!$X$1=4,Sheet1!Q4,"")))) -> 84 | AA5: Terreno_Urbanizado
B6: Media | C6: 0.1055 | D6: 0.1055 | I6: 1 | J6: Remodelación | L6: Por ingreso mensual | N6: SI | O6: Terreno_Urbanizado | R6: =R3/360 -> 0.02 | S6: =S4/12 -> 0.00028 | T6: 0.00028 | U6: Financiada | W6: =IF(Sheet1!$J$10=2,240,IF(X6=0,"",X6)) -> 96 | X6: =IF(Sheet1!$X$1=1,Sheet1!P5,IF(Sheet1!$X$1=2,Sheet1!S5,IF(Sheet1!$X$1=3,Sheet1!T5,IF(Sheet1!$X$1=4,Sheet1!Q5,"")))) -> 96
B7: Alta | C7: 0.1115 | D7: 0.1115 | I7: 1 | J7: Construcción | N7: NO | R7: Amplio | U7: Si | W7: =IF(Sheet1!$J$10=2,300,IF(X7=0,"",X7)) -> 108 | X7: =IF(Sheet1!$X$1=1,Sheet1!P6,IF(Sheet1!$X$1=2,Sheet1!S6,IF(Sheet1!$X$1=3,Sheet1!T6,IF(Sheet1!$X$1=4,Sheet1!Q6,"")))) -> 108 | AM7: =VLOOKUP(Simulador!$F$11,'Tabla Parámetros'!AL8:AM15,2,0) -> 1
I8: 1 | J8: Terreno_más_Construcción | R8: Factor Vida | S8: Factor Daños | U8: No | W8: =IF(Sheet1!$J$10=2,"",IF(X8=0,"",X8)) -> 120 | X8: =IF(Sheet1!$X$1=1,Sheet1!P7,IF(Sheet1!$X$1=2,Sheet1!S7,IF(Sheet1!$X$1=3,Sheet1!T7,IF(Sheet1!$X$1=4,Sheet1!Q7,"")))) -> 120 | Y8: Comisión Investigación | AG8: Hipoteca Fuerte | AH8: Liquidez | AI8: Terreno Urbanizado | AJ8: Más por Menos | AL8: Hipoteca Fuerte | AM8: 1 | AN8: =IF($AM$7=2,"",AG9) -> Reduce Pago
I9: 1 | J9: Compra_Venta_Termino_Obra | N9: Comisión Financiada | R9: 10.2996 | S9: =S3 -> 3.36 | U9: Comisión Ministración | W9: =IF(Sheet1!$J$10=2,"",IF(X9=0,"",X9)) -> 132 | X9: =IF(Sheet1!$X$1=1,Sheet1!P8,IF(Sheet1!$X$1=2,Sheet1!S8,IF(Sheet1!$X$1=3,Sheet1!T8,IF(Sheet1!$X$1=4,Sheet1!Q8,"")))) -> 132 | Y9: 500 | AG9: =IF(OR(Sheet1!$I$10=5),"","Reduce Pago") -> Reduce Pago | AH9: Reduce Pago | AI9: Reduce Pago | AJ9: Reduce Plazo | AL9: Hipoteca Fuerte Cero | AM9: 1 | AN9: =IF($AM$7=2,"Reduce Plazo",AG10) -> Reduce Plazo
B10: Tasas | F10: Tasas | I10: 3 | J10: Liquidez | N10: SI | R10: 0.0008583 | S10: =S6 -> 0.00028 | T10: =IF(Simulador!F9=J11,0,0.00028) -> 0.00028 | U10: 0.01 | W10: =IF(Sheet1!$J$10=2,"",IF(X10=0,"",X10)) -> 144 | X10: =IF(Sheet1!$X$1=1,Sheet1!P9,IF(Sheet1!$X$1=2,Sheet1!S9,IF(Sheet1!$X$1=3,Sheet1!T9,IF(Sheet1!$X$1=4,Sheet1!Q9,"")))) -> 144 | AG10: Reduce Plazo | AH10: Reduce Plazo | AI10: Reduce Plazo | AL10: Hipoteca Verde Banorte | AM10: 1 | AN10: =IF($AM$7=2,"",AG11) -> Reduce Plazo y Pago
I11: 3 | J11: Terreno_Urbanizado | N11: NO | U11: Ministraciones | W11: =IF(Sheet1!$J$10=2,"",IF(X11=0,"",X11)) -> 156 | X11: =IF(Sheet1!$X$1=1,Sheet1!P10,IF(Sheet1!$X$1=2,Sheet1!S10,IF(Sheet1!$X$1=3,Sheet1!T10,IF(Sheet1!$X$1=4,Sheet1!Q10,"")))) -> 156 | Y11: Comisión Diferida | AG11: =IF(OR(Sheet1!$I$10=5),"","Reduce Plazo y Pago") -> Reduce Plazo y Pago | AH11: Reduce Plazo y Pago | AI11: Reduce Plazo y Pago | AL11: Hipoteca Fuerte con Bonficación | AM11: 2
B12: HIPOTECA FUERTE | F12: HIPOTECA MÁS POR MENOS | O12: =O13*1000 -> 3.36 | W12: =IF(Sheet1!$J$10=2,"",IF(X12=0,"",X12)) -> 168 | X12: =IF(Sheet1!$X$1=1,Sheet1!P11,IF(Sheet1!$X$1=2,Sheet1!S11,IF(Sheet1!$X$1=3,Sheet1!T11,IF(Sheet1!$X$1=4,Sheet1!Q11,"")))) -> 168 | Y12: 299 | AL12: Hipoteca Fuerte a tu Medida Pagos Crecientes | AM12: 2
C13: =VLOOKUP(Simulador!F9,'Tabla Parámetros'!B14:C15,2,0) -> 0.1299 | O13: =O14*12 -> 0.00336 | R13: Factor Daños para CAT: | S13: =0.00028/1.16 -> 0.0002413793103 | T13: Construcción | U13: 4 | W13: =IF(Sheet1!$J$10=2,"",IF(X13=0,"",X13)) -> 180 | X13: =IF(Sheet1!$X$1=1,Sheet1!P12,IF(Sheet1!$X$1=2,Sheet1!S12,IF(Sheet1!$X$1=3,Sheet1!T12,IF(Sheet1!$X$1=4,Sheet1!Q12,"")))) -> 180 | AL13: Hipoteca Fuerte a tu Medida Pagos Fijos | AM13: 1
B14: Liquidez | C14: 0.1299 | D14: 360 | O14: =0.00028 -> 0.00028 | T14: Terreno_más_Construcción | U14: 4 | W14: =IF(Sheet1!$J$10=2,"",IF(X14=0,"",X14)) ->  | X14: =IF(Sheet1!$X$1=1,Sheet1!P13,IF(Sheet1!$X$1=2,Sheet1!S13,IF(Sheet1!$X$1=3,Sheet1!T13,IF(Sheet1!$X$1=4,Sheet1!Q13,"")))) -> 0 | Y14: Liquidez | AG14: Adquisición | AL14: Liquidez | AM14: 1
B15: Terreno_Urbanizado | C15: =IF(Simulador!F19<=120,10.18%,10.68%) -> 0.1068 | D15: 250 | S15: =S13 -> 0.0002413793103 | T15: Compra_Venta_Termino_Obra | U15: 12 | W15: =IF(Sheet1!$J$10=2,"",IF(X15=0,"",X15)) ->  | X15: =IF(Sheet1!$X$1=1,Sheet1!P14,IF(Sheet1!$X$1=2,Sheet1!S14,IF(Sheet1!$X$1=3,Sheet1!T14,IF(Sheet1!$X$1=4,Sheet1!Q14,"")))) -> 0 | Y15: Comisión Investigación | Z15: Comisión Apertura | AA15: =IF(W1=Y14,Y16,IF(W1=Y21,Y23,750)) -> 500 | AG15: 0.1 | AL15: Terreno Urbanizado | AM15: 1
S16: =S15 -> 0.0002413793103 | W16: =IF(Sheet1!$J$10=2,"",IF(X16=0,"",X16)) ->  | X16: =IF(Sheet1!$X$1=1,Sheet1!P15,IF(Sheet1!$X$1=2,Sheet1!S15,IF(Sheet1!$X$1=3,Sheet1!T15,IF(Sheet1!$X$1=4,Sheet1!Q15,"")))) -> 0 | Y16: 500 | Z16: 0.015 | AG16: 0.15
S17: Para calcular el CAT | W17: =IF(Sheet1!$J$10=2,"",IF(X17=0,"",X17)) ->  | X17: =IF(Sheet1!$X$1=1,Sheet1!P16,IF(Sheet1!$X$1=2,Sheet1!S16,IF(Sheet1!$X$1=3,Sheet1!T16,IF(Sheet1!$X$1=4,Sheet1!Q16,"")))) -> 0 | AG17: 0.2
B18: FOVISSSTE para todos | F18: Enganche | J18: Plazo | K18: Fac Pago p/Mil | L18: Fac Ajuste Pago | N18: Liquidez | P18: Terreno Urbanizado | W18: =IF(Sheet1!$J$10=2,"",IF(X18=0,"",X18)) ->  | X18: =IF(Sheet1!$X$1=1,Sheet1!P17,IF(Sheet1!$X$1=2,Sheet1!S17,IF(Sheet1!$X$1=3,Sheet1!T17,IF(Sheet1!$X$1=4,Sheet1!Q17,"")))) -> 0 | Y18: Comisión Diferida | AG18: 0.25
D19: 0.0978 | F19: =+Simulador!$N$11-Simulador!$F$15 -> 1000000 | J19: 180 | K19: 10.62 | L19: 0.0212 | N19: 5 | O19: 24.27 | P19: 24.16 | W19: =IF(Sheet1!$J$10=2,"",IF(X19=0,"",X19)) ->  | X19: =IF(Sheet1!$X$1=1,Sheet1!P18,IF(Sheet1!$X$1=2,Sheet1!S18,IF(Sheet1!$X$1=3,Sheet1!T18,IF(Sheet1!$X$1=4,Sheet1!Q18,"")))) -> 0 | Y19: 360 | AG19: 0.3
F20: =+IF(Simulador!F9='Tabla Parámetros'!J3,'Tabla Parámetros'!F19,IF(Simulador!F9='Tabla Parámetros'!J9,'Tabla Parámetros'!F19,IF(Simulador!F9='Tabla Parámetros'!J11,'Tabla Parámetros'!F19,0))) -> 0 | J20: 240 | K20: 9.57 | L20: 0.0201 | N20: 10 | O20: 16.69 | P20: 16.57 | W20: =IF(Sheet1!$J$10=2,"",IF(X20=0,"",X20)) ->  | X20: =IF(Sheet1!$X$1=1,Sheet1!P19,IF(Sheet1!$X$1=2,Sheet1!S19,IF(Sheet1!$X$1=3,Sheet1!T19,IF(Sheet1!$X$1=4,Sheet1!Q19,"")))) -> 0 | AG20: 0.35
N21: 15 | O21: 14.62 | P21: 14.48 | W21: =IF(Sheet1!$J$10=2,"",IF(X21=0,"",X21)) ->  | X21: =IF(Sheet1!$X$1=1,Sheet1!P20,IF(Sheet1!$X$1=2,Sheet1!S20,IF(Sheet1!$X$1=3,Sheet1!T20,IF(Sheet1!$X$1=4,Sheet1!Q20,"")))) -> 0 | Y21: Terreno Urbanizado | AG21: 0.4
J22: Meses de Gracia | W22: =IF(Sheet1!$J$10=2,"",IF(X22=0,"",X22)) ->  | X22: =IF(Sheet1!$X$1=1,Sheet1!P21,IF(Sheet1!$X$1=2,Sheet1!S21,IF(Sheet1!$X$1=3,Sheet1!T21,IF(Sheet1!$X$1=4,Sheet1!Q21,"")))) -> 0 | Y22: Comisión Investigación | Z22: Comisión Apertura | AG22: 0.45
J23: 30 | K23: 1 | W23: =IF(Sheet1!$J$10=2,"",IF(X23=0,"",X23)) ->  | X23: =IF(Sheet1!$X$1=1,Sheet1!P22,IF(Sheet1!$X$1=2,Sheet1!S22,IF(Sheet1!$X$1=3,Sheet1!T22,IF(Sheet1!$X$1=4,Sheet1!Q22,"")))) -> 0 | Y23: 500 | Z23: 0.015 | AG23: 0.5
P24: Mejora | R24: =Simulador!$L$46+Simulador!$L$47+Simulador!$L$48+Simulador!$L$49 -> 65400 | W24: Comisión Investigación | AG24: 0.55
B25: === HIPOTECA FUERTE === | J25: === HIPOTECA MÁS POR MENOS === | P25: Mejora más Remodelación | W25: =IF(OR(Sheet1!$I$10=5,Sheet1!$I$10=6,Sheet1!$Z$1=2,Sheet1!$Z$1=4,Sheet1!$Z$1=5),0,AA15) -> 500 | Y25: Comisión Diferida | AG25: 0.6
P26: Remodelación | Y26: 250 | AG26: 0.65
P27: Construcción | W27: Comisión Diferida | AG27: 0.7
B28: Hipoteca Fuerte | P28: Compra_Venta_Termino_Obra | W28: =IF(OR(Sheet1!$I$10=5,Sheet1!$I$10=6,Sheet1!$Z$1=2),0,299) -> 299 | Y28: Plazos Liquidez | Z28: Plazos Terreno Urbanizado | AG28: 0.75
B29: Destino | C29: Programas | D29: Aforo Max | F29: Aforo | H29: Comisión Apertura Tradicional | I29: Promoción | L29: Programa | M29: Aforo | N29: Vivienda | P29: Liquidez | Y29: 60 | Z29: 60 | AG29: 0.8
B30: Adquisición | C30: Tradicional | D30: 0.9 | E30: 1 | F30: 0.1 | G30: Adquisición | H30: =IF(OR(Sheet1!$I$10=5,Sheet1!$I$10=6),0%,J30) -> 0 | I30: 0 | J30: =IF(OR(Sheet1!$Z$1=1,Sheet1!$Z$1=3),1%,0%) -> 0 | L30: Cofinavit | M30: 0.93 | N30: 7000001 | O30: =Simulador!N7&Simulador!N17 -> TradicionalNO | P30: Gastos Iniciales | T30: COFINAVIT | V30: Vivienda Rec | Y30: =Y29+12 -> 72 | Z30: 72 | AG30: 0.85
B31: Adquisición | C31: Apoyo INFONAVIT | D31: 0.95 | E31: 2 | F31: 0.2 | G31: Mejora | H31: 0 | I31: 0 | P31: =R31&S31 -> TradicionalSI | Q31: =Simulador!$F$17+Simulador!$L$47+Simulador!$L$48+Simulador!$L$49 -> 39300 | R31: Tradicional | S31: SI | T31: =Simulador!N31/Simulador!N11 -> 1 | U31: Sub Viv | V31: =Simulador!$N$25 -> 0 | Y31: 84 | Z31: 84 | AG31: 0.9
B32: Adquisición | C32: Cofinavit | D32: 0.95 | E32: 3 | F32: 0.3 | G32: Mejora_más_Remodelación | H32: 0 | I32: 0 | P32: =R32&S32 -> TradicionalNO | Q32: =Simulador!$F$17+Simulador!$L$46+Simulador!$L$47+Simulador!$L$48+Simulador!$L$49 -> 65400 | R32: Tradicional | S32: NO | T32: =Simulador!N31-Simulador!N11 -> 0 | U32: Créd Info | V32: =Simulador!$N$26 -> 0 | Y32: 96 | Z32: 96
B33: Adquisición | C33: =IF(Sheet1!$Y$1=1,"Cuenta INFONAVIT + BANORTE","") ->  | D33: 0.95 | E33: 4 | F33: 0.4 | G33: Remodelación | H33: 0.01 | I33: 0 | P33: =R33&S33 -> Apoyo INFONAVITSI | Q33: =Simulador!$F$17+Simulador!$L$47+Simulador!$L$48+Simulador!$L$49 -> 39300 | R33: Apoyo INFONAVIT | S33: SI | U33: Créd Bnte | V33: =Simulador!$N$27 -> 1500000 | Y33: 108 | Z33: 108
B34: Adquisición | C34: =IF(Sheet1!$Y$1=1,"FOVISSSTE para todos","") ->  | D34: 0.95 | E34: 5 | F34: 0.5 | G34: Construcción | H34: 0.01 | I34: 0 | P34: Apoyo INFONAVITNO | Q34: =Simulador!$F$17+Simulador!$L$46+Simulador!$L$47+Simulador!$L$48+Simulador!$L$49 -> 65400 | R34: Apoyo INFONAVIT | S34: NO | U34: Ap Obl | V34: =Simulador!$N$28 -> 1000000 | Y34: 120 | Z34: 120
B35: Adquisición | C35: =IF(Sheet1!$Y$1=1,"Ingresos Adicionales FPT","") ->  | D35: 0.95 | F35: 0.6 | G35: Terreno_más_Construcción | H35: 0.01 | I35: 0 | L35: Elije | P35: CofinavitSI | Q35: =V47 -> 1065400 | R35: Cofinavit | S35: SI | U35: Ap Opc | V35: =Simulador!$N$29 -> 0 | Y35: =Y34+12 -> 132 | Z35: 132
B36: Mejora | C36: Tradicional | D36: 0.85 | E36: 6 | F36: 0.65 | G36: Compra_Venta_Termino_Obra | H36: 0.01 | I36: 0 | P36: CofinavitNO | Q36: =V47 -> 1065400 | R36: Cofinavit | S36: NO | U36: Suma | V36: =SUM(V31:V35) -> 2500000 | Y36: 144 | Z36: 144
B37: Mejora | C37: Apoyo INFONAVIT | D37: 0.95 | E37: 7 | F37: 0.7 | G37: Liquidez | H37: 0.015 | I37: 0.015 | P37: Alia2+SI | Q37: =+Simulador!$G$38+Simulador!$G$39+Simulador!$L$47+Simulador!$L$48+Simulador!$L$49 ->  | R37: Alia2+ | S37: SI | U37: A favor del cliente | V37: =Simulador!$N$30 -> 0 | Y37: 156 | Z37: 156
F38: 0.75 | G38: Terreno_Urbanizado | H38: 0 | I38: 0.015 | P38: Alia2+NO | Q38: =Simulador!$G$38+Simulador!$G$39+Simulador!$L$46+Simulador!$L$47+Simulador!$L$48+Simulador!$L$49 ->  | R38: Alia2+ | S38: NO | Y38: 168 | Z38: 168
B39: Mejora_más_Remodelación | C39: Tradicional | D39: 0.7 | E39: 8 | F39: 0.8 | P39: =R39&S39 -> Respalda2SI | Q39: =+Simulador!$G$38+Simulador!$G$39+Simulador!$L$47+Simulador!$L$48+Simulador!$L$49 ->  | R39: Respalda2 | S39: SI | V39: Gastos Orig | Y39: 180 | Z39: 180
F40: 0.85 | P40: Respalda2NO | Q40: =Simulador!$G$38+Simulador!$G$39+Simulador!$L$46+Simulador!$L$47+Simulador!$L$48+Simulador!$L$49 ->  | R40: Respalda2 | S40: NO | U40: G Info | V40: =Simulador!$I$30 -> 0
B41: Remodelación | C41: Tradicional | D41: 0.4 | E41: 9 | F41: 0.9 | U41: G Nota | V41: =Simulador!$L$48 -> 33000
F42: 0.95 | L42: === HIPOTECA MÁS POR MENOS === | U42: Com Apert | V42: =IF(Simulador!N17="SI",0,Simulador!$L$46) -> 26100
B43: Construcción | C43: Tradicional | D43: 0.7 | E43: 10 | L43: Construcción | M43: Tradicional | N43: 0.5 | U43: Suma | V43: =SUM(V40:V42) -> 59100
B44: Construcción | C44: Apoyo INFONAVIT | D44: 0.8 | E44: 11 | I44: Aforo Máximo | L44: Construcción | M44: Apoyo INFONAVIT | N44: 0.6 | U44: A favor del cliente | V44: =V37 -> 0
G45: =Simulador!F11 -> Liquidez | U45: A pagar | V45: =IF(T32>0,V43-T32,V43-V44) -> 59100
B46: Terreno_más_Construcción | C46: Tradicional | D46: 0.85 | E46: 12 | G46: Celda Referencia | I46: =VLOOKUP(G47,H47:I65,2,0) -> 0.7 | J46: CAT | K46: Vida | L46: Daños
B47: Terreno_más_Construcción | C47: Apoyo INFONAVIT | D47: 0.95 | E47: 13 | G47: =Simulador!$F$9&Simulador!$N$7 -> LiquidezTradicional | H47: =B30&C30 -> AdquisiciónTradicional | I47: =IF(OR(Sheet1!$Z$1=4,Sheet1!$Z$1=5),85%,90%) -> 0.9 | J47: =IF(Sheet1!Z1=4,'Tabla de Pagos Crecientes'!AD8,'Tabla Fijos CAT'!$AB$14) -> 0.161283309 | K47: ='Tabla Fijos'!$K$8 -> 900 | L47: ='Tabla Fijos'!$L$8 -> 490 | U47: Des Est | V47: =+Simulador!$L$47+Simulador!$L$49+'Tabla Parámetros'!$V$34+V35+'Tabla Parámetros'!$V$45 -> 1065400
H48: =B31&C31 -> AdquisiciónApoyo INFONAVIT | I48: =IF(OR(Sheet1!$Z$1=4,Sheet1!$Z$1=5),90%,95%) -> 0.95 | J48: ='Tabla Fijos CAT'!$AB$14 -> 0.161283309 | K48: ='Tabla Fijos'!$K$8 -> 900 | L48: ='Tabla Fijos'!$L$8 -> 490
B49: Compra_Venta_Termino_Obra | C49: Tradicional | D49: 0.85 | E49: 14 | G49: =MIN(VLOOKUP(G47,H47:I65,2,0),Simulador!$F$15/Simulador!$N$11) -> 0.6 | H49: AdquisiciónCofinavit | I49: =IF(OR(Sheet1!$Z$1=4,Sheet1!$Z$1=5),90%,95%) -> 0.95 | J49: ='Tabla Fijos CAT'!$AB$14 -> 0.161283309 | K49: ='Tabla Fijos'!$K$8 -> 900 | L49: ='Tabla Fijos'!$L$8 -> 490 | V49: =IF(V47<0,"Saldo a Favor del Cliente","") -> 
B50: Compra_Venta_Termino_Obra | C50: Apoyo INFONAVIT | D50: 0.95 | E50: 15 | G50: =VLOOKUP(G47,H47:J65,3,0) -> 0.161283309 | H50: =B33&C33 -> Adquisición | I50: 0.95 | J50: ='Tabla Fijos CAT'!$AB$14 -> 0.161283309 | K50: ='Tabla Fijos'!$K$8 -> 900 | L50: ='Tabla Fijos'!$L$8 -> 490
H51: =B34&C34 -> Adquisición | I51: 0.95 | J51: ='Tabla Fijos CAT'!$AB$14 -> 0.161283309 | K51: ='Tabla Fijos'!$K$8 -> 900 | L51: ='Tabla Fijos'!$L$8 -> 490
B52: Liquidez | C52: Tradicional | D52: 0.7 | E52: 16 | H52: =B35&C35 -> Adquisición | I52: 0.95 | J52: ='Tabla Fijos CAT'!$AB$14 -> 0.161283309 | K52: ='Tabla Fijos'!$K$8 -> 900 | L52: ='Tabla Fijos'!$L$8 -> 490 | M52: ¿Destino anterior causa I.V.A.? | O52: ¿Destino anterior es Terreno?
B53: Terreno_Urbanizado | C53: Tradicional | D53: 0.7 | E53: 17 | H53: =B36&C36 -> MejoraTradicional | I53: 0.9 | J53: ='Tabla Fijos CAT'!$AB$14 -> 0.161283309 | K53: ='Tabla Fijos'!$K$8 -> 900 | L53: ='Tabla Fijos'!$L$8 -> 490 | M53: =IF(OR((Simulador!N7="Cofinavit"),(Simulador!N7="Cuenta INFONAVIT + BANORTE")),"",N53) -> Monto supera Aforo Máximo | N53: ="Monto supera Aforo Máximo" -> Monto supera Aforo Máximo
C54: Cofinavit | D54: 0.85 | E54: 18 | H54: =B37&C37 -> MejoraApoyo INFONAVIT | I54: 0.95 | J54: ='Tabla Fijos CAT'!$AB$14 -> 0.161283309 | K54: ='Tabla Fijos'!$K$8 -> 900 | L54: ='Tabla Fijos'!$L$8 -> 490 | M54: Enganche No Válido
B55: Más por Menos | H55: =B39&Mejora_más_Remodelación -> Mejora_más_RemodelaciónTradicional | I55: 0.85 | J55: ='Tabla Fijos CAT'!$AB$14 -> 0.161283309 | K55: ='Tabla Fijos'!$K$8 -> 900 | L55: ='Tabla Fijos'!$L$8 -> 490 | M55: Ver en sección Cofinavit
B56: Destino | C56: Programas | D56: Aforo Max | H56: =B41&Remodelación -> RemodelaciónTradicional | I56: 0.45 | J56: ='Tabla Fijos CAT'!$AB$14 -> 0.161283309 | K56: ='Tabla Fijos'!$K$8 -> 900 | L56: ='Tabla Fijos'!$L$8 -> 490
B57: Adquisición | C57: Tradicional | D57: 0.9 | E57: 18 | H57: =B43&C43 -> ConstrucciónTradicional | I57: 0.7 | J57: ='Tabla Construcción Fijos CAT'!$V$6 ->  | K57: ='Tabla Construcción Fijos'!$K$3 -> 900 | L57: ='Tabla Construcción Fijos'!$L$3 -> 490
B58: Adquisición | C58: Apoyo INFONAVIT | D58: 0.95 | E58: 19 | H58: =B44&C44 -> ConstrucciónApoyo INFONAVIT | I58: 0.8 | J58: ='Tabla Construcción Fijos CAT'!$V$6 ->  | K58: ='Tabla Construcción Fijos'!$K$3 -> 900 | L58: ='Tabla Construcción Fijos'!$L$3 -> 490
B59: Adquisición | C59: Cofinavit | D59: 0.95 | E59: 20 | H59: =B46&C46 -> Terreno_más_ConstrucciónTradicional | I59: 0.85 | J59: ='Tabla Construcción Fijos CAT'!$V$6 ->  | K59: ='Tabla Construcción Fijos'!$K$3 -> 900 | L59: ='Tabla Construcción Fijos'!$L$3 -> 490
B60: Adquisición | C60: Alia2+ | D60: 0.95 | E60: 21 | H60: =B47&C47 -> Terreno_más_ConstrucciónApoyo INFONAVIT | I60: 0.95 | J60: ='Tabla Construcción Fijos CAT'!$V$6 ->  | K60: ='Tabla Construcción Fijos'!$K$3 -> 900 | L60: ='Tabla Construcción Fijos'!$L$3 -> 490
B61: Adquisición | C61: Respalda2 | D61: 0.95 | E61: 22 | H61: =B49&C49 -> Compra_Venta_Termino_ObraTradicional | I61: 0.9 | J61: ='Tabla Construcción Fijos CAT'!$V$6 ->  | K61: ='Tabla Construcción Fijos'!$K$3 -> 900 | L61: ='Tabla Construcción Fijos'!$L$3 -> 490
G62: =VLOOKUP(G47,H47:J65,3,0) -> 0.161283309 | H62: =B50&C50 -> Compra_Venta_Termino_ObraApoyo INFONAVIT | I62: 0.95 | J62: ='Tabla Construcción Fijos CAT'!$V$6 ->  | K62: ='Tabla Construcción Fijos'!$K$3 -> 900 | L62: ='Tabla Construcción Fijos'!$L$3 -> 490
B63: Mejora | C63: Tradicional | D63: 0.85 | E63: 23 | G63: =MIN(VLOOKUP(G47,H63:J65,2,0),Simulador!$F$15/Simulador!$N$11) -> 0.6 | H63: =B52&Liquidez -> LiquidezTradicional | I63: 0.7 | J63: ='Tabla Fijos CAT'!$AB$14 -> 0.161283309 | K63: ='Tabla Fijos'!$K$8 -> 900 | L63: ='Tabla Fijos'!$L$8 -> 490
B64: Mejora | C64: Apoyo INFONAVIT | D64: 0.95 | E64: 24 | H64: =B53&Terreno_Urbanizado -> Terreno_UrbanizadoTradicional | I64: 0.7 | J64: ='Tabla Fijos CAT'!$AB$14 -> 0.161283309 | K64: ='Tabla Fijos'!$K$8 -> 900 | L64: ='Tabla Fijos'!$L$8 -> 490
G65: =MIN(VLOOKUP(G47,H63:J65,2,0),Simulador!$F$15/Simulador!$N$11) -> 0.6 | H65: Terreno_UrbanizadoCofinavit | I65: 0.85 | J65: ='Tabla Fijos CAT'!$AB$14 -> 0.161283309 | K65: ='Tabla Fijos'!$K$8 -> 900 | L65: ='Tabla Fijos'!$L$8 -> 490
B66: Mejora_más_Remodelación | C66: Tradicional | D66: 0.7 | E66: 25
G67: Más por Menos
B68: Remodelación | C68: Tradicional | D68: 0.4 | E68: 26 | G68: Celda Referencia | K68: Vida | L68: Daños
G69: =Simulador!$F$9&Simulador!$N$7 -> LiquidezTradicional | H69: =B57&C57 -> AdquisiciónTradicional | I69: 0.9 | J69: =#REF! ->  | K69: =#REF! ->  | L69: =#REF! -> 
B70: Construcción | C70: Tradicional | D70: 0.5 | E70: 27 | G70: =MIN(VLOOKUP(G69,H68:I83,2,0),Simulador!$F$15/Simulador!$N$11) ->  | H70: =B58&C58 -> AdquisiciónApoyo INFONAVIT | I70: 0.95 | J70: =#REF! ->  | K70: =#REF! ->  | L70: =#REF! -> 
B71: Construcción | C71: Apoyo INFONAVIT | D71: 0.6 | E71: 28 | H71: AdquisiciónCofinavit | I71: 0.95 | J71: =#REF! ->  | K71: =#REF! ->  | L71: =#REF! -> 
G72: =IF(Simulador!$F$62="","",VLOOKUP(G69,H69:J83,3,0)) ->  | H72: AdquisiciónAlia2+ | J72: =#REF! ->  | K72: =#REF! ->  | L72: =#REF! -> 
B73: Terreno_más_Construcción | C73: Tradicional | D73: 0.85 | E73: 29 | H73: AdquisiciónRespalda2 | J73: =#REF! ->  | K73: =#REF! ->  | L73: =#REF! -> 
B74: Terreno_más_Construcción | C74: Apoyo INFONAVIT | D74: 0.95 | E74: 30 | H74: =B63&C63 -> MejoraTradicional | I74: 0.88 | J74: =#REF! ->  | K74: =#REF! ->  | L74: =#REF! -> 
H75: =B64&C64 -> MejoraApoyo INFONAVIT | I75: 0.95 | J75: =#REF! ->  | K75: =#REF! ->  | L75: =#REF! -> 
B76: Compra_Venta_Termino_Obra | C76: Tradicional | D76: 0.85 | E76: 31 | H76: =B66&C66 -> Mejora_más_RemodelaciónTradicional | I76: 0.7 | J76: =#REF! ->  | K76: =#REF! ->  | L76: =#REF! -> 
B77: Compra_Venta_Termino_Obra | C77: Apoyo INFONAVIT | D77: 0.95 | E77: 32 | H77: =B68&C68 -> RemodelaciónTradicional | I77: 0.3 | J77: =#REF! ->  | K77: =#REF! ->  | L77: =#REF! -> 
H78: =B70&C70 -> ConstrucciónTradicional | I78: 0.5 | J78: ='Tabla Construcción CAT crecient'!$U$6 ->  | K78: ='Tabla Construcción Crecientes'!$K$3 -> 900 | L78: ='Tabla Construcción Crecientes'!$L$3 -> 490
B79: Liquidez | C79: Tradicional | D79: 0.7 | H79: =B71&C71 -> ConstrucciónApoyo INFONAVIT | I79: 0.6 | J79: ='Tabla Construcción CAT crecient'!$U$6 ->  | K79: ='Tabla Construcción Crecientes'!$K$3 -> 900 | L79: ='Tabla Construcción Crecientes'!$L$3 -> 490
B80: Terreno_Urbanizado | C80: Tradicional | D80: 0.7 | H80: =B73&C73 -> Terreno_más_ConstrucciónTradicional | I80: 0.8 | J80: ='Tabla Construcción CAT crecient'!$U$6 ->  | K80: ='Tabla Construcción Crecientes'!$K$3 -> 900 | L80: ='Tabla Construcción Crecientes'!$L$3 -> 490
H81: =B74&C74 -> Terreno_más_ConstrucciónApoyo INFONAVIT | I81: 0.95 | J81: ='Tabla Construcción CAT crecient'!$U$6 ->  | K81: ='Tabla Construcción Crecientes'!$K$3 -> 900 | L81: ='Tabla Construcción Crecientes'!$L$3 -> 490
H82: =B76&C76 -> Compra_Venta_Termino_ObraTradicional | I82: 0.9 | J82: ='Tabla Construcción CAT crecient'!$U$6 ->  | K82: ='Tabla Construcción Crecientes'!$K$3 -> 900 | L82: ='Tabla Construcción Crecientes'!$L$3 -> 490
H83: =B77&C77 -> Compra_Venta_Termino_ObraApoyo INFONAVIT | I83: 0.95 | J83: ='Tabla Construcción CAT crecient'!$U$6 ->  | K83: ='Tabla Construcción Crecientes'!$K$3 -> 900 | L83: ='Tabla Construcción Crecientes'!$L$3 -> 490
B85: Comisiones | L85: Parametros avalúo
B86: Apertura | C86: 0.01 | D86: Mejora / Mejora +Remodelación | E86: 0 | G86: === HIPOTECA MÁS POR MENOS ===
B87: Diferida | C87: 349 | L87: Comisión Avalúo Escalonada
B88: Avalúo | C88: $3 al millar + IVA | G88: 299 | Q88: Resultados
B89: Socioeconómico | C89: 750 | L89: Parámetros | Q89: Tafifa por Valor | R89: =VLOOKUP($M$90,L96:N104,3,TRUE) -> 5000
L90: Valor Avalúo | M90: =Simulador!N11 -> 2500000 | Q90: Comisión Avalúo | R90: =IF(OR(Sheet1!Z1=2,Sheet1!Z1=4,Sheet1!Z1=5,Sheet1!I10=6),0,R89) -> 5000
B91: Mínimo Vivienda | C91: 350000 | D91: Construcción | E91: 500000 | F91: Terreno + Construcción | Q91: Comisón 50% | R91: =IF(M90<=10000000,0,R90*0.5) -> 0
B92: Mínimo Crédito | C92: 75000 | D92: Remodelación | E92: 150000 | F92: Construcción/Terreno + Construcción | G92: 800000 | Q92: Comisón Campaña | R92: =+IF(Simulador!F9="Liquidez",'Tabla Parámetros'!R90,IF(Simulador!F9="Terreno_Urbanizado",'Tabla Parámetros'!R90,'Tabla Parámetros'!R91)) -> 5000
G93: 200000
B95: Liquidez | D95: Terreno Urbanizado | L95: Mínimo | M95: Máximo | N95: Costo sin IVA
L96: 0 | M96: 1000000 | N96: 3000
B97: Apertura | C97: 0.03 | D97: 0.015 | L97: 1000001 | M97: 3000000 | N97: 5000
B98: Diferida | C98: 360 | D98: 250 | L98: 3000001 | M98: 5000000 | N98: 8000
B99: Avalúo | C99: $3 al millar + IVA | L99: 5000001 | M99: 7000000 | N99: 15000
B100: Socioeconómico | C100: 500 | L100: 7000001 | M100: 10000000 | N100: 17000
L101: 10000001 | M101: 20000000 | N101: 25000
B102: Mínimo Vivienda | C102: 500000 | L102: 20000001 | M102: 30000000 | N102: 30000
B103: Mínimo Crédito | C103: 200000 | L103: 30000001 | M103: 100000000 | N103: =$M$90*0.001 -> 2500
L104: 100000001 | M104: 999999999 | N104: =$M$90*0.001 -> 2500

Sheet Estados y Datos Notariales (hidden)
F1: =VLOOKUP(Simulador!$F$21,'Estados y Datos Notariales'!$D$3:$G$34,3,0) -> 0.022 | G1: =VLOOKUP(Simulador!$F$21,'Estados y Datos Notariales'!$D$3:$G$34,4,0) -> 0.082 | H1: =VLOOKUP(Simulador!$F$21,'Estados y Datos Notariales'!$D$3:$H$34,5,0) -> 0.072 | I1: =VLOOKUP(Simulador!$F$21,'Estados y Datos Notariales'!$D$3:$I$34,6,0) -> 7
D2: ESTADO | E2: SOLO COMPRA VENTA | F2: SOLO CREDITO | G2: SUMA (Compraventa con crédito) | K2: =IF(Sheet1!$D$14=3,'Estados y Datos Notariales'!$F$1,'Estados y Datos Notariales'!$G$1) -> 0.022
D3: Aguascalientes | E3: 0.023 | F3: 0.016 | G3: 0.039 | H3: =+G3-1% -> 0.029 | I3: 1 | K3: =K2-1% -> 0.012
D4: Baja California Norte | E4: 0.05 | F4: 0.01 | G4: 0.06 | H4: =+G4-1% -> 0.05 | I4: 2
D5: Baja California Sur | E5: 0.036 | F5: 0.008 | G5: 0.044 | H5: 0.034 | I5: 3
D6: Campeche | E6: 0.0187 | F6: 0.012 | G6: 0.0307 | H6: 0.0207 | I6: 4 | K6: =Simulador!$H$21 -> NO | L6: SI
D7: Chiapas | E7: 0.0365 | F7: 0.0068 | G7: 0.0433 | H7: 0.0333 | I7: 5 | L7: NO
D8: Chihuahua | E8: 0.054 | F8: 0.016 | G8: 0.07 | H8: 0.06 | I8: 6
D9: Ciudad de México | E9: 0.06 | F9: 0.022 | G9: 0.082 | H9: 0.072 | I9: 7
D10: Coahuila | E10: 0.0519 | F10: 0.021 | G10: 0.0729 | H10: 0.0629 | I10: 8
D11: Colima | E11: 0.0286 | F11: 0.0121 | G11: 0.0407 | H11: 0.0307 | I11: 9
D12: Durango | E12: 0.05 | F12: 0.014 | G12: 0.064 | H12: 0.054 | I12: 10
D13: Estado de México | E13: 0.065 | F13: 0.022 | G13: 0.087 | H13: 0.077 | I13: 11 | K13: SOLO COMPRA VENTA | L13: SOLO CREDITO | M13: SUMA (Compraventa con crédito)
D14: Guanajuato | E14: 0.02 | F14: 0.011 | G14: =IF(K6="SI",M14,3.1%) -> 0.031 | H14: 0.021 | I14: 12 | J14: León | K14: 0.019 | L14: 0.01 | M14: 0.029 | N14: =+M14-1% -> 0.019
D15: Guerrero | E15: 0.05 | F15: 0.015 | G15: 0.065 | H15: 0.055 | I15: 13
D16: Hidalgo | E16: 0.05 | F16: 0.02 | G16: 0.07 | H16: 0.06 | I16: 14
D17: Jalisco | E17: 0.045 | F17: 0.018 | G17: 0.063 | H17: 0.053 | I17: 15
D18: Michoacán | E18: 0.026 | F18: 0.014 | G18: 0.04 | H18: 0.03 | I18: 16
D19: Morelos | E19: 0.045 | F19: 0.012 | G19: 0.057 | H19: 0.047 | I19: 17
D20: Nayarit | E20: 0.037 | F20: 0.011 | G20: 0.048 | H20: 0.038 | I20: 18
D21: Nuevo León | E21: 0.0445 | F21: 0.0155 | G21: 0.06 | H21: 0.05 | I21: 19
D22: Oaxaca | E22: 0.0347 | F22: 0.0076 | G22: 0.0422 | H22: 0.0322 | I22: 20
D23: Puebla | E23: =VLOOKUP(Simulador!$N$11,'Rangos Puebla'!B3:D7,3,TRUE) -> 0.05 | F23: =VLOOKUP(Simulador!H48,'Rangos Puebla'!B11:D15,3,TRUE) -> 0.025 | G23: =VLOOKUP(Simulador!$N$11,'Rangos Puebla'!B3:D7,3,TRUE) -> 0.05 | H23: 0.04 | I23: 21
D24: Querétaro | E24: 0.075 | F24: 0.012 | G24: 0.087 | H24: 0.077 | I24: 22
D25: Quintana Roo | E25: 0.05 | F25: 0.02 | G25: 0.07 | H25: 0.06 | I25: 23
D26: San Luis Potosí | E26: 0.051 | F26: 0.014 | G26: 0.065 | H26: 0.055 | I26: 24
D27: Sinaloa | E27: 0.04 | F27: 0.011 | G27: 0.051 | H27: 0.041 | I27: 25
D28: Sonora | E28: 0.032 | F28: 0.012 | G28: 0.044 | H28: 0.034 | I28: 26
D29: Tabasco | E29: 0.0526 | F29: 0.0074 | G29: 0.06 | H29: 0.05 | I29: 27
D30: Tamaulipas | E30: 0.04 | F30: 0.02 | G30: =E30+F30 -> 0.06 | H30: 0.05 | I30: 28
D31: Tlaxcala | E31: 0.0305 | F31: 0.0101 | G31: 0.0406 | H31: 0.0306 | I31: 29
D32: Veracruz | E32: 0.0245 | F32: 0.021 | G32: 0.0455 | H32: 0.0355 | I32: 30
D33: Yucatán | E33: 0.0396 | F33: 0.0081 | G33: 0.0477 | H33: 0.0377 | I33: 31
D34: Zacatecas | E34: 0.035 | F34: 0.015 | G34: 0.05 | H34: 0.04 | I34: 32

Sheet Rangos Puebla (hidden)
B2: Compraventa + crédito
B3: 300001 | C3: 600000 | D3: 0.07
B4: 600001 | C4: 1200000 | D4: 0.065
B5: 1200001 | C5: 2400000 | D5: 0.055
B6: 2400001 | C6: 4800000 | D6: 0.05
B7: 4800001 | C7: 999999999 | D7: 0.045
B10: Solo Crédito
B11: 300001 | C11: 600000 | D11: 0.045
B12: 600001 | C12: 1200000 | D12: 0.03
B13: 1200001 | C13: 2400000 | D13: 0.025
B14: 2400001 | C14: 4800000 | D14: 0.02
B15: 4800001 | C15: 999999999 | D15: 0.015

Sheet Tabla Notaría
I3: =VLOOKUP(Simulador!$F$9,'Tabla Notaría'!M6:Q28,5,0) -> Tasa fija con amortización creciente
B4: Cliente: | C4: =IF(Simulador!K1="","",Simulador!$K$1) ->  | M4: Hipoteca Fuerte | O4: =Simulador!F9&Simulador!N7 -> LiquidezTradicional
B5: Esquema: | C5: Crédito Hipotecario | D5: =IF(Sheet1!$Z$1=4,"Pagos Crecientes",I3) -> Tasa fija con amortización creciente | M5: Destino | N5: Programas
B6: Tasa de Interés Anual (Fija): | C6: =Simulador!$F$62 -> 0.1299 | M6: Adquisición | N6: Tradicional | O6: =M6&N6 -> AdquisiciónTradicional | Q6: Tasa fija con amortización creciente
B7: Monto Total de Crédito: | C7: =IF(Simulador!$N$17='Tabla Parámetros'!$N$10,Simulador!$H$48+Simulador!$L$46,IF(Simulador!$N$17='Tabla Parámetros'!$N$11,Simulador!H48,)) -> 1500000 | M7: Adquisición | N7: Apoyo INFONAVIT | O7: =M7&N7 -> AdquisiciónApoyo INFONAVIT | Q7: Tasa fija Apoyo Infonavit
B8: Destino del Crédito: | C8: =Simulador!$F$9 -> Liquidez | D8: =IF(OR(C8="Liquidez",C8="Terreno_Urbanizado"),"",Simulador!$F$11) ->  | M8: Adquisición | N8: Cofinavit | O8: AdquisiciónCofinavit | Q8: Tasa fija Cofinanciamiento INFONAVIT
M9: Adquisición | N9: FOVISSSTE para todos | O9: AdquisiciónFOVISSSTE para todos | Q9: Tasa fija FOVISSSTE para todos
B10: Tabla de amortización en pesos | M10: Adquisición | N10: Cuenta INFONAVIT + BANORTE | O10: AdquisiciónCuenta INFONAVIT + BANORTE | Q10: Tasa fija Cuenta INFONAVIT + BANORTE con amortización creciente
B11: No. | C11: Saldo | D11: Amortización a Capital | E11: Saldo Nuevo | M11: Mejora | N11: Tradicional | O11: MejoraTradicional | Q11: Tasa fija con amortización creciente
B12: 1 | C12: =IF(Simulador!$F$9='Tabla Parámetros'!$G$34,Simulador!F392,IF(Simulador!$F$9='Tabla Parámetros'!$G$35,Simulador!F392,IF(Simulador!$F$9='Tabla Parámetros'!$G$36,Simulador!F392,Simulador!F67))) -> 1500000 | D12: =IF(B12="","",IF(Sheet1!$Z$1=4,'Tabla de Pagos Crecientes'!V7,'Tabla Fijos CAT'!G12)) -> 2685.994078 | E12: =IF(B12="","",C12-D12) -> 1497314.006 | M12: Mejora | N12: Apoyo INFONAVIT | O12: MejoraApoyo INFONAVIT | Q12: Tasa fija Apoyo Infonavit
B13: =IF(B12=Simulador!$H$49,"",IF(B12="","",'Tabla Notaría'!B12+1)) -> 2 | C13: =IF(B13="","",C12-D12) -> 1497314.006 | D13: =IF(B13="","",IF(Sheet1!$Z$1=4,'Tabla de Pagos Crecientes'!V8,'Tabla Fijos CAT'!G13)) -> 2715.457642 | E13: 1494598.548
B14: =IF(B13=Simulador!$H$49,"",IF(B13="","",'Tabla Notaría'!B13+1)) -> 3 | C14: =IF(B14="","",C13-D13) -> 1494598.548 | D14: =IF(B14="","",IF(Sheet1!$Z$1=4,'Tabla de Pagos Crecientes'!V9,'Tabla Fijos CAT'!G14)) -> 2745.244402 | E14: 1491853.304 | M14: Mejora_más_Remodelación | N14: Tradicional | O14: Mejora_más_RemodelaciónTradicional | Q14: Tasa fija con amortización creciente
B15: =IF(B14=Simulador!$H$49,"",IF(B14="","",'Tabla Notaría'!B14+1)) -> 4 | C15: 1491853.304 | D15: =IF(B15="","",IF(Sheet1!$Z$1=4,'Tabla de Pagos Crecientes'!V10,'Tabla Fijos CAT'!G15)) -> 2775.357903 | E15: 1489077.946
B16: =IF(B15=Simulador!$H$49,"",IF(B15="","",'Tabla Notaría'!B15+1)) -> 5 | C16: 1489077.946 | D16: =IF(B16="","",IF(Sheet1!$Z$1=4,'Tabla de Pagos Crecientes'!V11,'Tabla Fijos CAT'!G16)) -> 2805.801729 | E16: 1486272.144 | M16: Remodelación | N16: Tradicional | O16: RemodelaciónTradicional | Q16: Tasa fija con amortización creciente
B17: =IF(B16=Simulador!$H$49,"",IF(B16="","",'Tabla Notaría'!B16+1)) -> 6 | C17: 1486272.144 | D17: =IF(B17="","",IF(Sheet1!$Z$1=4,'Tabla de Pagos Crecientes'!V12,'Tabla Fijos CAT'!G17)) -> 2836.579503 | E17: 1483435.565
B18: =IF(B17=Simulador!$H$49,"",IF(B17="","",'Tabla Notaría'!B17+1)) -> 7 | C18: 1483435.565 | D18: =IF(B18="","",IF(Sheet1!$Z$1=4,'Tabla de Pagos Crecientes'!V13,'Tabla Fijos CAT'!G18)) -> 2867.694889 | E18: 1480567.87 | M18: Construcción | N18: Tradicional | O18: ConstrucciónTradicional | Q18: Tasa fija con amortización creciente
B19: =IF(B18=Simulador!$H$49,"",IF(B18="","",'Tabla Notaría'!B18+1)) -> 8 | C19: 1480567.87 | D19: =IF(B19="","",IF(Sheet1!$Z$1=4,'Tabla de Pagos Crecientes'!V14,'Tabla Fijos CAT'!G19)) -> 2899.15159 | E19: 1477668.718 | M19: Construcción | N19: Apoyo INFONAVIT | O19: ConstrucciónApoyo INFONAVIT | Q19: Tasa fija Apoyo Infonavit
B20: =IF(B19=Simulador!$H$49,"",IF(B19="","",'Tabla Notaría'!B19+1)) -> 9 | C20: 1477668.718 | D20: =IF(B20="","",IF(Sheet1!$Z$1=4,'Tabla de Pagos Crecientes'!V15,'Tabla Fijos CAT'!G20)) -> 2930.953351 | E20: 1474737.765
B21: =IF(B20=Simulador!$H$49,"",IF(B20="","",'Tabla Notaría'!B20+1)) -> 10 | C21: 1474737.765 | D21: =IF(B21="","",IF(Sheet1!$Z$1=4,'Tabla de Pagos Crecientes'!V16,'Tabla Fijos CAT'!G21)) -> 2963.103955 | E21: 1471774.661 | M21: Terreno_más_Construcción | N21: Tradicional | O21: Terreno_más_ConstrucciónTradicional | Q21: Tasa fija con amortización creciente
B22: =IF(B21=Simulador!$H$49,"",IF(B21="","",'Tabla Notaría'!B21+1)) -> 11 | C22: 1471774.661 | D22: =IF(B22="","",IF(Sheet1!$Z$1=4,'Tabla de Pagos Crecientes'!V17,'Tabla Fijos CAT'!G22)) -> 2995.60723 | E22: 1468779.054 | M22: Terreno_más_Construcción | N22: Apoyo INFONAVIT | O22: Terreno_más_ConstrucciónApoyo INFONAVIT | Q22: Tasa fija Apoyo Infonavit
B23: =IF(B22=Simulador!$H$49,"",IF(B22="","",'Tabla Notaría'!B22+1)) -> 12 | C23: 1468779.054 | D23: =IF(B23="","",IF(Sheet1!$Z$1=4,'Tabla de Pagos Crecientes'!V18,'Tabla Fijos CAT'!G23)) -> 3028.467044 | E23: 1465750.587
B24: =IF(B23=Simulador!$H$49,"",IF(B23="","",'Tabla Notaría'!B23+1)) -> 13 | C24: 1465750.587 | D24: =IF(B24="","",IF(Sheet1!$Z$1=4,'Tabla de Pagos Crecientes'!V19,'Tabla Fijos CAT'!G24)) -> 3061.687309 | E24: 1462688.899 | M24: Compra_Venta_Termino_Obra | N24: Tradicional | O24: Compra_Venta_Termino_ObraTradicional | Q24: Tasa fija con amortización creciente
B25: =IF(B24=Simulador!$H$49,"",IF(B24="","",'Tabla Notaría'!B24+1)) -> 14 | C25: 1462688.899 | D25: =IF(B25="","",IF(Sheet1!$Z$1=4,'Tabla de Pagos Crecientes'!V20,'Tabla Fijos CAT'!G25)) -> 3095.271977 | E25: 1459593.627 | M25: Compra_Venta_Termino_Obra | N25: Apoyo INFONAVIT | O25: Compra_Venta_Termino_ObraApoyo INFONAVIT | Q25: Tasa fija Apoyo Infonavit
B26: =IF(B25=Simulador!$H$49,"",IF(B25="","",'Tabla Notaría'!B25+1)) -> 15 | C26: 1459593.627 | D26: =IF(B26="","",IF(Sheet1!$Z$1=4,'Tabla de Pagos Crecientes'!V21,'Tabla Fijos CAT'!G26)) -> 3129.225047 | E26: 1456464.402
B27: =IF(B26=Simulador!$H$49,"",IF(B26="","",'Tabla Notaría'!B26+1)) -> 16 | C27: 1456464.402 | D27: =IF(B27="","",IF(Sheet1!$Z$1=4,'Tabla de Pagos Crecientes'!V22,'Tabla Fijos CAT'!G27)) -> 3163.55056 | E27: 1453300.852 | M27: Liquidez | N27: Tradicional | O27: LiquidezTradicional | Q27: Tasa fija con amortización creciente
B28: =IF(B27=Simulador!$H$49,"",IF(B27="","",'Tabla Notaría'!B27+1)) -> 17 | C28: 1453300.852 | D28: =IF(B28="","",IF(Sheet1!$Z$1=4,'Tabla de Pagos Crecientes'!V23,'Tabla Fijos CAT'!G28)) -> 3198.252601 | E28: 1450102.599 | M28: Terreno_Urbanizado | N28: Tradicional | O28: Terreno_UrbanizadoTradicional | Q28: Tasa fija con amortización creciente
B29: =IF(B28=Simulador!$H$49,"",IF(B28="","",'Tabla Notaría'!B28+1)) -> 18 | C29: 1450102.599 | D29: =IF(B29="","",IF(Sheet1!$Z$1=4,'Tabla de Pagos Crecientes'!V24,'Tabla Fijos CAT'!G29)) -> 3233.335299 | E29: 1446869.264
B30: =IF(B29=Simulador!$H$49,"",IF(B29="","",'Tabla Notaría'!B29+1)) -> 19 | C30: 1446869.264 | D30: =IF(B30="","",IF(Sheet1!$Z$1=4,'Tabla de Pagos Crecientes'!V25,'Tabla Fijos CAT'!G30)) -> 3268.802832 | E30: 1443600.461 | M30: Más por Menos | O30: =Simulador!F9&Simulador!N7 -> LiquidezTradicional
B31: =IF(B30=Simulador!$H$49,"",IF(B30="","",'Tabla Notaría'!B30+1)) -> 20 | C31: 1443600.461 | D31: =IF(B31="","",IF(Sheet1!$Z$1=4,'Tabla de Pagos Crecientes'!V26,'Tabla Fijos CAT'!G31)) -> 3304.65942 | E31: 1440295.802 | M31: Destino | N31: Programas
B32: =IF(B31=Simulador!$H$49,"",IF(B31="","",'Tabla Notaría'!B31+1)) -> 21 | C32: 1440295.802 | D32: =IF(B32="","",IF(Sheet1!$Z$1=4,'Tabla de Pagos Crecientes'!V27,'Tabla Fijos CAT'!G32)) -> 3340.909331 | E32: 1436954.892 | M32: Adquisición | N32: Tradicional | O32: =M32&N32 -> AdquisiciónTradicional | Q32: Pagos crecientes amortización creciente
B33: =IF(B32=Simulador!$H$49,"",IF(B32="","",'Tabla Notaría'!B32+1)) -> 22 | C33: 1436954.892 | D33: =IF(B33="","",IF(Sheet1!$Z$1=4,'Tabla de Pagos Crecientes'!V28,'Tabla Fijos CAT'!G33)) -> 3377.556879 | E33: 1433577.335 | M33: Adquisición | N33: Apoyo INFONAVIT | O33: AdquisiciónApoyo INFONAVIT | Q33: Pagos crecientes Apoyo INFONAVIT
B34: =IF(B33=Simulador!$H$49,"",IF(B33="","",'Tabla Notaría'!B33+1)) -> 23 | C34: 1433577.335 | D34: =IF(B34="","",IF(Sheet1!$Z$1=4,'Tabla de Pagos Crecientes'!V29,'Tabla Fijos CAT'!G34)) -> 3414.606426 | E34: 1430162.729 | M34: Adquisición | N34: Cofinavit | O34: AdquisiciónCofinavit | Q34: Pagos crecientes Cofinanciamiento INFONAVIT
B35: =IF(B34=Simulador!$H$49,"",IF(B34="","",'Tabla Notaría'!B34+1)) -> 24 | C35: 1430162.729 | D35: =IF(B35="","",IF(Sheet1!$Z$1=4,'Tabla de Pagos Crecientes'!V30,'Tabla Fijos CAT'!G35)) -> 3452.062382 | E35: 1426710.667 | M35: Adquisición | N35: Alia2+ | O35: AdquisiciónAlia2+ | Q35: Pagos crecientes Alia2+
B36: =IF(B35=Simulador!$H$49,"",IF(B35="","",'Tabla Notaría'!B35+1)) -> 25 | C36: 1426710.667 | D36: =IF(B36="","",IF(Sheet1!$Z$1=4,'Tabla de Pagos Crecientes'!V31,'Tabla Fijos CAT'!G36)) -> 3489.929205 | E36: 1423220.737 | M36: Adquisición | N36: Respalda2 | O36: AdquisiciónRespalda2 | Q36: Pagos crecientes Respalda2
B37: =IF(B36=Simulador!$H$49,"",IF(B36="","",'Tabla Notaría'!B36+1)) -> 26 | C37: 1423220.737 | D37: =IF(B37="","",IF(Sheet1!$Z$1=4,'Tabla de Pagos Crecientes'!V32,'Tabla Fijos CAT'!G37)) -> 3528.211402 | E37: 1419692.526
B38: =IF(B37=Simulador!$H$49,"",IF(B37="","",'Tabla Notaría'!B37+1)) -> 27 | C38: 1419692.526 | D38: =IF(B38="","",IF(Sheet1!$Z$1=4,'Tabla de Pagos Crecientes'!V33,'Tabla Fijos CAT'!G38)) -> 3566.913529 | E38: 1416125.612 | M38: Mejora | N38: Tradicional | O38: MejoraTradicional | Q38: Pagos crecientes amortización creciente
B39: =IF(B38=Simulador!$H$49,"",IF(B38="","",'Tabla Notaría'!B38+1)) -> 28 | C39: 1416125.612 | D39: =IF(B39="","",IF(Sheet1!$Z$1=4,'Tabla de Pagos Crecientes'!V34,'Tabla Fijos CAT'!G39)) -> 3606.040192 | E39: 1412519.572 | M39: Mejora | N39: Apoyo INFONAVIT | O39: MejoraApoyo INFONAVIT | Q39: Pagos crecientes Apoyo INFONAVIT
B40: =IF(B39=Simulador!$H$49,"",IF(B39="","",'Tabla Notaría'!B39+1)) -> 29 | C40: 1412519.572 | D40: =IF(B40="","",IF(Sheet1!$Z$1=4,'Tabla de Pagos Crecientes'!V35,'Tabla Fijos CAT'!G40)) -> 3645.596049 | E40: 1408873.976
B41: =IF(B40=Simulador!$H$49,"",IF(B40="","",'Tabla Notaría'!B40+1)) -> 30 | C41: 1408873.976 | D41: =IF(B41="","",IF(Sheet1!$Z$1=4,'Tabla de Pagos Crecientes'!V36,'Tabla Fijos CAT'!G41)) -> 3685.585807 | E41: 1405188.39 | M41: Mejora más Remodelación | N41: Tradicional | O41: Mejora más RemodelaciónTradicional | Q41: Pagos crecientes amortización creciente
B42: =IF(B41=Simulador!$H$49,"",IF(B41="","",'Tabla Notaría'!B41+1)) -> 31 | C42: 1405188.39 | D42: =IF(B42="","",IF(Sheet1!$Z$1=4,'Tabla de Pagos Crecientes'!V37,'Tabla Fijos CAT'!G42)) -> 3726.014227 | E42: 1401462.376
B43: =IF(B42=Simulador!$H$49,"",IF(B42="","",'Tabla Notaría'!B42+1)) -> 32 | C43: 1401462.376 | D43: =IF(B43="","",IF(Sheet1!$Z$1=4,'Tabla de Pagos Crecientes'!V38,'Tabla Fijos CAT'!G43)) -> 3766.886119 | E43: 1397695.49 | M43: Remodelación | N43: Tradicional | O43: RemodelaciónTradicional | Q43: Pagos crecientes amortización creciente
B44: =IF(B43=Simulador!$H$49,"",IF(B43="","",'Tabla Notaría'!B43+1)) -> 33 | C44: 1397695.49 | D44: =IF(B44="","",IF(Sheet1!$Z$1=4,'Tabla de Pagos Crecientes'!V39,'Tabla Fijos CAT'!G44)) -> 3808.206348 | E44: 1393887.284
B45: =IF(B44=Simulador!$H$49,"",IF(B44="","",'Tabla Notaría'!B44+1)) -> 34 | C45: 1393887.284 | D45: =IF(B45="","",IF(Sheet1!$Z$1=4,'Tabla de Pagos Crecientes'!V40,'Tabla Fijos CAT'!G45)) -> 3849.979833 | E45: 1390037.304 | M45: Construcción | N45: Tradicional | O45: ConstrucciónTradicional | Q45: Pagos crecientes amortización creciente
B46: =IF(B45=Simulador!$H$49,"",IF(B45="","",'Tabla Notaría'!B45+1)) -> 35 | C46: 1390037.304 | D46: =IF(B46="","",IF(Sheet1!$Z$1=4,'Tabla de Pagos Crecientes'!V41,'Tabla Fijos CAT'!G46)) -> 3892.211545 | E46: 1386145.092 | M46: Construcción | N46: Apoyo INFONAVIT | O46: ConstrucciónApoyo INFONAVIT | Q46: Pagos crecientes Apoyo INFONAVIT
B47: =IF(B46=Simulador!$H$49,"",IF(B46="","",'Tabla Notaría'!B46+1)) -> 36 | C47: 1386145.092 | D47: =IF(B47="","",IF(Sheet1!$Z$1=4,'Tabla de Pagos Crecientes'!V42,'Tabla Fijos CAT'!G47)) -> 3934.906511 | E47: 1382210.186
B48: =IF(B47=Simulador!$H$49,"",IF(B47="","",'Tabla Notaría'!B47+1)) -> 37 | C48: 1382210.186 | D48: =IF(B48="","",IF(Sheet1!$Z$1=4,'Tabla de Pagos Crecientes'!V43,'Tabla Fijos CAT'!G48)) -> 3978.069812 | E48: 1378232.116 | M48: Terreno_más_Construcción | N48: Tradicional | O48: Terreno_más_ConstrucciónTradicional | Q48: Pagos crecientes amortización creciente
B49: =IF(B48=Simulador!$H$49,"",IF(B48="","",'Tabla Notaría'!B48+1)) -> 38 | C49: 1378232.116 | D49: =IF(B49="","",IF(Sheet1!$Z$1=4,'Tabla de Pagos Crecientes'!V44,'Tabla Fijos CAT'!G49)) -> 4021.706586 | E49: 1374210.409 | M49: Terreno_más_Construcción | N49: Apoyo INFONAVIT | O49: Terreno_más_ConstrucciónApoyo INFONAVIT | Q49: Pagos crecientes Apoyo INFONAVIT
B50: =IF(B49=Simulador!$H$49,"",IF(B49="","",'Tabla Notaría'!B49+1)) -> 39 | C50: 1374210.409 | D50: =IF(B50="","",IF(Sheet1!$Z$1=4,'Tabla de Pagos Crecientes'!V45,'Tabla Fijos CAT'!G50)) -> 4065.822026 | E50: 1370144.587
B51: =IF(B50=Simulador!$H$49,"",IF(B50="","",'Tabla Notaría'!B50+1)) -> 40 | C51: 1370144.587 | D51: =IF(B51="","",IF(Sheet1!$Z$1=4,'Tabla de Pagos Crecientes'!V46,'Tabla Fijos CAT'!G51)) -> 4110.421383 | E51: 1366034.166 | M51: Compra_Venta_Termino_Obra | N51: Tradicional | O51: Compra_Venta_Termino_ObraTradicional | Q51: Pagos crecientes amortización creciente
B52: =IF(B51=Simulador!$H$49,"",IF(B51="","",'Tabla Notaría'!B51+1)) -> 41 | C52: 1366034.166 | D52: =IF(B52="","",IF(Sheet1!$Z$1=4,'Tabla de Pagos Crecientes'!V47,'Tabla Fijos CAT'!G52)) -> 4155.509965 | E52: 1361878.656 | M52: Compra_Venta_Termino_Obra | N52: Apoyo INFONAVIT | O52: Compra_Venta_Termino_ObraApoyo INFONAVIT | Q52: Pagos crecientes Apoyo INFONAVIT
B53: =IF(B52=Simulador!$H$49,"",IF(B52="","",'Tabla Notaría'!B52+1)) -> 42 | C53: 1361878.656 | D53: =IF(B53="","",IF(Sheet1!$Z$1=4,'Tabla de Pagos Crecientes'!V48,'Tabla Fijos CAT'!G53)) -> 4201.093139 | E53: 1357677.563
B54: =IF(B53=Simulador!$H$49,"",IF(B53="","",'Tabla Notaría'!B53+1)) -> 43 | C54: 1357677.563 | D54: =IF(B54="","",IF(Sheet1!$Z$1=4,'Tabla de Pagos Crecientes'!V49,'Tabla Fijos CAT'!G54)) -> 4247.17633 | E54: 1353430.387
B55: =IF(B54=Simulador!$H$49,"",IF(B54="","",'Tabla Notaría'!B54+1)) -> 44 | C55: 1353430.387 | D55: =IF(B55="","",IF(Sheet1!$Z$1=4,'Tabla de Pagos Crecientes'!V50,'Tabla Fijos CAT'!G55)) -> 4293.765023 | E55: 1349136.622
B56: =IF(B55=Simulador!$H$49,"",IF(B55="","",'Tabla Notaría'!B55+1)) -> 45 | C56: 1349136.622 | D56: =IF(B56="","",IF(Sheet1!$Z$1=4,'Tabla de Pagos Crecientes'!V51,'Tabla Fijos CAT'!G56)) -> 4340.864763 | E56: 1344795.757
B57: =IF(B56=Simulador!$H$49,"",IF(B56="","",'Tabla Notaría'!B56+1)) -> 46 | C57: 1344795.757 | D57: =IF(B57="","",IF(Sheet1!$Z$1=4,'Tabla de Pagos Crecientes'!V52,'Tabla Fijos CAT'!G57)) -> 4388.481156 | E57: 1340407.276
B58: =IF(B57=Simulador!$H$49,"",IF(B57="","",'Tabla Notaría'!B57+1)) -> 47 | C58: 1340407.276 | D58: =IF(B58="","",IF(Sheet1!$Z$1=4,'Tabla de Pagos Crecientes'!V53,'Tabla Fijos CAT'!G58)) -> 4436.619868 | E58: 1335970.656
B59: =IF(B58=Simulador!$H$49,"",IF(B58="","",'Tabla Notaría'!B58+1)) -> 48 | C59: 1335970.656 | D59: =IF(B59="","",IF(Sheet1!$Z$1=4,'Tabla de Pagos Crecientes'!V54,'Tabla Fijos CAT'!G59)) -> 4485.286631 | E59: 1331485.369
B60: =IF(B59=Simulador!$H$49,"",IF(B59="","",'Tabla Notaría'!B59+1)) -> 49 | C60: 1331485.369 | D60: =IF(B60="","",IF(Sheet1!$Z$1=4,'Tabla de Pagos Crecientes'!V55,'Tabla Fijos CAT'!G60)) -> 4534.487235 | E60: 1326950.882
B61: =IF(B60=Simulador!$H$49,"",IF(B60="","",'Tabla Notaría'!B60+1)) -> 50 | C61: 1326950.882 | D61: =IF(B61="","",IF(Sheet1!$Z$1=4,'Tabla de Pagos Crecientes'!V56,'Tabla Fijos CAT'!G61)) -> 4584.227537 | E61: 1322366.654
B62: =IF(B61=Simulador!$H$49,"",IF(B61="","",'Tabla Notaría'!B61+1)) -> 51 | C62: 1322366.654 | D62: =IF(B62="","",IF(Sheet1!$Z$1=4,'Tabla de Pagos Crecientes'!V57,'Tabla Fijos CAT'!G62)) -> 4634.513457 | E62: 1317732.141
B63: =IF(B62=Simulador!$H$49,"",IF(B62="","",'Tabla Notaría'!B62+1)) -> 52 | C63: 1317732.141 | D63: =IF(B63="","",IF(Sheet1!$Z$1=4,'Tabla de Pagos Crecientes'!V58,'Tabla Fijos CAT'!G63)) -> 4685.350979 | E63: 1313046.79
B64: =IF(B63=Simulador!$H$49,"",IF(B63="","",'Tabla Notaría'!B63+1)) -> 53 | C64: 1313046.79 | D64: =IF(B64="","",IF(Sheet1!$Z$1=4,'Tabla de Pagos Crecientes'!V59,'Tabla Fijos CAT'!G64)) -> 4736.746156 | E64: 1308310.044
B65: =IF(B64=Simulador!$H$49,"",IF(B64="","",'Tabla Notaría'!B64+1)) -> 54 | C65: 1308310.044 | D65: =IF(B65="","",IF(Sheet1!$Z$1=4,'Tabla de Pagos Crecientes'!V60,'Tabla Fijos CAT'!G65)) -> 4788.705104 | E65: 1303521.339
B66: =IF(B65=Simulador!$H$49,"",IF(B65="","",'Tabla Notaría'!B65+1)) -> 55 | C66: 1303521.339 | D66: =IF(B66="","",IF(Sheet1!$Z$1=4,'Tabla de Pagos Crecientes'!V61,'Tabla Fijos CAT'!G66)) -> 4841.234006 | E66: 1298680.105
B67: =IF(B66=Simulador!$H$49,"",IF(B66="","",'Tabla Notaría'!B66+1)) -> 56 | C67: 1298680.105 | D67: =IF(B67="","",IF(Sheet1!$Z$1=4,'Tabla de Pagos Crecientes'!V62,'Tabla Fijos CAT'!G67)) -> 4894.339116 | E67: 1293785.766
B68: =IF(B67=Simulador!$H$49,"",IF(B67="","",'Tabla Notaría'!B67+1)) -> 57 | C68: 1293785.766 | D68: =IF(B68="","",IF(Sheet1!$Z$1=4,'Tabla de Pagos Crecientes'!V63,'Tabla Fijos CAT'!G68)) -> 4948.026753 | E68: 1288837.739
B69: =IF(B68=Simulador!$H$49,"",IF(B68="","",'Tabla Notaría'!B68+1)) -> 58 | C69: 1288837.739 | D69: =IF(B69="","",IF(Sheet1!$Z$1=4,'Tabla de Pagos Crecientes'!V64,'Tabla Fijos CAT'!G69)) -> 5002.303308 | E69: 1283835.436
B70: =IF(B69=Simulador!$H$49,"",IF(B69="","",'Tabla Notaría'!B69+1)) -> 59 | C70: 1283835.436 | D70: =IF(B70="","",IF(Sheet1!$Z$1=4,'Tabla de Pagos Crecientes'!V65,'Tabla Fijos CAT'!G70)) -> 5057.17524 | E70: 1278778.26
B71: =IF(B70=Simulador!$H$49,"",IF(B70="","",'Tabla Notaría'!B70+1)) -> 60 | C71: 1278778.26 | D71: =IF(B71="","",IF(Sheet1!$Z$1=4,'Tabla de Pagos Crecientes'!V66,'Tabla Fijos CAT'!G71)) -> 5112.649081 | E71: 1273665.611
B72: =IF(B71=Simulador!$H$49,"",IF(B71="","",'Tabla Notaría'!B71+1)) -> 61 | C72: 1273665.611 | D72: =IF(B72="","",IF(Sheet1!$Z$1=4,'Tabla de Pagos Crecientes'!V67,'Tabla Fijos CAT'!G72)) -> 5168.731433 | E72: 1268496.88
B73: =IF(B72=Simulador!$H$49,"",IF(B72="","",'Tabla Notaría'!B72+1)) -> 62 | C73: 1268496.88 | D73: =IF(B73="","",IF(Sheet1!$Z$1=4,'Tabla de Pagos Crecientes'!V68,'Tabla Fijos CAT'!G73)) -> 5225.428971 | E73: 1263271.451
B74: =IF(B73=Simulador!$H$49,"",IF(B73="","",'Tabla Notaría'!B73+1)) -> 63 | C74: 1263271.451 | D74: =IF(B74="","",IF(Sheet1!$Z$1=4,'Tabla de Pagos Crecientes'!V69,'Tabla Fijos CAT'!G74)) -> 5282.748443 | E74: 1257988.702
B75: =IF(B74=Simulador!$H$49,"",IF(B74="","",'Tabla Notaría'!B74+1)) -> 64 | C75: 1257988.702 | D75: =IF(B75="","",IF(Sheet1!$Z$1=4,'Tabla de Pagos Crecientes'!V70,'Tabla Fijos CAT'!G75)) -> 5340.696672 | E75: 1252648.006
B76: =IF(B75=Simulador!$H$49,"",IF(B75="","",'Tabla Notaría'!B75+1)) -> 65 | C76: 1252648.006 | D76: =IF(B76="","",IF(Sheet1!$Z$1=4,'Tabla de Pagos Crecientes'!V71,'Tabla Fijos CAT'!G76)) -> 5399.280554 | E76: =IF(B76="","",C76-D76) -> 1247248.725
B77: =IF(B76=Simulador!$H$49,"",IF(B76="","",'Tabla Notaría'!B76+1)) -> 66 | C77: 1247248.725 | D77: =IF(B77="","",IF(Sheet1!$Z$1=4,'Tabla de Pagos Crecientes'!V72,'Tabla Fijos CAT'!G77)) -> 5458.507062 | E77: 1241790.218
B78: =IF(B77=Simulador!$H$49,"",IF(B77="","",'Tabla Notaría'!B77+1)) -> 67 | C78: =IF(B78="","",C77-D77) -> 1241790.218 | D78: =IF(B78="","",IF(Sheet1!$Z$1=4,'Tabla de Pagos Crecientes'!V73,'Tabla Fijos CAT'!G78)) -> 5518.383246 | E78: 1236271.835
B79: =IF(B78=Simulador!$H$49,"",IF(B78="","",'Tabla Notaría'!B78+1)) -> 68 | C79: 1236271.835 | D79: =IF(B79="","",IF(Sheet1!$Z$1=4,'Tabla de Pagos Crecientes'!V74,'Tabla Fijos CAT'!G79)) -> 5578.916231 | E79: 1230692.919
B80: =IF(B79=Simulador!$H$49,"",IF(B79="","",'Tabla Notaría'!B79+1)) -> 69 | C80: 1230692.919 | D80: =IF(B80="","",IF(Sheet1!$Z$1=4,'Tabla de Pagos Crecientes'!V75,'Tabla Fijos CAT'!G80)) -> 5640.113223 | E80: 1225052.805
B81: =IF(B80=Simulador!$H$49,"",IF(B80="","",'Tabla Notaría'!B80+1)) -> 70 | C81: 1225052.805 | D81: =IF(B81="","",IF(Sheet1!$Z$1=4,'Tabla de Pagos Crecientes'!V76,'Tabla Fijos CAT'!G81)) -> 5701.981505 | E81: 1219350.824
B82: =IF(B81=Simulador!$H$49,"",IF(B81="","",'Tabla Notaría'!B81+1)) -> 71 | C82: 1219350.824 | D82: =IF(B82="","",IF(Sheet1!$Z$1=4,'Tabla de Pagos Crecientes'!V77,'Tabla Fijos CAT'!G82)) -> 5764.52844 | E82: 1213586.295
B83: =IF(B82=Simulador!$H$49,"",IF(B82="","",'Tabla Notaría'!B82+1)) -> 72 | C83: 1213586.295 | D83: =IF(B83="","",IF(Sheet1!$Z$1=4,'Tabla de Pagos Crecientes'!V78,'Tabla Fijos CAT'!G83)) -> 5827.761474 | E83: 1207758.534
B84: =IF(B83=Simulador!$H$49,"",IF(B83="","",'Tabla Notaría'!B83+1)) -> 73 | C84: 1207758.534 | D84: =IF(B84="","",IF(Sheet1!$Z$1=4,'Tabla de Pagos Crecientes'!V79,'Tabla Fijos CAT'!G84)) -> 5891.688133 | E84: 1201866.846
B85: =IF(B84=Simulador!$H$49,"",IF(B84="","",'Tabla Notaría'!B84+1)) -> 74 | C85: 1201866.846 | D85: =IF(B85="","",IF(Sheet1!$Z$1=4,'Tabla de Pagos Crecientes'!V80,'Tabla Fijos CAT'!G85)) -> 5956.316024 | E85: 1195910.53
B86: =IF(B85=Simulador!$H$49,"",IF(B85="","",'Tabla Notaría'!B85+1)) -> 75 | C86: 1195910.53 | D86: =IF(B86="","",IF(Sheet1!$Z$1=4,'Tabla de Pagos Crecientes'!V81,'Tabla Fijos CAT'!G86)) -> 6021.652839 | E86: 1189888.877
B87: =IF(B86=Simulador!$H$49,"",IF(B86="","",'Tabla Notaría'!B86+1)) -> 76 | C87: 1189888.877 | D87: =IF(B87="","",IF(Sheet1!$Z$1=4,'Tabla de Pagos Crecientes'!V82,'Tabla Fijos CAT'!G87)) -> 6087.706357 | E87: 1183801.171
B88: =IF(B87=Simulador!$H$49,"",IF(B87="","",'Tabla Notaría'!B87+1)) -> 77 | C88: 1183801.171 | D88: =IF(B88="","",IF(Sheet1!$Z$1=4,'Tabla de Pagos Crecientes'!V83,'Tabla Fijos CAT'!G88)) -> 6154.484437 | E88: 1177646.686
B89: =IF(B88=Simulador!$H$49,"",IF(B88="","",'Tabla Notaría'!B88+1)) -> 78 | C89: 1177646.686 | D89: =IF(B89="","",IF(Sheet1!$Z$1=4,'Tabla de Pagos Crecientes'!V84,'Tabla Fijos CAT'!G89)) -> 6221.995028 | E89: 1171424.691
B90: =IF(B89=Simulador!$H$49,"",IF(B89="","",'Tabla Notaría'!B89+1)) -> 79 | C90: 1171424.691 | D90: =IF(B90="","",IF(Sheet1!$Z$1=4,'Tabla de Pagos Crecientes'!V85,'Tabla Fijos CAT'!G90)) -> 6290.246166 | E90: 1165134.445
B91: =IF(B90=Simulador!$H$49,"",IF(B90="","",'Tabla Notaría'!B90+1)) -> 80 | C91: 1165134.445 | D91: =IF(B91="","",IF(Sheet1!$Z$1=4,'Tabla de Pagos Crecientes'!V86,'Tabla Fijos CAT'!G91)) -> 6359.245973 | E91: 1158775.199
B92: =IF(B91=Simulador!$H$49,"",IF(B91="","",'Tabla Notaría'!B91+1)) -> 81 | C92: 1158775.199 | D92: =IF(B92="","",IF(Sheet1!$Z$1=4,'Tabla de Pagos Crecientes'!V87,'Tabla Fijos CAT'!G92)) -> 6429.002661 | E92: 1152346.196
B93: =IF(B92=Simulador!$H$49,"",IF(B92="","",'Tabla Notaría'!B92+1)) -> 82 | C93: 1152346.196 | D93: =IF(B93="","",IF(Sheet1!$Z$1=4,'Tabla de Pagos Crecientes'!V88,'Tabla Fijos CAT'!G93)) -> 6499.524535 | E93: 1145846.672
B94: =IF(B93=Simulador!$H$49,"",IF(B93="","",'Tabla Notaría'!B93+1)) -> 83 | C94: 1145846.672 | D94: =IF(B94="","",IF(Sheet1!$Z$1=4,'Tabla de Pagos Crecientes'!V89,'Tabla Fijos CAT'!G94)) -> 6570.819986 | E94: 1139275.852
B95: =IF(B94=Simulador!$H$49,"",IF(B94="","",'Tabla Notaría'!B94+1)) -> 84 | C95: 1139275.852 | D95: =IF(B95="","",IF(Sheet1!$Z$1=4,'Tabla de Pagos Crecientes'!V90,'Tabla Fijos CAT'!G95)) -> 6642.8975 | E95: 1132632.954
B96: =IF(B95=Simulador!$H$49,"",IF(B95="","",'Tabla Notaría'!B95+1)) -> 85 | C96: 1132632.954 | D96: =IF(B96="","",IF(Sheet1!$Z$1=4,'Tabla de Pagos Crecientes'!V91,'Tabla Fijos CAT'!G96)) -> 6715.765657 | E96: 1125917.189
B97: =IF(B96=Simulador!$H$49,"",IF(B96="","",'Tabla Notaría'!B96+1)) -> 86 | C97: 1125917.189 | D97: =IF(B97="","",IF(Sheet1!$Z$1=4,'Tabla de Pagos Crecientes'!V92,'Tabla Fijos CAT'!G97)) -> 6789.43313 | E97: 1119127.756
B98: =IF(B97=Simulador!$H$49,"",IF(B97="","",'Tabla Notaría'!B97+1)) -> 87 | C98: 1119127.756 | D98: =IF(B98="","",IF(Sheet1!$Z$1=4,'Tabla de Pagos Crecientes'!V93,'Tabla Fijos CAT'!G98)) -> 6863.908685 | E98: 1112263.847
B99: =IF(B98=Simulador!$H$49,"",IF(B98="","",'Tabla Notaría'!B98+1)) -> 88 | C99: 1112263.847 | D99: =IF(B99="","",IF(Sheet1!$Z$1=4,'Tabla de Pagos Crecientes'!V94,'Tabla Fijos CAT'!G99)) -> 6939.201187 | E99: 1105324.646
B100: =IF(B99=Simulador!$H$49,"",IF(B99="","",'Tabla Notaría'!B99+1)) -> 89 | C100: 1105324.646 | D100: =IF(B100="","",IF(Sheet1!$Z$1=4,'Tabla de Pagos Crecientes'!V95,'Tabla Fijos CAT'!G100)) -> 7015.319598 | E100: 1098309.326
B101: =IF(B100=Simulador!$H$49,"",IF(B100="","",'Tabla Notaría'!B100+1)) -> 90 | C101: 1098309.326 | D101: =IF(B101="","",IF(Sheet1!$Z$1=4,'Tabla de Pagos Crecientes'!V96,'Tabla Fijos CAT'!G101)) -> 7092.272977 | E101: 1091217.053
B102: =IF(B101=Simulador!$H$49,"",IF(B101="","",'Tabla Notaría'!B101+1)) -> 91 | C102: 1091217.053 | D102: =IF(B102="","",IF(Sheet1!$Z$1=4,'Tabla de Pagos Crecientes'!V97,'Tabla Fijos CAT'!G102)) -> 7170.070483 | E102: 1084046.983
B103: =IF(B102=Simulador!$H$49,"",IF(B102="","",'Tabla Notaría'!B102+1)) -> 92 | C103: 1084046.983 | D103: =IF(B103="","",IF(Sheet1!$Z$1=4,'Tabla de Pagos Crecientes'!V98,'Tabla Fijos CAT'!G103)) -> 7248.721377 | E103: 1076798.261
B104: =IF(B103=Simulador!$H$49,"",IF(B103="","",'Tabla Notaría'!B103+1)) -> 93 | C104: 1076798.261 | D104: =IF(B104="","",IF(Sheet1!$Z$1=4,'Tabla de Pagos Crecientes'!V99,'Tabla Fijos CAT'!G104)) -> 7328.235018 | E104: 1069470.026
B105: =IF(B104=Simulador!$H$49,"",IF(B104="","",'Tabla Notaría'!B104+1)) -> 94 | C105: 1069470.026 | D105: =IF(B105="","",IF(Sheet1!$Z$1=4,'Tabla de Pagos Crecientes'!V100,'Tabla Fijos CAT'!G105)) -> 7408.62087 | E105: 1062061.405
B106: =IF(B105=Simulador!$H$49,"",IF(B105="","",'Tabla Notaría'!B105+1)) -> 95 | C106: 1062061.405 | D106: =IF(B106="","",IF(Sheet1!$Z$1=4,'Tabla de Pagos Crecientes'!V101,'Tabla Fijos CAT'!G106)) -> 7489.888502 | E106: 1054571.517
B107: =IF(B106=Simulador!$H$49,"",IF(B106="","",'Tabla Notaría'!B106+1)) -> 96 | C107: 1054571.517 | D107: =IF(B107="","",IF(Sheet1!$Z$1=4,'Tabla de Pagos Crecientes'!V102,'Tabla Fijos CAT'!G107)) -> 7572.047586 | E107: 1046999.469
B108: =IF(B107=Simulador!$H$49,"",IF(B107="","",'Tabla Notaría'!B107+1)) -> 97 | C108: 1046999.469 | D108: =IF(B108="","",IF(Sheet1!$Z$1=4,'Tabla de Pagos Crecientes'!V103,'Tabla Fijos CAT'!G108)) -> 7655.1079 | E108: 1039344.361
B109: =IF(B108=Simulador!$H$49,"",IF(B108="","",'Tabla Notaría'!B108+1)) -> 98 | C109: 1039344.361 | D109: =IF(B109="","",IF(Sheet1!$Z$1=4,'Tabla de Pagos Crecientes'!V104,'Tabla Fijos CAT'!G109)) -> 7739.07933 | E109: 1031605.282
B110: =IF(B109=Simulador!$H$49,"",IF(B109="","",'Tabla Notaría'!B109+1)) -> 99 | C110: 1031605.282 | D110: =IF(B110="","",IF(Sheet1!$Z$1=4,'Tabla de Pagos Crecientes'!V105,'Tabla Fijos CAT'!G110)) -> 7823.971871 | E110: 1023781.31
B111: =IF(B110=Simulador!$H$49,"",IF(B110="","",'Tabla Notaría'!B110+1)) -> 100 | C111: 1023781.31 | D111: =IF(B111="","",IF(Sheet1!$Z$1=4,'Tabla de Pagos Crecientes'!V106,'Tabla Fijos CAT'!G111)) -> 7909.795626 | E111: 1015871.515
B112: =IF(B111=Simulador!$H$49,"",IF(B111="","",'Tabla Notaría'!B111+1)) -> 101 | C112: 1015871.515 | D112: =IF(B112="","",IF(Sheet1!$Z$1=4,'Tabla de Pagos Crecientes'!V107,'Tabla Fijos CAT'!G112)) -> 7996.560811 | E112: 1007874.954
B113: =IF(B112=Simulador!$H$49,"",IF(B112="","",'Tabla Notaría'!B112+1)) -> 102 | C113: 1007874.954 | D113: =IF(B113="","",IF(Sheet1!$Z$1=4,'Tabla de Pagos Crecientes'!V108,'Tabla Fijos CAT'!G113)) -> 8084.277752 | E113: 999790.6759
B114: =IF(B113=Simulador!$H$49,"",IF(B113="","",'Tabla Notaría'!B113+1)) -> 103 | C114: 999790.6759 | D114: =IF(B114="","",IF(Sheet1!$Z$1=4,'Tabla de Pagos Crecientes'!V109,'Tabla Fijos CAT'!G114)) -> 8172.956889 | E114: 991617.7191
B115: =IF(B114=Simulador!$H$49,"",IF(B114="","",'Tabla Notaría'!B114+1)) -> 104 | C115: 991617.7191 | D115: =IF(B115="","",IF(Sheet1!$Z$1=4,'Tabla de Pagos Crecientes'!V110,'Tabla Fijos CAT'!G115)) -> 8262.608778 | E115: 983355.1103
B116: =IF(B115=Simulador!$H$49,"",IF(B115="","",'Tabla Notaría'!B115+1)) -> 105 | C116: 983355.1103 | D116: =IF(B116="","",IF(Sheet1!$Z$1=4,'Tabla de Pagos Crecientes'!V111,'Tabla Fijos CAT'!G116)) -> 8353.244088 | E116: 975001.8662
B117: =IF(B116=Simulador!$H$49,"",IF(B116="","",'Tabla Notaría'!B116+1)) -> 106 | C117: 975001.8662 | D117: =IF(B117="","",IF(Sheet1!$Z$1=4,'Tabla de Pagos Crecientes'!V112,'Tabla Fijos CAT'!G117)) -> 8444.873607 | E117: 966556.9926
B118: =IF(B117=Simulador!$H$49,"",IF(B117="","",'Tabla Notaría'!B117+1)) -> 107 | C118: 966556.9926 | D118: =IF(B118="","",IF(Sheet1!$Z$1=4,'Tabla de Pagos Crecientes'!V113,'Tabla Fijos CAT'!G118)) -> 8537.50824 | E118: 958019.4843
B119: =IF(B118=Simulador!$H$49,"",IF(B118="","",'Tabla Notaría'!B118+1)) -> 108 | C119: 958019.4843 | D119: =IF(B119="","",IF(Sheet1!$Z$1=4,'Tabla de Pagos Crecientes'!V114,'Tabla Fijos CAT'!G119)) -> 8631.159014 | E119: 949388.3253
B120: =IF(B119=Simulador!$H$49,"",IF(B119="","",'Tabla Notaría'!B119+1)) -> 109 | C120: 949388.3253 | D120: =IF(B120="","",IF(Sheet1!$Z$1=4,'Tabla de Pagos Crecientes'!V115,'Tabla Fijos CAT'!G120)) -> 8725.837074 | E120: 940662.4883
B121: =IF(B120=Simulador!$H$49,"",IF(B120="","",'Tabla Notaría'!B120+1)) -> 110 | C121: 940662.4883 | D121: =IF(B121="","",IF(Sheet1!$Z$1=4,'Tabla de Pagos Crecientes'!V116,'Tabla Fijos CAT'!G121)) -> 8821.55369 | E121: 931840.9346
B122: =IF(B121=Simulador!$H$49,"",IF(B121="","",'Tabla Notaría'!B121+1)) -> 111 | C122: 931840.9346 | D122: =IF(B122="","",IF(Sheet1!$Z$1=4,'Tabla de Pagos Crecientes'!V117,'Tabla Fijos CAT'!G122)) -> 8918.320253 | E122: 922922.6143
B123: =IF(B122=Simulador!$H$49,"",IF(B122="","",'Tabla Notaría'!B122+1)) -> 112 | C123: 922922.6143 | D123: =IF(B123="","",IF(Sheet1!$Z$1=4,'Tabla de Pagos Crecientes'!V118,'Tabla Fijos CAT'!G123)) -> 9016.14828 | E123: 913906.466
B124: =IF(B123=Simulador!$H$49,"",IF(B123="","",'Tabla Notaría'!B123+1)) -> 113 | C124: 913906.466 | D124: =IF(B124="","",IF(Sheet1!$Z$1=4,'Tabla de Pagos Crecientes'!V119,'Tabla Fijos CAT'!G124)) -> 9115.049416 | E124: 904791.4166
B125: =IF(B124=Simulador!$H$49,"",IF(B124="","",'Tabla Notaría'!B124+1)) -> 114 | C125: 904791.4166 | D125: =IF(B125="","",IF(Sheet1!$Z$1=4,'Tabla de Pagos Crecientes'!V120,'Tabla Fijos CAT'!G125)) -> 9215.035431 | E125: 895576.3812
B126: =IF(B125=Simulador!$H$49,"",IF(B125="","",'Tabla Notaría'!B125+1)) -> 115 | C126: 895576.3812 | D126: =IF(B126="","",IF(Sheet1!$Z$1=4,'Tabla de Pagos Crecientes'!V121,'Tabla Fijos CAT'!G126)) -> 9316.118227 | E126: 886260.263
B127: =IF(B126=Simulador!$H$49,"",IF(B126="","",'Tabla Notaría'!B126+1)) -> 116 | C127: 886260.263 | D127: =IF(B127="","",IF(Sheet1!$Z$1=4,'Tabla de Pagos Crecientes'!V122,'Tabla Fijos CAT'!G127)) -> 9418.309833 | E127: 876841.9531
B128: =IF(B127=Simulador!$H$49,"",IF(B127="","",'Tabla Notaría'!B127+1)) -> 117 | C128: 876841.9531 | D128: =IF(B128="","",IF(Sheet1!$Z$1=4,'Tabla de Pagos Crecientes'!V123,'Tabla Fijos CAT'!G128)) -> 9521.622413 | E128: 867320.3307
B129: =IF(B128=Simulador!$H$49,"",IF(B128="","",'Tabla Notaría'!B128+1)) -> 118 | C129: 867320.3307 | D129: =IF(B129="","",IF(Sheet1!$Z$1=4,'Tabla de Pagos Crecientes'!V124,'Tabla Fijos CAT'!G129)) -> 9626.068263 | E129: 857694.2625
B130: =IF(B129=Simulador!$H$49,"",IF(B129="","",'Tabla Notaría'!B129+1)) -> 119 | C130: 857694.2625 | D130: =IF(B130="","",IF(Sheet1!$Z$1=4,'Tabla de Pagos Crecientes'!V125,'Tabla Fijos CAT'!G130)) -> 9731.659815 | E130: 847962.6026
B131: =IF(B130=Simulador!$H$49,"",IF(B130="","",'Tabla Notaría'!B130+1)) -> 120 | C131: 847962.6026 | D131: =IF(B131="","",IF(Sheet1!$Z$1=4,'Tabla de Pagos Crecientes'!V126,'Tabla Fijos CAT'!G131)) -> 9838.409635 | E131: 838124.193
B132: =IF(B131=Simulador!$H$49,"",IF(B131="","",'Tabla Notaría'!B131+1)) -> 121 | C132: 838124.193 | D132: =IF(B132="","",IF(Sheet1!$Z$1=4,'Tabla de Pagos Crecientes'!V127,'Tabla Fijos CAT'!G132)) -> 9946.33043 | E132: 828177.8626
B133: =IF(B132=Simulador!$H$49,"",IF(B132="","",'Tabla Notaría'!B132+1)) -> 122 | C133: 828177.8626 | D133: =IF(B133="","",IF(Sheet1!$Z$1=4,'Tabla de Pagos Crecientes'!V128,'Tabla Fijos CAT'!G133)) -> 10055.43504 | E133: 818122.4275
B134: =IF(B133=Simulador!$H$49,"",IF(B133="","",'Tabla Notaría'!B133+1)) -> 123 | C134: 818122.4275 | D134: =IF(B134="","",IF(Sheet1!$Z$1=4,'Tabla de Pagos Crecientes'!V129,'Tabla Fijos CAT'!G134)) -> 10165.73646 | E134: 807956.6911
B135: =IF(B134=Simulador!$H$49,"",IF(B134="","",'Tabla Notaría'!B134+1)) -> 124 | C135: 807956.6911 | D135: =IF(B135="","",IF(Sheet1!$Z$1=4,'Tabla de Pagos Crecientes'!V130,'Tabla Fijos CAT'!G135)) -> 10277.24781 | E135: 797679.4433
B136: =IF(B135=Simulador!$H$49,"",IF(B135="","",'Tabla Notaría'!B135+1)) -> 125 | C136: 797679.4433 | D136: =IF(B136="","",IF(Sheet1!$Z$1=4,'Tabla de Pagos Crecientes'!V131,'Tabla Fijos CAT'!G136)) -> 10389.98237 | E136: 787289.4609
B137: =IF(B136=Simulador!$H$49,"",IF(B136="","",'Tabla Notaría'!B136+1)) -> 126 | C137: 787289.4609 | D137: =IF(B137="","",IF(Sheet1!$Z$1=4,'Tabla de Pagos Crecientes'!V132,'Tabla Fijos CAT'!G137)) -> 10503.95355 | E137: 776785.5073
B138: =IF(B137=Simulador!$H$49,"",IF(B137="","",'Tabla Notaría'!B137+1)) -> 127 | C138: 776785.5073 | D138: =IF(B138="","",IF(Sheet1!$Z$1=4,'Tabla de Pagos Crecientes'!V133,'Tabla Fijos CAT'!G138)) -> 10619.17492 | E138: 766166.3324
B139: =IF(B138=Simulador!$H$49,"",IF(B138="","",'Tabla Notaría'!B138+1)) -> 128 | C139: 766166.3324 | D139: =IF(B139="","",IF(Sheet1!$Z$1=4,'Tabla de Pagos Crecientes'!V134,'Tabla Fijos CAT'!G139)) -> 10735.66019 | E139: 755430.6722
B140: =IF(B139=Simulador!$H$49,"",IF(B139="","",'Tabla Notaría'!B139+1)) -> 129 | C140: 755430.6722 | D140: =IF(B140="","",IF(Sheet1!$Z$1=4,'Tabla de Pagos Crecientes'!V135,'Tabla Fijos CAT'!G140)) -> 10853.42322 | E140: =IF(B140="","",C140-D140) -> 744577.249
B141: =IF(B140=Simulador!$H$49,"",IF(B140="","",'Tabla Notaría'!B140+1)) -> 130 | C141: 744577.249 | D141: =IF(B141="","",IF(Sheet1!$Z$1=4,'Tabla de Pagos Crecientes'!V136,'Tabla Fijos CAT'!G141)) -> 10972.47804 | E141: 733604.771
B142: =IF(B141=Simulador!$H$49,"",IF(B141="","",'Tabla Notaría'!B141+1)) -> 131 | C142: =IF(B142="","",C141-D141) -> 733604.771 | D142: =IF(B142="","",IF(Sheet1!$Z$1=4,'Tabla de Pagos Crecientes'!V137,'Tabla Fijos CAT'!G142)) -> 11092.83881 | E142: 722511.9321
B143: =IF(B142=Simulador!$H$49,"",IF(B142="","",'Tabla Notaría'!B142+1)) -> 132 | C143: 722511.9321 | D143: =IF(B143="","",IF(Sheet1!$Z$1=4,'Tabla de Pagos Crecientes'!V138,'Tabla Fijos CAT'!G143)) -> 11214.51986 | E143: 711297.4123
B144: =IF(B143=Simulador!$H$49,"",IF(B143="","",'Tabla Notaría'!B143+1)) -> 133 | C144: 711297.4123 | D144: =IF(B144="","",IF(Sheet1!$Z$1=4,'Tabla de Pagos Crecientes'!V139,'Tabla Fijos CAT'!G144)) -> 11337.53566 | E144: 699959.8766
B145: =IF(B144=Simulador!$H$49,"",IF(B144="","",'Tabla Notaría'!B144+1)) -> 134 | C145: 699959.8766 | D145: =IF(B145="","",IF(Sheet1!$Z$1=4,'Tabla de Pagos Crecientes'!V140,'Tabla Fijos CAT'!G145)) -> 11461.90087 | E145: 688497.9758
B146: =IF(B145=Simulador!$H$49,"",IF(B145="","",'Tabla Notaría'!B145+1)) -> 135 | C146: 688497.9758 | D146: =IF(B146="","",IF(Sheet1!$Z$1=4,'Tabla de Pagos Crecientes'!V141,'Tabla Fijos CAT'!G146)) -> 11587.63028 | E146: 676910.3455
B147: =IF(B146=Simulador!$H$49,"",IF(B146="","",'Tabla Notaría'!B146+1)) -> 136 | C147: 676910.3455 | D147: =IF(B147="","",IF(Sheet1!$Z$1=4,'Tabla de Pagos Crecientes'!V142,'Tabla Fijos CAT'!G147)) -> 11714.73886 | E147: 665195.6066
B148: =IF(B147=Simulador!$H$49,"",IF(B147="","",'Tabla Notaría'!B147+1)) -> 137 | C148: 665195.6066 | D148: =IF(B148="","",IF(Sheet1!$Z$1=4,'Tabla de Pagos Crecientes'!V143,'Tabla Fijos CAT'!G148)) -> 11843.24174 | E148: 653352.3649
B149: =IF(B148=Simulador!$H$49,"",IF(B148="","",'Tabla Notaría'!B148+1)) -> 138 | C149: 653352.3649 | D149: =IF(B149="","",IF(Sheet1!$Z$1=4,'Tabla de Pagos Crecientes'!V144,'Tabla Fijos CAT'!G149)) -> 11973.1542 | E149: 641379.2107
B150: =IF(B149=Simulador!$H$49,"",IF(B149="","",'Tabla Notaría'!B149+1)) -> 139 | C150: 641379.2107 | D150: =IF(B150="","",IF(Sheet1!$Z$1=4,'Tabla de Pagos Crecientes'!V145,'Tabla Fijos CAT'!G150)) -> 12104.49172 | E150: 629274.719
B151: =IF(B150=Simulador!$H$49,"",IF(B150="","",'Tabla Notaría'!B150+1)) -> 140 | C151: 629274.719 | D151: =IF(B151="","",IF(Sheet1!$Z$1=4,'Tabla de Pagos Crecientes'!V146,'Tabla Fijos CAT'!G151)) -> 12237.26993 | E151: 617037.449
B152: =IF(B151=Simulador!$H$49,"",IF(B151="","",'Tabla Notaría'!B151+1)) -> 141 | C152: 617037.449 | D152: =IF(B152="","",IF(Sheet1!$Z$1=4,'Tabla de Pagos Crecientes'!V147,'Tabla Fijos CAT'!G152)) -> 12371.50462 | E152: 604665.9444
B153: =IF(B152=Simulador!$H$49,"",IF(B152="","",'Tabla Notaría'!B152+1)) -> 142 | C153: 604665.9444 | D153: =IF(B153="","",IF(Sheet1!$Z$1=4,'Tabla de Pagos Crecientes'!V148,'Tabla Fijos CAT'!G153)) -> 12507.21178 | E153: 592158.7326
B154: =IF(B153=Simulador!$H$49,"",IF(B153="","",'Tabla Notaría'!B153+1)) -> 143 | C154: 592158.7326 | D154: =IF(B154="","",IF(Sheet1!$Z$1=4,'Tabla de Pagos Crecientes'!V149,'Tabla Fijos CAT'!G154)) -> 12644.40755 | E154: 579514.3251
B155: =IF(B154=Simulador!$H$49,"",IF(B154="","",'Tabla Notaría'!B154+1)) -> 144 | C155: 579514.3251 | D155: =IF(B155="","",IF(Sheet1!$Z$1=4,'Tabla de Pagos Crecientes'!V150,'Tabla Fijos CAT'!G155)) -> 12783.10827 | E155: 566731.2168
B156: =IF(B155=Simulador!$H$49,"",IF(B155="","",'Tabla Notaría'!B155+1)) -> 145 | C156: 566731.2168 | D156: =IF(B156="","",IF(Sheet1!$Z$1=4,'Tabla de Pagos Crecientes'!V151,'Tabla Fijos CAT'!G156)) -> 12923.33045 | E156: 553807.8863
B157: =IF(B156=Simulador!$H$49,"",IF(B156="","",'Tabla Notaría'!B156+1)) -> 146 | C157: 553807.8863 | D157: =IF(B157="","",IF(Sheet1!$Z$1=4,'Tabla de Pagos Crecientes'!V152,'Tabla Fijos CAT'!G157)) -> 13065.09077 | E157: 540742.7956
B158: =IF(B157=Simulador!$H$49,"",IF(B157="","",'Tabla Notaría'!B157+1)) -> 147 | C158: 540742.7956 | D158: =IF(B158="","",IF(Sheet1!$Z$1=4,'Tabla de Pagos Crecientes'!V153,'Tabla Fijos CAT'!G158)) -> 13208.40611 | E158: 527534.3895
B159: =IF(B158=Simulador!$H$49,"",IF(B158="","",'Tabla Notaría'!B158+1)) -> 148 | C159: 527534.3895 | D159: =IF(B159="","",IF(Sheet1!$Z$1=4,'Tabla de Pagos Crecientes'!V154,'Tabla Fijos CAT'!G159)) -> 13353.29351 | E159: 514181.096
B160: =IF(B159=Simulador!$H$49,"",IF(B159="","",'Tabla Notaría'!B159+1)) -> 149 | C160: 514181.096 | D160: =IF(B160="","",IF(Sheet1!$Z$1=4,'Tabla de Pagos Crecientes'!V155,'Tabla Fijos CAT'!G160)) -> 13499.77024 | E160: 500681.3257
B161: =IF(B160=Simulador!$H$49,"",IF(B160="","",'Tabla Notaría'!B160+1)) -> 150 | C161: 500681.3257 | D161: =IF(B161="","",IF(Sheet1!$Z$1=4,'Tabla de Pagos Crecientes'!V156,'Tabla Fijos CAT'!G161)) -> 13647.85372 | E161: 487033.472
B162: =IF(B161=Simulador!$H$49,"",IF(B161="","",'Tabla Notaría'!B161+1)) -> 151 | C162: 487033.472 | D162: =IF(B162="","",IF(Sheet1!$Z$1=4,'Tabla de Pagos Crecientes'!V157,'Tabla Fijos CAT'!G162)) -> 13797.56158 | E162: 473235.9104
B163: =IF(B162=Simulador!$H$49,"",IF(B162="","",'Tabla Notaría'!B162+1)) -> 152 | C163: 473235.9104 | D163: =IF(B163="","",IF(Sheet1!$Z$1=4,'Tabla de Pagos Crecientes'!V158,'Tabla Fijos CAT'!G163)) -> 13948.91163 | E163: 459286.9988
B164: =IF(B163=Simulador!$H$49,"",IF(B163="","",'Tabla Notaría'!B163+1)) -> 153 | C164: 459286.9988 | D164: =IF(B164="","",IF(Sheet1!$Z$1=4,'Tabla de Pagos Crecientes'!V159,'Tabla Fijos CAT'!G164)) -> 14101.92189 | E164: 445185.0769
B165: =IF(B164=Simulador!$H$49,"",IF(B164="","",'Tabla Notaría'!B164+1)) -> 154 | C165: 445185.0769 | D165: =IF(B165="","",IF(Sheet1!$Z$1=4,'Tabla de Pagos Crecientes'!V160,'Tabla Fijos CAT'!G165)) -> 14256.61057 | E165: 430928.4663
B166: =IF(B165=Simulador!$H$49,"",IF(B165="","",'Tabla Notaría'!B165+1)) -> 155 | C166: 430928.4663 | D166: =IF(B166="","",IF(Sheet1!$Z$1=4,'Tabla de Pagos Crecientes'!V161,'Tabla Fijos CAT'!G166)) -> 14412.99609 | E166: 416515.4702
B167: =IF(B166=Simulador!$H$49,"",IF(B166="","",'Tabla Notaría'!B166+1)) -> 156 | C167: 416515.4702 | D167: =IF(B167="","",IF(Sheet1!$Z$1=4,'Tabla de Pagos Crecientes'!V162,'Tabla Fijos CAT'!G167)) -> 14571.09705 | E167: 401944.3732
B168: =IF(B167=Simulador!$H$49,"",IF(B167="","",'Tabla Notaría'!B167+1)) -> 157 | C168: 401944.3732 | D168: =IF(B168="","",IF(Sheet1!$Z$1=4,'Tabla de Pagos Crecientes'!V163,'Tabla Fijos CAT'!G168)) -> 14730.93227 | E168: 387213.4409
B169: =IF(B168=Simulador!$H$49,"",IF(B168="","",'Tabla Notaría'!B168+1)) -> 158 | C169: 387213.4409 | D169: =IF(B169="","",IF(Sheet1!$Z$1=4,'Tabla de Pagos Crecientes'!V164,'Tabla Fijos CAT'!G169)) -> 14892.52077 | E169: 372320.9201
B170: =IF(B169=Simulador!$H$49,"",IF(B169="","",'Tabla Notaría'!B169+1)) -> 159 | C170: 372320.9201 | D170: =IF(B170="","",IF(Sheet1!$Z$1=4,'Tabla de Pagos Crecientes'!V165,'Tabla Fijos CAT'!G170)) -> 15055.8818 | E170: 357265.0383
B171: =IF(B170=Simulador!$H$49,"",IF(B170="","",'Tabla Notaría'!B170+1)) -> 160 | C171: 357265.0383 | D171: =IF(B171="","",IF(Sheet1!$Z$1=4,'Tabla de Pagos Crecientes'!V166,'Tabla Fijos CAT'!G171)) -> 15221.03478 | E171: 342044.0036
B172: =IF(B171=Simulador!$H$49,"",IF(B171="","",'Tabla Notaría'!B171+1)) -> 161 | C172: 342044.0036 | D172: =IF(B172="","",IF(Sheet1!$Z$1=4,'Tabla de Pagos Crecientes'!V167,'Tabla Fijos CAT'!G172)) -> 15387.99939 | E172: 326656.0042
B173: =IF(B172=Simulador!$H$49,"",IF(B172="","",'Tabla Notaría'!B172+1)) -> 162 | C173: 326656.0042 | D173: =IF(B173="","",IF(Sheet1!$Z$1=4,'Tabla de Pagos Crecientes'!V168,'Tabla Fijos CAT'!G173)) -> 15556.79548 | E173: 311099.2087
B174: =IF(B173=Simulador!$H$49,"",IF(B173="","",'Tabla Notaría'!B173+1)) -> 163 | C174: 311099.2087 | D174: =IF(B174="","",IF(Sheet1!$Z$1=4,'Tabla de Pagos Crecientes'!V169,'Tabla Fijos CAT'!G174)) -> 15727.44316 | E174: 295371.7655
B175: =IF(B174=Simulador!$H$49,"",IF(B174="","",'Tabla Notaría'!B174+1)) -> 164 | C175: 295371.7655 | D175: =IF(B175="","",IF(Sheet1!$Z$1=4,'Tabla de Pagos Crecientes'!V170,'Tabla Fijos CAT'!G175)) -> 15899.96272 | E175: 279471.8028
B176: =IF(B175=Simulador!$H$49,"",IF(B175="","",'Tabla Notaría'!B175+1)) -> 165 | C176: 279471.8028 | D176: =IF(B176="","",IF(Sheet1!$Z$1=4,'Tabla de Pagos Crecientes'!V171,'Tabla Fijos CAT'!G176)) -> 16074.37472 | E176: 263397.4281
B177: =IF(B176=Simulador!$H$49,"",IF(B176="","",'Tabla Notaría'!B176+1)) -> 166 | C177: 263397.4281 | D177: =IF(B177="","",IF(Sheet1!$Z$1=4,'Tabla de Pagos Crecientes'!V172,'Tabla Fijos CAT'!G177)) -> 16250.69989 | E177: 247146.7282
B178: =IF(B177=Simulador!$H$49,"",IF(B177="","",'Tabla Notaría'!B177+1)) -> 167 | C178: 247146.7282 | D178: =IF(B178="","",IF(Sheet1!$Z$1=4,'Tabla de Pagos Crecientes'!V173,'Tabla Fijos CAT'!G178)) -> 16428.95923 | E178: 230717.769
B179: =IF(B178=Simulador!$H$49,"",IF(B178="","",'Tabla Notaría'!B178+1)) -> 168 | C179: 230717.769 | D179: =IF(B179="","",IF(Sheet1!$Z$1=4,'Tabla de Pagos Crecientes'!V174,'Tabla Fijos CAT'!G179)) -> 16609.17396 | E179: 214108.595
B180: =IF(B179=Simulador!$H$49,"",IF(B179="","",'Tabla Notaría'!B179+1)) -> 169 | C180: 214108.595 | D180: =IF(B180="","",IF(Sheet1!$Z$1=4,'Tabla de Pagos Crecientes'!V175,'Tabla Fijos CAT'!G180)) -> 16791.36553 | E180: 197317.2295
B181: =IF(B180=Simulador!$H$49,"",IF(B180="","",'Tabla Notaría'!B180+1)) -> 170 | C181: 197317.2295 | D181: =IF(B181="","",IF(Sheet1!$Z$1=4,'Tabla de Pagos Crecientes'!V176,'Tabla Fijos CAT'!G181)) -> 16975.55561 | E181: 180341.6739
B182: =IF(B181=Simulador!$H$49,"",IF(B181="","",'Tabla Notaría'!B181+1)) -> 171 | C182: 180341.6739 | D182: =IF(B182="","",IF(Sheet1!$Z$1=4,'Tabla de Pagos Crecientes'!V177,'Tabla Fijos CAT'!G182)) -> 17161.76614 | E182: 163179.9077
B183: =IF(B182=Simulador!$H$49,"",IF(B182="","",'Tabla Notaría'!B182+1)) -> 172 | C183: 163179.9077 | D183: =IF(B183="","",IF(Sheet1!$Z$1=4,'Tabla de Pagos Crecientes'!V178,'Tabla Fijos CAT'!G183)) -> 17350.01928 | E183: 145829.8884
B184: =IF(B183=Simulador!$H$49,"",IF(B183="","",'Tabla Notaría'!B183+1)) -> 173 | C184: 145829.8884 | D184: =IF(B184="","",IF(Sheet1!$Z$1=4,'Tabla de Pagos Crecientes'!V179,'Tabla Fijos CAT'!G184)) -> 17540.33742 | E184: 128289.551
B185: =IF(B184=Simulador!$H$49,"",IF(B184="","",'Tabla Notaría'!B184+1)) -> 174 | C185: 128289.551 | D185: =IF(B185="","",IF(Sheet1!$Z$1=4,'Tabla de Pagos Crecientes'!V180,'Tabla Fijos CAT'!G185)) -> 17732.74323 | E185: 110556.8078
B186: =IF(B185=Simulador!$H$49,"",IF(B185="","",'Tabla Notaría'!B185+1)) -> 175 | C186: 110556.8078 | D186: =IF(B186="","",IF(Sheet1!$Z$1=4,'Tabla de Pagos Crecientes'!V181,'Tabla Fijos CAT'!G186)) -> 17927.2596 | E186: 92629.5482
B187: =IF(B186=Simulador!$H$49,"",IF(B186="","",'Tabla Notaría'!B186+1)) -> 176 | C187: 92629.5482 | D187: =IF(B187="","",IF(Sheet1!$Z$1=4,'Tabla de Pagos Crecientes'!V182,'Tabla Fijos CAT'!G187)) -> 18123.90969 | E187: 74505.63851
B188: =IF(B187=Simulador!$H$49,"",IF(B187="","",'Tabla Notaría'!B187+1)) -> 177 | C188: 74505.63851 | D188: =IF(B188="","",IF(Sheet1!$Z$1=4,'Tabla de Pagos Crecientes'!V183,'Tabla Fijos CAT'!G188)) -> 18322.71689 | E188: 56182.92162
B189: =IF(B188=Simulador!$H$49,"",IF(B188="","",'Tabla Notaría'!B188+1)) -> 178 | C189: 56182.92162 | D189: =IF(B189="","",IF(Sheet1!$Z$1=4,'Tabla de Pagos Crecientes'!V184,'Tabla Fijos CAT'!G189)) -> 18523.70488 | E189: 37659.21673
B190: =IF(B189=Simulador!$H$49,"",IF(B189="","",'Tabla Notaría'!B189+1)) -> 179 | C190: 37659.21673 | D190: =IF(B190="","",IF(Sheet1!$Z$1=4,'Tabla de Pagos Crecientes'!V185,'Tabla Fijos CAT'!G190)) -> 18726.89758 | E190: 18932.31916
B191: =IF(B190=Simulador!$H$49,"",IF(B190="","",'Tabla Notaría'!B190+1)) -> 180 | C191: 18932.31916 | D191: =IF(B191="","",IF(Sheet1!$Z$1=4,'Tabla de Pagos Crecientes'!V186,'Tabla Fijos CAT'!G191)) -> 18932.31916 | E191: 1.560692908e-09
B192: =IF(B191=Simulador!$H$49,"",IF(B191="","",'Tabla Notaría'!B191+1)) ->  | D192: =IF(B192="","",IF(Sheet1!$Z$1=4,'Tabla de Pagos Crecientes'!V187,'Tabla Fijos CAT'!G192)) ->  | E192: =IF(B192="","",C192-D192) -> 
B193: =IF(B192=Simulador!$H$49,"",IF(B192="","",'Tabla Notaría'!B192+1)) ->  | D193: =IF(B193="","",IF(Sheet1!$Z$1=4,'Tabla de Pagos Crecientes'!V188,'Tabla Fijos CAT'!G193)) ->  | E193: =IF(B193="","",C193-D193) -> 
B194: =IF(B193=Simulador!$H$49,"",IF(B193="","",'Tabla Notaría'!B193+1)) ->  | D194: =IF(B194="","",IF(Sheet1!$Z$1=4,'Tabla de Pagos Crecientes'!V189,'Tabla Fijos CAT'!G194)) -> 
B195: =IF(B194=Simulador!$H$49,"",IF(B194="","",'Tabla Notaría'!B194+1)) ->  | D195: =IF(B195="","",IF(Sheet1!$Z$1=4,'Tabla de Pagos Crecientes'!V190,'Tabla Fijos CAT'!G195)) -> 
B196: =IF(B195=Simulador!$H$49,"",IF(B195="","",'Tabla Notaría'!B195+1)) ->  | D196: =IF(B196="","",IF(Sheet1!$Z$1=4,'Tabla de Pagos Crecientes'!V191,'Tabla Fijos CAT'!G196)) -> 
B197: =IF(B196=Simulador!$H$49,"",IF(B196="","",'Tabla Notaría'!B196+1)) ->  | D197: =IF(B197="","",IF(Sheet1!$Z$1=4,'Tabla de Pagos Crecientes'!V192,'Tabla Fijos CAT'!G197)) -> 
B198: =IF(B197=Simulador!$H$49,"",IF(B197="","",'Tabla Notaría'!B197+1)) ->  | D198: =IF(B198="","",IF(Sheet1!$Z$1=4,'Tabla de Pagos Crecientes'!V193,'Tabla Fijos CAT'!G198)) -> 
B199: =IF(B198=Simulador!$H$49,"",IF(B198="","",'Tabla Notaría'!B198+1)) ->  | D199: =IF(B199="","",IF(Sheet1!$Z$1=4,'Tabla de Pagos Crecientes'!V194,'Tabla Fijos CAT'!G199)) -> 
B200: =IF(B199=Simulador!$H$49,"",IF(B199="","",'Tabla Notaría'!B199+1)) ->  | D200: =IF(B200="","",IF(Sheet1!$Z$1=4,'Tabla de Pagos Crecientes'!V195,'Tabla Fijos CAT'!G200)) -> 
B201: =IF(B200=Simulador!$H$49,"",IF(B200="","",'Tabla Notaría'!B200+1)) ->  | D201: =IF(B201="","",IF(Sheet1!$Z$1=4,'Tabla de Pagos Crecientes'!V196,'Tabla Fijos CAT'!G201)) -> 
B202: =IF(B201=Simulador!$H$49,"",IF(B201="","",'Tabla Notaría'!B201+1)) ->  | D202: =IF(B202="","",IF(Sheet1!$Z$1=4,'Tabla de Pagos Crecientes'!V197,'Tabla Fijos CAT'!G202)) -> 
... 109 more rows

Sheet Notariales (hidden)
B1: Mejora / Mejora más Remodelación
B2: Aguascalientes | C2: 7,000 Más IVA | D2: =7000*1.16 -> 8120 | E2: =D2/1.16 -> 7000
B3: Baja California Norte | C3: 5,000.00 Más IVA | D3: =5000*1.16 -> 5800 | E3: =D3/1.16 -> 5000
B4: Baja California Sur | C4: 5,000.00 Más IVA | D4: =5000*1.16 -> 5800 | E4: 5000
B5: Campeche | C5: 5,000 Más IVA | D5: 5800 | E5: 5000
B6: Chiapas | C6: 5,000 Más IVA | D6: 5800 | E6: 5000
B7: Chihuahua | C7: 5,000 Más IVA | D7: 5800 | E7: 5000
B8: Coahuila | C8: 5,000 Más IVA | D8: 5800 | E8: 5000
B9: Colima | C9: 4,000 Más IVA | D9: =4000*1.16 -> 4640 | E9: 4000
B10: Ciudad de México | C10: 15,000 ya se incluye el IVA | D10: 15000 | E10: 12931.03448
B11: Durango | C11: 5,000 Más IVA | D11: 5800 | E11: 5000
B12: Estado de México | C12: 15,000 ya se incluye el IVA | D12: 15000 | E12: 12931.03448
B13: Guanajuato | C13: 5,000 Más IVA | D13: 5800 | E13: 5000
B14: Guerrero | C14: 5,000 Más IVA | D14: 5800 | E14: 5000
B15: Hidalgo | C15: 5,000 Más IVA | D15: 5800 | E15: 5000
B16: Jalisco | C16: 5,000 Más IVA | D16: 5800 | E16: 5000
B17: Michoacán | C17: 5,000 Más IVA | D17: 5800 | E17: 5000
B18: Morelos | C18: 5,000 Más IVA | D18: 5800 | E18: 5000
B19: Nayarit | C19: 6,000 Más IVA | D19: 5800 | E19: 5000
B20: Nuevo León | C20: 5,000 Más IVA | D20: 5800 | E20: 5000
B21: Oaxaca | C21: 5,000 Más IVA hasta operaciones de 1,999,999.00, Mayores a este serían 7,000 más IVA | D21: 8120 | E21: 7000
B22: Puebla | C22: 5,000 Más IVA | D22: 5800 | E22: 5000
B23: Querétaro | C23: 5,000 Más IVA | D23: 5800 | E23: 5000
B24: Quintana Roo | C24: 5,000 Más IVA | D24: 5800 | E24: 5000
B25: San Luis Potosí | C25: 7,500 Más IVA | D25: 7500 | E25: 6465.517241
B26: Sinaloa | C26: 5,000 Más IVA | D26: 5800 | E26: 5000
B27: Sonora | C27: 7,500 Más IVA | D27: =7500*1.16 -> 8700 | E27: 7500
B28: Tabasco | C28: 5,000 Más IVA | D28: 5800 | E28: 5000
B29: Tamaulipas | C29: 5,000 Más IVA | D29: 5800 | E29: 5000
B30: Tlaxcala | C30: 5,000 Más IVA | D30: 5800 | E30: 5000
B31: Veracruz | C31: 5,000 Más IVA hasta operaciones de 1,999,999.00, Mayores a este serían 7,000 más IVA | D31: 8120 | E31: 7000
B32: Yucatán | C32: 5,000 Más IVA | D32: 5800 | E32: 5000
B33: Zacatecas | C33: 5,000 Más IVA | D33: 5800 | E33: 5000

Sheet Tabla Fijos (hidden)
O1: Si | T1: Plazo
B2: Vivienda | C2: =Simulador!N11 -> 2500000 | E2: Tasa | F2: =Simulador!F62 -> 0.1299 | H2: Destino | J2: =Simulador!F9 -> Liquidez | L2: Com. Apertura Finan | M2: =Simulador!$N$17 -> NO | O2: No | T2: Pago
B3: Crédito | C3: =IF($M$2="SI",Simulador!$H$48+Simulador!$L$46,IF('Tabla Fijos'!$M$2="NO",Simulador!$H$48,)) -> 1500000 | E3: Seguro | F3: =IF(Simulador!F13='Tabla Parámetros'!$N$6,Simulador!N9,IF(Simulador!F13='Tabla Parámetros'!$N$7,"",)) -> Básico | H3: Programa | J3: =Simulador!N7 -> Tradicional | L3: Com. Apertura | M3: =Simulador!N15 -> 0.015 | T3: Plazo y Pago
B4: Plazo | C4: =Simulador!F19 -> 180 | E4: Vida | F4: =IF(F3="","",IF(F3='Tabla Parámetros'!N4,'Tabla Parámetros'!R5,IF('Tabla Fijos CAT'!F3='Tabla Parámetros'!N3,'Tabla Parámetros'!R10))) -> 0.0006 | H4: Comisión Diferida | J4: =Sheet1!C29 -> 360
B5: Valor Destructible | C5: =IF(Simulador!$K$13="No",Simulador!$N$13,IF(Simulador!$K$13="Si",Simulador!$O$13,)) -> 1750000 | E5: Daños | F5: =IF(F3="","",IF(F3='Tabla Parámetros'!N4,'Tabla Parámetros'!S5,IF(F3='Tabla Parámetros'!N3,'Tabla Parámetros'!S10))) -> 0.00028
R7: Prepago | S7: =Simulador!N62 -> Reduce Pago
G8: =PPMT((F2/360*30.4),B12,C4,-F12) -> 2685.994078 | J8: =PMT((F2/360)*14,C4,-C3) -> 12708.1517 | K8: =$C$3*$F$4 -> 900 | L8: =$C$5*$F$5 -> 490
P9: =PMT(F2/360*30.4,C4,-C3) -> 19139.99408
B10: Periodo | C10: Fecha | D10: Días | E10: Tasa | F10: Saldo Inicial | G10: Capital | H10: Interés | I10: IVA Interés | J10: Pago | K10: Seguro de Vida | L10: Seguro de Daños y Contenidos | M10: Comisión Diferida | N10: Aportación Patronal | O10: Aportaciones a Capital | P10: Bonificaciones | Q10: Penalización por Pago Anticipado | R10: Pago Mensual | S10: Saldo Final | U10: Reduce Plazo y Pago | X10: Reduce Plazo | AA10: Reduce Pago
B11: 0 | S11: =$C$3 -> 1500000 | U11: Capital | V11: Interés | W11: Pago | X11: Capital | Y11: Interés | Z11: Pago | AA11: Capital | AB11: Interés | AC11: Pago
B12: 1 | C12: =IF($B12="","",'Fecha Pago'!K4) -> 2026-02-03 | D12: =IF($B$12="","",'Fecha Pago'!L4) -> 26 | E12: =IF(B12="","",$F$2) -> 0.1299 | F12: =S11 -> 1500000 | G12: =IF(B12="","",IF((J12-H12)>F12,F12,IF($S$7=$U$10,U12,IF($S$7=$X$10,X12,IF($S$7=$AA$10,AA12,))))) -> 2685.994078 | H12: =IF(C12="","",IF($S$7=$U$10,V12,IF($S$7=$X$10,Y12,IF($S$7=$AA$10,AB12,)))) -> 14072.5 | I12: =IF(B12="","",IF(Simulador!$F$9="Liquidez",'Tabla Fijos'!H12*0.16,IF(Simulador!$J$9="SI",H12*0.16,0))) -> 2251.6 | J12: =IF(D12="","",IF($S$7=$U$10,W12,IF($S$7=$X$10,Z12,IF($S$7=$AA$10,AC12,)))) -> 16758.49408 | K12: =IF(B12="","",IF($F$3="",0,($F$4/30*D12)*F12)) -> 780 | L12: =IF(B12="","",IF(F12=0,0,IF(Sheet1!$I$10=6,($F$5/30*D12)*$C$3,($F$5/30*D12)*$C$5))) -> 424.6666667 | M12: =IF(B12="","",IF(F12=0,0,$J$4)) -> 360 | N12: =IF(B12="","",IF(F12=0,0,IF(Simulador!$N$7='Tabla Parámetros'!$C$31,AportPat!L4,IF(Simulador!$N$7='Tabla Parámetros'!$C$34,AportPatFov!G2,0)))) -> 0 | O12: =Simulador!N67 -> 0 | Q12: =IF(O12>0,(O12-(O12/(1+Sheet1!$AD$14))),0) -> 0 | R12: =IF(B12="","",G12+H12+K12+L12+M12)-N12 -> 18323.16074 | S12: =IF(B12="","",F12-G12) -> 1497314.006 | U12: =IF(F12=0,0,PPMT(E12/360*30.4,B12,$C$4,-$S$11)+N12+(O12-Q12)+P12) -> 2685.994078 | V12: =(E12/360*D12)*F12 -> 14072.5 | W12: =U12+V12 -> 16758.49408 | X12: =PPMT(E12/360*30.4,B12,$C$4,-$S$11)+N12+(O12-Q12)+P12 -> 2685.994078 | Y12: =(E12/360*D12)*F12 -> 14072.5 | Z12: =X12+Y12 -> 16758.49408 | AA12: =PPMT(E12/360*30.4,B12,$C$4,-$S$11)+N12+(O12-Q12)+P12 -> 2685.994078 | AB12: =(E12/360*D12)*F12 -> 14072.5 | AC12: =AA12+AB12 -> 16758.49408
B13: =IF(B12="","",IF(B12=$C$4,"",B12+1)) -> 2 | C13: =IF($B13="","",'Fecha Pago'!K5) -> 2026-03-03 | D13: =IF($B$12="","",'Fecha Pago'!L5) -> 30.4 | E13: =IF(B13="","",$F$2) -> 0.1299 | F13: =IF(B13="","",F12-G12) -> 1497314.006 | G13: 2715.457642 | H13: =IF(C13="","",IF($S$7=$U$10,V13,IF($S$7=$X$10,Y13,IF($S$7=$AA$10,AB13,)))) -> 16424.53644 | I13: =IF(B13="","",IF(Simulador!$F$9="Liquidez",'Tabla Fijos'!H13*0.16,IF(Simulador!$J$9="SI",H13*0.16,0))) -> 2627.92583 | J13: =IF(D13="","",IF($S$7=$U$10,W13,IF($S$7=$X$10,Z13,IF($S$7=$AA$10,AC13,)))) -> 19139.99408 | K13: =IF(B13="","",IF($F$3="",0,($F$4*F13))) -> 898.3884036 | L13: =IF(B13="","",IF(F13=0,0,IF(Sheet1!$I$10=6,'Tabla Fijos'!$C$3*'Tabla Fijos'!$F$5,$F$5*$C$5))) -> 490 | M13: =IF(B13="","",IF(F13=0,0,$J$4)) -> 360 | N13: =IF(B13="","",IF(F13=0,0,IF(Simulador!$N$7='Tabla Parámetros'!$C$31,AportPat!L5,IF(Simulador!$N$7='Tabla Parámetros'!$C$34,AportPatFov!G3,0)))) -> 0 | O13: =Simulador!N68 -> 0 | Q13: =IF(O13>0,(O13-(O13/(1+Sheet1!$AD$14))),0) -> 0 | R13: =IF(B13="","",G13+H13+K13+L13+M13)-N13 -> 20888.38248 | S13: =IF(B13="","",F13-G13) -> 1494598.548 | U13: =IF(F13=0,0,PPMT(E13/360*30.4,B13,$C$4,-$S$11)+N13+(O13-Q13)+P13) -> 2715.457642 | V13: =(E13/360*D13)*F13 -> 16424.53644 | W13: =U13+V13 -> 19139.99408 | X13: =Z13-Y13 -> 2715.457642 | Y13: =(E13/360*D13)*F13 -> 16424.53644 | Z13: =IF(F13=0,0,PMT($F$2/360*30.4,$C$4,-$C$3)+N13+(O13-Q13)+P13) -> 19139.99408 | AA13: =AC13-AB13 -> 2715.457642 | AB13: =(E13/360*D13)*F13 -> 16424.53644 | AC13: =PMT($F$2/360*30.4,$C$4-B12,-S12)+N13+(O13-Q13)+P13 -> 19139.99408
B14: =IF(B13="","",IF(B13=$C$4,"",B13+1)) -> 3 | C14: =IF($B14="","",'Fecha Pago'!K6) -> 2026-04-03 | D14: =IF($B$12="","",'Fecha Pago'!L6) -> 30.4 | E14: 0.1299 | F14: 1494598.548 | G14: 2745.244402 | H14: 16394.74968 | I14: =IF(B14="","",IF(Simulador!$F$9="Liquidez",'Tabla Fijos'!H14*0.16,IF(Simulador!$J$9="SI",H14*0.16,0))) -> 2623.159948 | J14: 19139.99408 | K14: =IF(B14="","",IF($F$3="",0,($F$4*F14))) -> 896.759129 | L14: =IF(B14="","",IF(F14=0,0,IF(Sheet1!$I$10=6,'Tabla Fijos'!$C$3*'Tabla Fijos'!$F$5,$F$5*$C$5))) -> 490 | M14: 360 | N14: =IF(B14="","",IF(F14=0,0,IF(Simulador!$N$7='Tabla Parámetros'!$C$31,AportPat!L6,IF(Simulador!$N$7='Tabla Parámetros'!$C$34,AportPatFov!G4,0)))) -> 0 | O14: =Simulador!N69 -> 0 | Q14: =IF(O14>0,(O14-(O14/(1+Sheet1!$AD$14))),0) -> 0 | R14: =IF(B14="","",G14+H14+K14+L14+M14)-N14 -> 20886.75321 | S14: 1491853.304 | U14: =IF(F14=0,0,PPMT(E14/360*30.4,B14,$C$4,-$S$11)+N14+(O14-Q14)+P14) -> 2745.244402 | V14: 16394.74968 | W14: 19139.99408 | X14: 2745.244402 | Y14: 16394.74968 | Z14: =IF(F14=0,0,PMT($F$2/360*30.4,$C$4,-$C$3)+N14+(O14-Q14)+P14) -> 19139.99408 | AA14: 2745.244402 | AB14: 16394.74968 | AC14: =PMT($F$2/360*30.4,$C$4-B13,-S13)+N14+(O14-Q14)+P14 -> 19139.99408
B15: 4 | C15: =IF($B15="","",'Fecha Pago'!K7) -> 2026-05-03 | D15: =IF($B$12="","",'Fecha Pago'!L7) -> 30.4 | E15: 0.1299 | F15: 1491853.304 | G15: 2775.357903 | H15: 16364.63617 | I15: =IF(B15="","",IF(Simulador!$F$9="Liquidez",'Tabla Fijos'!H15*0.16,IF(Simulador!$J$9="SI",H15*0.16,0))) -> 2618.341788 | J15: 19139.99408 | K15: 895.1119823 | L15: =IF(B15="","",IF(F15=0,0,IF(Sheet1!$I$10=6,'Tabla Fijos'!$C$3*'Tabla Fijos'!$F$5,$F$5*$C$5))) -> 490 | M15: 360 | N15: =IF(B15="","",IF(F15=0,0,IF(Simulador!$N$7='Tabla Parámetros'!$C$31,AportPat!L7,IF(Simulador!$N$7='Tabla Parámetros'!$C$34,AportPatFov!G5,0)))) -> 0 | O15: =Simulador!N70 -> 0 | Q15: =IF(O15>0,(O15-(O15/(1+Sheet1!$AD$14))),0) -> 0 | R15: 20885.10606 | S15: 1489077.946 | U15: 2775.357903 | V15: 16364.63617 | W15: 19139.99408 | X15: 2775.357903 | Y15: 16364.63617 | Z15: 19139.99408 | AA15: 2775.357903 | AB15: 16364.63617 | AC15: 19139.99408
B16: 5 | C16: =IF($B16="","",'Fecha Pago'!K8) -> 2026-06-03 | D16: =IF($B$12="","",'Fecha Pago'!L8) -> 30.4 | E16: 0.1299 | F16: 1489077.946 | G16: =IF(B16="","",IF((J16-H16)>F16,F16,IF($S$7=$U$10,U16,IF($S$7=$X$10,X16,IF($S$7=$AA$10,AA16,))))) -> 2805.801729 | H16: 16334.19235 | I16: =IF(B16="","",IF(Simulador!$F$9="Liquidez",'Tabla Fijos'!H16*0.16,IF(Simulador!$J$9="SI",H16*0.16,0))) -> 2613.470776 | J16: 19139.99408 | K16: 893.4467676 | L16: =IF(B16="","",IF(F16=0,0,IF(Sheet1!$I$10=6,'Tabla Fijos'!$C$3*'Tabla Fijos'!$F$5,$F$5*$C$5))) -> 490 | M16: 360 | N16: =IF(B16="","",IF(F16=0,0,IF(Simulador!$N$7='Tabla Parámetros'!$C$31,AportPat!L8,IF(Simulador!$N$7='Tabla Parámetros'!$C$34,AportPatFov!G6,0)))) -> 0 | O16: =Simulador!N71 -> 0 | Q16: =IF(O16>0,(O16-(O16/(1+Sheet1!$AD$14))),0) -> 0 | R16: 20883.44085 | S16: 1486272.144 | U16: 2805.801729 | V16: 16334.19235 | W16: 19139.99408 | X16: 2805.801729 | Y16: 16334.19235 | Z16: 19139.99408 | AA16: 2805.801729 | AB16: 16334.19235 | AC16: 19139.99408
B17: 6 | C17: =IF($B17="","",'Fecha Pago'!K9) -> 2026-07-03 | D17: =IF($B$12="","",'Fecha Pago'!L9) -> 30.4 | E17: 0.1299 | F17: 1486272.144 | G17: 2836.579503 | H17: 16303.41457 | I17: =IF(B17="","",IF(Simulador!$F$9="Liquidez",'Tabla Fijos'!H17*0.16,IF(Simulador!$J$9="SI",H17*0.16,0))) -> 2608.546332 | J17: 19139.99408 | K17: 891.7632865 | L17: =IF(B17="","",IF(F17=0,0,IF(Sheet1!$I$10=6,'Tabla Fijos'!$C$3*'Tabla Fijos'!$F$5,$F$5*$C$5))) -> 490 | M17: 360 | N17: =IF(B17="","",IF(F17=0,0,IF(Simulador!$N$7='Tabla Parámetros'!$C$31,AportPat!L9,IF(Simulador!$N$7='Tabla Parámetros'!$C$34,AportPatFov!G7,0)))) -> 0 | O17: =Simulador!N72 -> 0 | Q17: =IF(O17>0,(O17-(O17/(1+Sheet1!$AD$14))),0) -> 0 | R17: 20881.75736 | S17: 1483435.565 | U17: 2836.579503 | V17: 16303.41457 | W17: 19139.99408 | X17: 2836.579503 | Y17: 16303.41457 | Z17: 19139.99408 | AA17: 2836.579503 | AB17: 16303.41457 | AC17: 19139.99408
B18: 7 | C18: =IF($B18="","",'Fecha Pago'!K10) -> 2026-08-03 | D18: =IF($B$12="","",'Fecha Pago'!L10) -> 30.4 | E18: 0.1299 | F18: 1483435.565 | G18: 2867.694889 | H18: 16272.29919 | I18: =IF(B18="","",IF(Simulador!$F$9="Liquidez",'Tabla Fijos'!H18*0.16,IF(Simulador!$J$9="SI",H18*0.16,0))) -> 2603.56787 | J18: 19139.99408 | K18: 890.0613388 | L18: =IF(B18="","",IF(F18=0,0,IF(Sheet1!$I$10=6,'Tabla Fijos'!$C$3*'Tabla Fijos'!$F$5,$F$5*$C$5))) -> 490 | M18: 360 | N18: =IF(B18="","",IF(F18=0,0,IF(Simulador!$N$7='Tabla Parámetros'!$C$31,AportPat!L10,IF(Simulador!$N$7='Tabla Parámetros'!$C$34,AportPatFov!G8,0)))) -> 0 | O18: =Simulador!N73 -> 0 | Q18: =IF(O18>0,(O18-(O18/(1+Sheet1!$AD$14))),0) -> 0 | R18: 20880.05542 | S18: 1480567.87 | U18: 2867.694889 | V18: 16272.29919 | W18: 19139.99408 | X18: 2867.694889 | Y18: 16272.29919 | Z18: 19139.99408 | AA18: 2867.694889 | AB18: 16272.29919 | AC18: 19139.99408
B19: 8 | C19: =IF($B19="","",'Fecha Pago'!K11) -> 2026-09-03 | D19: =IF($B$12="","",'Fecha Pago'!L11) -> 30.4 | E19: 0.1299 | F19: 1480567.87 | G19: 2899.15159 | H19: 16240.84249 | I19: =IF(B19="","",IF(Simulador!$F$9="Liquidez",'Tabla Fijos'!H19*0.16,IF(Simulador!$J$9="SI",H19*0.16,0))) -> 2598.534798 | J19: 19139.99408 | K19: 888.3407219 | L19: =IF(B19="","",IF(F19=0,0,IF(Sheet1!$I$10=6,'Tabla Fijos'!$C$3*'Tabla Fijos'!$F$5,$F$5*$C$5))) -> 490 | M19: 360 | N19: =IF(B19="","",IF(F19=0,0,IF(Simulador!$N$7='Tabla Parámetros'!$C$31,AportPat!L11,IF(Simulador!$N$7='Tabla Parámetros'!$C$34,AportPatFov!G9,0)))) -> 0 | O19: =Simulador!N74 -> 0 | Q19: =IF(O19>0,(O19-(O19/(1+Sheet1!$AD$14))),0) -> 0 | R19: 20878.3348 | S19: 1477668.718 | U19: 2899.15159 | V19: 16240.84249 | W19: 19139.99408 | X19: 2899.15159 | Y19: 16240.84249 | Z19: 19139.99408 | AA19: 2899.15159 | AB19: 16240.84249 | AC19: 19139.99408
